Workbook

Sheet probability cell3
A2: Target sheet | C2: sitecell3
A3: Number of variables | C3: 4
K5: 0.5 | L5: 0.1 | M5: 0.9 | N5: mean | O5: sd
A6: Variables | F6: =C17 -> Cl at 0.2 | G6: start | K6: =PERCENTILE(P6:CR6,0.5) -> 4 | L6: =PERCENTILE(P6:CR6,0.1) -> 4 | M6: =PERCENTILE(P6:CR6,0.9) -> 4 | N6: =AVERAGE(P6:CR6) -> 4 | O6: =STDEVP(P6:CR6) -> 0 | P6: 4 | Q6: 4 | R6: 4 | S6: 4 | T6: 4 | U6: 4 | V6: 4 | W6: 4 | X6: 4 | Y6: 4 | Z6: 4 | AA6: 4 | AB6: 4 | AC6: 4 | AD6: 4 | AE6: 4 | AF6: 4 | AG6: 4 | AH6: 4 | AI6: 4 | AJ6: 4 | AK6: 4 | AL6: 4 | AM6: 4 | AN6: 4 | AO6: 4 | AP6: 4 | AQ6: 4 | AR6: 4 | AS6: 4 | AT6: 4 | AU6: 4 | AV6: 4 | AW6: 4 | AX6: 4 | AY6: 4 | AZ6: 4 | BA6: 4 | BB6: 4 | BC6: 4 | BD6: 4 | BE6: 4 | BF6: 4 | BG6: 4 | BH6: 4 | BI6: 4 | BJ6: 4 | BK6: 4 | BL6: 4 | BM6: 4 | BN6: 4 | BO6: 4 | BP6: 4 | BQ6: 4 | BR6: 4 | BS6: 4 | BT6: 4 | BU6: 4 | BV6: 4 | BW6: 4 | BX6: 4 | BY6: 4 | BZ6: 4 | CA6: 4 | CB6: 4 | CC6: 4 | CD6: 4 | CE6: 4 | CF6: 4 | CG6: 4 | CH6: 4 | CI6: 4 | CJ6: 4 | CK6: 4 | CL6: 4 | CM6: 4 | CN6: 4 | CO6: 4 | CP6: 4 | CQ6: 4 | CR6: 4
D7: 1=lin | F7: Cl at 0.2 | G7: half time | K7: =PERCENTILE(P7:CR7,0.5) -> 14.0780507 | L7: =PERCENTILE(P7:CR7,0.1) -> 4.002110159 | M7: =PERCENTILE(P7:CR7,0.9) -> 223.4061207 | N7: =AVERAGE(P7:CR7) -> 60.77869511 | O7: =STDEVP(P7:CR7) -> 81.65775392 | P7: 223.5183076 | Q7: 111.9046109 | R7: 32.3773501 | S7: 241.1871891 | T7: 90.51536808 | U7: 10.7248863 | V7: 247.1084232 | W7: 66.69950461 | X7: 4.955976765 | Y7: 194.4312076 | Z7: 49.16167885 | AA7: 12.23682412 | AB7: 210.4794066 | AC7: 17.50981188 | AD7: 4.39086355 | AE7: 227.4925675 | AF7: 5.997769831 | AG7: 4.003924079 | AH7: 116.9487721 | AI7: 21.0515859 | AJ7: 6.539743267 | AK7: 77.48648345 | AL7: 5.298914314 | AM7: 4.019939958 | AN7: 39.21240461 | AO7: 4.012820143 | AP7: 4 | AQ7: 223.4061207 | AR7: 78.50405114 | AS7: 18.47412678 | AT7: 249.9777591 | AU7: 46.30281649 | AV7: 5.72088988 | AW7: 265.7914731 | AX7: 23.18666315 | AY7: 4.101966921 | AZ7: 163.1612287 | BA7: 30.42467587 | BB7: 7.663632535 | BC7: 155.9251715 | BD7: 8.257850379 | BE7: 4.06724831 | BF7: 144.6533899 | BG7: 4.235871019 | BH7: 4.000176474 | BI7: 88.6095937 | BJ7: 13.47264963 | BK7: 5.091186275 | BL7: 43.43440621 | BM7: 4.336761879 | BN7: 4.002973346 | BO7: 14.0780507 | BP7: 4.000870135 | BQ7: 4 | BR7: 212.2977216 | BS7: 53.53047532 | BT7: 11.27235721 | BU7: 239.365527 | BV7: 22.80858031 | BW7: 4.428947883 | BX7: 262.1609237 | BY7: 8.918245959 | BZ7: 4.010905131 | CA7: 127.7109723 | CB7: 16.75250475 | CC7: 5.135252913 | CD7: 96.52090171 | CE7: 4.661095434 | CF7: 4.002636933 | CG7: 59.91175267 | CH7: 4.002110159 | CI7: 4 | CJ7: 67.70193665 | CK7: 9.408984598 | CL7: 4.488913069 | CM7: 25.00588195 | CN7: 4.093135048 | CO7: 4.000527196 | CP7: 6.736006615 | CQ7: 4.000069739 | CR7: 4
A8: Row-inr | B8: Column | C8: V% | D8: 2=log | F8: Cl at 0.2 | G8: end | K8: 126.7112522 | L8: 7.091023164 | M8: 208.5561244 | N8: 111.7619533 | O8: 76.84325619 | P8: 127.5653326 | Q8: 166.0287359 | R8: 130.1492495 | S8: 126.9822654 | T8: 190.837714 | U8: 143.2906781 | V8: 126.7112522 | W8: 203.7783976 | X8: 150.9298459 | Y8: 194.7434104 | Z8: 143.1074949 | AA8: 72.54876315 | AB8: 208.5561244 | AC8: 151.028849 | AD8: 42.82008298 | AE8: 211.9583045 | AF8: 153.6682174 | AG8: 18.942194 | AH8: 192.8774834 | AI8: 83.26272742 | AJ8: 33.84132137 | AK8: 214.6620061 | AL8: 46.82033786 | AM8: 9.352268079 | AN8: 239.5395727 | AO8: 17.65045494 | AP8: 4.224098286 | AQ8: 149.6156115 | AR8: 166.671198 | AS8: 105.7772502 | AT8: 150.2671613 | AU8: 197.0138253 | AV8: 96.89895217 | AW8: 150.1438644 | AX8: 221.022675 | AY8: 81.09069883 | AZ8: 204.1026781 | BA8: 116.8791813 | BB8: 49.66010592 | BC8: 228.3613416 | BD8: 101.4951672 | BE8: 20.11904768 | BF8: 240.3966409 | BG8: 78.06732645 | BH8: 6.887737021 | BI8: 173.4792724 | BJ8: 61.54777453 | BK8: 22.47581903 | BL8: 176.9798307 | BM8: 24.80190459 | BN8: 5.767661497 | BO8: 179.3895893 | BP8: 7.091023164 | BQ8: 4.023122211 | BR8: 168.9933021 | BS8: 156.2614546 | BT8: 81.61961423 | BU8: 172.5973906 | BV8: 179.5253442 | BW8: 58.45454613 | BX8: 172.929921 | BY8: 199.6930637 | BZ8: 35.55015825 | CA8: 203.5646645 | CB8: 87.9352842 | CC8: 30.29628882 | CD8: 234.3322029 | CE8: 54.86721625 | CF8: 8.096478742 | CG8: 259.6440076 | CH8: 23.19276272 | CI8: 4.104702107 | CJ8: 153.3350061 | CK8: 46.01420063 | CL8: 15.63941205 | CM8: 137.6501354 | CN8: 14.12883771 | CO8: 4.605090747 | CP8: 115.0914668 | CQ8: 4.689367073 | CR8: 4.002654739
A9: 1 | B9: 5 | C9: 50 | D9: 1 | E9: alpha for mortar | F9: Cl at 0.7 | G9: half time | K9: 333.622898 | L9: 6.473641006 | M9: 349.9997318 | N9: 217.1789399 | O9: 149.4067243 | P9: 13.56547752 | Q9: 4.003903773 | R9: 4.002033512 | S9: 4.986068739 | T9: 4.000650022 | U9: 4.001233154 | V9: 4.080925223 | W9: 4.000384119 | X9: 4.000622537 | Y9: 72.05295276 | Z9: 71.90531869 | AA9: 72.26046699 | AB9: 72.21995173 | AC9: 72.01733303 | AD9: 71.86745252 | AE9: 72.31321577 | AF9: 70.6252017 | AG9: 72.07603698 | AH9: 349.8088486 | AI9: 349.8035504 | AJ9: 349.8035504 | AK9: 349.8088486 | AL9: 349.8088486 | AM9: 349.8035504 | AN9: 349.8088486 | AO9: 349.8088486 | AP9: 349.8088486 | AQ9: 6.710456873 | AR9: 6.491204507 | AS9: 6.490533624 | AT9: 6.50255588 | AU9: 6.502685024 | AV9: 6.484948007 | AW9: 6.473641006 | AX9: 6.496429185 | AY9: 6.492257523 | AZ9: 333.5455232 | BA9: 333.5979329 | BB9: 333.6364614 | BC9: 335.1923703 | BD9: 333.7253438 | BE9: 333.622898 | BF9: 333.560782 | BG9: 333.4474219 | BH9: 333.6307817 | BI9: 349.9997318 | BJ9: 349.9997318 | BK9: 349.9997318 | BL9: 349.9997318 | BM9: 349.9997318 | BN9: 349.9997318 | BO9: 349.9997318 | BP9: 349.9997318 | BQ9: 349.9997318 | BR9: 137.5036503 | BS9: 137.5821589 | BT9: 137.4161454 | BU9: 137.3839324 | BV9: 137.1618428 | BW9: 137.3118452 | BX9: 137.4711406 | BY9: 137.2173573 | BZ9: 137.6064882 | CA9: 349.9996894 | CB9: 349.9996894 | CC9: 349.9996894 | CD9: 349.9996894 | CE9: 349.9996894 | CF9: 349.9996894 | CG9: 349.9996894 | CH9: 349.9996894 | CI9: 349.9996894 | CJ9: 349.9997318 | CK9: 349.9997318 | CL9: 349.9997318 | CM9: 349.9997318 | CN9: 349.9997318 | CO9: 349.9997318 | CP9: 349.9997318 | CQ9: 349.9997318 | CR9: 349.9997318
A10: 1 | B10: 7 | C10: 4 | D10: 2 | E10: D for mortar | F10: Cl at 0.7 | G10: end | K10: 19.48385823 | L10: 4.001073546 | M10: 349.5120228 | N10: 100.2969751 | O10: 132.7444652 | P10: 213.8535309 | Q10: 50.83166026 | R10: 6.956080319 | S10: 235.9117838 | T10: 19.48385823 | U10: 4.063371325 | V10: 247.7962395 | W10: 7.629027991 | X10: 4.000584457 | Y10: 93.46030182 | Z10: 5.607045136 | AA10: 4.023623307 | AB10: 49.14073219 | AC10: 3.986776048 | AD10: 4.000871221 | AE10: 22.45780803 | AF10: 4.000327163 | AG10: 4.000371867 | AH10: 20.95218946 | AI10: 20.49741796 | AJ10: 20.50478907 | AK10: 19.39803815 | AL10: 20.46013724 | AM10: 20.51147009 | AN10: 20.4728476 | AO10: 20.42713614 | AP10: 21.09675191 | AQ10: 196.3505349 | AR10: 18.14821622 | AS10: 4.413574427 | AT10: 207.9348799 | AU10: 5.443643645 | AV10: 4.00165436 | AW10: 218.7024771 | AX10: 4.082392822 | AY10: 4.000372529 | AZ10: 20.23931926 | BA10: 4.067391658 | BB10: 4.016093916 | BC10: 5.956138268 | BD10: 4.014185574 | BE10: 4.034959116 | BF10: 4.147824811 | BG10: 4.012539823 | BH10: 4.013977951 | BI10: 298.0345925 | BJ10: 297.3989369 | BK10: 297.9550985 | BL10: 298.0255432 | BM10: 298.1217796 | BN10: 297.8527587 | BO10: 298.4356444 | BP10: 298.0848618 | BQ10: 298.266844 | BR10: 127.0838369 | BS10: 6.79754654 | BT10: 4.039998026 | BU10: 95.37851167 | BV10: 4.072955751 | BW10: 4.000586112 | BX10: 70.41536687 | BY10: 4.001073546 | BZ10: 4.000395709 | CA10: 10.49599672 | CB10: 10.22717912 | CC10: 10.37449001 | CD10: 10.44008227 | CE10: 10.32675861 | CF10: 10.34813482 | CG10: 10.45656295 | CH10: 10.34800833 | CI10: 10.34044649 | CJ10: 349.5120228 | CK10: 349.5209025 | CL10: 349.5209025 | CM10: 349.5120651 | CN10: 349.5120228 | CO10: 349.5120228 | CP10: 349.5120651 | CQ10: 349.5120228 | CR10: 349.5120228
A11: 2 | B11: 8 | C11: 3.165 | D11: 2 | E11: k for mortar
A12: 2 | B12: 4 | C12: 15 | D12: 1 | E12: Thickness | F12: =C17 -> Cl at 0.2 | G12: start | K12: 450.0000059 | L12: 449.9999925 | M12: 581.6525879 | N12: 487.3731413 | O12: 99.64955838 | P12: 821.6388829 | Q12: 460.1365833 | R12: 450.0418102 | S12: 857.7109761 | T12: 450.8164442 | U12: 450.0000517 | V12: 876.5178479 | W12: 450.079764 | X12: 450.0000059 | Y12: 581.6525879 | Z12: 452.0407313 | AA12: 450.0002806 | AB12: 529.6676671 | AC12: 450.000028 | AD12: 450.0000059 | AE12: 478.1643248 | AF12: 449.9999925 | AG12: 450.0000059 | AH12: 446.1558797 | AI12: 450.0060251 | AJ12: 450.0000059 | AK12: 450.6150342 | AL12: 449.9999925 | AM12: 450.0000059 | AN12: 449.9999906 | AO12: 449.9999925 | AP12: 450.0000059 | AQ12: 814.1728006 | AR12: 452.0208949 | AS12: 450.0024784 | AT12: 753.2934646 | AU12: 450.0355136 | AV12: 450.0000059 | AW12: 769.4113197 | AX12: 450.0009861 | AY12: 450.0000059 | AZ12: 505.1790452 | BA12: 449.8672411 | BB12: 450.0000975 | BC12: 468.6702036 | BD12: 449.9999925 | BE12: 450.0000059 | BF12: 450.3729438 | BG12: 449.9999925 | BH12: 450.0000059 | BI12: 456.4232312 | BJ12: 450.036862 | BK12: 450.0000059 | BL12: 450.1425243 | BM12: 449.9999925 | BN12: 450.0000059 | BO12: 449.9999906 | BP12: 449.9999925 | BQ12: 450.0000059 | BR12: 644.6330633 | BS12: 450.3241885 | BT12: 450.0000975 | BU12: 594.6864722 | BV12: 450.0007732 | BW12: 450.0000059 | BX12: 580.5979572 | BY12: 449.9999925 | BZ12: 450.0000059 | CA12: 475.4056382 | CB12: 449.9209662 | CC12: 450.0000059 | CD12: 454.2462317 | CE12: 449.9999925 | CF12: 450.0000059 | CG12: 449.9999906 | CH12: 449.9999925 | CI12: 450.0000059 | CJ12: 452.5300319 | CK12: 449.9993893 | CL12: 450.0000059 | CM12: 450.0051163 | CN12: 449.9999925 | CO12: 450.0000059 | CP12: 449.9999906 | CQ12: 449.9999925 | CR12: 450.0000059
F13: Cl at 0.2 | G13: half time | K13: 632.9678452 | L13: 467.5285876 | M13: 777.6581834 | N13: 623.6510752 | O13: 112.479939 | P13: 442.3033706 | Q13: 454.7029287 | R13: 467.5285876 | S13: 440.6137455 | T13: 454.6580749 | U13: 467.4608675 | V13: 442.2147355 | W13: 454.6733337 | X13: 467.4886149 | Y13: 579.9282265 | Z13: 595.6691909 | AA13: 612.3559863 | AB13: 579.7914888 | AC13: 595.8872142 | AD13: 612.5579563 | AE13: 579.720912 | AF13: 595.9982839 | AG13: 612.7403292 | AH13: 700.1559729 | AI13: 724.7601766 | AJ13: 745.1798811 | AK13: 705.6034789 | AL13: 725.1608085 | AM13: 745.2384895 | AN13: 705.8766389 | AO13: 725.4632164 | AP13: 745.727778 | AQ13: 469.4726503 | AR13: 491.8333105 | AS13: 506.5554629 | AT13: 477.5297642 | AU13: 491.8225584 | AV13: 506.5440617 | AW13: 477.5502669 | AX13: 491.8606698 | AY13: 506.6086683 | AZ13: 611.3769854 | BA13: 632.9678452 | BB13: 652.2467859 | BC13: 615.5626251 | BD13: 633.7630765 | BE13: 652.5954143 | BF13: 615.5445669 | BG13: 633.9232583 | BH13: 652.8566796 | BI13: 733.862599 | BJ13: 761.8410206 | BK13: 795.2704653 | BL13: 665.8013017 | BM13: 755.6697986 | BN13: 777.6581834 | BO13: 733.042646 | BP13: 755.8940673 | BQ13: 778.3380409 | BR13: 508.0404033 | BS13: 524.4731372 | BT13: 541.0118445 | BU13: 508.4696603 | BV13: 524.5048613 | BW13: 541.0650957 | BX13: 508.4786105 | BY13: 524.5667481 | BZ13: 541.1688967 | CA13: 554.6289961 | CB13: 664.2470138 | CC13: 685.4478947 | CD13: 643.5769342 | CE13: 665.1156293 | CF13: 685.9573757 | CG13: 645.0032565 | CH13: 665.3269103 | CI13: 686.3029363 | CJ13: 755.9084346 | CK13: 778.3841026 | CL13: 826.5634128 | CM13: 756.0991104 | CN13: 779.6991973 | CO13: 803.063093 | CP13: 756.4447397 | CQ13: 780.1566061 | CR13: 804.5791275
A14: Output | F14: Cl at 0.2 | G14: end | K14: 436.9020611 | L14: 238.1636326 | M14: 629.7117022 | N14: 438.1867406 | O14: 144.6631678 | P14: 224.9611386 | Q14: 231.4628563 | R14: 238.1636326 | S14: 224.8185655 | T14: 231.267526 | U14: 237.8534659 | V14: 224.8346326 | W14: 231.1993405 | X14: 237.7470322 | Y14: 364.703122 | Z14: 389.3338161 | AA14: 400.4172543 | AB14: 378.7118734 | AC14: 389.1137702 | AD14: 400.11565 | AE14: 378.3953028 | AF14: 389.0690938 | AG14: 400.0483419 | AH14: 550.1715371 | AI14: 559.2676469 | AJ14: 602.4373389 | AK14: 552.5389363 | AL14: 567.852277 | AM14: 583.729492 | AN14: 552.2750814 | AO14: 567.9340712 | AP14: 583.8675881 | AQ14: 260.4518799 | AR14: 268.4295077 | AS14: 276.6629864 | AT14: 260.3570349 | AU14: 268.2245609 | AV14: 276.3390605 | AW14: 260.3215296 | AX14: 268.1569787 | AY14: 276.2334509 | AZ14: 424.275525 | BA14: 436.3905368 | BB14: 450.2796321 | BC14: 423.4082974 | BD14: 436.9220395 | BE14: 450.0345757 | BF14: 424.1840511 | BG14: 436.9020611 | BH14: 450.0069656 | BI14: 595.2142608 | BJ14: 619.7139903 | BK14: 619.2635814 | BL14: 588.164779 | BM14: 612.4290897 | BN14: 631.0690987 | BO14: 595.2520332 | BP14: 613.0507966 | BQ14: 631.3209775 | BR14: 331.2589313 | BS14: 302.8203515 | BT14: 312.5938958 | BU14: 290.5375204 | BV14: 302.6146772 | BW14: 312.26736 | BX14: 293.2335355 | BY14: 302.5509806 | BZ14: 312.1690765 | CA14: 464.9683109 | CB14: 479.0147569 | CC14: 493.4668337 | CD14: 463.7889681 | CE14: 478.1775107 | CF14: 493.301677 | CG14: 463.5238122 | CH14: 478.1883338 | CI14: 493.3252577 | CJ14: 629.4877489 | CK14: 640.1193912 | CL14: 712.9625235 | CM14: 629.7117022 | CN14: 650.6221219 | CO14: 669.5265567 | CP14: 628.1566068 | CQ14: 649.4849518 | CR14: 669.9029325
F15: Cl at 0.7 | G15: half time | K15: 450.0125732 | L15: 450.0016174 | M15: 754.3840332 | N15: 521.780527 | O15: 118.1519993 | P15: 721.9110107 | Q15: 754.3840332 | R15: 780.5647583 | S15: 722.2404785 | T15: 755.5692749 | U15: 784.0166016 | V15: 722.4546509 | W15: 756.0775757 | X15: 785.3461304 | Y15: 532.1228638 | Z15: 469.9656372 | AA15: 453.5604858 | AB15: 529.3126221 | AC15: 465.9812012 | AD15: 451.9278564 | AE15: 527.5745239 | AF15: 464.5266113 | AG15: 451.3757935 | AH15: 450.0059814 | AI15: 450.0029907 | AJ15: 450.0029907 | AK15: 450.0029907 | AL15: 450.0029907 | AM15: 450.0029907 | AN15: 450.0029907 | AO15: 450.0029907 | AP15: 450.0029907 | AQ15: 782.6349487 | AR15: 729.0899048 | AS15: 629.0130005 | AT15: 784.0470581 | AU15: 729.2131958 | AV15: 623.7832031 | AW15: 784.3258667 | AX15: 729.1807251 | AY15: 621.505127 | AZ15: 450.4135437 | BA15: 450.0222778 | BB15: 450.0067139 | BC15: 450.3190918 | BD15: 450.0125732 | BE15: 450.005249 | BF15: 450.2721863 | BG15: 450.009613 | BH15: 450.0044556 | BI15: 450.0048828 | BJ15: 450.0022278 | BK15: 450.0022278 | BL15: 450.0022278 | BM15: 450.0022278 | BN15: 450.0022278 | BO15: 450.0022278 | BP15: 450.0022278 | BQ15: 450.0022278 | BR15: 551.6283569 | BS15: 485.299469 | BT15: 459.4610291 | BU15: 549.4807739 | BV15: 482.2951965 | BW15: 457.1278687 | BX15: 548.7959595 | BY15: 481.0549622 | BZ15: 456.2220154 | CA15: 450.0021057 | CB15: 450.0016174 | CC15: 450.0016174 | CD15: 450.0016174 | CE15: 450.0016174 | CF15: 450.0016174 | CG15: 450.0030518 | CH15: 450.0016174 | CI15: 450.0016174 | CJ15: 450.0039978 | CK15: 450.0018005 | CL15: 450.0016174 | CM15: 450.0016174 | CN15: 450.0016174 | CO15: 450.0016174 | CP15: 450.0016174 | CQ15: 450.0016174 | CR15: 450.0016174
A16: Row | B16: Column | F16: Cl at 0.7 | G16: end | K16: 539.2508545 | L16: 403.3351746 | M16: 738.3446655 | N16: 550.524544 | O16: 120.552429 | P16: 367.2192078 | Q16: 384.5601196 | R16: 402.7397766 | S16: 367.2307739 | T16: 384.8085938 | U16: 403.1483765 | V16: 367.3533325 | W16: 384.9205017 | X16: 403.3351746 | Y16: 617.5045776 | Z16: 645.9564819 | AA16: 675.6918945 | AB16: 618.0454102 | AC16: 647.1217651 | AD16: 677.6271973 | AE16: 618.2050781 | AF16: 647.6279907 | AG16: 678.4612427 | AH16: 662.645874 | AI16: 550.9318848 | AJ16: 487.6291199 | AK16: 660.4738159 | AL16: 539.2508545 | AM16: 474.752594 | AN16: 660.1582642 | AO16: 534.487915 | AP16: 469.5318604 | AQ16: 454.2142334 | AR16: 475.7016602 | AS16: 498.2845764 | AT16: 454.335022 | AU16: 476.1654663 | AV16: 499.0483093 | AW16: 454.4286499 | AX16: 476.374054 | AY16: 499.3940735 | AZ16: 738.3446655 | BA16: 766.6662598 | BB16: 775.6184082 | BC16: 739.2682495 | BD16: 769.3793945 | BE16: 782.4002686 | BF16: 739.5917358 | BG16: 770.3859863 | BH16: 785.1502075 | BI16: 453.7068481 | BJ16: 450.4859619 | BK16: 450.0692749 | BL16: 452.9785156 | BM16: 450.220459 | BN16: 450.0181885 | BO16: 452.5839539 | BP16: 450.1473999 | BQ16: 450.0093689 | BR16: 546.6272583 | BS16: 572.1281738 | BT16: 599.0275269 | BU16: 546.8709106 | BV16: 572.8873291 | BW16: 600.2717896 | BX16: 546.9001465 | BY16: 573.2258301 | BZ16: 600.8300781 | CA16: 736.7019043 | CB16: 654.3138428 | CC16: 565.8963013 | CD16: 737.4996338 | CE16: 650.5415649 | CF16: 554.9990845 | CG16: 738.1292114 | CH16: 648.9854736 | CI16: 550.2418823 | CJ16: 450.0038757 | CK16: 450.0016479 | CL16: 450.0016174 | CM16: 450.0020142 | CN16: 450.0024719 | CO16: 450.0016174 | CP16: 450.0019531 | CQ16: 450.0024414 | CR16: 450.0016174
A17: 9900 | B17: 24 | C17: Cl at 0.2 | D17: start
A18: 9925 | B18: 24 | C18: Cl at 0.2 | D18: half time | F18: =C17 -> Cl at 0.2 | G18: start | K18: 15193 | L18: 15192.88393 | M18: 15193.00029 | N18: 15184.78068 | O18: 60.22923498 | P18: 14668.84206 | Q18: 15192.99689 | R18: 15192.99967 | S18: 15108.22706 | T18: 15193.00029 | U18: 15192.99967 | V18: 15176.99523 | W18: 15193.00029 | X18: 15192.99967 | Y18: 15217.57556 | Z18: 15193.00029 | AA18: 15192.99967 | AB18: 15192.97603 | AC18: 15193.00029 | AD18: 15192.99967 | AE18: 15193 | AF18: 15193.00029 | AG18: 15192.99967 | AH18: 15192.73757 | AI18: 15193.00029 | AJ18: 15192.99967 | AK18: 15193 | AL18: 15193.00029 | AM18: 15192.99967 | AN18: 15193 | AO18: 15193.00029 | AP18: 15192.99967 | AQ18: 15076.46354 | AR18: 15193.00029 | AS18: 15192.99967 | AT18: 15188.50454 | AU18: 15193.00029 | AV18: 15192.99967 | AW18: 15192.72874 | AX18: 15193.00029 | AY18: 15192.99967 | AZ18: 15198.78494 | BA18: 15193.00029 | BB18: 15192.99967 | BC18: 15192.99622 | BD18: 15193.00029 | BE18: 15192.99967 | BF18: 15193 | BG18: 15193.00029 | BH18: 15192.99967 | BI18: 15193.00127 | BJ18: 15193.00029 | BK18: 15192.99967 | BL18: 15193 | BM18: 15193.00029 | BN18: 15192.99967 | BO18: 15193 | BP18: 15193.00029 | BQ18: 15192.99967 | BR18: 15173.4738 | BS18: 15193.00029 | BT18: 15192.99967 | BU18: 15192.88393 | BV18: 15193.00029 | BW18: 15192.99967 | BX18: 15193 | BY18: 15193.00029 | BZ18: 15192.99967 | CA18: 15223.1725 | CB18: 15193.00029 | CC18: 15192.99967 | CD18: 15192.99874 | CE18: 15193.00029 | CF18: 15192.99967 | CG18: 15193 | CH18: 15193.00029 | CI18: 15192.99967 | CJ18: 15232.87757 | CK18: 15193.00029 | CL18: 15192.99967 | CM18: 15193 | CN18: 15193.00029 | CO18: 15192.99967 | CP18: 15193 | CQ18: 15193.00029 | CR18: 15192.99967
A19: 9949 | B19: 24 | C19: Cl at 0.2 | D19: end | F19: Cl at 0.2 | G19: half time | K19: 3513.185989 | L19: 2583.217293 | M19: 4559.730347 | N19: 3666.887549 | O19: 1054.216305 | P19: 2387.791236 | Q19: 2537.660069 | R19: 2697.291137 | S19: 2381.66359 | T19: 2523.768751 | U19: 2674.139171 | V19: 2379.135599 | W19: 2517.854019 | X19: 2664.525196 | Y19: 3138.230006 | Z19: 3338.203694 | AA19: 3555.493195 | AB19: 3124.243019 | AC19: 3313.21505 | AD19: 3513.185989 | AE19: 3119.825146 | AF19: 3302.879953 | AG19: 3496.344133 | AH19: 3829.955478 | AI19: 4129.985226 | AJ19: 4994.501194 | AK19: 3810.148229 | AL19: 4045.674385 | AM19: 4471.173609 | AN19: 3801.367998 | AO19: 4025.738316 | AP19: 4292.607736 | AQ19: 2583.217293 | AR19: 2756.555698 | AS19: 2941.228819 | AT19: 2576.383405 | AU19: 2739.911837 | AV19: 2913.967488 | AW19: 2573.426591 | AX19: 2732.996979 | AY19: 2902.669986 | AZ19: 3339.105067 | BA19: 3567.620081 | BB19: 3832.642059 | BC19: 3323.204383 | BD19: 3537.638477 | BE19: 3765.878667 | BF19: 3317.980279 | BG19: 3525.403909 | BH19: 3745.616645 | BI19: 3995.281266 | BJ19: 4497.190889 | BK19: 6248.662696 | BL19: 3970.836922 | BM19: 4254.250531 | BN19: 5544.827103 | BO19: 3961.224279 | BP19: 4210.982851 | BQ19: 5004.140444 | BR19: 2755.43548 | BS19: 2950.785459 | BT19: 3160.389433 | BU19: 2747.156778 | BV19: 2931.861154 | BW19: 3128.931375 | BX19: 2743.779184 | BY19: 2923.935952 | BZ19: 3115.943021 | CA19: 3509.367921 | CB19: 3762.747201 | CC19: 4144.970248 | CD19: 3488.231462 | CE19: 3726.426741 | CF19: 3988.639669 | CG19: 3482.423186 | CH19: 3712.273682 | CI19: 3957.962201 | CJ19: 4128.377022 | CK19: 4746.907284 | CL19: 7760.263424 | CM19: 4092.73596 | CN19: 4559.730347 | CO19: 7483.729216 | CP19: 4087.523526 | CQ19: 4385.317707 | CR19: 7112.601052
A20: 9925 | B20: 29 | C20: Cl at 0.7 | D20: half time | F20: Cl at 0.2 | G20: end | K20: 2439.95925 | L20: 1376.375125 | M20: 3631.157109 | N20: 2459.634226 | O20: 835.4096163 | P20: 1215.381492 | Q20: 1293.358786 | R20: 1376.375125 | S20: 1211.493931 | T20: 1284.355107 | U20: 1361.660205 | V20: 1209.877918 | W20: 1280.569934 | X20: 1355.487092 | Y20: 2048.535122 | Z20: 2183.535233 | AA20: 2327.757487 | AB20: 2039.879643 | AC20: 2164.474664 | AD20: 2296.323605 | AE20: 2036.490063 | AF20: 2156.531436 | AG20: 2283.354665 | AH20: 2935.439987 | AI20: 3210.748947 | AJ20: 3439.822926 | AK20: 2982.932594 | AL20: 3168.789975 | AM20: 3366.075244 | AN20: 2975.793531 | AO20: 3152.13561 | AP20: 3339.362268 | AQ20: 1409.729497 | AR20: 1505.847711 | AS20: 1609.135178 | AT20: 1404.698749 | AU20: 1494.966136 | AV20: 1590.851555 | AW20: 1402.704619 | AX20: 1490.29354 | AY20: 1583.193086 | AZ20: 2300.451977 | BA20: 2464.005398 | BB20: 2638.075408 | BC20: 2291.103662 | BD20: 2439.95925 | BE20: 2598.548438 | BF20: 2286.93955 | BG20: 2430.18227 | BH20: 2582.554756 | BI20: 3418.266562 | BJ20: 3487.455372 | BK20: 3794.222055 | BL20: 3220.455245 | BM20: 3434.391976 | BN20: 3665.673323 | BO20: 3211.007255 | BP20: 3415.337936 | BQ20: 3631.899866 | BR20: 1590.782484 | BS20: 1705.955583 | BT20: 1829.149277 | BU20: 1585.164568 | BV20: 1692.344602 | BW20: 1807.127538 | BX20: 1582.782935 | BY20: 1686.748814 | BZ20: 1797.940671 | CA20: 2508.011097 | CB20: 2709.170558 | CC20: 2912.364182 | CD20: 2507.630849 | CE20: 2680.227971 | CF20: 2864.747055 | CG20: 2502.906066 | CH20: 2668.59751 | CI20: 2845.656285 | CJ20: 3437.366938 | CK20: 3698.855884 | CL20: 4208.020431 | CM20: 3412.927326 | CN20: 3654.493546 | CO20: 3933.607847 | CP20: 3402.536524 | CQ20: 3631.157109 | CR20: 3875.605679
A21: 9949 | B21: 29 | C21: Cl at 0.7 | D21: end | F21: Cl at 0.7 | G21: half time | K21: 409.3948364 | L21: 300.0016785 | M21: 9577.302734 | N21: 3574.300065 | O21: 4124.463699 | P21: 3969.873535 | Q21: 5171.277832 | R21: 9577.302734 | S21: 3963.185059 | T21: 5070.186035 | U21: 9829.723633 | V21: 3960.477783 | W21: 5029.533691 | X21: 9946.387695 | Y21: 6083.475098 | Z21: 6711.125 | AA21: 6727.93457 | AB21: 6186.949707 | AC21: 6706.956055 | AD21: 6712.8125 | AE21: 6221.544434 | AF21: 6709.697266 | AG21: 6712.817383 | AH21: 300.0361633 | AI21: 300.0272827 | AJ21: 300.0270996 | AK21: 300.0277405 | AL21: 300.0270691 | AM21: 300.0280457 | AN21: 300.0270691 | AO21: 300.0280457 | AP21: 300.0280457 | AQ21: 6608.957031 | AR21: 12130.29785 | AS21: 14341.95117 | AT21: 6627.518555 | AU21: 12400.45703 | AV21: 14500.25781 | AW21: 6636.041504 | AX21: 12518.26855 | AY21: 14554.57422 | AZ21: 413.0328674 | BA21: 409.2414246 | BB21: 409.2495728 | BC21: 408.8142395 | BD21: 409.3970947 | BE21: 409.4025574 | BF21: 408.9166565 | BG21: 409.3948364 | BH21: 409.3994141 | BI21: 300.0022278 | BJ21: 300.0022278 | BK21: 300.0022278 | BL21: 300.0022278 | BM21: 300.0022278 | BN21: 300.0022278 | BO21: 300.0022278 | BP21: 300.0022278 | BQ21: 300.0022278 | BR21: 5869.278809 | BS21: 6898.983887 | BT21: 6955.860352 | BU21: 5952.166992 | BV21: 6919.719727 | BW21: 6957.761719 | BX21: 5980.148926 | BY21: 6928.633301 | BZ21: 6958.096191 | CA21: 300.1192627 | CB21: 300.1001282 | CC21: 300.1001282 | CD21: 300.1016235 | CE21: 300.1026001 | CF21: 300.1026611 | CG21: 300.1000671 | CH21: 300.1026001 | CI21: 300.1026611 | CJ21: 300.0016785 | CK21: 300.0016174 | CL21: 300.0016174 | CM21: 300.0016174 | CN21: 300.0016174 | CO21: 300.0016174 | CP21: 300.0016174 | CQ21: 300.0016174 | CR21: 300.0016174
F22: Cl at 0.7 | G22: end | K22: 3295.272705 | L22: 301.1224365 | M22: 11539.35645 | N22: 4662.630732 | O22: 3990.63156 | P22: 2013.378174 | Q22: 2220.031494 | R22: 2448.023682 | S22: 2009.34082 | T22: 2210.606445 | U22: 2432.203613 | V22: 2007.62085 | W22: 2206.466064 | X22: 2425.2771 | Y22: 3390.23877 | Z22: 3746.085449 | AA22: 4508.244629 | AB22: 3381.961426 | AC22: 3723.913574 | AD22: 4303.390137 | AE22: 3378.810791 | AF22: 3715.578857 | AG22: 4225.101562 | AH22: 8583.552734 | AI22: 11224.53027 | AJ22: 11539.35645 | AK22: 8888.026367 | AL22: 11411.62988 | AM22: 11569.65625 | AN22: 8988.21875 | AO22: 11476.66504 | AP22: 11572.97266 | AQ22: 2491.683838 | AR22: 2749.813965 | AS22: 3035.921631 | AT22: 2486.31958 | AU22: 2738.677002 | AV22: 3016.355225 | AW22: 2484.192139 | AX22: 2733.575684 | AY22: 3007.807617 | AZ22: 4159.958496 | BA22: 6248.339355 | BB22: 10626.9248 | BC22: 4138.626465 | BD22: 6162.873535 | BE22: 11165.76758 | BF22: 4132.509277 | BG22: 6117.926758 | BH22: 11431.06055 | BI22: 863.9596558 | BJ22: 851.7713623 | BK22: 857.729187 | BL22: 845.0375977 | BM22: 857.612854 | BN22: 854.0952759 | BO22: 851.5150146 | BP22: 854.0283813 | BQ22: 854.0637207 | BR22: 2998.565918 | BS22: 3309.712402 | BT22: 3682.694824 | BU22: 2993.118652 | BV22: 3295.272705 | BW22: 3639.33252 | BX22: 2990.583252 | BY22: 3289.189209 | BZ22: 3625.064941 | CA22: 7495.498047 | CB22: 11842.74414 | CC22: 13161.07324 | CD22: 7610.973145 | CE22: 12172.82812 | CF22: 13310.97656 | CG22: 7653.110352 | CH22: 12316.76953 | CI22: 13358.18262 | CJ22: 301.1224365 | CK22: 300.9342651 | CL22: 300.8952026 | CM22: 300.9107666 | CN22: 300.894928 | CO22: 300.9064636 | CP22: 300.894165 | CQ22: 300.906189 | CR22: 300.9063416
A24: Linked data for graph | F24: =C17 -> Cl at 0.2 | G24: start | K24: 9293.999812 | L24: 9293.999782 | M24: 9294 | N24: 9293.997199 | O24: 0.01349985662 | P24: 9293.905411 | Q24: 9294 | R24: 9293.999782 | S24: 9293.941218 | T24: 9294 | U24: 9293.999782 | V24: 9293.945559 | W24: 9294 | X24: 9293.999782 | Y24: 9293.999812 | Z24: 9294 | AA24: 9293.999782 | AB24: 9293.999812 | AC24: 9294 | AD24: 9293.999782 | AE24: 9293.999812 | AF24: 9294 | AG24: 9293.999782 | AH24: 9293.999812 | AI24: 9294 | AJ24: 9293.999782 | AK24: 9293.999812 | AL24: 9294 | AM24: 9293.999782 | AN24: 9293.999812 | AO24: 9294 | AP24: 9293.999782 | AQ24: 9293.997642 | AR24: 9294 | AS24: 9293.999782 | AT24: 9293.996557 | AU24: 9294 | AV24: 9293.999782 | AW24: 9293.996557 | AX24: 9294 | AY24: 9293.999782 | AZ24: 9293.999812 | BA24: 9294 | BB24: 9293.999782 | BC24: 9293.999812 | BD24: 9294 | BE24: 9293.999782 | BF24: 9293.999812 | BG24: 9294 | BH24: 9293.999782 | BI24: 9293.999812 | BJ24: 9294 | BK24: 9293.999782 | BL24: 9293.999812 | BM24: 9294 | BN24: 9293.999782 | BO24: 9293.999812 | BP24: 9294 | BQ24: 9293.999782 | BR24: 9293.999812 | BS24: 9294 | BT24: 9293.999782 | BU24: 9293.999812 | BV24: 9294 | BW24: 9293.999782 | BX24: 9293.999812 | BY24: 9294 | BZ24: 9293.999782 | CA24: 9293.999812 | CB24: 9294 | CC24: 9293.999782 | CD24: 9293.999812 | CE24: 9294 | CF24: 9293.999782 | CG24: 9293.999812 | CH24: 9294 | CI24: 9293.999782 | CJ24: 9293.999812 | CK24: 9294 | CL24: 9293.999782 | CM24: 9293.999812 | CN24: 9294 | CO24: 9293.999782 | CP24: 9293.999812 | CQ24: 9294 | CR24: 9293.999782
F25: Cl at 0.2 | G25: half time | K25: 582.7117902 | L25: 422.2558027 | M25: 743.7321455 | N25: 790.7249037 | O25: 937.1382772 | P25: 390.3210892 | Q25: 416.7099915 | R25: 445.036241 | S25: 390.0300193 | T25: 416.2515259 | U25: 444.2798776 | V25: 389.9703405 | W25: 416.108429 | X25: 444.0418011 | Y25: 511.720086 | Z25: 546.7862549 | AA25: 584.2222332 | AB25: 511.3338691 | AC25: 545.871582 | AD25: 582.7117902 | AE25: 511.2875163 | AF25: 545.5821533 | AG25: 582.2343772 | AH25: 623.6628719 | AI25: 666.8235474 | AJ25: 762.5185309 | AK25: 622.8831138 | AL25: 664.9780273 | AM25: 743.7321455 | AN25: 622.5630862 | AO25: 664.382019 | AP25: 738.4116911 | AQ25: 422.2558027 | AR25: 452.8152771 | AS25: 485.6428923 | AT25: 422.0201731 | AU25: 452.2642822 | AV25: 484.7293732 | AW25: 421.948016 | AX25: 452.0917053 | AY25: 484.4433349 | AZ25: 544.5031543 | BA25: 584.2973633 | BB25: 627.0047288 | BC25: 544.0354894 | BD25: 583.1873169 | BE25: 625.1624909 | BF25: 543.9464798 | BG25: 582.8355103 | BH25: 624.5797823 | BI25: 650.2548051 | BJ25: 698.4977417 | BK25: 1936.379533 | BL25: 649.3137108 | BM25: 696.1148682 | BN25: 1855.347367 | BO25: 648.8651024 | BP25: 695.3684082 | BQ25: 1828.772265 | BR25: 450.4143728 | BS25: 484.9472351 | BT25: 522.1614088 | BU25: 450.1735213 | BV25: 484.3009338 | BW25: 521.0841973 | BX25: 450.0886146 | BY25: 484.0977478 | BZ25: 520.7477164 | CA25: 571.7663726 | CB25: 615.932251 | CC25: 664.1786054 | CD25: 571.2172596 | CE25: 614.6219482 | CF25: 661.7357814 | CG25: 571.0203195 | CH25: 614.2064209 | CI25: 660.9850096 | CJ25: 671.3426556 | CK25: 752.8014526 | CL25: 5311.655909 | CM25: 670.2389365 | CN25: 738.4482422 | CO25: 5389.001552 | CP25: 669.8774727 | CQ25: 734.5772095 | CR25: 5415.962868
A26: Time | B26: Limits | C26: Time | D26: Limits | F26: Cl at 0.2 | G26: end | K26: 401.8548279 | L26: 226.2778272 | M26: 599.8132324 | N26: 403.4141631 | O26: 135.521227 | P26: 198.3905251 | Q26: 211.8636627 | R26: 226.2778272 | S26: 198.2827811 | T26: 211.616394 | U26: 225.8699942 | V26: 198.2507716 | W26: 211.5391693 | X26: 225.7413085 | Y26: 333.9793654 | Z26: 356.8946228 | AA26: 381.3514088 | AB26: 333.7176602 | AC26: 356.2748413 | AD26: 380.3270026 | AE26: 333.6954502 | AF26: 356.0774536 | AG26: 380.0030438 | AH26: 488.1498339 | AI26: 521.9675903 | AJ26: 558.22795 | AK26: 487.5256477 | AL26: 520.489624 | AM26: 555.7883944 | AN26: 487.2777771 | AO26: 520.0129395 | AP26: 555.0008834 | AQ26: 230.1249586 | AR26: 246.8340149 | AS26: 264.7425776 | AT26: 230.0287265 | AU26: 246.5172882 | AV26: 264.2170452 | AW26: 229.9869514 | AX26: 246.4181976 | AY26: 264.0528016 | AZ26: 375.2479144 | BA26: 402.6456604 | BB26: 432.0995045 | BC26: 374.9146285 | BD26: 401.8548279 | BE26: 430.7873274 | BF26: 374.8067319 | BG26: 401.6048889 | BH26: 430.371737 | BI26: 527.0336376 | BJ26: 566.2659912 | BK26: 608.3274979 | BL26: 526.2558462 | BM26: 564.4182739 | BN26: 605.2623517 | BO26: 526.138557 | BP26: 563.8197632 | BQ26: 604.2706682 | BR26: 259.787418 | BS26: 279.6602173 | BT26: 301.1367398 | BU26: 259.5849678 | BV26: 279.2686157 | BW26: 300.4845103 | BX26: 259.5336305 | BY26: 279.1457214 | BZ26: 300.2809285 | CA26: 410.8843086 | CB26: 442.6290588 | CC26: 476.9247091 | CD26: 410.4778483 | CE26: 441.6587219 | CF26: 475.3091675 | CG26: 410.3176649 | CH26: 441.3510132 | CI26: 474.7960784 | CJ26: 558.7664943 | CK26: 602.7636108 | CL26: 650.4228164 | CM26: 557.8321478 | CN26: 600.5369873 | CO26: 646.5979203 | CP26: 557.564 | CQ26: 599.8132324 | CR26: 645.3763902
A27: 1.9 | B27: =L7 -> 4.002110159 | C27: 3.9 | D27: =L8 -> 7.091023164 | F27: Cl at 0.7 | G27: half time | K27: 50.5736421 | L27: 49.99999986 | M27: 142.8089597 | N27: 63.47049004 | O27: 28.54512813 | P27: 50.96759348 | Q27: 50.97174484 | R27: 50.97174925 | S27: 50.9715772 | T27: 50.97174484 | U27: 50.97174925 | V27: 50.9715772 | W27: 50.97174484 | X27: 50.97174925 | Y27: 50.00614529 | Z27: 50.00612323 | AA27: 50.00612323 | AB27: 50.00614529 | AC27: 50.00612323 | AD27: 50.00612323 | AE27: 50.00612323 | AF27: 50.00612323 | AG27: 50.00612323 | AH27: 49.99999986 | AI27: 49.99999986 | AJ27: 49.99999986 | AK27: 49.99999986 | AL27: 49.99999986 | AM27: 49.99999986 | AN27: 49.99999986 | AO27: 49.99999986 | AP27: 49.99999986 | AQ27: 64.15055633 | AR27: 64.15715615 | AS27: 64.15715615 | AT27: 64.15620765 | AU27: 64.15715615 | AV27: 64.15715615 | AW27: 64.15621206 | AX27: 64.15715615 | AY27: 64.15715615 | AZ27: 50.45174384 | BA27: 50.45121444 | BB27: 50.45121444 | BC27: 50.45174384 | BD27: 50.45121444 | BE27: 50.45121444 | BF27: 50.45121444 | BG27: 50.45121444 | BH27: 50.45121444 | BI27: 50.00305713 | BJ27: 50.00309243 | BK27: 50.00309243 | BL27: 50.00305713 | BM27: 50.00309243 | BN27: 50.00309243 | BO27: 50.00309243 | BP27: 50.00309243 | BQ27: 50.00309243 | BR27: 142.8356678 | BS27: 142.8112538 | BT27: 142.8112538 | BU27: 142.8089597 | BV27: 142.8112538 | BW27: 142.8112538 | BX27: 142.8089597 | BY27: 142.8112538 | BZ27: 142.8112538 | CA27: 62.25156667 | CB27: 62.26168699 | CC27: 62.26168699 | CD27: 62.25156667 | CE27: 62.26168699 | CF27: 62.26168699 | CG27: 62.26168699 | CH27: 62.26168699 | CI27: 62.26168699 | CJ27: 50.57305094 | CK27: 50.5736421 | CL27: 50.5736421 | CM27: 50.57305094 | CN27: 50.5736421 | CO27: 50.5736421 | CP27: 50.5736421 | CQ27: 50.5736421 | CR27: 50.5736421
A28: =A27 -> 1.9 | B28: =M7 -> 223.4061207 | C28: =C27 -> 3.9 | D28: =M8 -> 208.5561244 | F28: Cl at 0.7 | G28: end | K28: 87.32981601 | L28: 50.01990081 | M28: 1143.135401 | N28: 368.474605 | O28: 509.2883087 | P28: 321.1286894 | Q28: 411.2034683 | R28: 446.0968546 | S28: 321.2638976 | T28: 411.2938189 | U28: 446.1665233 | V28: 321.2840147 | W28: 411.3215593 | X28: 446.1874522 | Y28: 55.89080343 | Z28: 55.9178336 | AA28: 55.91932032 | AB28: 55.89091813 | AC28: 55.91785566 | AD28: 55.91932032 | AE28: 55.88369626 | AF28: 55.91786448 | AG28: 55.91930709 | AH28: 50.01983463 | AI28: 50.01990081 | AJ28: 50.01990081 | AK28: 50.01983463 | AL28: 50.01990081 | AM28: 50.01990081 | AN28: 50.01990081 | AO28: 50.01990081 | AP28: 50.01990081 | AQ28: 642.6338865 | AR28: 870.7936849 | AS28: 964.7843136 | AT28: 642.4759142 | AU28: 871.0478665 | AV28: 964.9933905 | AW28: 642.5265246 | AX28: 871.1276291 | AY28: 965.05713 | AZ28: 87.22075124 | BA28: 87.32974542 | BB28: 87.33199536 | BC28: 87.2213071 | BD28: 87.32981601 | BE28: 87.33199536 | BF28: 87.23329796 | BG28: 87.32986013 | BH28: 87.33202183 | BI28: 50.84162327 | BJ28: 50.83851306 | BK28: 50.83851306 | BL28: 50.84162327 | BM28: 50.83851306 | BN28: 50.83851306 | BO28: 50.83851306 | BP28: 50.83851306 | BQ28: 50.83851306 | BR28: 1143.135401 | BS28: 1689.385075 | BT28: 1937.286965 | BU28: 1143.878535 | BV28: 1690.066939 | BW28: 1937.910666 | BX28: 1143.995073 | BY28: 1690.27884 | BZ28: 1938.104496 | CA28: 196.0632032 | CB28: 196.3252198 | CC28: 196.3269492 | CD28: 196.0647914 | CE28: 196.3252904 | CF28: 196.3269492 | CG28: 196.1324131 | CH28: 196.3253257 | CI28: 196.3269315 | CJ28: 66.47559211 | CK28: 66.46808789 | CL28: 66.46808789 | CM28: 66.47559211 | CN28: 66.46808789 | CO28: 66.46808789 | CP28: 66.46808789 | CQ28: 66.46808789 | CR28: 66.46808789
A29: 2.1 | B29: =L9 -> 6.473641006 | C29: 4.1 | D29: =L10 -> 4.001073546
A30: =A29 -> 2.1 | B30: =M9 -> 349.9997318 | C30: =C29 -> 4.1 | D30: =M10 -> 349.5120228
A33: =A27 -> 1.9 | B33: =L13 -> 467.5285876 | C33: =C27 -> 3.9 | D33: =L14 -> 238.1636326
A34: =A33 -> 1.9 | B34: =M13 -> 777.6581834 | C34: =C33 -> 3.9 | D34: =M14 -> 629.7117022
A35: 2.1 | B35: =L15 -> 450.0016174 | C35: 4.1 | D35: =L16 -> 403.3351746
A36: =A35 -> 2.1 | B36: =M15 -> 754.3840332 | C36: =C35 -> 4.1 | D36: =M16 -> 738.3446655
A39: =A27 -> 1.9 | B39: =L19 -> 2583.217293 | C39: =C27 -> 3.9 | D39: =L20 -> 1376.375125
A40: =A39 -> 1.9 | B40: =M19 -> 4559.730347 | C40: =C39 -> 3.9 | D40: =M20 -> 3631.157109
A41: 2.1 | B41: =L21 -> 300.0016785 | C41: 4.1 | D41: =L22 -> 301.1224365
A42: =A41 -> 2.1 | B42: =M21 -> 9577.302734 | C42: =C41 -> 4.1 | D42: =M22 -> 11539.35645
A45: =A27 -> 1.9 | B45: =L25 -> 422.2558027 | C45: =C27 -> 3.9 | D45: =L26 -> 226.2778272
A46: =A45 -> 1.9 | B46: =M25 -> 743.7321455 | C46: =C45 -> 3.9 | D46: =M26 -> 599.8132324
A47: 2.1 | B47: =L27 -> 49.99999986 | C47: 4.1 | D47: =L28 -> 50.01990081
A48: =A47 -> 2.1 | B48: =M27 -> 142.8089597 | C48: =C47 -> 4.1 | D48: =M28 -> 1143.135401
P9926: 51.36989258 | Q9926: 0.04155007765 | R9926: 3.391663803 | S9926: -29.85977111 | T9926: 2326 | U9926: 344 | V9926: 4126.071289 | W9926: 3051.944824 | X9926: 1890.832764 | Y9926: 968.5114746 | Z9926: 416.4273376 | AA9926: 164.7316284 | AB9926: 76.43395996 | AC9926: 50.86256027 | AD9926: 40.0174408 | AE9926: 25.53608704 | AF9926: 0.03162065521 | AG9926: 3.391606015e-06
P9927: 53.27247087 | Q9927: 0.04100852671 | R9927: 3.470351784 | S9927: -30.63635351 | T9927: 2321 | U9927: 344 | V9927: 4126.681641 | W9927: 3080.833008 | X9927: 1942.246826 | Y9927: 1018.733215 | Z9927: 450.1224976 | AA9927: 181.0517731 | AB9927: 82.20215607 | AC9927: 52.26218414 | AD9927: 40.09620667 | AE9927: 25.35439682 | AF9927: 0.03141298518 | AG9927: 3.470328238e-06
P9928: 55.1750994 | Q9928: 0.04083611399 | R9928: 3.548362112 | S9928: -31.36747944 | T9928: 2309 | U9928: 344 | V9928: 4126.120605 | W9928: 3110.550537 | X9928: 1990.831787 | Y9928: 1067.616211 | Z9928: 484.0698242 | AA9928: 198.2345581 | AB9928: 88.68036652 | AC9928: 54.00326538 | AD9928: 40.26563644 | AE9928: 25.21179962 | AF9928: 0.03107975796 | AG9928: 3.548359928e-06
P9929: 57.07767664 | Q9929: 0.04054122229 | R9929: 3.625768369 | S9929: -32.04049901 | T9929: 2320 | U9929: 344 | V9929: 4126.147461 | W9929: 3137.662842 | X9929: 2038.02002 | Y9929: 1115.958374 | Z9929: 518.5946655 | AA9929: 216.3639069 | AB9929: 95.80236053 | AC9929: 56.0283165 | AD9929: 40.54398727 | AE9929: 25.09752274 | AF9929: 0.03085663728 | AG9929: 3.625781346e-06
P9930: 58.98023855 | Q9930: 0.04029439252 | R9930: 3.702656344 | S9930: -32.64049805 | T9930: 2309 | U9930: 344 | V9930: 4126.109375 | W9930: 3163.468506 | X9930: 2083.403076 | Y9930: 1163.387085 | Z9930: 553.463623 | AA9930: 235.3441467 | AB9930: 103.5956802 | AC9930: 58.38510513 | AD9930: 40.9416275 | AE9930: 25.02020836 | AF9930: 0.03066476434 | AG9930: 3.702663662e-06
P9931: 60.88288074 | Q9931: 0.04026393455 | R9931: 3.779121988 | S9931: -33.15042045 | T9931: 2322 | U9931: 344 | V9931: 4131.17334 | W9931: 3175.873535 | X9931: 2126.063232 | Y9931: 1209.63269 | Z9931: 590.4888306 | AA9931: 254.2605286 | AB9931: 112.3300705 | AC9931: 60.98184204 | AD9931: 41.43948746 | AE9931: 24.98545456 | AF9931: 0.03017476387 | AG9931: 3.779125109e-06
P9932: 62.78543548 | Q9932: 0.03996223318 | R9932: 3.855262779 | S9932: -33.5472719 | T9932: 2315 | U9932: 344 | V9932: 4126.18457 | W9932: 3211.456787 | X9932: 2169.494141 | Y9932: 1255.824463 | Z9932: 623.9338989 | AA9932: 275.6349182 | AB9932: 121.1913605 | AC9932: 64.16807556 | AD9932: 42.15562057 | AE9932: 24.9981575 | AF9932: 0.0304099191 | AG9932: 3.855250725e-06
P9933: 64.6879964 | Q9933: 0.0398837327 | R9933: 3.931201725 | S9933: -33.80363604 | T9933: 2314 | U9933: 344 | V9933: 4126.231445 | W9933: 3233.923828 | X9933: 2210.227539 | Y9933: 1300.606567 | Z9933: 659.3861694 | AA9933: 296.8399963 | AB9933: 130.9836273 | AC9933: 67.62710571 | AD9933: 42.9986763 | AE9933: 25.06352234 | AF9933: 0.0303605888 | AG9933: 3.931178981e-06
P9934: 66.59064186 | Q9934: 0.03987947987 | R9934: 4.007072621 | S9934: -33.8963553 | T9934: 2308 | U9934: 344 | V9934: 4126.236328 | W9934: 3260.614014 | X9934: 2245.553711 | Y9934: 1344.292236 | Z9934: 695.2098999 | AA9934: 318.7070923 | AB9934: 141.5117493 | AC9934: 71.48612213 | AD9934: 44.00748062 | AE9934: 25.18502426 | AF9934: 0.03035797924 | AG9934: 4.007034931e-06
P9935: 68.49318935 | Q9935: 0.03996353929 | R9935: 4.083013123 | S9935: -33.79908075 | T9935: 2331 | U9935: 344 | V9935: 4126.267578 | W9935: 3275.872314 | X9935: 2287.532715 | Y9935: 1387.667725 | Z9935: 730.4262695 | AA9935: 341.1183167 | AB9935: 152.4957581 | AC9935: 75.7445755 | AD9935: 45.22064972 | AE9935: 25.37915421 | AF9935: 0.030422993 | AG9935: 4.082967735e-06
P9936: 70.39575559 | Q9936: 0.0400629052 | R9936: 4.15919558 | S9936: -33.47520679 | T9936: 2321 | U9936: 344 | V9936: 4126.282715 | W9936: 3295.492676 | X9936: 2324.008789 | Y9936: 1430.289795 | Z9936: 765.9248047 | AA9936: 364.1144409 | AB9936: 164.1643524 | AC9936: 80.43164062 | AD9936: 46.63844681 | AE9936: 25.63949394 | AF9936: 0.03057853505 | AG9936: 4.159094715e-06
P9937: 72.29833978 | Q9937: 0.04041003016 | R9937: 4.235801548 | S9937: -32.90193699 | T9937: 2322 | U9937: 344 | V9937: 4126.300781 | W9937: 3314.430176 | X9937: 2359.737061 | Y9937: 1471.25769 | Z9937: 801.3201904 | AA9937: 387.5535889 | AB9937: 176.4832153 | AC9937: 85.52443695 | AD9937: 48.24449921 | AE9937: 25.98561859 | AF9937: 0.03076425567 | AG9937: 4.235665983e-06
P9938: 74.20100445 | Q9938: 0.04110462578 | R9938: 4.313037227 | S9938: -32.04864098 | T9938: 2318 | U9938: 344 | V9938: 4126.337402 | W9938: 3328.357178 | X9938: 2391.975098 | Y9938: 1510.556396 | Z9938: 835.87854 | AA9938: 411.2466125 | AB9938: 189.193222 | AC9938: 91.27518463 | AD9938: 50.10347366 | AE9938: 26.40234375 | AF9938: 0.03042439558 | AG9938: 4.312846158e-06
P9939: 76.10350995 | Q9939: 0.0413064156 | R9939: 4.391116579 | S9939: -30.89178804 | T9939: 2316 | U9939: 344 | V9939: 4126.337402 | W9939: 3349.989258 | X9939: 2427.356934 | Y9939: 1551.45813 | Z9939: 871.7372437 | AA9939: 435.7810364 | AB9939: 202.8045654 | AC9939: 97.01509857 | AD9939: 52.16377258 | AE9939: 26.93905449 | AF9939: 0.03144595027 | AG9939: 4.390884442e-06
P9940: 78.00610849 | Q9940: 0.04197828144 | R9940: 4.470294374 | S9940: -29.41258761 | T9940: 2319 | U9940: 344 | V9940: 4126.444336 | W9940: 3366.575684 | X9940: 2459.549316 | Y9940: 1590.339966 | Z9940: 906.7525635 | AA9940: 460.4862061 | AB9940: 216.7869415 | AC9940: 103.4209747 | AD9940: 54.4854126 | AE9940: 27.56562996 | AF9940: 0.03190311044 | AG9940: 4.470050953e-06
P9941: 79.90871005 | Q9941: 0.04292348172 | R9941: 4.550832817 | S9941: -27.59798205 | T9941: 2324 | U9941: 344 | V9941: 4127.847656 | W9941: 3382.949463 | X9941: 2489.0354 | Y9941: 1628.362061 | Z9941: 941.6080933 | AA9941: 485.2330017 | AB9941: 231.2602234 | AC9941: 110.2328644 | AD9941: 57.03083801 | AE9941: 28.28772545 | AF9941: 0.03244009987 | AG9941: 4.550600352e-06
P9942: 81.81129297 | Q9942: 0.04368255923 | R9942: 4.633017871 | S9942: -25.4430108 | T9942: 2332 | U9942: 344 | V9942: 4126.372559 | W9942: 3398.419922 | X9942: 2520.945801 | Y9942: 1665.651245 | Z9942: 975.9052124 | AA9942: 510.7463684 | AB9942: 246.3049927 | AC9942: 117.4987335 | AD9942: 59.8969841 | AE9942: 29.14326477 | AF9942: 0.03325630352 | AG9942: 4.632811851e-06
P9943: 83.7139021 | Q9943: 0.04479511412 | R9943: 4.717159705 | S9943: -22.95017548 | T9943: 2312 | U9943: 344 | V9943: 4126.385742 | W9943: 3413.398682 | X9943: 2550.264648 | Y9943: 1702.145508 | Z9943: 1010.14856 | AA9943: 536.2887573 | AB9943: 261.7902527 | AC9943: 125.1883011 | AD9943: 63.00252151 | AE9943: 30.11174583 | AF9943: 0.03410291299 | AG9943: 4.717025604e-06
P9944: 85.61647689 | Q9944: 0.04606152765 | R9944: 4.803584726 | S9944: -20.13043589 | T9944: 2320 | U9944: 344 | V9944: 4126.664062 | W9944: 3427.881592 | X9944: 2578.670654 | Y9944: 1737.881958 | Z9944: 1044.170044 | AA9944: 562.0041504 | AB9944: 277.7351685 | AC9944: 133.3042145 | AD9944: 66.38510132 | AE9944: 31.2068615 | AF9944: 0.03510696441 | AG9944: 4.803499905e-06
P9945: 87.51908176 | Q9945: 0.04756595176 | R9945: 4.892645415 | S9945: -17.00257777 | T9945: 2315 | U9945: 344 | V9945: 4126.410156 | W9945: 3441.819824 | X9945: 2606.340332 | Y9945: 1772.875977 | Z9945: 1077.804321 | AA9945: 587.9914551 | AB9945: 294.1054382 | AC9945: 141.8387451 | AD9945: 70.0449295 | AE9945: 32.43745422 | AF9945: 0.03621100262 | AG9945: 4.892565812e-06
P9946: 89.42161985 | Q9946: 0.0493451105 | R9946: 4.984706176 | S9946: -13.59288169 | T9946: 2320 | U9946: 344 | V9946: 4232.239746 | W9946: 3477.054688 | X9946: 2644.025146 | Y9946: 1801.406006 | Z9946: 1109.737183 | AA9946: 634.1312866 | AB9946: 312.0712891 | AC9946: 151.3299866 | AD9946: 73.97650146 | AE9946: 33.65643311 | AF9946: 0.03740351275 | AG9946: 4.98467034e-06
P9947: 91.32428679 | Q9947: 0.05444583054 | R9947: 5.080164775 | S9947: -9.932819567 | T9947: 2307 | U9947: 344 | V9947: 4120.464844 | W9947: 3491.009766 | X9947: 2665.16748 | Y9947: 1841.116089 | Z9947: 1161.994263 | AA9947: 636.6525879 | AB9947: 325.563385 | AC9947: 155.9803009 | AD9947: 79.1125412 | AE9947: 35.76865005 | AF9947: 0.03289228305 | AG9947: 5.080104074e-06
P9948: 93.22679422 | Q9948: 0.05323772045 | R9948: 5.179411888 | S9948: -6.059414771 | T9948: 2318 | U9948: 344 | V9948: 4126.442871 | W9948: 3480.993164 | X9948: 2684.524902 | Y9948: 1873.580933 | Z9948: 1176.93457 | AA9948: 666.6800537 | AB9948: 345.6066284 | AC9948: 169.9029999 | AD9948: 82.75530243 | AE9948: 36.98213196 | AF9948: 0.04052522779 | AG9948: 5.179320397e-06
P9949: 95.12938034 | Q9949: 0.05557898002 | R9949: 5.282882867 | S9949: -2.010317646 | T9949: 2311 | U9949: 344 | V9949: 4126.506836 | W9949: 3493.220459 | X9949: 2709.141113 | Y9949: 1905.801758 | Z9949: 1209.342529 | AA9949: 693.116272 | AB9949: 363.5001831 | AC9949: 180.0543671 | AD9949: 87.57817078 | AE9949: 38.79833984 | AF9949: 0.04228986055 | AG9949: 5.282744951e-06

Sheet cell3 obs
B1: Ca | E1: Na | H1: K | K1: S
A2: Time | B2: 0.2 | C2: 0.7 | D2: 1m | E2: 0.2 | F2: 0.7 | G2: 1m | H2: 0.2 | I2: 0.7 | J2: 1m | K2: 0.2 | L2: 0.7 | M2: 1m
A3: 0.827 | B3: 10 | C3: 113 | E3: 768 | F3: 640 | H3: 6279 | I3: 520
A4: 1 | B4: 14.7 | C4: 378 | E4: 680 | F4: 575 | H4: 5201 | I4: 360
A5: 1.115 | B5: 20 | C5: 281 | E5: 738 | F5: 408 | H5: 4336 | I5: 303
A6: 1.288 | B6: 11 | C6: 249 | E6: 731 | F6: 537 | H6: 4777 | I6: 307
A7: 1.46 | B7: 26 | C7: 308 | E7: 594 | F7: 360 | H7: 4784 | I7: 270
A8: 1.671 | B8: 22 | C8: 224 | E8: 645 | F8: 425 | H8: 4331 | I8: 337
A9: 1.962 | B9: 19 | C9: 248 | D9: 13 | E9: 610 | F9: 477 | G9: 1982 | H9: 3689 | I9: 559 | J9: 1622 | N9: Cell 3
A10: 2.17 | B10: 20 | C10: 237 | D10: 6 | E10: 645 | F10: 477 | G10: 2702 | H10: 3376 | I10: 360 | J10: 1757 | K10: 307.7 | L10: 260.5
A11: 2.425 | B11: 43 | C11: 280 | E11: 663 | F11: 479 | H11: 3063 | I11: 304
A12: 2.825 | B12: 36 | C12: 379 | D12: 89 | E12: 737 | F12: 549 | G12: 1616 | H12: 3012 | I12: 399 | J12: 951
A13: 3.05 | B13: 28 | C13: 475 | D13: 5 | E13: 768 | F13: 584 | G13: 2081 | H13: 3257 | I13: 211 | J13: 1080
A14: 3.22 | B14: 31 | C14: 498 | D14: 15 | E14: 848 | F14: 610 | G14: 2040 | H14: 3670 | I14: 230 | J14: 1009
A15: 3.44 | B15: 34 | C15: 523 | D15: 23 | E15: 928 | F15: 640 | G15: 2000 | H15: 4084 | I15: 265 | J15: 1063
A16: 3.67 | B16: 47 | C16: 461 | D16: 79 | E16: 810 | F16: 436 | G16: 1888 | H16: 4191 | I16: 329 | J16: 922

Sheet sitecell3
A1: Data | B1: Initial | C1: Layer | D1: Layer | E1: Capacity | F1: Porosity | G1: Diffusion | H1: Permeability | J1: Data set | K1: Steady state kg/yr | N1: Time | O1: Number | P1: Time | Q1: Rate | R1: Cum | S1: Intercept | T1: check | V1: CL | W1: kg/m3
A2: set | B2: Conc Cl | C2: height | D2: Thickness | E2: factor | J2: No | K2: diffusion | L2: advection | M2: total | N2: Step | O2: of cells | R2: Output | V2: at depth | W2: m
A3: no | B3: kg/m3 | C3: m | D3: m | G3: m2/s | H3: m2 | N3: Yr | P3: yr | Q3: kg/yr | R3: kg | S3: yr | U3: input | V3: 0 | W3: 0.1 | X3: 0.2 | Y3: 0.3 | Z3: 0.4 | AA3: 0.5 | AB3: 0.6 | AC3: 0.7 | AD3: 0.8 | AE3: 0.9 | AF3: 1 | AG3: output
B5: Ca
A6: 1 | B6: 344 | C6: 1 | D6: 1 | E6: 1 | F6: 1 | G6: 100000000 | J6: 1 | K6: 0.001081680297 | L6: 66.74824524 | M6: 66.74932861 | N6: 0.003865207522 | O6: 101 | P6: 10.00097315 | Q6: 24.76076629 | R6: 220.0886089 | S6: 0.88384294 | T6: 3 | U6: 52.43181992 | V6: 54.10457249 | W6: 83.37170751 | X6: 127.3765345 | Y6: 159.4969489 | Z6: 162.3271484 | AA6: 156.9264221 | AB6: 140.6355896 | AC6: 131.2421853 | AD6: 130.0610385 | AE6: 128.864262 | AF6: 86.66096449 | AG6: 0.0002200885647
A7: Cell 3 | B7: 4 | C7: 0.2 | D7: 0.2 | E7: 7.739999771 | F7: 0.12 | G7: 3.700000029e-10 | H7: 7.5e-09 | J7: 1 | K7: 0.001081680297 | L7: 66.74824524 | M7: 66.74932861 | N7: 0.001932603761 | O7: 202 | P7: 10.00020811 | Q7: 24.75871447 | R7: 216.2451095 | S7: 1.017675778 | T7: 10 | U7: 52.21557236 | V7: 52.96222144 | W7: 83.65571025 | X7: 129.5039883 | Y7: 165.7218884 | Z7: 167.9082184 | AA7: 161.1007233 | AB7: 143.9272156 | AC7: 132.0315203 | AD7: 130.2915945 | AE7: 129.1550585 | AF7: 65.9198046 | AG7: 0.0002162448654
A8: 4 | B8: 350 | C8: 0.5 | D8: 0.5 | E8: 1 | F8: 0.05 | G8: 1e-12 | H8: 1.999999943e-09
A9: 10 | B9: 14 | C9: 0.3 | D9: 0.3 | E9: 0.09 | F9: 0.09 | G9: 1.35e-10 | H9: 6.2e-09
B10: 0 | C10: 0 | D10: 1000000 | E10: 1 | F10: 1 | G10: 100000000
B11: Na
A12: 2 | B12: 900 | C12: 1 | D12: 1 | E12: 1 | F12: 1 | G12: 100000000 | J12: 2 | K12: 0.001641357783 | L12: 174.6320343 | M12: 174.633667 | N12: 0.003865234032 | O12: 101 | P12: 10.00322567 | Q12: 60.77656674 | R12: 1495.067503 | S12: -14.12921966 | T12: 0 | U12: 129.4052734 | V12: 129.6793628 | W12: 132.8566862 | X12: 136.4784307 | Y12: 140.1886229 | Z12: 158.8822327 | AA12: 184.7607574 | AB12: 218.1207428 | AC12: 243.6022797 | AD12: 264.8297729 | AE12: 287.9075317 | AF12: 312.4868469 | AG12: 0.001495067612
A13: Cell 3 | B13: 450 | C13: 0.2 | D13: 0.2 | E13: 0.4300000072 | F13: 0.12 | G13: 1.190000043e-10 | H13: 7.5e-09 | J13: 2 | K13: 0.001641357783 | L13: 174.6320343 | M13: 174.633667 | N13: 0.001932617016 | O13: 202 | P13: 10.00129306 | Q13: 60.64797844 | R13: 1495.670948 | S13: -14.18756963 | T13: 0 | U13: 129.4689178 | V13: 129.5909771 | W13: 132.943129 | X13: 136.5653348 | Y13: 140.464186 | Z13: 160.111557 | AA13: 186.0887604 | AB13: 216.2808533 | AC13: 242.2828827 | AD13: 264.4541931 | AE13: 287.4524231 | AF13: 311.4425659 | AG13: 0.001495664474
A14: 4 | B14: 450 | C14: 0.5 | D14: 0.5 | E14: 1 | F14: 0.05 | G14: 1e-12 | H14: 1.999999943e-09
A15: 10 | B15: 2157 | C15: 0.3 | D15: 0.3 | E15: 1 | F15: 0.09 | G15: 4.58e-13 | H15: 6.2e-09
B16: 0 | C16: 0 | D16: 1000000 | E16: 1 | F16: 1 | G16: 100000000
B17: K
A18: 3 | B18: 4730 | C18: 1 | D18: 1 | E18: 1 | F18: 1 | G18: 100000000 | J18: 3 | K18: 0.01419152413 | L18: 917.7883301 | M18: 917.8024902 | N18: 0.003865210534 | O18: 101 | P18: 10.00316486 | Q18: 350.6719404 | R18: 5908.878831 | S18: -6.527557915 | T18: 0 | U18: 686.7089844 | V18: 689.670569 | W18: 723.9098007 | X18: 763.9510626 | Y18: 806.1140059 | Z18: 917.6885376 | AA18: 1066.94812 | AB18: 1259.318359 | AC18: 1406.368774 | AD18: 1528.763672 | AE18: 1661.810913 | AF18: 1764.222534 | AG18: 0.005908877123
A19: Cell 3 | B19: 15193 | C19: 0.2 | D19: 0.2 | E19: 0.8600000143 | F19: 0.12 | G19: 1.069999991e-10 | H19: 7.5e-09 | J19: 3 | K19: 0.01419152413 | L19: 917.7883301 | M19: 917.8024902 | N19: 0.001932605267 | O19: 202 | P19: 10.00123226 | Q19: 349.610433 | R19: 5914.261187 | S19: -6.591634266 | T19: 0 | U19: 686.3274536 | V19: 687.6460471 | W19: 723.6920613 | X19: 763.6786755 | Y19: 807.9495318 | Z19: 923.836853 | AA19: 1073.540771 | AB19: 1247.49646 | AC19: 1397.419434 | AD19: 1525.147949 | AE19: 1657.62561 | AF19: 1719.844604 | AG19: 0.005914259236
A20: 4 | B20: 300 | C20: 0.5 | D20: 0.5 | E20: 1 | F20: 0.05 | G20: 1e-12 | H20: 1.999999943e-09
A21: 10 | B21: 761 | C21: 0.3 | D21: 0.3 | E21: 1 | F21: 0.09 | G21: 6.73e-12 | H21: 6.2e-09
B22: 0 | C22: 0 | D22: 1000000 | E22: 1 | F22: 1 | G22: 100000000
B23: S
A24: 4 | B24: 770 | C24: 1 | D24: 1 | E24: 1 | F24: 1 | G24: 100000000 | J24: 4 | K24: 0.0001949310972 | L24: 149.4073944 | M24: 149.4075928 | N24: 0.003865265175 | O24: 101 | P24: 10.00330627 | Q24: 9.701910915 | R24: 97.05190975 | S24: -7.456528297e-05 | T24: 0 | U24: 110.5771408 | V24: 111.2681046 | W24: 117.7268066 | X24: 125.3438492 | Y24: 133.4535828 | Z24: 152.4993591 | AA24: 177.3784485 | AB24: 209.4580078 | AC24: 1700.618191 | AD24: 61.87535453 | AE24: 50.00047191 | AF24: 49.99553527 | AG24: 9.705147386e-05
A25: Cell 3 | B25: 9294 | C25: 0.2 | D25: 0.2 | E25: 1 | F25: 0.12 | G25: 2.069999987e-12 | H25: 7.5e-09 | J25: 4 | K25: 0.0001949310972 | L25: 149.4073944 | M25: 149.4075928 | N25: 0.001932632588 | O25: 202 | P25: 10.00137364 | Q25: 9.701910428 | R25: 97.03333427 | S25: -9.307826315e-05 | T25: 0 | U25: 110.6577835 | V25: 111.0002823 | W25: 117.8011932 | X25: 125.4106369 | Y25: 133.9302673 | Z25: 153.6452179 | AA25: 178.6092529 | AB25: 207.6287079 | AC25: 2187.644414 | AD25: 50.31290926 | AE25: 49.99999986 | AF25: 49.99039129 | AG25: 9.703294927e-05
A26: 4 | B26: 500 | C26: 0.5 | D26: 0.5 | E26: 1 | F26: 0.05 | G26: 1e-12 | H26: 1.999999943e-09
A27: 10 | B27: 50 | C27: 0.3 | D27: 0.3 | E27: 27.67 | F27: 0.09 | G27: 2.93e-14 | H27: 6.2e-09
B28: 0 | C28: 0 | D28: 1000000 | E28: 1 | F28: 1 | G28: 100000000
A30: 99
A31: 999
P100: 0.2002129286 | Q100: 65.79407167 | R100: 4.619442065 | S100: 0 | T100: 11 | U100: 318.6996765 | V100: 297.023228 | W100: 4.000016511 | X100: 4 | Y100: 4.01219126 | Z100: 349.9934387 | AA100: 350 | AB100: 350 | AC100: 349.8965018 | AD100: 380.9740127 | AE100: 323.0125087 | AF100: 184.512894 | AG100: 4.619442279e-06
P101: 0.4003239736 | Q101: 67.91246608 | R101: 18.20912188 | S101: 0.1321906212 | T101: 11 | U101: 304.1513977 | V101: 295.7762182 | W101: 4.056110798 | X101: 4 | Y101: 4.009879524 | Z101: 338.5192261 | AA101: 350 | AB101: 350 | AC101: 349.9997318 | AD101: 349.9997318 | AE101: 349.9997318 | AF101: 179.6844199 | AG101: 1.820912621e-05
P102: 0.6012846334 | Q102: 67.93870394 | R102: 31.85688446 | S102: 0.1321981817 | T102: 8 | U102: 291.530365 | V102: 288.0862299 | W102: 5.401916565 | X102: 4 | Y102: 4.00683713 | Z102: 215.2294464 | AA102: 349.9995422 | AB102: 350 | AC102: 349.9997318 | AD102: 349.9997318 | AE102: 349.9997318 | AF102: 179.4508757 | AG102: 3.185689638e-05
P103: 0.8011950038 | Q103: 67.9114278 | R103: 45.4332361 | S103: 0.1321953129 | T103: 11 | U103: 280.0680237 | V103: 279.0645396 | W103: 11.49139833 | X103: 4.00003105 | Y103: 4.004822339 | Z103: 63.84489822 | AA103: 349.78125 | AB103: 350 | AC103: 349.9997318 | AD103: 349.9997318 | AE103: 349.9997318 | AF103: 179.6921553 | AG103: 4.543324758e-05
P104: 1.000873518 | Q104: 67.9124025 | R104: 58.99388532 | S104: 0.1321974563 | T104: 10 | U104: 269.378479 | V104: 269.7560314 | W104: 24.50141092 | X104: 4.001278959 | Y104: 4.003488674 | Z104: 12.37240028 | AA104: 342.6769409 | AB104: 350 | AC104: 349.9997318 | AD104: 349.9997318 | AE104: 349.9997318 | AF104: 179.6845683 | AG104: 5.899389726e-05
P105: 1.200278853 | Q105: 76.84155751 | R105: 72.5372281 | S105: 0.1322773604 | T105: 10 | U105: 259.2984009 | V105: 260.5101197 | W105: 43.55543793 | X105: 4.016813008 | Y105: 4.002577631 | Z105: 4.70495224 | AA105: 294.7600708 | AB105: 349.9955139 | AC105: 349.9997318 | AD105: 349.9997318 | AE105: 349.999647 | AF105: 173.5061788 | AG105: 7.253725198e-05
P106: 1.400148079 | Q106: 67.91239751 | R106: 86.10958087 | S106: 0.1320808904 | T106: 11 | U106: 249.6958466 | V106: 251.4296653 | W106: 66.2878958 | X106: 4.10957595 | Y106: 4.001935934 | Z106: 4.047412395 | AA106: 187.0141907 | AB106: 349.7623291 | AC106: 349.9991808 | AD106: 349.9996682 | AE106: 349.9997318 | AF106: 179.6845471 | AG106: 8.610958321e-05
P107: 1.600494446 | Q107: 67.66648371 | R107: 99.71520192 | S107: 0.1321617289 | T107: 10 | U107: 240.5106659 | V107: 242.5740001 | W107: 90.19125877 | X107: 4.450017484 | Y107: 4.001483493 | Z107: 4.007461548 | AA107: 80.73072815 | AB107: 346.1663208 | AC107: 349.7720579 | AD107: 340.5502608 | AE107: 356.5555007 | AF107: 181.3623144 | AG107: 9.971520922e-05
P108: 1.800475359 | Q108: 67.88938813 | R108: 113.2945632 | S108: 0.1320058599 | T108: 12 | U108: 231.7377472 | V108: 234.0052474 | W108: 113.2288136 | X108: 5.338351583 | Y108: 4.001269841 | Z108: 4.004150391 | AA108: 25.56454659 | AB108: 324.7605286 | AC108: 349.0300146 | AD108: 349.4329102 | AE108: 349.6966753 | AF108: 179.5584289 | AG108: 0.000113294489
P109: 2.00192389 | Q109: 66.25430888 | R109: 126.9344391 | S109: 0.1272179571 | T109: 8 | U109: 223.2663574 | V109: 225.6555432 | W109: 134.3535234 | X109: 7.184186552 | Y109: 4.001911784 | Z109: 4.002954483 | AA109: 8.179466248 | AB109: 263.8311768 | AC109: 333.8569085 | AD109: 343.9921984 | AE109: 312.7277674 | AF109: 186.8863985 | AG109: 0.0001269343484
P110: 2.200697715 | Q110: 64.61218901 | R110: 140.1202523 | S110: 0.08840944507 | T110: 12 | U110: 215.2418976 | V110: 217.6946345 | W110: 152.4960585 | X110: 10.33228133 | Y110: 4.00603353 | Z110: 4.002194881 | AA110: 4.613858223 | AB110: 171.7630005 | AC110: 312.0263929 | AD110: 320.6970511 | AE110: 327.6126519 | AF110: 170.9013553 | AG110: 0.0001401200861
P111: 2.400286687 | Q111: 56.27955304 | R111: 152.283577 | S111: -0.09854676203 | T111: 10 | U111: 207.4975128 | V111: 209.9748856 | W111: 167.7726854 | X111: 15.11743871 | Y111: 4.021681922 | Z111: 4.001702309 | AA111: 4.07282114 | AB111: 86.2961731 | AC111: 247.0676324 | AD111: 262.6756352 | AE111: 276.1641711 | AF111: 147.3342201 | AG111: 0.0001522833918
P112: 2.601644875 | Q112: 40.92121577 | R112: 162.125705 | S112: -0.7152534711 | T112: 10 | U112: 199.9842529 | V112: 202.4584295 | W112: 180.2233057 | X112: 21.74302 | Y112: 4.068404818 | Z112: 4.001657486 | AA112: 4.00988245 | AB112: 34.23125458 | AC112: 158.857085 | AD112: 175.3774891 | AE112: 193.8220053 | AF112: 108.120755 | AG112: 0.0001621255215
P113: 2.80035254 | Q113: 24.02267538 | R113: 168.5370564 | S113: -2.423133554 | T113: 12 | U113: 192.8499298 | V113: 195.3014027 | W113: 189.7719802 | X113: 30.0298399 | Y113: 4.181577131 | Z113: 4.003072262 | AA113: 4.003398895 | AB113: 12.64449501 | AC113: 81.66136417 | AD113: 95.20101169 | AE113: 109.2602792 | AF113: 63.36099585 | AG113: 0.0001685369789
P114: 3.000755031 | Q114: 12.47048991 | R114: 171.9698818 | S114: -7.038553501 | T114: 11 | U114: 185.9226685 | V114: 188.337307 | W114: 196.9101129 | X114: 39.96957508 | Y114: 4.423685229 | Z114: 4.009471416 | AA114: 4.002243996 | AB114: 5.919625282 | AC114: 34.35097134 | AD114: 41.60308937 | AE114: 49.3857523 | AF114: 26.24276375 | AG114: 0.0001719697902
P115: 3.200478343 | Q115: 4.502424072 | R115: 173.4542686 | S115: -20.13768398 | T115: 11 | U115: 179.2744141 | V115: 181.6425545 | W115: 201.8280641 | X115: 51.16592677 | Y115: 4.879170446 | Z115: 4.029958248 | AA115: 4.001847267 | AB115: 4.346764088 | AC115: 13.39656459 | AD115: 16.16449557 | AE115: 19.41888388 | AF115: 11.86657699 | AG115: 0.0001734541729
P116: 3.400417576 | Q116: 1.829813857 | R116: 174.0394261 | S116: -56.06614956 | T116: 10 | U116: 172.863327 | V116: 175.1781111 | W116: 204.852301 | X116: 63.30405726 | Y116: 5.659491931 | Z116: 4.084278584 | AA116: 4.002333641 | AB116: 4.053869247 | AC116: 6.33478868 | AD116: 7.157128765 | AE116: 8.174512459 | AF116: 4.819683705 | AG116: 0.00017403932
P117: 3.600025848 | Q117: 1.018114569 | R117: 174.3058245 | S117: -127.0046774 | T117: 11 | U117: 166.6965179 | V117: 168.9534082 | W117: 206.2574186 | X117: 75.963924 | Y117: 6.888159135 | Z117: 4.208158493 | AA117: 4.005504608 | AB117: 4.009085655 | AC117: 4.478103076 | AD117: 4.671737697 | AE117: 4.92229409 | AF117: 2.687308913 | AG117: 0.0001743057655
P118: 3.80074877 | Q118: 0.8217008357 | R118: 174.4854644 | S118: -191.1628297 | T118: 10 | U118: 160.720871 | V118: 162.916621 | W118: 206.3045592 | X118: 88.85888651 | Y118: 8.708311432 | Z118: 4.460526466 | AA118: 4.016616344 | AB118: 4.002922058 | AC118: 4.082893832 | AD118: 4.119647048 | AE118: 4.169107642 | AF118: 2.173291392 | AG118: 0.0001744854962
P119: 4.000284335 | Q119: 0.7839906686 | R119: 174.6445985 | S119: -214.983635 | T119: 10 | U119: 154.9960632 | V119: 157.1292579 | W119: 205.2238742 | X119: 101.4951672 | Y119: 11.22145575 | Z119: 4.919383526 | AA119: 4.047534943 | AB119: 4.002256393 | AC119: 4.014185574 | AD119: 4.020138091 | AE119: 4.028445653 | AF119: 2.073412058 | AG119: 0.0001746446651
P120: 4.200816249 | Q120: 0.7724770011 | R120: 174.8009627 | S120: -219.9756452 | T120: 10 | U120: 149.4506073 | V120: 151.5200638 | W120: 203.2092251 | X120: 113.7122846 | Y120: 14.55567474 | Z120: 5.692782402 | AA120: 4.122272491 | AB120: 4.003639221 | AC120: 4.004671679 | AD120: 3.964554113 | AE120: 4.048086708 | AF120: 2.087850951 | AG120: 0.0001748009818
P121: 4.400802918 | Q121: 0.776692109 | R121: 174.956356 | S121: -220.7629503 | T121: 12 | U121: 144.1198578 | V121: 146.1255967 | W121: 200.4486222 | X121: 125.1726449 | Y121: 18.75788032 | Z121: 6.89465189 | AA121: 4.280899525 | AB121: 4.009497166 | AC121: 4.002678566 | AD121: 4.002620617 | AE121: 4.002672937 | AF121: 2.055075352 | AG121: 0.0001749563526
P122: 4.600158169 | Q122: 0.6997372245 | R122: 175.1111519 | S122: -220.9182792 | T122: 11 | U122: 138.9967346 | V122: 140.9392958 | W122: 197.0997161 | X122: 135.694704 | Y122: 23.84932438 | Z122: 8.644352913 | AA122: 4.58360815 | AB122: 4.026836395 | AC122: 4.003121628 | AD122: 4.005948874 | AE122: 3.988462197 | AF122: 2.255525102 | AG122: 0.0001751111704
P123: 4.800706281 | Q123: 0.7812393482 | R123: 175.2670335 | S123: -220.687526 | T123: 11 | U123: 134.0279694 | V123: 135.9077119 | W123: 193.2576239 | X123: 145.2413912 | Y123: 29.86997747 | Z123: 11.07873535 | AA123: 5.117535591 | AB123: 4.070892811 | AC123: 4.013045469 | AD123: 4.008506907 | AE123: 4.004451805 | AF123: 2.041551224 | AG123: 0.0001752671524
P124: 5.001300218 | Q124: 0.7800116177 | R124: 175.4232105 | S124: -220.3124931 | T124: 10 | U124: 129.2368317 | V124: 131.0547229 | W124: 189.0486268 | X124: 153.6682174 | Y124: 36.74241995 | Z124: 14.29079056 | AA124: 5.985645771 | AB124: 4.169253349 | AC124: 4.035971402 | AD124: 4.029369194 | AE124: 4.024461745 | AF124: 2.064150821 | AG124: 0.0001754233672
P125: 5.200324899 | Q125: 0.7863039752 | R125: 175.5790074 | S125: -219.0953437 | T125: 12 | U125: 124.6532974 | V125: 126.4110672 | W125: 184.6011037 | X125: 160.8823365 | Y125: 44.31535325 | Z125: 18.31770325 | AA125: 7.293121338 | AB125: 4.364748478 | AC125: 4.090081158 | AD125: 4.075290266 | AE125: 4.063234896 | AF125: 2.081596769 | AG125: 0.0001755792618
P126: 5.401562978 | Q126: 0.8012251002 | R126: 175.7385828 | S126: -216.2195787 | T126: 10 | U126: 120.1847839 | V126: 121.8830864 | W126: 179.9056547 | X126: 167.0130895 | Y126: 52.61818502 | Z126: 23.27670479 | AA126: 9.187829971 | AB126: 4.726843357 | AC126: 4.207240043 | AD126: 4.177109897 | AE126: 4.149995745 | AF126: 2.120763641 | AG126: 0.0001757388236
P127: 5.600602682 | Q127: 0.8312962862 | R127: 175.9007539 | S127: -210.2901925 | T127: 10 | U127: 115.9232254 | V127: 117.5641945 | W127: 175.1277374 | X127: 171.9512281 | Y127: 61.33068177 | Z127: 29.05680466 | AA127: 11.73991871 | AB127: 5.332700729 | AC127: 4.433210515 | AD127: 4.374546301 | AE127: 4.327305648 | AF127: 2.200350244 | AG127: 0.0001759010338
P128: 5.800160965 | Q128: 0.8875519548 | R128: 176.0717827 | S128: -199.6422681 | T128: 10 | U128: 111.8026733 | V128: 113.3876942 | W128: 170.2556966 | X128: 175.8245003 | Y128: 70.41344666 | Z128: 35.68484879 | AA128: 15.06843185 | AB128: 6.290018082 | AC128: 4.844176577 | AD128: 4.716221635 | AE128: 4.657648815 | AF128: 2.350904947 | AG128: 0.000176072077
P129: 6.000818799 | Q129: 0.9859601126 | R129: 176.258996 | S129: -182.91601 | T129: 12 | U129: 107.8075714 | V129: 109.3379011 | W129: 165.3173372 | X129: 178.6931211 | Y129: 79.73778145 | Z129: 43.11307907 | AA129: 19.2578373 | AB129: 7.720415115 | AC129: 5.510302497 | AD129: 5.348139789 | AE129: 5.206932086 | AF129: 2.610777049 | AG129: 0.0001762592292
P130: 6.200032117 | Q130: 1.142740702 | R130: 176.4699655 | S130: -160.4362219 | T130: 10 | U130: 103.9827042 | V130: 105.4603549 | W130: 160.4103313 | X130: 180.5957305 | Y130: 89.02804221 | Z130: 51.13820648 | AA130: 24.2826252 | AB130: 9.71936512 | AC130: 6.546826897 | AD130: 6.301523329 | AE130: 6.084020691 | AF130: 3.026232334 | AG130: 0.0001764701592
P131: 6.401310725 | Q131: 1.381745702 | R131: 176.7226974 | S131: -134.3426968 | T131: 10 | U131: 100.2562637 | V131: 101.6822707 | W131: 155.4770503 | X131: 181.6406619 | Y131: 98.29612057 | Z131: 59.77286148 | AA131: 30.22775078 | AB131: 12.43223858 | AC131: 8.081974927 | AD131: 7.725538503 | AE131: 7.413128717 | AF131: 3.663039393 | AG131: 0.000176722926
P132: 6.600356958 | Q132: 1.691971288 | R132: 177.0300281 | S132: -108.0551557 | T132: 10 | U132: 96.7026825 | V132: 98.07924861 | W132: 150.645605 | X132: 181.887878 | Y132: 107.2064887 | Z132: 68.68647003 | AA132: 36.9201622 | AB132: 15.88649273 | AC132: 10.19389258 | AD132: 9.764031181 | AE132: 9.189003341 | AF132: 4.758016742 | AG132: 0.0001770303206
P133: 6.800677444 | Q133: 2.149542474 | R133: 177.4198649 | S133: -84.36783632 | T133: 11 | U133: 93.25367737 | V133: 94.58204446 | W133: 145.8490775 | X133: 181.4292942 | Y133: 115.7948452 | Z133: 77.87910461 | AA133: 44.39222717 | AB133: 20.19586563 | AC133: 12.66002605 | AD133: 11.26817155 | AE133: 11.46016738 | AF133: 5.955821039 | AG133: 0.0001774200937
P134: 7.001294738 | Q134: 2.797160426 | R134: 177.9182017 | S134: -64.62389227 | T134: 11 | U134: 89.92307281 | V134: 91.20473417 | W134: 141.1263757 | X134: 180.3392252 | Y134: 123.908949 | Z134: 87.15286255 | AA134: 52.5071373 | AB134: 25.37351036 | AC134: 16.63206617 | AD134: 15.83562364 | AE134: 15.10643502 | AF134: 7.423481381 | AG134: 0.0001779184968
P135: 7.200699301 | Q135: 3.564017926 | R135: 178.5504447 | S135: -49.11272743 | T135: 12 | U135: 86.7305603 | V135: 87.9673316 | W135: 136.5238043 | X135: 178.7070157 | Y135: 131.4049733 | Z135: 96.28852081 | AA135: 61.06917191 | AB135: 31.36161995 | AC135: 21.0555651 | AD135: 20.08783208 | AE135: 19.19886725 | AF135: 9.442186643 | AG135: 0.000178550632
P136: 7.400179874 | Q136: 4.480713211 | R136: 179.3514687 | S136: -37.26406878 | T136: 10 | U136: 83.65026093 | V136: 84.84364842 | W136: 132.0193623 | X136: 176.5990475 | Y136: 138.2692836 | Z136: 105.2078552 | AA136: 69.9852829 | AB136: 38.14292908 | AC136: 26.32607249 | AD136: 25.28038984 | AE136: 24.21127329 | AF136: 11.94472001 | AG136: 0.0001793516567
P137: 7.600179615 | Q137: 5.585393573 | R137: 180.356728 | S137: -28.28240293 | T137: 12 | U137: 80.67191315 | V137: 81.82324398 | W137: 127.6100847 | X137: 174.075977 | Y137: 144.4652985 | Z137: 113.8052216 | AA137: 79.12533569 | AB137: 45.65452957 | AC137: 32.44487316 | AD137: 31.13913147 | AE137: 29.92478623 | AF137: 14.79327752 | AG137: 0.000180356772
P138: 7.800336916 | Q138: 6.757603187 | R138: 181.597734 | S138: -21.48889405 | T138: 10 | U138: 77.7974472 | V138: 78.9080897 | W138: 123.309109 | X138: 171.2029717 | Y138: 149.9466342 | Z138: 121.9552307 | AA138: 88.3216095 | AB138: 53.77696991 | AC138: 39.34173163 | AD138: 37.9955727 | AE138: 36.80192483 | AF138: 18.53415495 | AG138: 0.0001815977012
P139: 8.000880019 | Q139: 8.233543382 | R139: 183.1077386 | S139: -16.31758537 | T139: 12 | U139: 75.02029419 | V139: 76.09155372 | W139: 119.1151814 | X139: 168.0328655 | Y139: 154.7004686 | Z139: 129.5748444 | AA139: 97.43749237 | AB139: 62.39109039 | AC139: 46.96222754 | AD139: 45.37052398 | AE139: 43.87847938 | AF139: 21.81716541 | AG139: 0.0001831077825
P140: 8.200991136 | Q140: 9.749152953 | R140: 184.9073988 | S140: -12.3595714 | T140: 10 | U140: 72.34792328 | V140: 73.38128516 | W140: 115.0472434 | X140: 164.6306996 | Y140: 158.7056998 | Z140: 136.5617371 | AA140: 106.299614 | AB140: 71.31720734 | AC140: 55.14308922 | AD140: 53.34780269 | AE140: 51.90661542 | AF140: 25.91165599 | AG140: 0.0001849075343
P141: 8.401073042 | Q141: 11.48901457 | R141: 187.0226357 | S141: -9.289543659 | T141: 10 | U141: 69.77116394 | V141: 70.76791583 | W141: 111.0976062 | X141: 161.0371955 | Y141: 161.9828146 | Z141: 142.87854 | AA141: 114.8046646 | AB141: 80.42214203 | AC141: 63.78386562 | AD141: 62.26030738 | AE141: 59.70703524 | AF141: 29.46068594 | AG141: 0.000187022757
P142: 8.600065777 | Q142: 12.17095024 | R142: 189.4563837 | S142: -6.890627392 | T142: 11 | U142: 67.29947662 | V142: 68.26110569 | W142: 107.2863155 | X142: 157.3140982 | Y142: 164.5402351 | Z142: 148.4618073 | AA142: 122.8062134 | AB142: 89.50772858 | AC142: 71.94002713 | AD142: 70.68130424 | AE142: 60.00501606 | AF142: 37.78188608 | AG142: 0.0001894564339
P143: 8.800237013 | Q143: 15.19955531 | R143: 192.2516115 | S143: -4.967243157 | T143: 11 | U143: 64.90155792 | V143: 65.82905966 | W143: 103.5693847 | X143: 153.4558245 | Y143: 166.4345803 | Z143: 153.3546753 | AA143: 130.3081512 | AB143: 98.53436279 | AC143: 81.75904691 | AD143: 80.88029964 | AE143: 81.0745366 | AF143: 36.94655748 | AG143: 0.000192251624
P144: 9.000088401 | Q144: 16.606421 | R144: 195.3928195 | S144: -3.431283865 | T144: 12 | U144: 62.59268951 | V144: 63.48730862 | W144: 99.97421679 | X144: 149.5228578 | Y144: 167.6819528 | Z144: 157.5102539 | AA144: 137.1819 | AB144: 107.301239 | AC144: 90.85292455 | AD144: 89.01602073 | AE144: 87.2538161 | AF144: 43.93825621 | AG144: 0.0001953927567
P145: 9.200442096 | Q145: 18.37553043 | R145: 198.89627 | S145: -2.17394528 | T145: 10 | U145: 60.36046219 | V145: 61.22329459 | W145: 96.48459865 | X145: 145.5275941 | Y145: 168.3259289 | Z145: 160.9510803 | AA145: 143.4034119 | AB145: 115.7249985 | AC145: 99.83725681 | AD145: 98.01241167 | AE145: 96.13251834 | AF145: 48.50171744 | AG145: 0.0001988962322
P146: 9.401853318 | Q146: 19.93892006 | R146: 202.7703649 | S146: -1.140022322 | T146: 11 | U146: 58.19673157 | V146: 59.02871792 | W146: 93.0902553 | X146: 141.483455 | Y146: 168.4044703 | Z146: 163.6951904 | AA146: 148.9477081 | AB146: 123.7209091 | AC146: 108.5216797 | AD146: 105.4794905 | AE146: 101.888091 | AF146: 54.75260199 | AG146: 0.0002027703013
P147: 9.600676646 | Q147: 21.74861142 | R147: 206.9319722 | S147: -0.2856244668 | T147: 12 | U147: 56.13690948 | V147: 56.93950181 | W147: 89.8491228 | X147: 137.4853682 | Y147: 167.9669255 | Z147: 165.7267151 | AA147: 153.7038879 | AB147: 131.0654602 | AC147: 116.8809738 | AD147: 115.2261582 | AE147: 113.6325049 | AF147: 57.56014489 | AG147: 0.0002069317998
P148: 9.800291764 | Q148: 23.32333892 | R148: 211.4323317 | S148: 0.4221321199 | T148: 10 | U148: 54.14222336 | V148: 54.91636769 | W148: 86.70223995 | X148: 133.4837014 | Y148: 167.0581798 | Z148: 167.121521 | AA148: 157.7577362 | AB148: 137.8243713 | AC148: 124.7161392 | AD148: 123.1664291 | AE148: 121.6666809 | AF148: 61.72995852 | AG148: 0.0002114321396
P149: 10.00020811 | Q149: 24.75871447 | R149: 216.2451095 | S149: 1.017675778 | T149: 10 | U149: 52.21557236 | V149: 52.96222144 | W149: 83.65571025 | X149: 129.5039883 | Y149: 165.7218884 | Z149: 167.9082184 | AA149: 161.1007233 | AB149: 143.9272156 | AC149: 132.0315203 | AD149: 130.2915945 | AE149: 129.1550585 | AF149: 65.9198046 | AG149: 0.0002162448654
P200: 0.2009921696 | Q200: 418.5352767 | R200: 84.15109244 | S200: 0 | T200: 0 | U200: 865.0087891 | V200: 865.8201562 | W200: 848.5433748 | X200: 499.8693694 | Y200: 450.0114543 | Z200: 450 | AA200: 450 | AB200: 450 | AC200: 1587.05249 | AD200: 2157 | AE200: 2157 | AF200: 2150.088623 | AG200: 8.415108459e-05
P201: 0.4000517223 | Q201: 418.5352766 | R201: 167.4645374 | S201: -6.876152302e-05 | T201: 0 | U201: 832.274231 | V201: 833.0588269 | W201: 854.5134646 | X201: 858.841283 | Y201: 645.099434 | Z201: 450 | AA201: 450 | AB201: 450 | AC201: 480.9690857 | AD201: 2153.794922 | AE201: 2157 | AF201: 2150.088623 | AG201: 0.0001674645173
P202: 0.6010438919 | Q202: 418.5352765 | R202: 251.5868507 | S202: -6.876157296e-05 | T202: 0 | U202: 800.4785767 | V202: 801.2331807 | W202: 821.9584484 | X202: 844.2502613 | Y202: 858.0031851 | Z202: 450.0951233 | AA202: 450 | AB202: 450 | AC202: 450.0890198 | AD202: 1748.406372 | AE202: 2156.976318 | AF202: 2150.088623 | AG202: 0.0002515869564
P203: 0.8001034445 | Q203: 418.5329003 | R203: 334.9001785 | S203: -6.960656322e-05 | T203: 0 | U203: 770.1859131 | V203: 770.9119802 | W203: 790.8533009 | X203: 812.4012657 | Y203: 835.500446 | Z203: 464.8042603 | AA203: 450 | AB203: 450 | AC203: 450.0022278 | AD203: 725.9850464 | AE203: 2140.667725 | AF203: 2150.076172 | AG203: 0.0003349004837
P204: 1.001095614 | Q204: 418.4801483 | R204: 419.0202319 | S204: -8.997849975e-05 | T204: 0 | U204: 740.762085 | V204: 741.4604596 | W204: 760.6396926 | X204: 781.3651021 | Y204: 803.6723158 | Z204: 587.6694946 | AA204: 450.0027466 | AB204: 450 | AC204: 450.0022278 | AD204: 463.0492249 | AE204: 1773.87915 | AF204: 2149.789062 | AG204: 0.0004190201289
P205: 1.200155167 | Q205: 413.1018228 | R205: 502.055123 | S205: -0.003421629021 | T205: 0 | U205: 712.729248 | V205: 713.4011083 | W205: 731.8545907 | X205: 751.7952018 | Y205: 773.2589948 | Z205: 761.4021606 | AA205: 450.3275452 | AB205: 450 | AC205: 450.0022278 | AD205: 450.2095947 | AE205: 916.7515869 | AF205: 2121.237793 | AG205: 0.0005020550452
P206: 1.401147336 | Q206: 350.9554318 | R206: 580.4705989 | S206: -0.08669729791 | T206: 0 | U206: 685.5006104 | V206: 686.1468534 | W206: 703.8953797 | X206: 723.0739739 | Y206: 743.717057 | Z206: 825.0283813 | AA206: 458.2845764 | AB206: 450.0015564 | AC206: 450.0022278 | AD206: 450.0057068 | AE206: 508.1336975 | AF206: 1797.156738 | AG206: 0.0005804706016
P207: 1.600206889 | Q207: 208.6779802 | R207: 636.4467556 | S207: -0.6630925924 | T207: 0 | U207: 659.5592041 | V207: 660.180937 | W207: 677.2577217 | X207: 695.7111332 | Y207: 715.5725404 | Z207: 813.0935059 | AA207: 508.0715332 | AB207: 450.0089417 | AC207: 450.0022278 | AD207: 450.0054321 | AE207: 452.9753418 | AF207: 1065.092041 | AG207: 0.0006364466972
P208: 1.801199059 | Q208: 112.9773756 | R208: 667.0984624 | S208: -2.573159876 | T208: 0 | U208: 634.3620605 | V208: 634.9600753 | W208: 651.3847775 | X208: 669.1323102 | Y208: 688.235888 | Z208: 784.3150635 | AA208: 624.7763062 | AB208: 450.2954712 | AC208: 450.0028687 | AD208: 450.0054321 | AE208: 450.0735779 | AF208: 577.9385376 | AG208: 0.000667098444
P209: 2.000258611 | Q209: 89.93202698 | R209: 686.5789419 | S209: -5.015487406 | T209: 0 | U209: 610.3557739 | V209: 610.9311734 | W209: 626.7344526 | X209: 643.8113793 | Y209: 662.1911937 | Z209: 754.8033447 | AA209: 744.2824097 | AB209: 454.1672363 | AC209: 450.006012 | AD209: 450.0054321 | AE209: 450.0084839 | AF209: 461.6578369 | AG209: 0.00068657886
P210: 2.201250781 | Q210: 87.45121081 | R210: 704.3023904 | S210: -5.785866712 | T210: 0 | U210: 587.0380249 | V210: 587.5914365 | W210: 602.790858 | X210: 619.2156312 | Y210: 636.89418 | Z210: 725.9761353 | AA210: 801.6052856 | AB210: 476.817749 | AC210: 450.0770569 | AD210: 450.0054321 | AE210: 450.0084839 | AF210: 449.2307434 | AG210: 0.0007043023943
P211: 2.400310334 | Q211: 87.32142192 | R211: 721.6912464 | S211: -5.861276106 | T211: 0 | U211: 564.8227539 | V211: 565.3552294 | W211: 579.9792881 | X211: 595.7821059 | Y211: 612.791965 | Z211: 698.5038452 | AA211: 802.2684937 | AB211: 540.9179077 | AC211: 451.161438 | AD211: 450.0085449 | AE211: 450.0084839 | AF211: 448.5846558 | AG211: 0.0007216908853
P212: 2.601302503 | Q212: 87.31824967 | R212: 739.241643 | S212: -5.86470457 | T212: 0 | U212: 543.2446289 | V212: 543.7567332 | W212: 557.8220009 | X212: 573.0209965 | Y212: 589.3807247 | Z212: 671.819458 | AA212: 779.2514038 | AB212: 642.8676147 | AC212: 459.0397034 | AD212: 450.0795593 | AE212: 450.0084839 | AF212: 448.5690613 | AG212: 0.0007392402622
P213: 2.800362056 | Q213: 87.31824966 | R213: 756.6231747 | S213: -5.864758668 | T213: 0 | U213: 522.6865234 | V213: 523.1792629 | W213: 536.7124246 | X213: 551.3358446 | Y213: 567.0762788 | Z213: 646.3959351 | AA213: 751.0704956 | AB213: 736.2571411 | AC213: 488.9213562 | AD213: 451.0267639 | AE213: 450.0116882 | AF213: 448.5690613 | AG213: 0.0007566208951
P214: 3.001354226 | Q214: 87.31824964 | R214: 774.1734592 | S214: -5.864758669 | T214: 0 | U214: 502.7181396 | V214: 503.1920593 | W214: 516.2080546 | X214: 530.2733577 | Y214: 545.4119924 | Z214: 621.7015991 | AA214: 722.5491943 | AB214: 785.6953735 | AC214: 556.4371338 | AD214: 457.4846802 | AE214: 450.1020813 | AF214: 448.5690613 | AG214: 0.0007741702721
P215: 3.200413778 | Q215: 87.31894468 | R215: 791.5550263 | S215: -5.864740586 | T215: 0 | U215: 483.6936951 | V215: 484.1496942 | W215: 496.6734338 | X215: 510.2059213 | Y215: 524.772174 | Z215: 598.1744385 | AA215: 695.2235107 | AB215: 791.2984009 | AC215: 649.4139404 | AD215: 481.93396 | AE215: 451.1123657 | AF215: 448.5727844 | AG215: 0.000791550905
P216: 3.401405948 | Q216: 87.33958209 | R216: 809.1066847 | S216: -5.864049434 | T216: 0 | U216: 465.2149353 | V216: 465.6535226 | W216: 477.6984202 | X216: 490.7144509 | Y216: 504.7242192 | Z216: 575.3217163 | AA216: 668.6661377 | AB216: 773.1381836 | AC216: 733.0494385 | AD216: 539.5855103 | AE216: 457.3308105 | AF216: 448.6815796 | AG216: 0.0008091017953
P217: 3.6004655 | Q217: 87.54025345 | R217: 826.5063227 | S217: -5.855132331 | T217: 0 | U217: 447.6097107 | V217: 448.0317152 | W217: 459.6210137 | X217: 472.1440436 | Y217: 485.6233383 | Z217: 553.5499268 | AA217: 643.3610229 | AB217: 746.9589844 | AC217: 778.0397949 | AD217: 625.2867432 | AE217: 479.7814331 | AF217: 449.7323303 | AG217: 0.0008265012875
P218: 3.80145767 | Q218: 88.68021297 | R218: 844.1888781 | S218: -5.794177718 | T218: 0 | U218: 430.5097656 | V218: 430.9156479 | W218: 442.0618028 | X218: 454.1066649 | Y218: 467.0710996 | Z218: 532.4024658 | AA218: 618.7831421 | AB218: 719.0541992 | AC218: 785.1361694 | AD218: 711.2350464 | AE218: 532.3711548 | AF218: 455.6728516 | AG218: 0.0008441839018
P219: 4.000517223 | Q219: 92.64928238 | R219: 862.1719951 | S219: -5.543076983 | T219: 0 | U219: 414.2178955 | V219: 414.6084029 | W219: 425.3334152 | X219: 436.9220395 | Y219: 449.3956025 | Z219: 512.2547607 | AA219: 595.3667603 | AB219: 691.9456787 | AC219: 769.3793945 | AD219: 765.9926758 | AE219: 612.5375366 | AF219: 476.2685547 | AG219: 0.0008621667512
P220: 4.201509392 | Q220: 101.9270957 | R220: 881.6336279 | S220: -4.90365962 | T220: 0 | U220: 398.3933411 | V220: 398.768893 | W220: 409.0838697 | X220: 420.2305923 | Y220: 432.2280812 | Z220: 492.6846924 | AA220: 572.62146 | AB220: 665.526001 | AC220: 744.2213745 | AD220: 783.0870361 | AE220: 697.2810059 | AF220: 524.2262573 | AG220: 0.0008816282498
P221: 4.400568945 | Q221: 116.429826 | R221: 903.3140446 | S221: -3.893242585 | T221: 0 | U221: 383.3168945 | V221: 383.6782347 | W221: 393.6029058 | X221: 404.3273504 | Y221: 415.870837 | Z221: 474.0399475 | AA221: 550.9519653 | AB221: 640.3407593 | AC221: 717.0688477 | AD221: 773.2915039 | AE221: 756.2564697 | AF221: 598.925354 | AG221: 0.0009033087408
P222: 4.601561115 | Q222: 132.5335787 | R222: 928.3724114 | S222: -2.844877276 | T222: 0 | U222: 368.6729126 | V222: 369.0204648 | W222: 378.5659017 | X222: 388.8806655 | Y222: 399.9831022 | Z222: 455.9299622 | AA222: 529.9038086 | AB222: 615.878479 | AC222: 689.8775024 | AD222: 750.5702515 | AE222: 779.4873047 | AF222: 681.5849609 | AG222: 0.000928367197
P223: 4.800620667 | Q223: 144.6623037 | R223: 956.0705113 | S223: -2.070427135 | T223: 0 | U223: 354.7211609 | V223: 355.0555503 | W223: 364.2397088 | X223: 374.1639541 | Y223: 384.8463482 | Z223: 438.6768494 | AA223: 509.8503418 | AB223: 592.5722656 | AC223: 663.8029175 | AD223: 724.0150146 | AE223: 774.2145996 | AF223: 743.6030884 | AG223: 0.0009560651961
P224: 5.001612837 | Q224: 150.3394263 | R224: 985.8347735 | S224: -1.65553421 | T224: 0 | U224: 341.1694946 | V224: 341.4911258 | W224: 350.3245806 | X224: 359.8696272 | Y224: 370.1435826 | Z224: 421.9165344 | AA224: 490.3722229 | AB224: 569.9338379 | AC224: 638.4478149 | AD224: 696.7759399 | AE224: 753.7398682 | AF224: 772.4390259 | AG224: 0.0009858293924
P225: 5.200672389 | Q225: 150.275316 | R225: 1015.830255 | S225: -1.540700116 | T225: 0 | U225: 328.2585754 | V225: 328.5680317 | W225: 337.0670706 | X225: 346.2513001 | Y225: 356.1362984 | Z225: 405.9502869 | AA225: 471.815094 | AB225: 548.366272 | AC225: 614.2888184 | AD225: 670.4846802 | AE225: 727.9248657 | AF225: 771.883606 | AG225: 0.00101582543
P226: 5.401664559 | Q226: 146.8321208 | R226: 1045.722531 | S226: -1.629651563 | T226: 0 | U226: 315.7180786 | V226: 316.0157262 | W226: 324.1902497 | X226: 333.0231012 | Y226: 342.5308525 | Z226: 390.4416504 | AA226: 453.7903442 | AB226: 527.4168091 | AC226: 590.8212891 | AD226: 644.8820801 | AE226: 700.7932129 | AF226: 754.0844727 | AG226: 0.001045717741
P227: 5.600724112 | Q227: 142.0225543 | R227: 1074.479501 | S227: -1.836965152 | T227: 0 | U227: 303.7703857 | V227: 304.0567392 | W227: 311.9218996 | X227: 320.4210095 | Y227: 329.5686534 | Z227: 375.6660461 | AA227: 436.6173706 | AB227: 507.4573669 | AC227: 568.4629517 | AD227: 620.4807739 | AE227: 674.4108887 | AF227: 729.3403931 | AG227: 0.001074474654
P228: 5.801716281 | Q228: 136.801463 | R228: 1102.496576 | S228: -2.107502669 | T228: 0 | U228: 292.1653442 | V228: 292.4407555 | W228: 300.0054598 | X228: 308.1798768 | Y228: 316.9782364 | Z228: 361.3143311 | AA228: 419.9351501 | AB228: 488.0707397 | AC228: 546.7460327 | AD228: 596.7770386 | AE228: 648.6691895 | AF228: 702.5143433 | AG228: 0.001102491748
P229: 6.000775834 | Q229: 131.6703115 | R229: 1129.210452 | S229: -2.413582671 | T229: 0 | U229: 281.1088867 | V229: 281.3738931 | W229: 288.6522289 | X229: 296.5172119 | Y229: 304.9828767 | Z229: 347.6412659 | AA229: 404.0441895 | AB229: 469.6007385 | AC229: 526.0557251 | AD229: 574.1934814 | AE229: 624.1272583 | AF229: 676.1609497 | AG229: 0.001129205804
P230: 6.201768004 | Q230: 126.6485847 | R230: 1155.162619 | S230: -2.744638784 | T230: 0 | U230: 270.3695068 | V230: 270.6243958 | W230: 277.624649 | X230: 285.1891226 | Y230: 293.3312301 | Z230: 334.3605042 | AA230: 388.6085815 | AB230: 451.6605225 | AC230: 505.9580994 | AD230: 552.2575684 | AE230: 600.284729 | AF230: 650.3723755 | AG230: 0.001155157806
P231: 6.400827556 | Q231: 121.8576715 | R231: 1179.888724 | S231: -3.097963868 | T231: 0 | U231: 260.1378784 | V231: 260.3831048 | W231: 267.1185116 | X231: 274.3965103 | Y231: 282.2304435 | Z231: 321.7071533 | AA231: 373.9025269 | AB231: 434.5669556 | AC231: 486.8110657 | AD231: 531.3590698 | AE231: 577.5685425 | AF231: 625.7697144 | AG231: 0.001179883955
P232: 6.601819726 | Q232: 117.2027254 | R232: 1203.905836 | S232: -3.47331551 | T232: 0 | U232: 250.199707 | V232: 250.435581 | W232: 256.9135756 | X232: 263.9137756 | Y232: 271.4482817 | Z232: 309.4171753 | AA232: 359.6182556 | AB232: 417.9634094 | AC232: 468.2133179 | AD232: 511.0587769 | AE232: 555.5036011 | AF232: 601.8653564 | AG232: 0.001203900902
P233: 6.800879279 | Q233: 112.7675316 | R233: 1226.787601 | S233: -3.871540088 | T233: 0 | U233: 240.7313538 | V233: 240.9582941 | W233: 247.1912964 | X233: 253.9264016 | Y233: 261.1758344 | Z233: 297.7078857 | AA233: 346.0094299 | AB233: 402.1470642 | AC233: 450.494812 | AD233: 491.7185059 | AE233: 534.4824829 | AF233: 579.0895386 | AG233: 0.001226782682
P234: 7.001871448 | Q234: 108.4594654 | R234: 1249.013075 | S234: -4.293358826 | T234: 0 | U234: 231.5346222 | V234: 231.7528974 | W234: 237.747561 | X234: 244.2254846 | Y234: 251.1981834 | Z234: 286.3341675 | AA234: 332.7911072 | AB234: 386.7841187 | AC234: 433.2824707 | AD234: 472.9333801 | AE234: 514.0630493 | AF234: 556.9664917 | AG234: 0.00124900823
P235: 7.200931001 | Q235: 104.3551953 | R235: 1270.187872 | S235: -4.73982249 | T235: 0 | U235: 222.772644 | V235: 222.9826424 | W235: 228.7505711 | X235: 234.983183 | Y235: 241.6916918 | Z235: 275.4984741 | AA235: 320.1968689 | AB235: 372.1472473 | AC235: 416.8840027 | AD235: 455.036438 | AE235: 494.6088867 | AF235: 535.8900757 | AG235: 0.001270182547
P236: 7.40192317 | Q236: 100.368429 | R236: 1290.755349 | S236: -5.211763752 | T236: 0 | U236: 214.2617798 | V236: 214.4637671 | W236: 220.0114901 | X236: 226.0060827 | Y236: 232.458439 | Z236: 264.9734802 | AA236: 307.9646301 | AB236: 357.9300537 | AC236: 400.9584351 | AD236: 437.6513367 | AE236: 475.7133789 | AF236: 515.4169922 | AG236: 0.001290749875
P237: 7.600982723 | Q237: 96.57007872 | R237: 1310.350491 | S237: -5.710366831 | T237: 0 | U237: 206.1534271 | V237: 206.347777 | W237: 211.6855497 | X237: 217.4534074 | Y237: 223.6613924 | Z237: 254.9459991 | AA237: 296.3104553 | AB237: 344.3853149 | AC237: 385.7855835 | AD237: 421.0862122 | AE237: 457.7113953 | AF237: 495.9115601 | AG237: 0.001310345018
P238: 7.800042276 | Q238: 92.91561423 | R238: 1329.204087 | S238: -6.233925886 | T238: 0 | U238: 198.351944 | V238: 198.5389322 | W238: 203.6745437 | X238: 209.2242006 | Y238: 215.1976971 | Z238: 245.2979431 | AA238: 285.0969849 | AB238: 331.3530884 | AC238: 371.186554 | AD238: 405.1516724 | AE238: 440.3890991 | AF238: 477.1449585 | AG238: 0.001329198712
P239: 8.001034445 | Q239: 89.36603588 | R239: 1347.516934 | S239: -6.78860216 | T239: 0 | U239: 190.774231 | V239: 190.9540899 | W239: 195.8935372 | X239: 201.2309906 | Y239: 206.9760843 | Z239: 235.9267426 | AA239: 274.2055054 | AB239: 318.6938477 | AC239: 357.006134 | AD239: 389.6743164 | AE239: 423.5613403 | AF239: 458.9169922 | AG239: 0.001347511541
P240: 8.200093998 | Q240: 85.98399258 | R240: 1364.964055 | S240: -7.373199742 | T240: 0 | U240: 183.5547333 | V240: 183.7277581 | W240: 188.4802321 | X240: 193.6158081 | Y240: 199.1434463 | Z240: 226.9985657 | AA240: 263.8286743 | AB240: 306.6338196 | AC240: 343.4963379 | AD240: 374.9281616 | AE240: 407.5328064 | AF240: 441.5493164 | AG240: 0.001364958473
P241: 8.401086168 | Q241: 82.69842955 | R241: 1381.91066 | S241: -7.988816588 | T241: 0 | U241: 176.5423431 | V241: 176.7087685 | W241: 181.2796452 | X241: 186.2188086 | Y241: 191.5354142 | Z241: 218.326416 | AA241: 253.7494049 | AB241: 294.9196167 | AC241: 330.3739624 | AD241: 360.6049805 | AE241: 391.9645081 | AF241: 424.677124 | AG241: 0.001381905051
P242: 8.60014572 | Q242: 79.56878783 | R242: 1398.056037 | S242: -8.636764835 | T242: 0 | U242: 169.8614349 | V242: 170.0215688 | W242: 174.4195421 | X242: 179.1718032 | Y242: 184.2869573 | Z242: 210.0637207 | AA242: 244.1466827 | AB242: 283.7589417 | AC242: 317.8711243 | AD242: 346.9589233 | AE242: 377.1318359 | AF242: 408.6056824 | AG242: 0.001398049644
P243: 8.80113789 | Q243: 76.52915714 | R243: 1413.738347 | S243: -9.31802575 | T243: 0 | U243: 163.3721619 | V243: 163.5261686 | W243: 167.7560468 | X243: 172.3269589 | Y243: 177.2466763 | Z243: 202.0386963 | AA243: 234.8194733 | AB243: 272.9185791 | AC243: 305.7278442 | AD243: 333.7043457 | AE243: 362.7245789 | AF243: 392.9963989 | AG243: 0.001413731836
P244: 9.000197442 | Q244: 73.63318053 | R244: 1428.679322 | S244: -10.03418665 | T244: 0 | U244: 157.1896973 | V244: 157.3378781 | W244: 161.4078229 | X244: 165.80553 | Y244: 170.5391789 | Z244: 194.3929749 | AA244: 225.9332275 | AB244: 262.5904541 | AC244: 294.1583862 | AD244: 321.07547 | AE244: 348.998291 | AF244: 378.1248474 | AG244: 0.001428673044
P245: 9.201189612 | Q245: 70.82025859 | R245: 1443.191777 | S245: -10.78648668 | T245: 0 | U245: 151.1845093 | V245: 151.3270331 | W245: 155.2414979 | X245: 159.4714471 | Y245: 164.0241729 | Z245: 186.9664459 | AA245: 217.3012238 | AB245: 252.5583954 | AC245: 282.9206238 | AD245: 308.8096924 | AE245: 335.665802 | AF245: 363.6797791 | AG245: 0.001443185611
P246: 9.400249165 | Q246: 68.14026213 | R246: 1457.018179 | S246: -11.5765298 | T246: 0 | U246: 145.4632263 | V246: 145.6003564 | W246: 149.3666691 | X246: 153.4365606 | Y246: 157.8171282 | Z246: 179.891098 | AA246: 209.0772552 | AB246: 243.0007935 | AC246: 272.2141724 | AD246: 297.1235962 | AE246: 322.9627991 | AF246: 349.9173279 | AG246: 0.001457011909
P247: 9.601241334 | Q247: 65.53715998 | R247: 1470.448023 | S247: -12.40560702 | T247: 0 | U247: 139.9059906 | V247: 140.0378891 | W247: 143.6602546 | X247: 147.5746485 | Y247: 151.787955 | Z247: 173.0187531 | AA247: 201.0900574 | AB247: 233.7173615 | AC247: 261.8146973 | AD247: 285.772644 | AE247: 310.6247253 | AF247: 336.5497437 | AG247: 0.001470441697
P248: 9.800300887 | Q248: 63.05698539 | R248: 1483.242991 | S248: -13.27546572 | T248: 0 | U248: 134.6115417 | V248: 134.7384497 | W248: 138.2236813 | X248: 141.989852 | Y248: 146.0436508 | Z248: 166.471405 | AA248: 193.4803162 | AB248: 224.8728027 | AC248: 251.9065552 | AD248: 274.958252 | AE248: 298.8699646 | AF248: 323.8134155 | AG248: 0.001483236556
P249: 10.00129306 | Q249: 60.64797844 | R249: 1495.670948 | S249: -14.18756963 | T249: 0 | U249: 129.4689178 | V249: 129.5909771 | W249: 132.943129 | X249: 136.5653348 | Y249: 140.464186 | Z249: 160.111557 | AA249: 186.0887604 | AB249: 216.2808533 | AC249: 242.2828827 | AD249: 264.4541931 | AE249: 287.4524231 | AF249: 311.4425659 | AG249: 0.001495664474
P300: 0.2009909478 | Q300: 147.6619246 | R300: 29.82497784 | S300: 0 | T300: 0 | U300: 4575.230469 | V300: 4588.773145 | W300: 12847.77867 | X300: 15192.93216 | Y300: 15192.89809 | Z300: 300.2422791 | AA300: 300 | AB300: 300 | AC300: 605.3994141 | AD300: 761 | AE300: 761 | AF300: 726.6672363 | AG300: 2.982498154e-05
P301: 0.4000492903 | Q301: 147.6613166 | R301: 59.21820355 | S301: -0.0009913291373 | T301: 0 | U301: 4402.343262 | V301: 4410.873837 | W301: 5578.005108 | X301: 14074.68636 | Y301: 15192.50293 | Z301: 773.9138184 | AA301: 300 | AB301: 300 | AC301: 309.7071533 | AD301: 759.994812 | AE301: 761 | AF301: 726.6645508 | AG301: 5.921813136e-05
P302: 0.6010402381 | Q302: 147.6613163 | R302: 88.89679149 | S302: -0.0009914492414 | T302: 0 | U302: 4234.353027 | V302: 4242.49005 | W302: 4509.650577 | X302: 7890.226863 | Y302: 14705.09718 | Z302: 6085.04541 | AA302: 300.0184937 | AB302: 300 | AC302: 300.044281 | AD302: 648.3619995 | AE302: 760.9920654 | AF302: 726.6645508 | AG302: 8.889664605e-05
P303: 0.8000985806 | Q303: 147.6605843 | R303: 118.2899633 | S303: -0.0009923728227 | T303: 0 | U303: 4074.296875 | V303: 4082.124864 | W303: 4297.849504 | X303: 4960.475821 | Y303: 10597.62314 | Z303: 12621.41016 | AA303: 308.2977905 | AB303: 300 | AC303: 300.0019531 | AD303: 377.1922302 | AE303: 756.0408325 | AF303: 726.6608887 | AG303: 0.0001182897904
P304: 1.001089528 | Q304: 147.6420669 | R304: 147.9677868 | S304: -0.001011777731 | T304: 0 | U304: 3918.82373 | V304: 3926.352928 | W304: 4132.233023 | X304: 4393.8649 | Y304: 6184.996604 | Z304: 14814.13965 | AA304: 604.2510986 | AB304: 300.0014954 | AC304: 300.0019531 | AD304: 304.2492065 | AE304: 655.1515503 | AF304: 726.5645142 | AG304: 0.0001479673374
P305: 1.200147871 | Q305: 146.0050347 | R305: 177.2737425 | S305: -0.003969741236 | T305: 0 | U305: 3770.693604 | V305: 3777.938141 | W305: 3975.9782 | X305: 4197.685704 | Y305: 4675.791392 | Z305: 14550.22559 | AA305: 2650.559814 | AB305: 300.161377 | AC305: 300.0019531 | AD305: 300.0899658 | AE305: 428.1081848 | AF305: 718.2489014 | AG305: 0.0001772733231
P306: 1.401138819 | Q306: 128.7444938 | R306: 205.3181357 | S306: -0.07035269793 | T306: 0 | U306: 3626.80542 | V306: 3633.773672 | W306: 3824.251049 | X306: 4035.662065 | Y306: 4292.993944 | Z306: 12061.13281 | AA306: 7341.428711 | AB306: 309.4642944 | AC306: 300.0027771 | AD306: 300.0051575 | AE306: 317.4174194 | AF306: 632.0794067 | AG306: 0.0002053177013
P307: 1.600197161 | Q307: 90.95669089 | R307: 227.2431325 | S307: -0.4629566793 | T307: 0 | U307: 3489.7146 | V307: 3496.419023 | W307: 3679.69851 | X307: 3883.015413 | Y307: 4109.949798 | Z307: 8343.68457 | AA307: 11887.96777 | AB307: 456.5999451 | AC307: 300.0501709 | AD307: 300.0051575 | AE307: 301.0474243 | AF307: 445.8635864 | AG307: 0.0002272427519
P308: 1.801188109 | Q308: 65.49133246 | R308: 242.5326102 | S308: -1.387073778 | T308: 0 | U308: 3356.549561 | V308: 3362.998445 | W308: 3539.281884 | X308: 3734.836818 | Y308: 3951.471023 | Z308: 5712.580566 | AA308: 14001.43555 | AB308: 1369.53418 | AC308: 302.4200745 | AD308: 300.005249 | AE308: 300.0349426 | AF308: 321.6540222 | AG308: 0.0002425322455
P309: 2.000246452 | Q309: 59.03204458 | R309: 254.7335789 | S309: -2.155722266 | T309: 0 | U309: 3229.673096 | V309: 3235.878398 | W309: 3405.50134 | X309: 3593.663072 | Y309: 3801.993373 | Z309: 4617.561523 | AA309: 13567.75 | AB309: 3956.969971 | AC309: 342.7660522 | AD309: 300.0784607 | AE309: 300.0082092 | AF309: 290.4090576 | AG309: 0.0002547331387
P310: 2.201237399 | Q310: 58.26074522 | R310: 266.4902962 | S310: -2.354637834 | T310: 0 | U310: 3106.430908 | V310: 3112.399453 | W310: 3275.549262 | X310: 3456.53184 | Y310: 3656.909971 | Z310: 4225.133789 | AA310: 11200.97363 | AB310: 7973.250977 | AC310: 654.842041 | AD310: 302.6543884 | AE310: 300.008606 | AF310: 286.7032166 | AG310: 0.0002664897474
P311: 2.400295742 | Q311: 58.21393149 | R311: 278.0807502 | S311: -2.375556261 | T311: 0 | U311: 2989.009766 | V311: 2994.75263 | W311: 3151.735049 | X311: 3325.879419 | Y311: 3518.678119 | Z311: 4028.919922 | AA311: 8233.976562 | AB311: 11539.78516 | AC311: 1858.985352 | AD311: 338.8753052 | AE311: 300.1473389 | AF311: 286.4796448 | AG311: 0.0002780804352
P312: 2.60128669 | Q312: 58.21328645 | R312: 289.7810466 | S312: -2.376652787 | T312: 0 | U312: 2874.950439 | V312: 2880.473812 | W312: 3031.467121 | X312: 3198.964052 | Y312: 3384.413268 | Z312: 3870.40332 | AA312: 5972.591309 | AB312: 13213.32617 | AC312: 4555.211914 | AD312: 596.8005981 | AE312: 303.6109009 | AF312: 286.4769287 | AG312: 0.0002897820377
P313: 2.800345032 | Q313: 58.25662724 | R313: 301.3711405 | S313: -2.375664782 | T313: 0 | U313: 2766.278564 | V313: 2771.593624 | W313: 2916.878301 | X313: 3078.045745 | Y313: 3256.482447 | Z313: 3723.617188 | AA313: 4793.436035 | AB313: 12685.75684 | AC313: 8192.947266 | AD313: 1583.463135 | AE313: 343.2416992 | AF313: 286.6972046 | AG313: 0.0003013724636
P314: 3.00133598 | Q314: 59.09006342 | R314: 313.131221 | S314: -2.350374044 | T314: 0 | U314: 2660.719238 | V314: 2665.83134 | W314: 2805.572889 | X314: 2960.589692 | Y314: 3132.21771 | Z314: 3581.488525 | AA314: 4274.578613 | AB314: 10592.83984 | AC314: 11353.24707 | AD314: 3887.719238 | AE314: 593.8418579 | AF314: 290.9025269 | AG314: 0.000313132623
P315: 3.200394322 | Q315: 67.20571244 | R315: 325.451597 | S315: -2.057875032 | T315: 0 | U315: 2560.145508 | V315: 2565.064569 | W315: 2699.524733 | X315: 2848.679606 | Y315: 3013.822284 | Z315: 3446.097412 | AA315: 4026.523438 | AB315: 8096.641113 | AC315: 12766.70312 | AD315: 7248.226562 | AE315: 1501.391235 | AF315: 331.6199036 | AG315: 0.0003254529438
P316: 3.40138527 | Q316: 113.8893747 | R316: 342.545631 | S316: -0.6262521574 | T316: 0 | U316: 2462.451904 | V316: 2467.182917 | W316: 2596.511869 | X316: 2739.979969 | Y316: 2898.813883 | Z316: 3314.60083 | AA316: 3855.156738 | AB316: 6102.267578 | AC316: 12214.71973 | AD316: 10516.92773 | AE316: 3602.734375 | AF316: 564.6726074 | AG316: 0.0003425470204
P317: 3.600443613 | Q317: 275.6909978 | R317: 378.7157726 | S317: 1.516223576 | T317: 0 | U317: 2369.372803 | V317: 2373.925032 | W317: 2498.36592 | X317: 2636.410124 | Y317: 2789.244991 | Z317: 3189.312988 | AA317: 3706.575684 | AB317: 4927.058105 | AC317: 10307.93164 | AD317: 12364.63281 | AE317: 6745.790527 | AF317: 1368.878174 | AG317: 0.0003787171445
P318: 3.801434561 | Q318: 648.0779955 | R318: 467.9541372 | S318: 2.747464712 | T318: 0 | U318: 2278.959229 | V318: 2283.33779 | W318: 2403.032698 | X318: 2535.804884 | Y318: 2682.811604 | Z318: 3067.612793 | AA318: 3564.746094 | AB318: 4332.348145 | AC318: 8011.114746 | AD318: 12329.67676 | AE318: 9971.136719 | AF318: 3212.493896 | AG318: 0.0004679555423
P319: 4.000492903 | Q319: 1217.906784 | R319: 651.8341807 | S319: 3.294853351 | T319: 0 | U319: 2192.815186 | V319: 2197.028403 | W319: 2312.196631 | X319: 2439.95925 | Y319: 2581.399848 | Z319: 2951.658936 | AA319: 3429.944824 | AB319: 4034.29248 | AC319: 6162.873535 | AD319: 10789.22363 | AE319: 12000.20312 | AF319: 6023.438477 | AG319: 0.0006518352893
P320: 4.201483851 | Q320: 1831.155346 | R320: 960.1729352 | S320: 3.575594093 | T320: 0 | U320: 2109.138916 | V320: 2113.191082 | W320: 2223.965062 | X320: 2346.848702 | Y320: 2482.901315 | Z320: 2839.026123 | AA320: 3299.057861 | AB320: 3843.88623 | AC320: 4990.853027 | AD320: 8602.25293 | AE320: 12263.10156 | AF320: 9037.543945 | AG320: 0.0009601741331
P321: 4.400542193 | Q321: 2253.369697 | R321: 1371.707474 | S321: 3.737050334 | T321: 0 | U321: 2029.414185 | V321: 2033.313522 | W321: 2139.900775 | X321: 2258.1368 | Y321: 2389.051389 | Z321: 2731.713623 | AA321: 3174.359619 | AB321: 3690.602783 | AC321: 4370.898926 | AD321: 6649.376953 | AE321: 10986.46582 | AF321: 11102.1748 | AG321: 0.001371708815
P322: 4.601533141 | Q322: 2358.278247 | R322: 1840.971018 | S322: 3.813024181 | T322: 0 | U322: 1951.973145 | V322: 1955.723362 | W322: 2058.242267 | X322: 2171.971201 | Y322: 2297.880622 | Z322: 2627.474365 | AA322: 3053.230957 | AB322: 3548.266113 | AC322: 4042.220459 | AD322: 5297.628418 | AE322: 8933.209961 | AF322: 11602.43457 | AG322: 0.001840972109
P323: 4.800591484 | Q323: 2162.10995 | R323: 2294.785634 | S323: 3.79402138 | T323: 0 | U323: 1878.189209 | V323: 1881.797724 | W323: 1980.440471 | X323: 2089.868839 | Y323: 2211.0249 | Z323: 2528.156494 | AA323: 2937.822266 | AB323: 3413.901367 | AC323: 3840.690186 | AD323: 4535.520508 | AE323: 6967.770508 | AF323: 10625.3584 | AG323: 0.002294787439
P324: 5.001582432 | Q324: 1793.322035 | R324: 2693.415322 | S324: 3.643549862 | T324: 0 | U324: 1806.518555 | V324: 1809.989438 | W324: 1904.866316 | X324: 2010.118176 | Y324: 2126.651888 | Z324: 2431.687744 | AA324: 2825.717285 | AB324: 3283.593262 | AC324: 3681.623535 | AD324: 4127.905762 | AE324: 5522.803711 | AF324: 8806.321289 | AG324: 0.002693416784
P325: 5.200640774 | Q325: 1414.050845 | R325: 3011.433178 | S325: 3.315680905 | T325: 0 | U325: 1738.233398 | V325: 1741.573003 | W325: 1832.864704 | X325: 1934.133382 | Y325: 2046.263195 | Z325: 2339.770752 | AA325: 2718.905762 | AB325: 3159.476562 | AC325: 3539.792725 | AD325: 3893.272705 | AE325: 4665.458008 | AF325: 6942.251953 | AG325: 0.003011435503
P326: 5.401631722 | Q326: 1118.340949 | R326: 3263.768138 | S326: 2.801960828 | T326: 0 | U326: 1671.903564 | V326: 1675.115797 | W326: 1762.922959 | X326: 1860.329247 | Y326: 1968.174108 | Z326: 2250.485596 | AA326: 2615.153564 | AB326: 3038.916504 | AC326: 3404.213135 | AD326: 3722.262939 | AE326: 4195.526855 | AF326: 5492.254883 | AG326: 0.003263770603
P327: 5.600690064 | Q327: 933.7293009 | R327: 3466.186057 | S327: 2.192033084 | T327: 0 | U327: 1608.706055 | V327: 1611.796933 | W327: 1696.286905 | X327: 1790.010077 | Y327: 1893.775802 | Z327: 2165.418945 | AA327: 2516.301758 | AB327: 2924.050049 | AC327: 3275.450195 | AD327: 3576.242188 | AE327: 3931.150146 | AF327: 4588.461914 | AG327: 0.003466188209
P328: 5.801681012 | Q328: 829.3760344 | R328: 3642.213479 | S328: 1.642942968 | T328: 0 | U328: 1547.318726 | V328: 1550.291524 | W328: 1631.556852 | X328: 1721.705208 | Y328: 1821.513301 | Z328: 2082.785889 | AA328: 2420.284424 | AB328: 2812.470215 | AC328: 3150.456055 | AD328: 3438.664795 | AE328: 3748.415283 | AF328: 4077.904053 | AG328: 0.00364221679
P329: 6.000739355 | Q329: 771.2300528 | R329: 3800.968847 | S329: 1.234824527 | T329: 0 | U329: 1488.830933 | V329: 1491.691387 | W329: 1569.884802 | X329: 1656.626545 | Y329: 1752.660252 | Z329: 2004.052856 | AA329: 2328.799805 | AB329: 2706.158691 | AC329: 3031.373047 | AD329: 3308.480469 | AE329: 3598.310547 | AF329: 3793.191895 | AG329: 0.003800972132
P330: 6.201730302 | Q330: 732.8646843 | R330: 3951.881133 | S330: 0.9384587992 | T330: 0 | U330: 1432.018188 | V330: 1434.769434 | W330: 1509.979223 | X330: 1593.409738 | Y330: 1685.782471 | Z330: 1927.577026 | AA330: 2239.93457 | AB330: 2602.890625 | AC330: 2915.701172 | AD330: 3182.203857 | AE330: 3459.096924 | AF330: 3604.97583 | AG330: 0.003951885737
P331: 6.400788645 | Q331: 702.6813127 | R331: 4094.6562 | S331: 0.6919804451 | T331: 0 | U331: 1377.88855 | V331: 1380.536008 | W331: 1452.902127 | X331: 1533.180105 | Y331: 1622.05964 | Z331: 1854.716553 | AA331: 2155.265625 | AB331: 2504.502441 | AC331: 2805.489258 | AD331: 3061.92041 | AE331: 3327.973633 | AF331: 3456.656006 | AG331: 0.004094661213
P332: 6.601779593 | Q332: 675.2608441 | R332: 4233.073671 | S332: 0.4550881079 | T332: 0 | U332: 1325.309204 | V332: 1327.855572 | W332: 1397.461198 | X332: 1474.674786 | Y332: 1560.163179 | Z332: 1783.944458 | AA332: 2073.019531 | AB332: 2408.935791 | AC332: 2698.432129 | AD332: 2945.083252 | AE332: 3200.916016 | AF332: 3321.809814 | AG332: 0.004233078565
P333: 6.800837935 | Q333: 649.6097804 | R333: 4364.892454 | S333: 0.2094536467 | T333: 0 | U333: 1275.212036 | V333: 1277.662105 | W333: 1344.638252 | X333: 1418.93294 | Y333: 1501.190161 | Z333: 1716.507324 | AA333: 1994.656616 | AB333: 2317.880615 | AC333: 2596.428467 | AD333: 2833.760254 | AE333: 3079.921143 | AF333: 3195.633789 | AG333: 0.004364895169
P334: 7.001828883 | Q334: 624.7963885 | R334: 4492.923607 | S334: -0.05143081962 | T334: 0 | U334: 1226.550781 | V334: 1228.907365 | W334: 1293.326423 | X334: 1364.788938 | Y334: 1443.904551 | Z334: 1651.008789 | AA334: 1918.540527 | AB334: 2229.432373 | AC334: 2497.351074 | AD334: 2725.625488 | AE334: 2962.396729 | AF334: 3073.571045 | AG334: 0.004492926877
P335: 7.200887226 | Q335: 601.1772185 | R335: 4614.905699 | S335: -0.3300172494 | T335: 0 | U335: 1180.187744 | V335: 1182.455354 | W335: 1244.440102 | X335: 1313.200037 | Y335: 1389.328193 | Z335: 1588.602783 | AA335: 1846.022583 | AB335: 2145.159912 | AC335: 2402.956055 | AD335: 2622.595459 | AE335: 2850.419189 | AF335: 2957.381348 | AG335: 0.004614908714
P336: 7.401878173 | Q336: 578.2370662 | R336: 4733.394366 | S336: -0.6273236492 | T336: 0 | U336: 1135.15271 | V336: 1137.333625 | W336: 1196.9539 | X336: 1263.08833 | Y336: 1336.313199 | Z336: 1527.983154 | AA336: 1775.582764 | AB336: 2063.299316 | AC336: 2311.262207 | AD336: 2522.515137 | AE336: 2741.649902 | AF336: 2844.531494 | AG336: 0.004733397625
P337: 7.600936516 | Q337: 556.3800084 | R337: 4846.286792 | S337: -0.9443117932 | T337: 0 | U337: 1092.244385 | V337: 1094.342945 | W337: 1151.708326 | X337: 1215.347341 | Y337: 1285.799227 | Z337: 1470.226562 | AA337: 1708.456787 | AB337: 1985.30481 | AC337: 2223.897705 | AD337: 2427.170166 | AE337: 2638.014893 | AF337: 2737.009521 | AG337: 0.004846289754
P338: 7.801927464 | Q338: 535.1492325 | R338: 4955.9462 | S338: -1.281655508 | T338: 0 | U338: 1050.565186 | V338: 1052.583615 | W338: 1107.760176 | X338: 1168.96843 | Y338: 1236.737182 | Z338: 1414.124512 | AA338: 1643.266479 | AB338: 1909.546753 | AC338: 2139.035645 | AD338: 2334.553711 | AE338: 2537.344238 | AF338: 2632.568604 | AG338: 0.00495594833
P339: 8.000985806 | Q339: 514.9206861 | R339: 5060.426306 | S339: -1.640276148 | T339: 0 | U339: 1010.854065 | V339: 1012.796217 | W339: 1065.887362 | X339: 1124.781035 | Y339: 1189.989434 | Z339: 1360.671509 | AA339: 1581.154297 | AB339: 1837.369263 | AC339: 2058.177979 | AD339: 2246.308594 | AE339: 2441.439453 | AF339: 2533.058105 | AG339: 0.005060428288
P340: 8.200044149 | Q340: 495.4555944 | R340: 5160.956969 | S340: -2.019042305 | T340: 0 | U340: 972.644104 | V340: 974.5128381 | W340: 1025.597063 | X340: 1082.266572 | Y340: 1145.005815 | Z340: 1309.23877 | AA340: 1521.388672 | AB340: 1767.92041 | AC340: 1980.377441 | AD340: 2161.400146 | AE340: 2349.156982 | AF340: 2437.302979 | AG340: 0.005160958506
P341: 8.401035097 | Q341: 476.5502569 | R341: 5258.608555 | S341: -2.422472871 | T341: 0 | U341: 935.5286865 | V341: 937.3260342 | W341: 986.4599729 | X341: 1040.966709 | Y341: 1101.314722 | Z341: 1259.278687 | AA341: 1463.334717 | AB341: 1700.445435 | AC341: 1904.807983 | AD341: 2078.920654 | AE341: 2259.514893 | AF341: 2344.301758 | AG341: 0.005258609541
P342: 8.600093439 | Q342: 458.53751 | R342: 5351.648152 | S342: -2.849764928 | T342: 0 | U342: 900.1660767 | V342: 901.8955524 | W342: 949.1714675 | X342: 1001.617273 | Y342: 1059.684558 | Z342: 1211.68042 | AA342: 1408.021606 | AB342: 1636.173096 | AC342: 1832.810425 | AD342: 2000.335083 | AE342: 2174.107178 | AF342: 2255.691406 | AG342: 0.005351649132
P343: 8.801084387 | Q343: 441.0402152 | R343: 5442.023341 | S343: -3.301766408 | T343: 0 | U343: 865.8156738 | V343: 867.4791768 | W343: 912.9525676 | X343: 963.3943619 | Y343: 1019.246426 | Z343: 1165.443359 | AA343: 1354.29187 | AB343: 1573.740967 | AC343: 1762.87085 | AD343: 1924.003662 | AE343: 2091.144287 | AF343: 2169.616699 | AG343: 0.005442023743
P344: 9.000142729 | Q344: 424.3691819 | R344: 5528.130039 | S344: -3.77958797 | T344: 0 | U344: 833.0882568 | V344: 834.6888204 | W344: 878.4425101 | X344: 926.9794399 | Y344: 980.7167777 | Z344: 1121.389526 | AA344: 1303.098877 | AB344: 1514.256348 | AC344: 1696.224731 | AD344: 1851.28064 | AE344: 2012.095947 | AF344: 2087.606689 | AG344: 0.005528129172
P345: 9.201133677 | Q345: 408.1757232 | R345: 5611.770868 | S345: -4.284088204 | T345: 0 | U345: 801.2980957 | V345: 802.8376246 | W345: 844.9220739 | X345: 891.6063027 | Y345: 943.2925755 | Z345: 1078.598022 | AA345: 1253.373657 | AB345: 1456.474609 | AC345: 1631.500854 | AD345: 1780.637451 | AE345: 1935.31543 | AF345: 2007.945801 | AG345: 0.005611769855
P346: 9.40019202 | Q346: 392.7460416 | R346: 5691.461172 | S346: -4.816504002 | T346: 0 | U346: 771.0094604 | V346: 772.4908035 | W346: 812.9840804 | X346: 857.9041094 | Y346: 907.6376831 | Z346: 1037.826538 | AA346: 1205.998169 | AB346: 1401.42041 | AC346: 1569.834473 | AD346: 1713.319702 | AE346: 1862.164673 | AF346: 1932.042358 | AG346: 0.005691459402
P347: 9.601182967 | Q347: 377.7589841 | R347: 5768.869179 | S347: -5.377764623 | T347: 0 | U347: 741.5881958 | V347: 743.0129526 | W347: 781.9611885 | X347: 825.1672652 | Y347: 873.0020777 | Z347: 998.2214966 | AA347: 1159.978394 | AB347: 1347.942261 | AC347: 1509.932739 | AD347: 1647.939453 | AE347: 1791.106445 | AF347: 1858.316284 | AG347: 0.00576886721
P348: 9.80024131 | Q348: 363.4804129 | R348: 5842.621187 | S348: -5.969125982 | T348: 0 | U348: 713.5565186 | V348: 714.927413 | W348: 752.4035661 | X348: 793.9759588 | Y348: 840.0040598 | Z348: 960.4880371 | AA348: 1116.131958 | AB348: 1296.988647 | AC348: 1452.859497 | AD348: 1585.6521 | AE348: 1723.393921 | AF348: 1788.075562 | AG348: 0.005842619576
P349: 10.00123226 | Q349: 349.610433 | R349: 5914.261187 | S349: -6.591634266 | T349: 0 | U349: 686.3274536 | V349: 687.6460471 | W349: 723.6920613 | X349: 763.6786755 | Y349: 807.9495318 | Z349: 923.836853 | AA349: 1073.540771 | AB349: 1247.49646 | AC349: 1397.419434 | AD349: 1525.147949 | AE349: 1657.62561 | AF349: 1719.844604 | AG349: 0.005914259236
P400: 0.2009937891 | Q400: 9.703204996 | R400: 1.950338405 | S400: 0 | T400: 0 | U400: 741.2003784 | V400: 743.5244751 | W400: 9094.365234 | X400: 9294 | Y400: 9294 | Z400: 500.1430969 | AA400: 500 | AB400: 500 | AC400: 49.99999986 | AD400: 49.99999986 | AE400: 49.99999986 | AF400: 49.99703965 | AG400: 1.950337946e-06
P401: 0.4000549457 | Q401: 9.702803441 | R401: 3.881827089 | S401: -1.003850568e-05 | T401: 0 | U401: 713.1143188 | V401: 715.3214722 | W401: 1838.692993 | X401: 9278.681641 | Y401: 9294 | Z401: 779.8485718 | AA401: 500 | AB401: 500 | AC401: 49.99999986 | AD401: 49.99999986 | AE401: 49.99999986 | AF401: 49.99497499 | AG401: 3.88182616e-06
P402: 0.6010487348 | Q402: 9.702509767 | R402: 5.831998649 | S402: -2.428412844e-05 | T402: 0 | U402: 685.835144 | V402: 687.9578857 | W402: 734.2592773 | X402: 6319.182129 | Y402: 9293.198242 | Z402: 3916.084473 | AA402: 500.0110474 | AB402: 500 | AC402: 49.99999986 | AD402: 49.99999986 | AE402: 49.99999986 | AF402: 49.99346621 | AG402: 5.831997896e-06
P403: 0.8001098913 | Q403: 9.702308562 | R403: 7.763369468 | S403: -3.95617827e-05 | T403: 0 | U403: 659.847168 | V403: 661.8894653 | W403: 702.4456177 | X403: 1264.249023 | Y403: 8811.507812 | Z403: 7775.794434 | AA403: 504.9006348 | AB403: 500 | AC403: 49.99999986 | AD403: 49.99999986 | AE403: 49.99999986 | AF403: 49.99243389 | AG403: 7.763365829e-06
P404: 1.00110368 | Q404: 9.702151878 | R404: 9.713455697 | S404: -5.42359102e-05 | T404: 0 | U404: 634.6060181 | V404: 636.5701294 | W404: 675.5720825 | X404: 725.4291382 | Y404: 4317.560059 | Z404: 9088.476562 | AA404: 679.6796875 | AB404: 500.0013733 | AC404: 50.00066161 | AD404: 49.99999986 | AE404: 49.99999986 | AF404: 49.99163097 | AG404: 9.713475265e-06
P405: 1.200164837 | Q405: 9.70206369 | R405: 11.64476841 | S405: -6.599755469e-05 | T405: 0 | U405: 610.5592041 | V405: 612.4489136 | W405: 649.9730835 | X405: 691.9777222 | Y405: 1086.069458 | Z405: 9253.924805 | AA405: 1888.106079 | AB405: 500.0956116 | AC405: 50.00382476 | AD405: 49.99999986 | AE405: 49.99999986 | AF405: 49.99117657 | AG405: 1.164479272e-05
P406: 1.401158626 | Q406: 9.701974646 | R406: 13.59481392 | S406: -7.696019139e-05 | T406: 0 | U406: 587.203125 | V406: 589.0206299 | W406: 625.1094971 | X406: 665.4904785 | Y406: 718.539917 | Z406: 8733.009766 | AA406: 4658.481934 | AB406: 505.59021 | AC406: 50.01578915 | AD406: 49.99999986 | AE406: 49.99999986 | AF406: 49.99071775 | AG406: 1.359480757e-05
P407: 1.600219783 | Q407: 9.701910432 | R407: 15.52609202 | S407: -8.927144123e-05 | T407: 0 | U407: 564.9526978 | V407: 566.7012939 | W407: 601.4228516 | X407: 640.2701416 | Y407: 683.8273315 | Z407: 6340.592285 | AA407: 7356.439941 | AB407: 592.4897461 | AC407: 50.05089705 | AD407: 49.99999986 | AE407: 49.99999986 | AF407: 49.99039129 | AG407: 1.552607318e-05
P408: 1.801213572 | Q408: 9.701910431 | R408: 17.47611576 | S408: -9.307636048e-05 | T408: 0 | U408: 543.3413696 | V408: 545.0231323 | W408: 578.4163208 | X408: 615.7797852 | Y408: 657.6129761 | Z408: 3047.476074 | AA408: 8740.43457 | AB408: 1131.655884 | AC408: 50.13910355 | AD408: 49.99999986 | AE408: 49.99999986 | AF408: 49.99039129 | AG408: 1.747608803e-05
P409: 2.000274728 | Q409: 9.701910431 | R409: 19.40738927 | S409: -9.307637486e-05 | T409: 0 | U409: 522.7526855 | V409: 524.3706665 | W409: 556.4990845 | X409: 592.4463501 | Y409: 632.69104 | Z409: 1267.634033 | AA409: 8930.810547 | AB409: 2660.053955 | AC409: 50.32842062 | AD409: 49.99999986 | AE409: 49.99999986 | AF409: 49.99039129 | AG409: 1.940735274e-05
P410: 2.201268517 | Q410: 9.701910431 | R410: 21.35741301 | S410: -9.307639074e-05 | T410: 0 | U410: 502.7554626 | V410: 504.3115234 | W410: 535.2106934 | X410: 569.7835693 | Y410: 608.4907837 | Z410: 773.84729 | AA410: 7916.18457 | AB410: 5039.442871 | AC410: 50.69967848 | AD410: 49.99999986 | AE410: 49.99999986 | AF410: 49.99039129 | AG410: 2.135736759e-05
P411: 2.400329674 | Q411: 9.701910431 | R411: 23.28868652 | S411: -9.307640815e-05 | T411: 0 | U411: 483.7047119 | V411: 485.2018738 | W411: 514.9298706 | X411: 548.1935425 | Y411: 585.4332886 | Z411: 678.6901855 | AA411: 5654.541504 | AB411: 7205.631348 | AC411: 51.35161865 | AD411: 49.99999986 | AE411: 49.99999986 | AF411: 49.99039129 | AG411: 2.328863229e-05
P412: 2.601323463 | Q412: 9.701910431 | R412: 25.23871026 | S412: -9.307642732e-05 | T412: 0 | U412: 465.2014465 | V412: 466.6412964 | W412: 495.2321472 | X412: 527.2220459 | Y412: 563.0396118 | Z412: 646.375 | AA412: 3150.823975 | AB412: 8412.09375 | AC412: 52.43425482 | AD412: 49.99999986 | AE412: 49.99999986 | AF412: 49.99039129 | AG412: 2.523864714e-05
P413: 2.80038462 | Q413: 9.701910431 | R413: 27.16998377 | S413: -9.307644808e-05 | T413: 0 | U413: 447.573761 | V413: 448.9590149 | W413: 476.4665222 | X413: 507.2445374 | Y413: 541.7041626 | Z413: 621.4666138 | AA413: 1565.450439 | AB413: 8437.060547 | AC413: 54.08807594 | AD413: 49.99999986 | AE413: 49.99999986 | AF413: 49.99039129 | AG413: 2.716991185e-05
P414: 3.001378409 | Q414: 9.701910431 | R414: 29.12000751 | S414: -9.307647044e-05 | T414: 0 | U414: 430.4524841 | V414: 431.7848206 | W414: 458.240509 | X414: 487.8407288 | Y414: 520.9810791 | Z414: 597.6732178 | AA414: 905.0819702 | AB414: 7260.655762 | AC414: 56.52735577 | AD414: 49.99999986 | AE414: 49.99999986 | AF414: 49.99039129 | AG414: 2.911992669e-05
P415: 3.200439565 | Q415: 9.701910431 | R415: 31.05128102 | S415: -9.307649442e-05 | T415: 0 | U415: 414.1416321 | V415: 415.4233704 | W415: 440.8764648 | X415: 469.3551636 | Y415: 501.2399292 | Z415: 575.0256348 | AA415: 707.8579102 | AB415: 5236.950195 | AC415: 59.89552582 | AD415: 49.99999986 | AE415: 49.99999986 | AF415: 49.99039129 | AG415: 3.105119322e-05
P416: 3.401433354 | Q416: 9.701910431 | R416: 33.00130476 | S416: -9.307651997e-05 | T416: 0 | U416: 398.2992859 | V416: 399.5320435 | W416: 424.0108643 | X416: 451.4017334 | Y416: 482.0659485 | Z416: 553.0292358 | AA416: 648.4284668 | AB416: 3157.458984 | AC416: 64.45714825 | AD416: 49.99999986 | AE416: 49.99999986 | AF416: 49.99039129 | AG416: 3.300120807e-05
P417: 3.600494511 | Q417: 9.701910431 | R417: 34.93257827 | S417: -9.307654713e-05 | T417: 0 | U417: 383.2067261 | V417: 384.3927612 | W417: 407.9439392 | X417: 434.2960205 | Y417: 463.7998352 | Z417: 532.072937 | AA417: 619.1504517 | AB417: 1738.189087 | AC417: 70.33429335 | AD417: 49.99999986 | AE417: 49.99999986 | AF417: 49.99039129 | AG417: 3.493247277e-05
P418: 3.8014883 | Q418: 9.701910431 | R418: 36.88260201 | S418: -9.307657587e-05 | T418: 0 | U418: 368.54776 | V418: 369.688446 | W418: 392.3390808 | X418: 417.6821899 | Y418: 446.0584412 | Z418: 511.7192383 | AA418: 594.9193115 | AB418: 1024.905273 | AC418: 77.89358235 | AD418: 49.99999986 | AE418: 49.99999986 | AF418: 49.99039129 | AG418: 3.688248762e-05
P419: 4.000549457 | Q419: 9.701910431 | R419: 38.81387552 | S419: -9.307660623e-05 | T419: 0 | U419: 354.5825195 | V419: 355.6799622 | W419: 377.4721985 | X419: 401.8548279 | Y419: 429.154541 | Z419: 492.3290405 | AA419: 572.3265991 | AB419: 752.6859131 | AC419: 87.32981601 | AD419: 49.99999986 | AE419: 49.99999986 | AF419: 49.99039129 | AG419: 3.881375233e-05
P420: 4.201543246 | Q420: 9.701910431 | R420: 40.76389926 | S420: -9.307663816e-05 | T420: 0 | U420: 341.0186157 | V420: 342.0740967 | W420: 363.0327148 | X420: 386.4831543 | Y420: 412.7375793 | Z420: 473.4962463 | AA420: 550.4293823 | AB420: 658.043457 | AC420: 99.33911714 | AD420: 49.99999986 | AE420: 49.99999986 | AF420: 49.99039129 | AG420: 4.076376717e-05
... 79 more rows

Sheet probability cell2
A2: Target sheet | C2: sitecell2
A3: Number of variables | C3: 4
K5: 0.5 | L5: 0.1 | M5: 0.9 | N5: mean | O5: sd
A6: Variables | G6: Ca | I6: =C17 -> Cl at 0.2 | J6: start | K6: =PERCENTILE(P6:CR6,0.5) -> 4 | L6: =PERCENTILE(P6:CR6,0.1) -> 4 | M6: =PERCENTILE(P6:CR6,0.9) -> 4 | N6: =AVERAGE(P6:CR6) -> 4 | O6: =STDEVP(P6:CR6) -> 0 | P6: 4 | Q6: 4 | R6: 4 | S6: 4 | T6: 4 | U6: 4 | V6: 4 | W6: 4 | X6: 4 | Y6: 4 | Z6: 4 | AA6: 4 | AB6: 4 | AC6: 4 | AD6: 4 | AE6: 4 | AF6: 4 | AG6: 4 | AH6: 4 | AI6: 4 | AJ6: 4 | AK6: 4 | AL6: 4 | AM6: 4 | AN6: 4 | AO6: 4 | AP6: 4 | AQ6: 4 | AR6: 4 | AS6: 4 | AT6: 4 | AU6: 4 | AV6: 4 | AW6: 4 | AX6: 4 | AY6: 4 | AZ6: 4 | BA6: 4 | BB6: 4 | BC6: 4 | BD6: 4 | BE6: 4 | BF6: 4 | BG6: 4 | BH6: 4 | BI6: 4 | BJ6: 4 | BK6: 4 | BL6: 4 | BM6: 4 | BN6: 4 | BO6: 4 | BP6: 4 | BQ6: 4 | BR6: 4 | BS6: 4 | BT6: 4 | BU6: 4 | BV6: 4 | BW6: 4 | BX6: 4 | BY6: 4 | BZ6: 4 | CA6: 4 | CB6: 4 | CC6: 4 | CD6: 4 | CE6: 4 | CF6: 4 | CG6: 4 | CH6: 4 | CI6: 4 | CJ6: 4 | CK6: 4 | CL6: 4 | CM6: 4 | CN6: 4 | CO6: 4 | CP6: 4 | CQ6: 4 | CR6: 4
D7: 1=lin | I7: Cl at 0.2 | J7: half time | K7: =PERCENTILE(P7:CR7,0.5) -> 4.114190041 | L7: =PERCENTILE(P7:CR7,0.1) -> 4 | M7: =PERCENTILE(P7:CR7,0.9) -> 29.66357391 | N7: =AVERAGE(P7:CR7) -> 9.846061207 | O7: =STDEVP(P7:CR7) -> 13.68504043 | P7: 79.06368946 | Q7: 13.66858018 | R7: 5.328651105 | S7: 32.21973008 | T7: 4.292089013 | U7: 4.003307216 | V7: 8.249183093 | W7: 4.000326024 | X7: 4 | Y7: 49.6156925 | Z7: 9.259692917 | AA7: 4.677915631 | AB7: 11.96367659 | AC7: 4.054402562 | AD7: 4.00048427 | AE7: 4.184361438 | AF7: 4.00000345 | AG7: 4 | AH7: 37.58245655 | AI7: 7.766627263 | AJ7: 4.476567529 | AK7: 7.55988051 | AL7: 4.02136132 | AM7: 4.000206999 | AN7: 4.020653088 | AO7: 4 | AP7: 4 | AQ7: 59.56009518 | AR7: 9.431785054 | AS7: 4.579364672 | AT7: 18.15242361 | AU7: 4.074437117 | AV7: 4.000499214 | AW7: 4.931718229 | AX7: 4.000018975 | AY7: 4 | AZ7: 38.13111585 | BA7: 7.035817495 | BB7: 4.305779615 | BC7: 7.986565869 | BD7: 4.014822859 | BE7: 4.000134184 | BF7: 4.035801533 | BG7: 4 | BH7: 4 | BI7: 29.66357391 | BJ7: 6.246406286 | BK7: 4.225142185 | BL7: 5.885032816 | BM7: 4.007440385 | BN7: 4.000166935 | BO7: 4.005320917 | BP7: 4.000002957 | BQ7: 4 | BR7: 45.7474863 | BS7: 7.155504364 | BT7: 4.265232915 | BU7: 11.30773372 | BV7: 4.020910357 | BW7: 4.000163437 | BX7: 4.214075664 | BY7: 4.000002464 | BZ7: 4 | CA7: 30.07256249 | CB7: 5.811870362 | CC7: 4.146728325 | CD7: 6.093662159 | CE7: 4.005872613 | CF7: 4.00026805 | CG7: 4.008548296 | CH7: 4.000009118 | CI7: 4 | CJ7: 23.85813224 | CK7: 5.37007912 | CL7: 4.114190041 | CM7: 5.044364614 | CN7: 4.005820124 | CO7: 4.000506846 | CP7: 4.004205148 | CQ7: 4.000024396 | CR7: 4
A8: Row-inr | B8: Column | C8: V% | D8: 2=log | I8: Cl at 0.2 | J8: end | K8: =PERCENTILE(P8:CR8,0.5) -> 8.750420954 | L8: 4.001154759 | M8: 85.6835422 | N8: =AVERAGE(P8:CR8) -> 27.98491138 | O8: =STDEVP(P8:CR8) -> 37.15163245 | P8: 155.924856 | Q8: 55.88525745 | R8: 21.83168876 | S8: 140.8655037 | T8: 19.11298626 | U8: 5.41503745 | V8: 116.5498093 | W8: 5.271716114 | X8: 4.009141029 | Y8: 110.0959501 | Z8: 35.33352505 | AA8: 14.12453745 | AB8: 61.1370208 | AC8: 8.052123848 | AD8: 4.305853702 | AE8: 20.00989872 | AF8: 4.044960694 | AG8: 4.000157714 | AH8: 85.6835422 | AI8: 27.0340447 | AJ8: 11.28132526 | AK8: 32.77823771 | AL8: 5.745512864 | AM8: 4.12123278 | AN8: 6.847597195 | AO8: 4.004603758 | AP8: 4.000015263 | AQ8: 135.0775025 | AR8: 41.25261059 | AS8: 15.07612526 | AT8: 101.4713999 | AU8: 10.94219427 | AV8: 4.456149025 | AW8: 61.19048571 | AX8: 4.229967602 | AY8: 4.000815595 | AZ8: 93.40373639 | BA8: 26.72207145 | BB8: 10.41247476 | BC8: 42.03313409 | BD8: 5.861972026 | BE8: 4.101144648 | BF8: 10.34250135 | BG8: 4.007539449 | BH8: 4.000019714 | BI8: 73.68351811 | BJ8: 21.10829576 | BK8: 8.750420954 | BL8: 23.70152703 | BM8: 4.85633894 | BN8: 4.045047579 | BO8: 5.158492849 | BP8: 4.001154759 | BQ8: 4.000019714 | BR8: 115.9475887 | BS8: 31.16690952 | BT8: 11.04423469 | BU8: 72.58910845 | BV8: 7.290023211 | BW8: 4.155904013 | BX8: 31.34736145 | BY8: 4.044509978 | BZ8: 4.000090622 | CA8: 80.40902144 | CB8: 20.85787615 | CC8: 8.185831756 | CD8: 30.0512843 | CE8: 4.909781668 | CF8: 4.037978449 | CG8: 6.639875801 | CH8: 4.001715382 | CI8: 4.000031161 | CJ8: 64.12681925 | CK8: 16.81257786 | CL8: 7.129137378 | CM8: 17.71647477 | CN8: 4.438181572 | CO8: 4.021365103 | CP8: 4.499901703 | CQ8: 4.001343523 | CR8: 4.000097935
A9: 1 | B9: 5 | C9: 50 | D9: 1 | E9: alpha for mortar | I9: Cl at 0.7 | J9: half time | K9: =PERCENTILE(P9:CR9,0.5) -> 395.9319763 | L9: 350.0198975 | M9: 666.6026001 | N9: =AVERAGE(P9:CR9) -> 470.7872936 | O9: =STDEVP(P9:CR9) -> 141.4325108 | P9: 350.0198975 | Q9: 350.0198364 | R9: 350.0198364 | S9: 350.0198364 | T9: 350.0198364 | U9: 350.0198364 | V9: 350.0198364 | W9: 350.0198364 | X9: 350.0198364 | Y9: 383.5099487 | Z9: 383.3782043 | AA9: 383.3782043 | AB9: 383.3728027 | AC9: 383.3728027 | AD9: 383.3728027 | AE9: 383.0913391 | AF9: 383.0913391 | AG9: 383.0913391 | AH9: 664.973999 | AI9: 666.6026001 | AJ9: 666.6026001 | AK9: 666.6026001 | AL9: 666.6026001 | AM9: 666.6026001 | AN9: 666.6026001 | AO9: 666.6026001 | AP9: 666.6026001 | AQ9: 350.1124878 | AR9: 350.1120605 | AS9: 350.1120605 | AT9: 350.1120605 | AU9: 350.1120605 | AV9: 350.1120605 | AW9: 350.1120605 | AX9: 350.1120605 | AY9: 350.1120605 | AZ9: 396.1209106 | BA9: 395.9319763 | BB9: 395.9319763 | BC9: 395.9319763 | BD9: 395.9319763 | BE9: 395.9319763 | BF9: 395.9319763 | BG9: 395.9319763 | BH9: 395.9319763 | BI9: 662.6253052 | BJ9: 698.0217896 | BK9: 698.0217896 | BL9: 698.0217896 | BM9: 698.0217896 | BN9: 698.0217896 | BO9: 698.0217896 | BP9: 698.0217896 | BQ9: 698.0217896 | BR9: 350.3096619 | BS9: 350.304657 | BT9: 350.304657 | BU9: 350.304657 | BV9: 350.304657 | BW9: 350.304657 | BX9: 350.304657 | BY9: 350.304657 | BZ9: 350.304657 | CA9: 401.9072571 | CB9: 402.4629517 | CC9: 402.4629517 | CD9: 402.4629517 | CE9: 402.4629517 | CF9: 402.4629517 | CG9: 402.4629517 | CH9: 402.4629517 | CI9: 402.4629517 | CJ9: 647.3300781 | CK9: 644.1331787 | CL9: 644.1331787 | CM9: 644.1331787 | CN9: 644.1331787 | CO9: 644.1331787 | CP9: 644.1331787 | CQ9: 644.1331787 | CR9: 644.1331787
A10: 1 | B10: 7 | C10: 4 | D10: 2 | E10: D for mortar | I10: Cl at 0.7 | J10: end | K10: =PERCENTILE(P10:CR10,0.5) -> 353.0401611 | L10: 345.512085 | M10: 486.6514282 | N10: =AVERAGE(P10:CR10) -> 390.8076398 | O10: =STDEVP(P10:CR10) -> 57.54459259 | P10: 345.4894104 | Q10: 345.5110474 | R10: 345.5108337 | S10: 345.5124207 | T10: 345.5116272 | U10: 345.5111389 | V10: 345.5131226 | W10: 345.512085 | X10: 345.5115967 | Y10: 351.0114136 | Z10: 341.153656 | AA10: 341.153656 | AB10: 350.973877 | AC10: 350.973877 | AD10: 350.973877 | AE10: 352.4091187 | AF10: 352.4091187 | AG10: 352.4091187 | AH10: 452.5859375 | AI10: 452.3514404 | AJ10: 452.3514404 | AK10: 452.3514404 | AL10: 452.3514404 | AM10: 452.3514404 | AN10: 452.3514404 | AO10: 452.3514404 | AP10: 452.3514404 | AQ10: 349.9988708 | AR10: 349.9966736 | AS10: 349.9966736 | AT10: 349.9966736 | AU10: 349.9966736 | AV10: 349.9966736 | AW10: 349.9966736 | AX10: 349.9966736 | AY10: 349.9966736 | AZ10: 353.0619202 | BA10: 353.0401611 | BB10: 353.0401611 | BC10: 353.0401611 | BD10: 353.0401611 | BE10: 353.0401611 | BF10: 353.0401611 | BG10: 353.0401611 | BH10: 353.0401611 | BI10: 474.9266357 | BJ10: 474.677002 | BK10: 474.677002 | BL10: 474.677002 | BM10: 474.677002 | BN10: 474.677002 | BO10: 474.677002 | BP10: 474.677002 | BQ10: 474.677002 | BR10: 350.0011292 | BS10: 350.0010986 | BT10: 350.0010986 | BU10: 350.0010986 | BV10: 350.0010986 | BW10: 350.0010986 | BX10: 350.0010986 | BY10: 350.0010986 | BZ10: 350.0010986 | CA10: 355.7490234 | CB10: 355.697937 | CC10: 355.697937 | CD10: 355.697937 | CE10: 355.697937 | CF10: 355.697937 | CG10: 355.697937 | CH10: 355.697937 | CI10: 355.697937 | CJ10: 486.7183838 | CK10: 486.6514282 | CL10: 486.6514282 | CM10: 486.6514282 | CN10: 486.6514282 | CO10: 486.6514282 | CP10: 486.6514282 | CQ10: 486.6514282 | CR10: 486.6514282
A11: 2 | B11: 8 | C11: 3.165 | D11: 2 | E11: k for mortar
A12: 2 | B12: 4 | C12: 15 | D12: 1 | E12: Thickness | G12: Na | I12: =C17 -> Cl at 0.2 | J12: start | K12: =PERCENTILE(P12:CR12,0.5) -> 449.9999925 | L12: 449.9999906 | M12: 450.0059049 | N12: =AVERAGE(P12:CR12) -> 450.2879261 | O12: =STDEVP(P12:CR12) -> 3.186716825 | P12: 468.081853 | Q12: 450.0034346 | R12: 450.0000059 | S12: 449.9326075 | T12: 449.9999925 | U12: 450.0000059 | V12: 449.9999906 | W12: 449.9999925 | X12: 450.0000059 | Y12: 458.1144334 | Z12: 450.0066993 | AA12: 450.0000059 | AB12: 449.9979009 | AC12: 449.9999925 | AD12: 450.0000059 | AE12: 449.9999906 | AF12: 449.9999925 | AG12: 450.0000059 | AH12: 450.1996954 | AI12: 449.9974021 | AJ12: 450.0000059 | AK12: 450.0059049 | AL12: 449.9999925 | AM12: 450.0000059 | AN12: 449.9999906 | AO12: 449.9999925 | AP12: 450.0000059 | AQ12: 456.5506243 | AR12: 449.9922921 | AS12: 450.0000059 | AT12: 449.9873735 | AU12: 449.9999925 | AV12: 450.0000059 | AW12: 449.9999906 | AX12: 449.9999925 | AY12: 450.0000059 | AZ12: 451.6343765 | BA12: 449.9728461 | BB12: 450.0000059 | BC12: 449.9999906 | BD12: 449.9999925 | BE12: 450.0000059 | BF12: 449.9999906 | BG12: 449.9999925 | BH12: 450.0000059 | BI12: 451.827615 | BJ12: 450.0026184 | BK12: 450.0000059 | BL12: 449.9999906 | BM12: 449.9999925 | BN12: 450.0000059 | BO12: 449.9999906 | BP12: 449.9999925 | BQ12: 450.0000059 | BR12: 431.2885355 | BS12: 449.9999925 | BT12: 450.0000059 | BU12: 449.9999906 | BV12: 449.9999925 | BW12: 450.0000059 | BX12: 449.9999906 | BY12: 449.9999925 | BZ12: 450.0000059 | CA12: 456.1038217 | CB12: 449.9999925 | CC12: 450.0000059 | CD12: 449.9999906 | CE12: 449.9999925 | CF12: 450.0000059 | CG12: 449.9999906 | CH12: 449.9999925 | CI12: 450.0000059 | CJ12: 449.6221089 | CK12: 449.9999925 | CL12: 450.0000059 | CM12: 449.9999906 | CN12: 449.9999925 | CO12: 450.0000059 | CP12: 449.9999906 | CQ12: 449.9999925 | CR12: 450.0000059
I13: Cl at 0.2 | J13: half time | K13: =PERCENTILE(P13:CR13,0.5) -> 1974.185153 | L13: 887.5950862 | M13: 2153.344473 | N13: =AVERAGE(P13:CR13) -> 1728.775324 | O13: =STDEVP(P13:CR13) -> 494.1950076 | P13: 1974.185153 | Q13: 2030.363679 | R13: 2016.214284 | S13: 1975.577291 | T13: 2029.179881 | U13: 2075.156568 | V13: 1976.532089 | W13: 2030.607536 | X13: 2086.372934 | Y13: 2091.766308 | Z13: 1969.281257 | AA13: 1656.734539 | AB13: 2153.344473 | AC13: 2245.778885 | AD13: 1818.247749 | AE13: 2141.879169 | AF13: 2178.08082 | AG13: 1735.606792 | AH13: 2057.005288 | AI13: 1543.773253 | AJ13: 1194.532127 | AK13: 2118.763089 | AL13: 1375.664551 | AM13: 887.5950862 | AN13: 2189.610712 | AO13: 1318.421098 | AP13: 610.4278615 | AQ13: 1940.575127 | AR13: 2016.785912 | AS13: 1874.024263 | AT13: 2012.893429 | AU13: 2077.01299 | AV13: 2090.544936 | AW13: 2028.546976 | AX13: 2088.681492 | AY13: 2141.191751 | AZ13: 2145.822008 | BA13: 1832.234055 | BB13: 1472.869001 | BC13: 2181.006016 | BD13: 1919.592253 | BE13: 1348.014612 | BF13: 2185.680489 | BG13: 2055.358001 | BH13: 1221.069461 | BI13: 1981.571827 | BJ13: 1405.887172 | BK13: 1078.111395 | BL13: 1944.730091 | BM13: 1126.812583 | BN13: 706.7781469 | BO13: 2048.570923 | BP13: 858.4129013 | BQ13: 505.7387914 | BR13: 2188.30027 | BS13: 2063.590224 | BT13: 1897.564327 | BU13: 2084.098274 | BV13: 2130.923214 | BW13: 2012.394848 | BX13: 2064.761011 | BY13: 2134.428477 | BZ13: 2124.390004 | CA13: 2136.564063 | CB13: 1835.216545 | CC13: 1301.20152 | CD13: 2183.679893 | CE13: 1699.499909 | CF13: 1087.27143 | CG13: 2208.839152 | CH13: 1755.231393 | CI13: 841.0357496 | CJ13: 1911.679633 | CK13: 1293.914631 | CL13: 957.2977808 | CM13: 1788.391612 | CN13: 956.6058332 | CO13: 657.4682449 | CP13: 1815.892287 | CQ13: 661.6861633 | CR13: 469.6556605
A14: Output | I14: Cl at 0.2 | J14: end | K14: =PERCENTILE(P14:CR14,0.5) -> 1888.351622 | L14: 1627.666641 | M14: 2130.682135 | N14: =AVERAGE(P14:CR14) -> 1871.069667 | O14: =STDEVP(P14:CR14) -> 235.8714545 | P14: 1632.313202 | Q14: 1725.232331 | R14: 1837.637239 | S14: 1692.612941 | T14: 1729.097843 | U14: 1775.830835 | V14: 1683.535262 | W14: 1730.441468 | X14: 1778.348433 | Y14: 1982.04686 | Z14: 1981.793464 | AA14: 1955.52199 | AB14: 1812.219296 | AC14: 2033.086982 | AD14: 2056.669831 | AE14: 1986.318059 | AF14: 2040.002833 | AG14: 2091.185965 | AH14: 2018.80138 | AI14: 1932.310844 | AJ14: 1666.187158 | AK14: 2161.693199 | AL14: 1962.285635 | AM14: 1680.264895 | AN14: 2225.794782 | AO14: 2084.594976 | AP14: 1576.916676 | AQ14: 1729.293966 | AR14: 1884.653743 | AS14: 1858.702746 | AT14: 1779.885487 | AU14: 1820.821475 | AV14: 1871.433772 | AW14: 1770.572185 | AX14: 1821.296981 | AY14: 1874.805587 | AZ14: 2018.45031 | BA14: 2025.845516 | BB14: 1895.490322 | BC14: 2039.612792 | BD14: 2009.114361 | BE14: 2032.87244 | BF14: 2041.122111 | BG14: 2099.862849 | BH14: 2112.512463 | BI14: 2135.671089 | BJ14: 1752.09078 | BK14: 1557.611618 | BL14: 2206.773104 | BM14: 1797.620735 | BN14: 1468.670534 | BO14: 2317.452397 | BP14: 1871.828412 | BQ14: 1185.509364 | BR14: 1833.410954 | BS14: 1884.139345 | BT14: 1918.00364 | BU14: 1838.563457 | BV14: 1888.351622 | BW14: 1947.539526 | BX14: 1837.988433 | BY14: 1894.202906 | BZ14: 1952.835161 | CA14: 2069.012496 | CB14: 1901.993547 | CC14: 1793.197054 | CD14: 1849.1749 | CE14: 2087.425588 | CF14: 1894.173648 | CG14: 2083.576242 | CH14: 2139.788925 | CI14: 2012.850711 | CJ14: 2133.129061 | CK14: 1797.938969 | CL14: 1438.688216 | CM14: 2133.948226 | CN14: 1627.666641 | CO14: 1165.449632 | CP14: 2130.682135 | CQ14: 1590.237897 | CR14: 900.352578
I15: Cl at 0.7 | J15: half time | K15: =PERCENTILE(P15:CR15,0.5) -> 450.0008298 | L15: 450.0002788 | M15: 450.0135031 | N15: =AVERAGE(P15:CR15) -> 450.0033206 | O15: =STDEVP(P15:CR15) -> 0.004639819905 | P15: 450.001508 | Q15: 450.0003636 | R15: 450.0002788 | S15: 450.0003212 | T15: 450.0002788 | U15: 450.0002788 | V15: 450.0002788 | W15: 450.0002788 | X15: 450.0002788 | Y15: 450.0029491 | Z15: 450.0013808 | AA15: 450.0007027 | AB15: 450.0012961 | AC15: 450.0004484 | AD15: 450.000406 | AE15: 450.000406 | AF15: 450.000406 | AG15: 450.000406 | AH15: 450.0085016 | AI15: 450.0046445 | AJ15: 450.003712 | AK15: 450.0047293 | AL15: 450.0025253 | AM15: 450.0021438 | AN15: 450.0022709 | AO15: 450.0023557 | AP15: 450.0023133 | AQ15: 450.0013385 | AR15: 450.000406 | AS15: 450.0002788 | AT15: 450.0003636 | AU15: 450.0002788 | AV15: 450.0002788 | AW15: 450.0002788 | AX15: 450.0002788 | AY15: 450.0002788 | AZ15: 450.0030339 | BA15: 450.0013385 | BB15: 450.0007451 | BC15: 450.0012537 | BD15: 450.0005331 | BE15: 450.0005331 | BF15: 450.0005331 | BG15: 450.0005331 | BH15: 450.0005331 | BI15: 450.0089255 | BJ15: 450.0071453 | BK15: 450.0068062 | BL15: 450.0065943 | BM15: 450.0067214 | BN15: 450.0066366 | BO15: 450.0066366 | BP15: 450.0067638 | BQ15: 450.0067638 | BR15: 450.0012113 | BS15: 450.0004484 | BT15: 450.0002788 | BU15: 450.0003636 | BV15: 450.0002788 | BW15: 450.0002788 | BX15: 450.0002788 | BY15: 450.0002788 | BZ15: 450.0002788 | CA15: 450.0030339 | CB15: 450.0014232 | CC15: 450.0009146 | CD15: 450.0012537 | CE15: 450.0008298 | CF15: 450.0007451 | CG15: 450.0007451 | CH15: 450.0007874 | CI15: 450.0007874 | CJ15: 450.0135031 | CK15: 450.0147747 | CL15: 450.0154528 | CM15: 450.015029 | CN15: 450.0149442 | CO15: 450.0149442 | CP15: 450.015029 | CQ15: 450.0149018 | CR15: 450.0149018
A16: Row | B16: Column | I16: Cl at 0.7 | J16: end | K16: =PERCENTILE(P16:CR16,0.5) -> 450.0012537 | L16: 450.0002788 | M16: 450.0098579 | N16: =AVERAGE(P16:CR16) -> 450.5191446 | O16: =STDEVP(P16:CR16) -> 2.479557621 | P16: 466.1336078 | Q16: 452.0120229 | R16: 450.2761662 | S16: 462.3279812 | T16: 450.6751411 | U16: 450.0371542 | V16: 460.142626 | W16: 450.3281732 | X16: 450.0098579 | Y16: 450.0029067 | Z16: 450.0013808 | AA16: 450.0005755 | AB16: 450.0012961 | AC16: 450.000406 | AD16: 450.000406 | AE16: 450.000406 | AF16: 450.000406 | AG16: 450.000406 | AH16: 450.006679 | AI16: 450.0035001 | AJ16: 450.0027796 | AK16: 450.003373 | AL16: 450.0016352 | AM16: 450.0009994 | AN16: 450.0015504 | AO16: 450.0009994 | AP16: 450.0009994 | AQ16: 450.0013385 | AR16: 450.000406 | AS16: 450.0002788 | AT16: 450.0003636 | AU16: 450.0002788 | AV16: 450.0002788 | AW16: 450.0003636 | AX16: 450.0005755 | AY16: 450.0002788 | AZ16: 450.00261 | BA16: 450.0012537 | BB16: 450.0007451 | BC16: 450.0012537 | BD16: 450.0005331 | BE16: 450.0005331 | BF16: 450.0005331 | BG16: 450.0005331 | BH16: 450.0005331 | BI16: 450.0063823 | BJ16: 450.003924 | BK16: 450.0031186 | BL16: 450.0032882 | BM16: 450.0018047 | BN16: 450.0017199 | BO16: 450.0016775 | BP16: 450.0016775 | BQ16: 450.0016775 | BR16: 450.0012113 | BS16: 450.000406 | BT16: 450.0002788 | BU16: 450.0003636 | BV16: 450.0002788 | BW16: 450.0002788 | BX16: 450.0002788 | BY16: 450.0002788 | BZ16: 450.0002788 | CA16: 450.0026948 | CB16: 450.0012537 | CC16: 450.0007451 | CD16: 450.0012113 | CE16: 450.0007451 | CF16: 450.0007451 | CG16: 450.0007451 | CH16: 450.0007874 | CI16: 450.0007874 | CJ16: 450.0060432 | CK16: 450.003712 | CL16: 450.003161 | CM16: 450.0036273 | CN16: 450.0018895 | CO16: 450.0018895 | CP16: 450.0018471 | CQ16: 450.0018895 | CR16: 450.0018895
A17: 9900 | B17: 24 | C17: Cl at 0.2 | D17: start
A18: 9925 | B18: 24 | C18: Cl at 0.2 | D18: half time | G18: K | I18: =C17 -> Cl at 0.2 | J18: start | K18: =PERCENTILE(P18:CR18,0.5) -> 15193 | L18: =PERCENTILE(P18:CR18,0.1) -> 15192.99967 | M18: =PERCENTILE(P18:CR18,0.9) -> 15193.00029 | N18: =AVERAGE(P18:CR18) -> 15194.0049 | O18: =STDEVP(P18:CR18) -> 12.0550465 | P18: 15195.60291 | Q18: 15193.00029 | R18: 15192.99967 | S18: 15193 | T18: 15193.00029 | U18: 15192.99967 | V18: 15193 | W18: 15193.00029 | X18: 15192.99967 | Y18: 15192.82715 | Z18: 15193.00029 | AA18: 15192.99967 | AB18: 15193 | AC18: 15193.00029 | AD18: 15192.99967 | AE18: 15193 | AF18: 15193.00029 | AG18: 15192.99967 | AH18: 15191.41782 | AI18: 15193.00029 | AJ18: 15192.99967 | AK18: 15193 | AL18: 15193.00029 | AM18: 15192.99967 | AN18: 15193 | AO18: 15193.00029 | AP18: 15192.99967 | AQ18: 15206.89646 | AR18: 15193.00029 | AS18: 15192.99967 | AT18: 15193 | AU18: 15193.00029 | AV18: 15192.99967 | AW18: 15193 | AX18: 15193.00029 | AY18: 15192.99967 | AZ18: 15127.89079 | BA18: 15193.00029 | BB18: 15192.99967 | BC18: 15193 | BD18: 15193.00029 | BE18: 15192.99967 | BF18: 15193 | BG18: 15193.00029 | BH18: 15192.99967 | BI18: 15247.18787 | BJ18: 15193.00029 | BK18: 15192.99967 | BL18: 15193 | BM18: 15193.00029 | BN18: 15192.99967 | BO18: 15193 | BP18: 15193.00029 | BQ18: 15192.99967 | BR18: 15178.38437 | BS18: 15193.00029 | BT18: 15192.99967 | BU18: 15193 | BV18: 15193.00029 | BW18: 15192.99967 | BX18: 15193 | BY18: 15193.00029 | BZ18: 15192.99967 | CA18: 15241.53794 | CB18: 15193.00029 | CC18: 15192.99967 | CD18: 15193 | CE18: 15193.00029 | CF18: 15192.99967 | CG18: 15193 | CH18: 15193.00029 | CI18: 15192.99967 | CJ18: 15236.6526 | CK18: 15193.00029 | CL18: 15192.99967 | CM18: 15193 | CN18: 15193.00029 | CO18: 15192.99967 | CP18: 15193 | CQ18: 15193.00029 | CR18: 15192.99967
A19: 9949 | B19: 24 | C19: Cl at 0.2 | D19: end | I19: Cl at 0.2 | J19: half time | K19: =PERCENTILE(P19:CR19,0.5) -> 10727.34365 | L19: =PERCENTILE(P19:CR19,0.1) -> 4469.306339 | M19: =PERCENTILE(P19:CR19,0.9) -> 15121.44175 | N19: =AVERAGE(P19:CR19) -> 10222.0293 | O19: =STDEVP(P19:CR19) -> 3965.361247 | P19: 4196.589093 | Q19: 5281.660977 | R19: 7960.44554 | S19: 4183.744899 | T19: 4735.907046 | U19: 7798.697347 | V19: 4168.300323 | W19: 4469.306339 | X19: 7509.182844 | Y19: 5478.349788 | Z19: 9460.692634 | AA19: 12260.88299 | AB19: 4933.899784 | AC19: 9841.454914 | AD19: 13890.15107 | AE19: 4602.09753 | AF19: 11273.57131 | AG19: 14885.80814 | AH19: 8374.973623 | AI19: 12242.84477 | AJ19: 13847.02115 | AK19: 9153.255464 | AL19: 14059.05568 | AM19: 15013.64332 | AN19: 9765.333053 | AO19: 15034.55984 | AP19: 15190.32713 | AQ19: 4388.026889 | AR19: 6193.316689 | AS19: 9731.73276 | AT19: 4310.104707 | AU19: 5818.825416 | AV19: 10527.19672 | AW19: 4288.685941 | AX19: 5194.505046 | AY19: 11328.80651 | AZ19: 6317.138761 | BA19: 10277.30838 | BB19: 13176.05901 | BC19: 5818.329807 | BD19: 11892.60064 | BE19: 14658.49986 | BF19: 5123.96074 | BG19: 13744.17673 | BH19: 15145.31441 | BI19: 8749.417845 | BJ19: 12929.93256 | BK19: 14265.82652 | BL19: 10727.34365 | BM19: 14603.17359 | BN19: 15121.44175 | BO19: 12152.62907 | BP19: 15157.87243 | BQ19: 15192.69344 | BR19: 4608.874798 | BS19: 7241.628127 | BT19: 11178.99538 | BU19: 4424.455257 | BV19: 7534.649675 | BW19: 12589.30395 | BX19: 4382.750423 | BY19: 7108.377312 | BZ19: 13759.9994 | CA19: 7162.376328 | CB19: 11771.22528 | CC19: 13862.90842 | CD19: 7088.156946 | CE19: 13536.89453 | CF19: 14968.9632 | CG19: 6478.139097 | CH19: 14725.27569 | CI19: 15185.5901 | CJ19: 10020.33636 | CK19: 13435.02885 | CL19: 14605.45926 | CM19: 11876.79936 | CN19: 14874.43539 | CO19: 15162.19217 | CP19: 13577.62303 | CQ19: 15184.31456 | CR19: 15192.94399
A20: 9925 | B20: 29 | C20: Cl at 0.7 | D20: half time | I20: Cl at 0.2 | J20: end | K20: =PERCENTILE(P20:CR20,0.5) -> 5916.655402 | L20: =PERCENTILE(P20:CR20,0.1) -> 3902.127649 | M20: =PERCENTILE(P20:CR20,0.9) -> 13108.37949 | N20: =AVERAGE(P20:CR20) -> 7277.560513 | O20: =STDEVP(P20:CR20) -> 3569.38817 | P20: 3585.229417 | Q20: 3902.127649 | R20: 4461.980516 | S20: 3562.735359 | T20: 3791.954936 | U20: 4081.983069 | V20: 3551.679321 | W20: 3765.393572 | X20: 3993.543727 | Y20: 4335.823692 | Z20: 6457.477409 | AA20: 8120.619365 | AB20: 4212.802996 | AC20: 5253.974295 | AD20: 8222.565745 | AE20: 4197.77163 | AF20: 4690.806324 | AG20: 8130.85459 | AH20: 5322.426568 | AI20: 8414.607418 | AJ20: 11275.25602 | AK20: 5576.997111 | AL20: 10447.38809 | AM20: 13108.37949 | AN20: 4965.359228 | AO20: 11384.33393 | AP20: 14543.96 | AQ20: 4184.903463 | AR20: 4248.334663 | AS20: 5285.563325 | AT20: 3750.679483 | AU20: 4017.605879 | AV20: 4626.732023 | AW20: 3739.326313 | AX20: 3979.94151 | AY20: 4303.375564 | AZ20: 4596.911907 | BA20: 7006.698989 | BB20: 9430.977165 | BC20: 4380.787835 | BD20: 6582.075426 | BE20: 10382.66475 | BF20: 4325.841053 | BG20: 5916.655402 | BH20: 11345.67035 | BI20: 6478.218584 | BJ20: 10029.24107 | BK20: 12099.41465 | BL20: 6598.124437 | BM20: 11699.38434 | BN20: 13969.9552 | BO20: 6038.133968 | BP20: 13321.6613 | BQ20: 14997.91429 | BR20: 3948.293974 | BS20: 4528.424139 | BT20: 6291.52888 | BU20: 3918.57411 | BV20: 4247.458596 | BW20: 5618.501158 | BX20: 3889.648808 | BY20: 4155.784928 | BZ20: 4987.116169 | CA20: 4832.009554 | CB20: 7920.918178 | CC20: 10596.18467 | CD20: 4587.668945 | CE20: 8141.423715 | CF20: 12023.66769 | CG20: 4429.893221 | CH20: 8041.347636 | CI20: 13440.25688 | CJ20: 6990.524036 | CK20: 11520.33388 | CL20: 12802.89347 | CM20: 7666.560792 | CN20: 12719.99774 | CO20: 14456.90894 | CP20: 7594.686295 | CQ20: 14304.32162 | CR20: 15132.64914
A21: 9949 | B21: 29 | C21: Cl at 0.7 | D21: end | I21: Cl at 0.7 | J21: half time | K21: =PERCENTILE(P21:CR21,0.5) -> 359.7961194 | L21: =PERCENTILE(P21:CR21,0.1) -> 300.0026086 | M21: =PERCENTILE(P21:CR21,0.9) -> 1620.711174 | N21: =AVERAGE(P21:CR21) -> 671.2649923 | O21: =STDEVP(P21:CR21) -> 504.7842535 | P21: 300.0041943 | Q21: 300.0029676 | R21: 300.0029377 | S21: 300.0029377 | T21: 300.0029377 | U21: 300.0029377 | V21: 300.0029377 | W21: 300.0029377 | X21: 300.0029377 | Y21: 401.4572817 | Z21: 397.0797744 | AA21: 393.8532585 | AB21: 395.7489985 | AC21: 391.5009815 | AD21: 390.0185153 | AE21: 390.948733 | AF21: 390.0184255 | AG21: 390.5368953 | AH21: 1620.711174 | AI21: 1621.43462 | AJ21: 1623.72655 | AK21: 1621.981303 | AL21: 1626.561812 | AM21: 1627.444668 | AN21: 1624.058054 | AO21: 1626.520644 | AP21: 1623.395284 | AQ21: 300.0042541 | AR21: 300.0028479 | AS21: 300.0026385 | AT21: 300.0027582 | AU21: 300.0026086 | AV21: 300.0026086 | AW21: 300.0026086 | AX21: 300.0026684 | AY21: 300.0026684 | AZ21: 365.9974111 | BA21: 363.5010432 | BB21: 361.5069289 | BC21: 363.503706 | BD21: 359.7961194 | BE21: 358.6893785 | BF21: 358.759898 | BG21: 358.6893785 | BH21: 357.2824283 | BI21: 1415.806217 | BJ21: 1416.844413 | BK21: 1416.677464 | BL21: 1417.034699 | BM21: 1416.132815 | BN21: 1417.818462 | BO21: 1419.475866 | BP21: 1417.818462 | BQ21: 1413.143289 | BR21: 300.0031471 | BS21: 300.0022795 | BT21: 300.0021598 | BU21: 300.0023094 | BV21: 300.0021299 | BW21: 300.0021299 | BX21: 300.0021 | BY21: 300.0021299 | BZ21: 300.0021299 | CA21: 327.006507 | CB21: 325.6674136 | CC21: 324.6539906 | CD21: 325.1313813 | CE21: 324.3939329 | CF21: 324.0493536 | CG21: 324.3939329 | CH21: 324.0493536 | CI21: 323.4901339 | CJ21: 1024.969861 | CK21: 1022.203173 | CL21: 1022.783725 | CM21: 1022.405546 | CN21: 1023.48515 | CO21: 1021.490617 | CP21: 1023.48515 | CQ21: 1016.62815 | CR21: 1016.62815
I22: Cl at 0.7 | J22: end | K22: =PERCENTILE(P22:CR22,0.5) -> 300.0097892 | L22: =PERCENTILE(P22:CR22,0.1) -> 300.0023692 | M22: =PERCENTILE(P22:CR22,0.9) -> 477.1397399 | N22: =AVERAGE(P22:CR22) -> 343.5062477 | O22: =STDEVP(P22:CR22) -> 62.67707348 | P22: 333.223207 | Q22: 330.672087 | R22: 328.5577275 | S22: 329.9291934 | T22: 328.213178 | U22: 328.2177257 | V22: 328.185772 | W22: 328.3169677 | X22: 328.3212162 | Y22: 300.0090113 | Z22: 300.0049423 | AA22: 300.0040148 | AB22: 300.0044337 | AC22: 300.0038353 | AD22: 300.0037156 | AE22: 300.0038053 | AF22: 300.0037156 | AG22: 300.0037455 | AH22: 487.0885603 | AI22: 484.8997319 | AJ22: 482.9227912 | AK22: 483.8289538 | AL22: 479.9047822 | AM22: 478.7293767 | AN22: 478.4040054 | AO22: 478.1199825 | AP22: 477.1397399 | AQ22: 300.0047029 | AR22: 300.0034463 | AS22: 300.0043738 | AT22: 300.0033566 | AU22: 300.0044037 | AV22: 300.0044037 | AW22: 300.0044037 | AX22: 300.0041345 | AY22: 300.0041345 | AZ22: 300.0134094 | BA22: 300.0102679 | BB22: 300.0084727 | BC22: 300.0094002 | BD22: 300.0074854 | BE22: 300.0073059 | BF22: 300.0073657 | BG22: 300.0073059 | BH22: 300.0072161 | BI22: 428.1361679 | BJ22: 426.777238 | BK22: 424.1912323 | BL22: 425.9475488 | BM22: 423.4002884 | BN22: 422.7055947 | BO22: 423.0971172 | BP22: 422.7055947 | BQ22: 422.0753169 | BR22: 300.0023692 | BS22: 300.0015913 | BT22: 300.0015913 | BU22: 300.0015913 | BV22: 300.0015913 | BW22: 300.0015913 | BX22: 300.0015913 | BY22: 300.0015913 | BZ22: 300.0015913 | CA22: 300.0129307 | CB22: 300.0103277 | CC22: 300.0095498 | CD22: 300.0097892 | CE22: 300.0087719 | CF22: 300.0086822 | CG22: 300.0087719 | CH22: 300.0086822 | CI22: 300.0086223 | CJ22: 358.3621223 | CK22: 357.3914838 | CL22: 357.2534067 | CM22: 357.0994126 | CN22: 356.2052176 | CO22: 356.0261213 | CP22: 356.2052176 | CQ22: 355.7469752 | CR22: 355.7469752
A24: Linked data for graph | I24: =C17 -> Cl at 0.2 | J24: start | K24: =PERCENTILE(P24:CR24,0.5) -> 2000.000053 | L24: =PERCENTILE(P24:CR24,0.1) -> 2000 | M24: =PERCENTILE(P24:CR24,0.9) -> 2000.000062 | N24: =AVERAGE(P24:CR24) -> 2000.000038 | O24: =STDEVP(P24:CR24) -> 2.721463195e-05 | P24: 2000.000053 | Q24: 2000 | R24: 2000.000062 | S24: 2000.000053 | T24: 2000 | U24: 2000.000062 | V24: 2000.000053 | W24: 2000 | X24: 2000.000062 | Y24: 2000.000053 | Z24: 2000 | AA24: 2000.000062 | AB24: 2000.000053 | AC24: 2000 | AD24: 2000.000062 | AE24: 2000.000053 | AF24: 2000 | AG24: 2000.000062 | AH24: 2000.000053 | AI24: 2000 | AJ24: 2000.000062 | AK24: 2000.000053 | AL24: 2000 | AM24: 2000.000062 | AN24: 2000.000053 | AO24: 2000 | AP24: 2000.000062 | AQ24: 2000.000053 | AR24: 2000 | AS24: 2000.000062 | AT24: 2000.000053 | AU24: 2000 | AV24: 2000.000062 | AW24: 2000.000053 | AX24: 2000 | AY24: 2000.000062 | AZ24: 2000.000053 | BA24: 2000 | BB24: 2000.000062 | BC24: 2000.000053 | BD24: 2000 | BE24: 2000.000062 | BF24: 2000.000053 | BG24: 2000 | BH24: 2000.000062 | BI24: 2000.000053 | BJ24: 2000 | BK24: 2000.000062 | BL24: 2000.000053 | BM24: 2000 | BN24: 2000.000062 | BO24: 2000.000053 | BP24: 2000 | BQ24: 2000.000062 | BR24: 2000.000053 | BS24: 2000 | BT24: 2000.000062 | BU24: 2000.000053 | BV24: 2000 | BW24: 2000.000062 | BX24: 2000.000053 | BY24: 2000 | BZ24: 2000.000062 | CA24: 2000.000053 | CB24: 2000 | CC24: 2000.000062 | CD24: 2000.000053 | CE24: 2000 | CF24: 2000.000062 | CG24: 2000.000053 | CH24: 2000 | CI24: 2000.000062 | CJ24: 2000.000053 | CK24: 2000 | CL24: 2000.000062 | CM24: 2000.000053 | CN24: 2000 | CO24: 2000.000062 | CP24: 2000.000053 | CQ24: 2000 | CR24: 2000.000062
I25: Cl at 0.2 | J25: half time | K25: =PERCENTILE(P25:CR25,0.5) -> 1990.779579 | L25: =PERCENTILE(P25:CR25,0.1) -> 717.8787083 | M25: =PERCENTILE(P25:CR25,0.9) -> 2000.000062 | N25: =AVERAGE(P25:CR25) -> 1589.651912 | O25: =STDEVP(P25:CR25) -> 539.9802338 | P25: 682.5769224 | Q25: 734.8574219 | R25: 1475.684584 | S25: 682.4222322 | T25: 731.5905151 | U25: 1494.149177 | V25: 682.3736075 | W25: 730.7425537 | X25: 1500.742549 | Y25: 745.0510858 | Z25: 1919.00769 | AA25: 1999.89768 | AB25: 743.9270895 | AC25: 1948.308838 | AD25: 1999.978168 | AE25: 743.7436449 | AF25: 1956.888062 | AG25: 1999.987303 | AH25: 1778.123962 | AI25: 1999.997437 | AJ25: 2000.000062 | AK25: 1857.102507 | AL25: 2000 | AM25: 2000.000062 | AN25: 1886.329803 | AO25: 2000 | AP25: 2000.000062 | AQ25: 702.4188418 | AR25: 907.3546753 | AS25: 1907.583382 | AT25: 702.2379743 | AU25: 889.6004639 | AV25: 1926.76244 | AW25: 702.1804657 | AX25: 883.5635986 | AY25: 1932.628273 | AZ25: 807.51311 | BA25: 1995.193115 | BB25: 1999.998014 | BC25: 784.3955693 | BD25: 1998.352539 | BE25: 2000.000062 | BF25: 777.2629329 | BG25: 1998.920166 | BH25: 2000.000062 | BI25: 1969.762422 | BJ25: 2000 | BK25: 2000.000062 | BL25: 1991.628199 | BM25: 2000 | BN25: 2000.000062 | BO25: 1995.600774 | BP25: 2000 | BQ25: 2000.000062 | BR25: 717.8787083 | BS25: 1377.095093 | BT25: 1990.779579 | BU25: 717.6713922 | BV25: 1391.121826 | BW25: 1994.429245 | BX25: 717.6036431 | BY25: 1396.404175 | BZ25: 1995.340126 | CA25: 1114.908545 | CB25: 1999.771118 | CC25: 2000.000062 | CD25: 1096.571481 | CE25: 1999.957275 | CF25: 2000.000062 | CG25: 1089.484824 | CH25: 1999.977173 | CI25: 2000.000062 | CJ25: 1996.834363 | CK25: 2000 | CL25: 2000.000062 | CM25: 1999.654051 | CN25: 2000 | CO25: 2000.000062 | CP25: 1999.881645 | CQ25: 2000 | CR25: 2000.000062
A26: Time | B26: Limits | C26: Time | D26: Limits | I26: Cl at 0.2 | J26: end | K26: =PERCENTILE(P26:CR26,0.5) -> 843.937463 | L26: =PERCENTILE(P26:CR26,0.1) -> 620.6576538 | M26: =PERCENTILE(P26:CR26,0.9) -> 1999.982893 | N26: =AVERAGE(P26:CR26) -> 1178.592985 | O26: =STDEVP(P26:CR26) -> 580.1800341 | P26: 581.4665546 | Q26: 620.6576538 | R26: 662.595629 | S26: 581.3202058 | T26: 620.3158569 | U26: 662.0051237 | V26: 581.2733444 | W26: 620.206604 | X26: 661.822727 | Y26: 686.3136982 | Z26: 751.0178223 | AA26: 1535.461552 | AB26: 686.0226283 | AC26: 740.4576416 | AD26: 1573.658378 | AE26: 685.9265318 | AF26: 737.7133179 | AG26: 1588.619316 | AH26: 762.5793659 | AI26: 1930.406616 | AJ26: 1999.795298 | AK26: 751.2765363 | AL26: 1969.845459 | AM26: 1999.982893 | AN26: 749.2895028 | AO26: 1979.95752 | AP26: 1999.991083 | AQ26: 612.3439019 | AR26: 656.3487549 | AS26: 711.927394 | AT26: 612.1706298 | AU26: 655.9425659 | AV26: 707.6006707 | AW26: 612.1146131 | AX26: 655.8123169 | AY26: 706.4365137 | AZ26: 706.8048961 | BA26: 1003.051575 | BB26: 1918.878902 | BC26: 706.4597762 | BD26: 976.1883545 | BE26: 1948.814639 | BF26: 706.3463186 | BG26: 965.9653931 | BH26: 1957.57409 | BI26: 934.1194909 | BJ26: 1993.944824 | BK26: 1999.994391 | BL26: 883.1402144 | BM26: 1998.9823 | BN26: 2000.000062 | BO26: 861.6632308 | BP26: 1999.563599 | BQ26: 2000.000062 | BR26: 636.8701341 | BS26: 685.3235474 | BT26: 861.7372052 | BU26: 636.6689215 | BV26: 684.8287354 | BW26: 843.937463 | BX26: 636.6035461 | BY26: 684.673584 | BZ26: 837.9493233 | CA26: 722.8102812 | CB26: 1495.042603 | CC26: 1991.191468 | CD26: 722.4005996 | CE26: 1534.127808 | CF26: 1996.583195 | CG26: 722.2671361 | CH26: 1550.20813 | CI26: 1997.659304 | CJ26: 1318.654278 | CK26: 1999.538696 | CL26: 2000.000062 | CM26: 1341.02936 | CN26: 1999.969116 | CO26: 2000.000062 | CP26: 1353.799 | CQ26: 1999.989868 | CR26: 2000.000062
A27: 2 | B27: =L7 -> 4 | C27: 4 | D27: =L8 -> 4.001154759 | I27: Cl at 0.7 | J27: half time | K27: =PERCENTILE(P27:CR27,0.5) -> 501.3519287 | L27: =PERCENTILE(P27:CR27,0.1) -> 500.0013428 | M27: =PERCENTILE(P27:CR27,0.9) -> 544.3468628 | N27: =AVERAGE(P27:CR27) -> 512.0670607 | O27: =STDEVP(P27:CR27) -> 16.90236659 | P27: 500.0027161 | Q27: 500.0027161 | R27: 500.0027161 | S27: 500.0027161 | T27: 500.0027161 | U27: 500.0027161 | V27: 500.0027161 | W27: 500.0027161 | X27: 500.0027161 | Y27: 502.2286072 | Z27: 502.2286072 | AA27: 502.2286072 | AB27: 502.2286072 | AC27: 502.2286072 | AD27: 502.2286072 | AE27: 502.2286072 | AF27: 502.2286072 | AG27: 502.2286072 | AH27: 544.3468628 | AI27: 544.3468628 | AJ27: 544.3468628 | AK27: 544.3468628 | AL27: 544.3468628 | AM27: 544.3468628 | AN27: 544.3468628 | AO27: 544.3468628 | AP27: 544.3468628 | AQ27: 500.0019531 | AR27: 500.0019531 | AS27: 500.0019531 | AT27: 500.0019531 | AU27: 500.0019531 | AV27: 500.0019531 | AW27: 500.0019531 | AX27: 500.0019531 | AY27: 500.0019531 | AZ27: 501.3519287 | BA27: 501.3519287 | BB27: 501.3519287 | BC27: 501.3519287 | BD27: 501.3519287 | BE27: 501.3519287 | BF27: 501.3519287 | BG27: 501.3519287 | BH27: 501.3519287 | BI27: 537.0681763 | BJ27: 537.0681763 | BK27: 537.0681763 | BL27: 537.0681763 | BM27: 537.0681763 | BN27: 537.0681763 | BO27: 537.0681763 | BP27: 537.0681763 | BQ27: 537.0681763 | BR27: 500.0013428 | BS27: 500.0013428 | BT27: 500.0013428 | BU27: 500.0013428 | BV27: 500.0013428 | BW27: 500.0013428 | BX27: 500.0013428 | BY27: 500.0013428 | BZ27: 500.0013428 | CA27: 500.4934387 | CB27: 500.4934387 | CC27: 500.4934387 | CD27: 500.4934387 | CE27: 500.4934387 | CF27: 500.4934387 | CG27: 500.4934387 | CH27: 500.4934387 | CI27: 500.4934387 | CJ27: 523.1085205 | CK27: 523.1085205 | CL27: 523.1085205 | CM27: 523.1085205 | CN27: 523.1085205 | CO27: 523.1085205 | CP27: 523.1085205 | CQ27: 523.1085205 | CR27: 523.1085205
A28: =A27 -> 2 | B28: =M7 -> 29.66357391 | C28: =C27 -> 4 | D28: =M8 -> 85.6835422 | I28: Cl at 0.7 | J28: end | K28: =PERCENTILE(P28:CR28,0.5) -> 500.0033264 | L28: =PERCENTILE(P28:CR28,0.1) -> 500.0013428 | M28: =PERCENTILE(P28:CR28,0.9) -> 504.4314575 | N28: =AVERAGE(P28:CR28) -> 501.274035 | O28: =STDEVP(P28:CR28) -> 1.625664546 | P28: 503.0443115 | Q28: 503.045105 | R28: 503.0455322 | S28: 503.044281 | T28: 503.0450134 | U28: 503.0453491 | V28: 503.0442505 | W28: 503.0447998 | X28: 503.045166 | Y28: 500.0027161 | Z28: 500.0027161 | AA28: 500.0027161 | AB28: 500.0027161 | AC28: 500.0027161 | AD28: 500.0027161 | AE28: 500.0027161 | AF28: 500.0027161 | AG28: 500.0027161 | AH28: 504.4314575 | AI28: 504.4314575 | AJ28: 504.4314575 | AK28: 504.4314575 | AL28: 504.4314575 | AM28: 504.4314575 | AN28: 504.4314575 | AO28: 504.4314575 | AP28: 504.4314575 | AQ28: 500.0033264 | AR28: 500.0033264 | AS28: 500.0033264 | AT28: 500.0033264 | AU28: 500.0033264 | AV28: 500.0033264 | AW28: 500.0033264 | AX28: 500.0033264 | AY28: 500.0033264 | AZ28: 500.0019836 | BA28: 500.0019836 | BB28: 500.0019836 | BC28: 500.0019836 | BD28: 500.0019836 | BE28: 500.0019836 | BF28: 500.0019836 | BG28: 500.0019836 | BH28: 500.0019836 | BI28: 502.8751831 | BJ28: 502.8751831 | BK28: 502.8751831 | BL28: 502.8751831 | BM28: 502.8751831 | BN28: 502.8751831 | BO28: 502.8751831 | BP28: 502.8751831 | BQ28: 502.8751831 | BR28: 500.0013428 | BS28: 500.0013428 | BT28: 500.0013428 | BU28: 500.0013428 | BV28: 500.0013428 | BW28: 500.0013428 | BX28: 500.0013428 | BY28: 500.0013428 | BZ28: 500.0013428 | CA28: 500.0018921 | CB28: 500.0018921 | CC28: 500.0018921 | CD28: 500.0018921 | CE28: 500.0018921 | CF28: 500.0018921 | CG28: 500.0018921 | CH28: 500.0018921 | CI28: 500.0018921 | CJ28: 501.1035461 | CK28: 501.1035461 | CL28: 501.1035461 | CM28: 501.1035461 | CN28: 501.1035461 | CO28: 501.1035461 | CP28: 501.1035461 | CQ28: 501.1035461 | CR28: 501.1035461
A29: =A28 -> 2 | B29: =L9 -> 350.0198975 | C29: =C28 -> 4 | D29: =L10 -> 345.512085
A30: =A29 -> 2 | B30: =M9 -> 666.6026001 | C30: =C29 -> 4 | D30: =M10 -> 486.6514282
A33: =A27 -> 2 | B33: =L13 -> 887.5950862 | C33: =C27 -> 4 | D33: =L14 -> 1627.666641
A34: =A33 -> 2 | B34: =M13 -> 2153.344473 | C34: =C33 -> 4 | D34: =M14 -> 2130.682135
A35: =A34 -> 2 | B35: =L15 -> 450.0002788 | C35: =C34 -> 4 | D35: =L16 -> 450.0002788
A36: =A35 -> 2 | B36: =M15 -> 450.0135031 | C36: =C35 -> 4 | D36: =M16 -> 450.0098579
A39: =A27 -> 2 | B39: =L19 -> 4469.306339 | C39: =C27 -> 4 | D39: =L20 -> 3902.127649
A40: =A39 -> 2 | B40: =M19 -> 15121.44175 | C40: =C39 -> 4 | D40: =M20 -> 13108.37949
A41: =A40 -> 2 | B41: =L21 -> 300.0026086 | C41: =C40 -> 4 | D41: =L22 -> 300.0023692
A42: =A41 -> 2 | B42: =M21 -> 1620.711174 | C42: =C41 -> 4 | D42: =M22 -> 477.1397399
A45: =A27 -> 2 | B45: =L25 -> 717.8787083 | C45: =C27 -> 4 | D45: =L26 -> 620.6576538
A46: =A45 -> 2 | B46: =M25 -> 2000.000062 | C46: =C45 -> 4 | D46: =M26 -> 1999.982893
A47: =A46 -> 2 | B47: =L27 -> 500.0013428 | C47: =C46 -> 4 | D47: =L28 -> 500.0013428
A48: =A47 -> 2 | B48: =M27 -> 544.3468628 | C48: =C47 -> 4 | D48: =M28 -> 504.4314575
Q9926: 51.36989258 | R9926: 0.04155007765 | S9926: 3.391663803 | T9926: -29.85977111 | U9926: 2326 | V9926: 344 | W9926: 4126.071289 | X9926: 3051.944824 | Y9926: 1890.832764 | Z9926: 968.5114746 | AA9926: 416.4273376 | AB9926: 164.7316284 | AC9926: 76.43395996 | AD9926: 50.86256027 | AE9926: 40.0174408 | AF9926: 25.53608704 | AG9926: 0.03162065521 | AH9926: 3.391606015e-06
Q9927: 53.27247087 | R9927: 0.04100852671 | S9927: 3.470351784 | T9927: -30.63635351 | U9927: 2321 | V9927: 344 | W9927: 4126.681641 | X9927: 3080.833008 | Y9927: 1942.246826 | Z9927: 1018.733215 | AA9927: 450.1224976 | AB9927: 181.0517731 | AC9927: 82.20215607 | AD9927: 52.26218414 | AE9927: 40.09620667 | AF9927: 25.35439682 | AG9927: 0.03141298518 | AH9927: 3.470328238e-06
Q9928: 55.1750994 | R9928: 0.04083611399 | S9928: 3.548362112 | T9928: -31.36747944 | U9928: 2309 | V9928: 344 | W9928: 4126.120605 | X9928: 3110.550537 | Y9928: 1990.831787 | Z9928: 1067.616211 | AA9928: 484.0698242 | AB9928: 198.2345581 | AC9928: 88.68036652 | AD9928: 54.00326538 | AE9928: 40.26563644 | AF9928: 25.21179962 | AG9928: 0.03107975796 | AH9928: 3.548359928e-06
Q9929: 57.07767664 | R9929: 0.04054122229 | S9929: 3.625768369 | T9929: -32.04049901 | U9929: 2320 | V9929: 344 | W9929: 4126.147461 | X9929: 3137.662842 | Y9929: 2038.02002 | Z9929: 1115.958374 | AA9929: 518.5946655 | AB9929: 216.3639069 | AC9929: 95.80236053 | AD9929: 56.0283165 | AE9929: 40.54398727 | AF9929: 25.09752274 | AG9929: 0.03085663728 | AH9929: 3.625781346e-06
Q9930: 58.98023855 | R9930: 0.04029439252 | S9930: 3.702656344 | T9930: -32.64049805 | U9930: 2309 | V9930: 344 | W9930: 4126.109375 | X9930: 3163.468506 | Y9930: 2083.403076 | Z9930: 1163.387085 | AA9930: 553.463623 | AB9930: 235.3441467 | AC9930: 103.5956802 | AD9930: 58.38510513 | AE9930: 40.9416275 | AF9930: 25.02020836 | AG9930: 0.03066476434 | AH9930: 3.702663662e-06
Q9931: 60.88288074 | R9931: 0.04026393455 | S9931: 3.779121988 | T9931: -33.15042045 | U9931: 2322 | V9931: 344 | W9931: 4131.17334 | X9931: 3175.873535 | Y9931: 2126.063232 | Z9931: 1209.63269 | AA9931: 590.4888306 | AB9931: 254.2605286 | AC9931: 112.3300705 | AD9931: 60.98184204 | AE9931: 41.43948746 | AF9931: 24.98545456 | AG9931: 0.03017476387 | AH9931: 3.779125109e-06
Q9932: 62.78543548 | R9932: 0.03996223318 | S9932: 3.855262779 | T9932: -33.5472719 | U9932: 2315 | V9932: 344 | W9932: 4126.18457 | X9932: 3211.456787 | Y9932: 2169.494141 | Z9932: 1255.824463 | AA9932: 623.9338989 | AB9932: 275.6349182 | AC9932: 121.1913605 | AD9932: 64.16807556 | AE9932: 42.15562057 | AF9932: 24.9981575 | AG9932: 0.0304099191 | AH9932: 3.855250725e-06
Q9933: 64.6879964 | R9933: 0.0398837327 | S9933: 3.931201725 | T9933: -33.80363604 | U9933: 2314 | V9933: 344 | W9933: 4126.231445 | X9933: 3233.923828 | Y9933: 2210.227539 | Z9933: 1300.606567 | AA9933: 659.3861694 | AB9933: 296.8399963 | AC9933: 130.9836273 | AD9933: 67.62710571 | AE9933: 42.9986763 | AF9933: 25.06352234 | AG9933: 0.0303605888 | AH9933: 3.931178981e-06
Q9934: 66.59064186 | R9934: 0.03987947987 | S9934: 4.007072621 | T9934: -33.8963553 | U9934: 2308 | V9934: 344 | W9934: 4126.236328 | X9934: 3260.614014 | Y9934: 2245.553711 | Z9934: 1344.292236 | AA9934: 695.2098999 | AB9934: 318.7070923 | AC9934: 141.5117493 | AD9934: 71.48612213 | AE9934: 44.00748062 | AF9934: 25.18502426 | AG9934: 0.03035797924 | AH9934: 4.007034931e-06
Q9935: 68.49318935 | R9935: 0.03996353929 | S9935: 4.083013123 | T9935: -33.79908075 | U9935: 2331 | V9935: 344 | W9935: 4126.267578 | X9935: 3275.872314 | Y9935: 2287.532715 | Z9935: 1387.667725 | AA9935: 730.4262695 | AB9935: 341.1183167 | AC9935: 152.4957581 | AD9935: 75.7445755 | AE9935: 45.22064972 | AF9935: 25.37915421 | AG9935: 0.030422993 | AH9935: 4.082967735e-06
Q9936: 70.39575559 | R9936: 0.0400629052 | S9936: 4.15919558 | T9936: -33.47520679 | U9936: 2321 | V9936: 344 | W9936: 4126.282715 | X9936: 3295.492676 | Y9936: 2324.008789 | Z9936: 1430.289795 | AA9936: 765.9248047 | AB9936: 364.1144409 | AC9936: 164.1643524 | AD9936: 80.43164062 | AE9936: 46.63844681 | AF9936: 25.63949394 | AG9936: 0.03057853505 | AH9936: 4.159094715e-06
Q9937: 72.29833978 | R9937: 0.04041003016 | S9937: 4.235801548 | T9937: -32.90193699 | U9937: 2322 | V9937: 344 | W9937: 4126.300781 | X9937: 3314.430176 | Y9937: 2359.737061 | Z9937: 1471.25769 | AA9937: 801.3201904 | AB9937: 387.5535889 | AC9937: 176.4832153 | AD9937: 85.52443695 | AE9937: 48.24449921 | AF9937: 25.98561859 | AG9937: 0.03076425567 | AH9937: 4.235665983e-06
Q9938: 74.20100445 | R9938: 0.04110462578 | S9938: 4.313037227 | T9938: -32.04864098 | U9938: 2318 | V9938: 344 | W9938: 4126.337402 | X9938: 3328.357178 | Y9938: 2391.975098 | Z9938: 1510.556396 | AA9938: 835.87854 | AB9938: 411.2466125 | AC9938: 189.193222 | AD9938: 91.27518463 | AE9938: 50.10347366 | AF9938: 26.40234375 | AG9938: 0.03042439558 | AH9938: 4.312846158e-06
Q9939: 76.10350995 | R9939: 0.0413064156 | S9939: 4.391116579 | T9939: -30.89178804 | U9939: 2316 | V9939: 344 | W9939: 4126.337402 | X9939: 3349.989258 | Y9939: 2427.356934 | Z9939: 1551.45813 | AA9939: 871.7372437 | AB9939: 435.7810364 | AC9939: 202.8045654 | AD9939: 97.01509857 | AE9939: 52.16377258 | AF9939: 26.93905449 | AG9939: 0.03144595027 | AH9939: 4.390884442e-06
Q9940: 78.00610849 | R9940: 0.04197828144 | S9940: 4.470294374 | T9940: -29.41258761 | U9940: 2319 | V9940: 344 | W9940: 4126.444336 | X9940: 3366.575684 | Y9940: 2459.549316 | Z9940: 1590.339966 | AA9940: 906.7525635 | AB9940: 460.4862061 | AC9940: 216.7869415 | AD9940: 103.4209747 | AE9940: 54.4854126 | AF9940: 27.56562996 | AG9940: 0.03190311044 | AH9940: 4.470050953e-06
Q9941: 79.90871005 | R9941: 0.04292348172 | S9941: 4.550832817 | T9941: -27.59798205 | U9941: 2324 | V9941: 344 | W9941: 4127.847656 | X9941: 3382.949463 | Y9941: 2489.0354 | Z9941: 1628.362061 | AA9941: 941.6080933 | AB9941: 485.2330017 | AC9941: 231.2602234 | AD9941: 110.2328644 | AE9941: 57.03083801 | AF9941: 28.28772545 | AG9941: 0.03244009987 | AH9941: 4.550600352e-06
Q9942: 81.81129297 | R9942: 0.04368255923 | S9942: 4.633017871 | T9942: -25.4430108 | U9942: 2332 | V9942: 344 | W9942: 4126.372559 | X9942: 3398.419922 | Y9942: 2520.945801 | Z9942: 1665.651245 | AA9942: 975.9052124 | AB9942: 510.7463684 | AC9942: 246.3049927 | AD9942: 117.4987335 | AE9942: 59.8969841 | AF9942: 29.14326477 | AG9942: 0.03325630352 | AH9942: 4.632811851e-06
Q9943: 83.7139021 | R9943: 0.04479511412 | S9943: 4.717159705 | T9943: -22.95017548 | U9943: 2312 | V9943: 344 | W9943: 4126.385742 | X9943: 3413.398682 | Y9943: 2550.264648 | Z9943: 1702.145508 | AA9943: 1010.14856 | AB9943: 536.2887573 | AC9943: 261.7902527 | AD9943: 125.1883011 | AE9943: 63.00252151 | AF9943: 30.11174583 | AG9943: 0.03410291299 | AH9943: 4.717025604e-06
Q9944: 85.61647689 | R9944: 0.04606152765 | S9944: 4.803584726 | T9944: -20.13043589 | U9944: 2320 | V9944: 344 | W9944: 4126.664062 | X9944: 3427.881592 | Y9944: 2578.670654 | Z9944: 1737.881958 | AA9944: 1044.170044 | AB9944: 562.0041504 | AC9944: 277.7351685 | AD9944: 133.3042145 | AE9944: 66.38510132 | AF9944: 31.2068615 | AG9944: 0.03510696441 | AH9944: 4.803499905e-06
Q9945: 87.51908176 | R9945: 0.04756595176 | S9945: 4.892645415 | T9945: -17.00257777 | U9945: 2315 | V9945: 344 | W9945: 4126.410156 | X9945: 3441.819824 | Y9945: 2606.340332 | Z9945: 1772.875977 | AA9945: 1077.804321 | AB9945: 587.9914551 | AC9945: 294.1054382 | AD9945: 141.8387451 | AE9945: 70.0449295 | AF9945: 32.43745422 | AG9945: 0.03621100262 | AH9945: 4.892565812e-06
Q9946: 89.42161985 | R9946: 0.0493451105 | S9946: 4.984706176 | T9946: -13.59288169 | U9946: 2320 | V9946: 344 | W9946: 4232.239746 | X9946: 3477.054688 | Y9946: 2644.025146 | Z9946: 1801.406006 | AA9946: 1109.737183 | AB9946: 634.1312866 | AC9946: 312.0712891 | AD9946: 151.3299866 | AE9946: 73.97650146 | AF9946: 33.65643311 | AG9946: 0.03740351275 | AH9946: 4.98467034e-06
Q9947: 91.32428679 | R9947: 0.05444583054 | S9947: 5.080164775 | T9947: -9.932819567 | U9947: 2307 | V9947: 344 | W9947: 4120.464844 | X9947: 3491.009766 | Y9947: 2665.16748 | Z9947: 1841.116089 | AA9947: 1161.994263 | AB9947: 636.6525879 | AC9947: 325.563385 | AD9947: 155.9803009 | AE9947: 79.1125412 | AF9947: 35.76865005 | AG9947: 0.03289228305 | AH9947: 5.080104074e-06
Q9948: 93.22679422 | R9948: 0.05323772045 | S9948: 5.179411888 | T9948: -6.059414771 | U9948: 2318 | V9948: 344 | W9948: 4126.442871 | X9948: 3480.993164 | Y9948: 2684.524902 | Z9948: 1873.580933 | AA9948: 1176.93457 | AB9948: 666.6800537 | AC9948: 345.6066284 | AD9948: 169.9029999 | AE9948: 82.75530243 | AF9948: 36.98213196 | AG9948: 0.04052522779 | AH9948: 5.179320397e-06
Q9949: 95.12938034 | R9949: 0.05557898002 | S9949: 5.282882867 | T9949: -2.010317646 | U9949: 2311 | V9949: 344 | W9949: 4126.506836 | X9949: 3493.220459 | Y9949: 2709.141113 | Z9949: 1905.801758 | AA9949: 1209.342529 | AB9949: 693.116272 | AC9949: 363.5001831 | AD9949: 180.0543671 | AE9949: 87.57817078 | AF9949: 38.79833984 | AG9949: 0.04228986055 | AH9949: 5.282744951e-06

Sheet Cell2 obs
B1: Ca | E1: Na | H1: K | K1: S
A2: Time | B2: 0.2 | C2: 0.7 | D2: 1m | E2: 0.2 | F2: 0.7 | G2: 1m | H2: 0.2 | I2: 0.7 | J2: 1m | K2: 0.2 | L2: 0.7 | M2: 1m
A3: 0.0986 | L3: 570
A4: 0.463 | B4: 1.8 | E4: 1320 | H4: 13200 | K4: 2450 | L4: 840
A5: 0.6602739 | B5: 16 | C5: 875 | D5: 25 | E5: 1396 | F5: 1000 | H5: 15883 | I5: 1500 | J5: 4937
A6: 0.827397 | B6: 11 | C6: 830 | D6: 28 | E6: 133 | F6: 970 | G6: 16205 | H6: 14000 | I6: 1800 | J6: 3863 | N6: Cell 2
A7: 1 | B7: 8 | C7: 800 | D7: 17 | E7: 1735 | F7: 925 | G7: 21643 | H7: 14500 | I7: 200 | J7: 3611 | N7: Time in years Observed Cl in g/m3
A8: 1.115068 | B8: 8 | C8: 780 | D8: 19 | E8: 1700 | F8: 963 | G8: 19719 | H8: 13759 | I8: 2010 | J8: 3309
A9: 1.287671 | B9: 12 | C9: 740 | D9: 29 | E9: 1293 | F9: 875 | G9: 14320 | H9: 13297 | I9: 2700 | J9: 2839
A10: 1.67123 | B10: 13 | C10: 670 | D10: 26 | E10: 1427 | F10: 920 | G10: 13729 | H10: 13215 | I10: 3400 | J10: 2783
A11: 1.9616 | B11: 11 | C11: 572 | D11: 24 | E11: 1351 | F11: 800 | G11: 12657 | H11: 12512 | I11: 3681 | J11: 1902
A12: 2.1699 | B12: 11 | C12: 637 | D12: 24 | E12: 1643 | F12: 1059 | G12: 14303 | H12: 11897 | I12: 3300 | J12: 1014 | K12: 1300 | L12: 1080 | M12: 8660
A13: 2.42 | B13: 13 | C13: 598 | D13: 20 | E13: 1813 | F13: 1138 | G13: 15509 | H13: 10071 | I13: 3042 | J13: 1880
A14: 2.82 | B14: 16 | C14: 581 | D14: 22 | E14: 1898 | F14: 1182 | G14: 12446 | H14: 8477 | I14: 3262 | J14: 1753
A15: 3.05 | B15: 14 | C15: 484 | D15: 17 | E15: 2117 | F15: 1315 | G15: 14361 | H15: 9993 | I15: 3945 | J15: 2057
A16: 3.22 | B16: 15 | C16: 517 | D16: 14 | E16: 2173 | F16: 1386 | G16: 15539 | H16: 11155 | I16: 4593 | J16: 2044
A17: 3.44 | B17: 17 | C17: 579 | D17: 23 | E17: 2244 | F17: 1455 | G17: 16718 | H17: 12317 | I17: 5242 | J17: 2031
A18: 3.67 | B18: 19 | C18: 508 | D18: 25 | E18: 2146 | F18: 1422 | G18: 14188 | H18: 12593 | I18: 5572 | J18: 2045

Sheet sitecell2
A1: Data | B1: Initial | C1: Layer | D1: Layer | E1: Capacity | F1: Porosity | G1: Diffusion | H1: Permeability | J1: Data set | K1: Steady state kg/yr | N1: Time | O1: Number | P1: Time | Q1: Rate | R1: Cum | S1: Intercept | T1: check | V1: CL | W1: kg/m3
A2: set | B2: Conc Cl | C2: height | D2: Thickness | E2: factor | J2: No | K2: diffusion | L2: advection | M2: total | N2: Step | O2: of cells | R2: Output | V2: at depth | W2: m
A3: no | B3: kg/m3 | C3: m | D3: m | G3: m2/s | H3: m2 | N3: Yr | P3: yr | Q3: kg/yr | R3: kg | S3: yr | U3: input | V3: 0 | W3: 0.1 | X3: 0.2 | Y3: 0.3 | Z3: 0.4 | AA3: 0.5 | AB3: 0.6 | AC3: 0.7 | AD3: 0.8 | AE3: 0.9 | AF3: 1 | AG3: output
B4: 1-4 perm. of leachate for bottom layer and 5-8 perm. to water for bottom layer
B5: Ca
A6: 1 | B6: 344 | C6: 1 | D6: 1 | E6: 1 | F6: 1 | G6: 100000000 | J6: 1 | K6: 0.001082312665 | L6: 12.23501968 | M6: 12.2361021 | N6: 0.02108514557 | O6: 101 | P6: 10.00552984 | Q6: 12.48499683 | R6: 257.15146 | S6: -10.58422 | T6: 0 | U6: 201.9351349 | V6: 202.2305019 | W6: 150.1585381 | X6: 51.77617189 | Y6: 11.18733047 | Z6: 4.731109142 | AA6: 35.46401215 | AB6: 295.427948 | AC6: 344.746582 | AD6: 348.7289734 | AE6: 347.5377502 | AF6: 79.95633698 | AG6: 0.0002571514924
A7: Cell 2 | B7: 4 | C7: 0.2 | D7: 0.2 | E7: 7.739999771 | F7: 0.12 | G7: 3.700000029e-10 | H7: 5e-09 | J7: 1 | K7: 0.001082312665 | L7: 12.23501968 | M7: 12.2361021 | N7: 0.01054257278 | O7: 202 | P7: 10.00499896 | Q7: 12.47452318 | R7: 256.913594 | S7: -10.58414279 | T7: 0 | U7: 202.8169861 | V7: 202.9888203 | W7: 147.5312979 | X7: 48.42107951 | Y7: 9.676976453 | Z7: 4.392556667 | AA7: 20.98669052 | AB7: 317.558075 | AC7: 349.5190125 | AD7: 349.9728088 | AE7: 348.5223999 | AF7: 45.08609772 | AG7: 0.0002569134813
A8: 4 | B8: 350 | C8: 0.5 | D8: 0.5 | E8: 1 | F8: 0.05 | G8: 1e-12 | H8: 2.999999971e-10
A9: 10 | B9: 1214 | C9: 0.3 | D9: 0.3 | E9: 0.5 | F9: 0.09 | G9: 1.77e-10 | H9: 4.5e-09
B10: 0 | C10: 0 | D10: 1000000 | E10: 1 | F10: 1 | G10: 100000000
B11: Na
A12: 2 | B12: 2300 | C12: 1 | D12: 1 | E12: 1 | F12: 1 | G12: 100000000 | J12: 2 | K12: 0.0002112520306 | L12: 81.8039093 | M12: 81.8041153 | N12: 0.02108695855 | O12: 101 | P12: 10.00192859 | Q12: 16.04064344 | R12: 439.6015881 | S12: -17.41404608 | T12: 1 | U12: 1606.501709 | V12: 1609.171144 | W12: 1647.398314 | X12: 1685.877998 | Y12: 1721.825292 | Z12: 1949.580811 | AA12: 1424.063354 | AB12: 484.9085999 | AC12: 453.5309082 | AD12: 452.3931535 | AE12: 451.5893121 | AF12: 450.9468323 | AG12: 0.0004396016884
A13: Cell 2 | B13: 450 | C13: 0.2 | D13: 0.2 | E13: 0.4300000072 | F13: 0.12 | G13: 1.199999961e-10 | H13: 5e-09 | J13: 2 | K13: 0.0002112520306 | L13: 81.8039093 | M13: 81.8041153 | N13: 0.01054347927 | O13: 202 | P13: 10.00475783 | Q13: 16.00541224 | R13: 439.6315728 | S13: -17.46306641 | T13: 2 | U13: 1606.819824 | V13: 1608.481731 | W13: 1645.699265 | X13: 1688.306488 | Y13: 1743.641953 | Z13: 1971.846436 | AA13: 1348.895874 | AB13: 456.5848083 | AC13: 450.078904 | AD13: 450.038341 | AE13: 450.0184622 | AF13: 449.8363316 | AG13: 0.0004396316945
A14: 4 | B14: 450 | C14: 0.5 | D14: 0.5 | E14: 1 | F14: 0.05 | G14: 1e-12 | H14: 2.999999971e-10
A15: 10 | B15: 10802 | C15: 0.3 | D15: 0.3 | E15: 0.09 | F15: 0.09 | G15: 1e-14 | H15: 4.5e-09
B16: 0 | C16: 0 | D16: 1000000 | E16: 1 | F16: 1 | G16: 100000000
B17: K
A18: 3 | B18: 4730 | C18: 1 | D18: 1 | E18: 1 | F18: 1 | G18: 100000000 | J18: 3 | K18: 0.01246691216 | L18: 168.2315216 | M18: 168.243988 | N18: 0.02108544869 | O18: 101 | P18: 10.00273161 | Q18: 18.80230009 | R18: 547.0406827 | S18: -17.99362793 | T18: 0 | U18: 3414.783936 | V18: 3425.961744 | W18: 3597.068549 | X18: 3808.098024 | Y18: 4052.761844 | Z18: 5925.918945 | AA18: 11787.95312 | AB18: 2622.432617 | AC18: 397.519407 | AD18: 301.9416118 | AE18: 304.3569285 | AF18: 507.1182645 | AG18: 0.0005470403121
A19: Cell 2 | B19: 15193 | C19: 0.2 | D19: 0.2 | E19: 0.8600000143 | F19: 0.12 | G19: 1.069999991e-10 | H19: 5e-09 | J19: 3 | K19: 0.01246691216 | L19: 168.2315216 | M19: 168.243988 | N19: 0.01054272434 | O19: 202 | P19: 10.00347689 | Q19: 15.12754974 | R19: 551.5154994 | S19: -24.68908978 | T19: 1 | U19: 3407.021729 | V19: 3412.151049 | W19: 3591.779214 | X19: 3800.102703 | Y19: 4042.709212 | Z19: 5956.145996 | AA19: 13299.99219 | AB19: 1680.293457 | AC19: 304.1822902 | AD19: 300.0055107 | AE19: 300.1358388 | AF19: 397.9834238 | AG19: 0.0005515164812
A20: 4 | B20: 300 | C20: 0.5 | D20: 0.5 | E20: 1 | F20: 0.05 | G20: 1e-12 | H20: 2.999999971e-10
A21: 10 | B21: 1761 | C21: 0.3 | D21: 0.3 | E21: 1.02 | F21: 0.09 | G21: 1.71e-12 | H21: 4.5e-09
B22: 0 | C22: 0 | D22: 1000000 | E22: 1 | F22: 1 | G22: 100000000
B23: S
A24: 4 | B24: 770 | C24: 1 | D24: 1 | E24: 1 | F24: 1 | G24: 100000000 | J24: 4 | K24: 7.056325558e-05 | L24: 27.38652611 | M24: 27.38659668 | N24: 0.02108695698 | O24: 101 | P24: 10.01630457 | Q24: 17.99875425 | R24: 192.659297 | S24: -0.6737036017 | T24: 0 | U24: 539.6132202 | V24: 542.8925781 | W24: 574.4000854 | X24: 611.5575562 | Y24: 651.1581421 | Z24: 1023.585327 | AA24: 1810.501587 | AB24: 738.4465332 | AC24: 510.4186096 | AD24: 500.2239685 | AE24: 500.0808411 | AF24: 505.8179626 | AG24: 0.0001926592959
A25: Cell 2 | B25: 2000 | C25: 0.2 | D25: 0.2 | E25: 1 | F25: 0.12 | G25: 2.100000078e-12 | H25: 5e-09 | J25: 4 | K25: 7.056325558e-05 | L25: 27.38652611 | M25: 27.38659668 | N25: 0.01054347849 | O25: 202 | P25: 10.00576109 | Q25: 17.88034106 | R25: 192.5929763 | S25: -0.7538832175 | T25: 0 | U25: 539.8379517 | V25: 541.4238281 | W25: 574.5910645 | X25: 611.701416 | Y25: 653.2502441 | Z25: 1019.944092 | AA25: 1921.820068 | AB25: 639.0109863 | AC25: 500.4326782 | AD25: 500.005188 | AE25: 500.0082092 | AF25: 502.4776611 | AG25: 0.0001925926626
A26: 4 | B26: 500 | C26: 0.5 | D26: 0.5 | E26: 1 | F26: 0.05 | G26: 1e-12 | H26: 2.999999971e-10
A27: 10 | B27: 549 | C27: 0.3 | D27: 0.3 | E27: 1 | F27: 0.09 | G27: 1e-14 | H27: 4.5e-09
B28: 0 | C28: 0 | D28: 1000000 | E28: 1 | F28: 1 | G28: 100000000
A30: 99
A31: 999
P100: 0.2099193242 | Q100: 52.91498075 | R100: 15.85997219 | S100: 0 | T100: 3 | U100: 325.120575 | V100: 285.8083726 | W100: 4 | X100: 4 | Y100: 4.060973305 | Z100: 350 | AA100: 350 | AB100: 350 | AC100: 1161.619995 | AD100: 1214 | AE100: 1213.995117 | AF100: 189.3050842 | AG100: 1.585997234e-05
P101: 0.403235852 | Q101: 42.06876417 | R101: 25.39178191 | S101: -0.1117399244 | T101: 0 | U101: 317.4309692 | V101: 291.9327697 | W101: 4.000490391 | X101: 4 | Y101: 4.110678713 | Z101: 350 | AA101: 350 | AB101: 350 | AC101: 1033.130981 | AD101: 1225.522705 | AE101: 1184.887329 | AF101: 207.4056244 | AG101: 2.539178422e-05
P102: 0.6037242047 | Q102: 45.51360107 | R102: 34.71170205 | S102: -0.1429873395 | T102: 2 | U102: 311.2177734 | V102: 292.0901363 | W102: 4.035567125 | X102: 4 | Y102: 4.123136115 | Z102: 350 | AA102: 350 | AB102: 350 | AC102: 815.3354492 | AD102: 1209.443604 | AE102: 1212.916748 | AF102: 164.2322998 | AG102: 3.47117093e-05
P103: 0.8030458211 | Q103: 44.54783768 | R103: 43.67397025 | S103: -0.1682670376 | T103: 2 | U103: 305.9561462 | V103: 290.5864319 | W103: 4.301019544 | X103: 4.000000739 | Y103: 4.119281496 | Z103: 350 | AA103: 350 | AB103: 350 | AC103: 686.6609497 | AD103: 1186.712769 | AE103: 1211.89624 | AF103: 160.9502563 | AG103: 4.367397923e-05
P104: 1.006896782 | Q104: 44.05131741 | R104: 52.6984251 | S104: -0.1834936398 | T104: 0 | U104: 301.1873779 | V104: 288.4032342 | W104: 5.147447171 | X104: 4.00001035 | Y104: 4.110279254 | Z104: 349.9978638 | AA104: 350 | AB104: 350 | AC104: 592.0008545 | AD104: 1135.589844 | AE104: 1210.299561 | AF104: 159.1234283 | AG104: 5.269843314e-05
P105: 1.203418661 | Q105: 43.74607384 | R105: 61.32210949 | S105: -0.1940276754 | T105: 2 | U105: 297.0050049 | V105: 286.043492 | W105: 6.732109919 | X105: 4.000047561 | Y105: 4.101054241 | Z105: 349.9776001 | AA105: 350 | AB105: 350 | AC105: 526.6755981 | AD105: 1064.027222 | AE105: 1206.145386 | AF105: 158.0795898 | AG105: 6.132212002e-05
P106: 1.401802655 | Q106: 43.5571426 | R106: 69.98038017 | S106: -0.2016338563 | T106: 0 | U106: 293.0997925 | V106: 283.5573265 | W106: 9.156389532 | X106: 4.000207985 | Y106: 4.092541158 | Z106: 349.8572998 | AA106: 350 | AB106: 350 | AC106: 479.2652283 | AD106: 979.333313 | AE106: 1195.450562 | AF106: 157.3910522 | AG106: 6.998038589e-05
P107: 1.601088553 | Q107: 43.28866567 | R107: 78.64313544 | S107: -0.2080896302 | T107: 1 | U107: 289.4310303 | V107: 281.0272221 | W107: 12.35596351 | X107: 4.000886646 | Y107: 4.085079334 | Z107: 349.3756104 | AA107: 350 | AB107: 350 | AC107: 445.2653503 | AD107: 891.0788574 | AE107: 1174.57959 | AF107: 157.1152496 | AG107: 7.864313375e-05
P108: 1.806786079 | Q108: 44.2439115 | R108: 87.55256724 | S108: -0.2145938363 | T108: 1 | U108: 285.8645325 | V108: 278.4208789 | W108: 16.33166674 | X108: 4.003378767 | Y108: 4.078460784 | Z108: 347.8649597 | AA108: 350 | AB108: 350 | AC108: 434.0921631 | AD108: 794.9473267 | AE108: 1145.353516 | AF108: 148.8878784 | AG108: 8.755257295e-05
P109: 2.004295231 | Q109: 42.75822241 | R109: 96.03242075 | S109: -0.2324511833 | T109: 3 | U109: 282.6174011 | V109: 275.9433877 | W109: 20.64932359 | X109: 4.010075434 | Y109: 4.072988862 | Z109: 344.4089355 | AA109: 350 | AB109: 350 | AC109: 401.52005 | AD109: 727.8708496 | AE109: 1094.610107 | AF109: 154.4769135 | AG109: 9.603242506e-05
P110: 2.209815667 | Q110: 42.10324856 | R110: 104.7551352 | S110: -0.2583748384 | T110: 0 | U110: 279.3952942 | V110: 273.4024957 | W110: 25.5153634 | X110: 4.026050588 | Y110: 4.068043309 | Z110: 337.349823 | AA110: 350 | AB110: 350 | AC110: 387.9720154 | AD110: 658.4838867 | AE110: 1037.457397 | AF110: 151.9560547 | AG110: 0.0001047551414
P111: 2.406007355 | Q111: 40.5415226 | R111: 112.9171845 | S111: -0.3081900745 | T111: 1 | U111: 276.4499207 | V111: 271.0175824 | W111: 30.40119231 | X111: 4.056042537 | Y111: 4.063909735 | Z111: 326.0030823 | AA111: 350 | AB111: 350 | AC111: 378.5531311 | AD111: 600.472229 | AE111: 972.5701294 | AF111: 150.7208099 | AG111: 0.0001129171942
P112: 2.600268521 | Q112: 40.53235433 | R112: 120.7820134 | S112: -0.3830455523 | T112: 3 | U112: 273.6448059 | V112: 268.6978363 | W112: 35.37758629 | X112: 4.107404924 | Y112: 4.060286511 | Z112: 309.4669189 | AA112: 350 | AB112: 350 | AC112: 371.5155334 | AD112: 554.5518799 | AE112: 912.5089722 | AF112: 144.309021 | AG112: 0.0001207820023
P113: 2.804330881 | Q113: 38.18002811 | R113: 128.738029 | S113: -0.4976467856 | T113: 0 | U113: 270.8044739 | V113: 266.3066144 | W113: 40.67289487 | X113: 4.193658977 | Y113: 4.056905034 | Z113: 286.2757263 | AA113: 350 | AB113: 350 | AC113: 366.0453796 | AD113: 513.887207 | AE113: 846.4451294 | AF113: 137.6362152 | AG113: 0.0001287380146
P114: 3.002860493 | Q114: 35.83398871 | R114: 136.1234478 | S114: -0.6563139302 | T114: 1 | U114: 268.134491 | V114: 264.0244042 | W114: 45.82895025 | X114: 4.318400075 | Y114: 4.053980186 | Z114: 258.7485962 | AA114: 350 | AB114: 350 | AC114: 359.5401611 | AD114: 479.4844666 | AE114: 796.5911865 | AF114: 131.6610718 | AG114: 0.0001361234026
P115: 3.205604862 | Q115: 33.93221199 | R115: 143.2581448 | S115: -0.865315302 | T115: 1 | U115: 265.4949646 | V115: 261.7385508 | W115: 51.04876134 | X115: 4.497485331 | Y115: 4.051350805 | Z115: 227.0338898 | AA115: 349.9996338 | AB115: 350 | AC115: 357.9541321 | AD115: 453.2736816 | AE115: 732.2181396 | AF115: 124.6654358 | AG115: 0.0001432581339
P116: 3.40013966 | Q116: 32.43337349 | R116: 149.6974856 | S116: -1.122275198 | T116: 2 | U116: 263.0372009 | V116: 259.586265 | W116: 55.97839127 | X116: 4.726599801 | Y116: 4.049188403 | Z116: 195.0230713 | AA116: 349.9986877 | AB116: 350 | AC116: 357.1896973 | AD116: 433.5453491 | AE116: 668.1420898 | AF116: 114.3482132 | AG116: 0.0001496974728
P117: 3.600398121 | Q117: 27.97911873 | R117: 155.8908001 | S117: -1.440271357 | T117: 2 | U117: 260.5777283 | V117: 257.4114893 | W117: 60.94534805 | X117: 5.028689334 | Y117: 4.047408951 | Z117: 162.3673401 | AA117: 349.9955139 | AB117: 350 | AC117: 354.9735107 | AD117: 416.2147522 | AE117: 624.6016846 | AF117: 111.2081909 | AG117: 0.0001558907534
P118: 3.80869317 | Q118: 28.04394232 | R118: 161.8885486 | S118: -1.813513803 | T118: 1 | U118: 258.0895996 | V118: 255.1918756 | W118: 65.97408519 | X118: 5.421274922 | Y118: 4.046202688 | Z118: 130.5188293 | AA118: 349.9851379 | AB118: 350 | AC118: 354.0257568 | AD118: 401.6906433 | AE118: 575.757019 | AF118: 98.24318695 | AG118: 0.0001618884708
P119: 4.006386536 | Q119: 25.39131728 | R119: 167.1635096 | S119: -2.258516004 | T119: 2 | U119: 255.7892914 | V119: 253.1238562 | W119: 70.60306571 | X119: 5.872894678 | Y119: 4.045911657 | Z119: 103.5170212 | AA119: 349.9581909 | AB119: 350 | AC119: 352.9859619 | AD119: 391.1455688 | AE119: 540.0030518 | AF119: 93.94556427 | AG119: 0.0001671634527
P120: 4.201036587 | Q120: 23.97284176 | R120: 171.9954276 | S120: -2.727665232 | T120: 2 | U120: 253.5788116 | V120: 251.1231647 | W120: 75.01428318 | X120: 6.396664949 | Y120: 4.046779328 | Z120: 80.67401886 | AA120: 349.8943481 | AB120: 350 | AC120: 352.3192139 | AD120: 382.5970459 | AE120: 508.1085205 | AF120: 86.39982605 | AG120: 0.0001719953434
P121: 4.402199657 | Q121: 22.31188103 | R121: 176.6417638 | S121: -3.245503305 | T121: 0 | U121: 251.3467865 | V121: 249.090757 | W121: 79.41629807 | X121: 7.02185935 | Y121: 4.049331331 | Z121: 61.12604904 | AA121: 349.7495117 | AB121: 350 | AC121: 351.524292 | AD121: 375.5487976 | AE121: 479.9226685 | AF121: 80.37496185 | AG121: 0.0001766416826
P122: 4.600342381 | Q122: 19.81953175 | R122: 180.8981614 | S122: -3.820782239 | T122: 1 | U122: 249.1977234 | V122: 247.1229331 | W122: 83.59172585 | X122: 7.723033256 | Y122: 4.054104632 | Z122: 45.7851944 | AA122: 349.4570007 | AB122: 350 | AC122: 355.963623 | AD122: 372.9487915 | AE122: 468.3869019 | AF122: 81.73999023 | AG122: 0.0001808981033
P123: 4.803799098 | Q123: 19.49639369 | R123: 184.9955307 | S123: -4.382237184 | T123: 2 | U123: 247.0390167 | V123: 245.1362465 | W123: 87.71220622 | X123: 8.531273002 | Y123: 4.06212486 | Z123: 33.65070343 | AA123: 348.8822327 | AB123: 350 | AC123: 351.0344543 | AD123: 365.8658142 | AE123: 437.2168274 | AF123: 70.22115326 | AG123: 0.0001849955006
P124: 5.00336019 | Q124: 18.69856823 | R124: 188.7637376 | S124: -4.993409766 | T124: 1 | U124: 244.9657898 | V124: 243.2194114 | W124: 91.59195257 | X124: 9.408964884 | Y124: 4.073927504 | Z124: 24.73186493 | AA124: 347.8819275 | AB124: 350 | AC124: 350.7913208 | AD124: 363.0714417 | AE124: 421.3887634 | AF124: 65.39057159 | AG124: 0.0001887636899
P125: 5.201122086 | Q125: 17.36578293 | R125: 192.2868467 | S125: -5.592472507 | T125: 1 | U125: 242.9524384 | V125: 241.3501426 | W125: 95.27857863 | X125: 10.36088466 | Y125: 4.090546081 | Z125: 18.2798996 | AA125: 346.2320557 | AB125: 350 | AC125: 350.5797729 | AD125: 359.4999084 | AE125: 407.2062988 | AF125: 62.58143997 | AG125: 0.0001922867959
P126: 5.403005822 | Q126: 16.0545634 | R126: 195.6995685 | S126: -6.173841808 | T126: 2 | U126: 240.937027 | V126: 239.4717423 | W126: 98.88350116 | X126: 11.41388604 | Y126: 4.113730225 | Z126: 13.58651638 | AA126: 343.5844421 | AB126: 350 | AC126: 350.520874 | AD126: 358.0776978 | AE126: 397.1051636 | AF126: 60.70740891 | AG126: 0.0001956994965
P127: 5.603553741 | Q127: 16.59584631 | R127: 198.9414735 | S127: -6.703191376 | T127: 1 | U127: 238.9728851 | V127: 237.6345367 | W127: 102.3094267 | X127: 12.53804976 | Y127: 4.144302018 | Z127: 10.34868622 | AA127: 339.6560059 | AB127: 350 | AC127: 350.2286377 | AD127: 355.3016357 | AE127: 383.7702332 | AF127: 51.73238373 | AG127: 0.0001989414159
P128: 5.807388383 | Q128: 15.10032934 | R128: 202.0895648 | S128: -7.277637004 | T128: 2 | U128: 237.0134888 | V128: 235.7956751 | W128: 105.6371597 | X128: 13.75665927 | Y128: 4.184552496 | Z128: 8.11499691 | AA128: 333.9746094 | AB128: 350 | AC128: 350.2834167 | AD128: 354.7579651 | AE128: 379.7468262 | AF128: 55.20458984 | AG128: 0.0002020895045
P129: 6.001811131 | Q129: 15.7677347 | R129: 204.9919218 | S129: -7.730163493 | T129: 3 | U129: 235.1775055 | V129: 234.0674181 | W129: 108.6709461 | X129: 14.98634422 | Y129: 4.232980917 | Z129: 6.687503338 | AA129: 326.6605835 | AB129: 349.9995728 | AC129: 350.2276611 | AD129: 353.7835693 | AE129: 374.1580811 | AF129: 54.0062561 | AG129: 0.0002049918694
P130: 6.209275825 | Q130: 14.27933954 | R130: 207.9957109 | S130: -8.1565018 | T130: 0 | U130: 233.2523651 | V130: 232.2500845 | W130: 111.7613281 | X130: 16.36688123 | Y130: 4.297165911 | Z130: 5.689112663 | AA130: 316.5298462 | AB130: 349.9988708 | AC130: 350.1653137 | AD130: 352.9066467 | AE130: 368.4553528 | AF130: 51.53512955 | AG130: 0.0002079956903
P131: 6.40277567 | Q131: 13.99835801 | R131: 210.7238909 | S131: -8.543100549 | T131: 1 | U131: 231.486908 | V131: 230.579109 | W131: 114.5125233 | X131: 17.71340435 | Y131: 4.370121752 | Z131: 5.087475777 | AA131: 304.7807007 | AB131: 349.9974365 | AC131: 350.1131592 | AD131: 352.223175 | AE131: 364.3853455 | AF131: 50.16771698 | AG131: 0.0002107239125
P132: 6.600395798 | Q132: 13.76622484 | R132: 213.450107 | S132: -8.872345745 | T132: 1 | U132: 229.7128601 | V132: 228.8959265 | W132: 117.1951683 | X132: 19.14339541 | Y132: 4.45935265 | Z132: 4.693028927 | AA132: 290.4470215 | AB132: 349.9941711 | AC132: 350.0924072 | AD132: 351.5779114 | AE132: 359.9951477 | AF132: 48.79563522 | AG132: 0.0002134501119
P133: 6.804534759 | Q133: 13.42860402 | R133: 216.2127599 | S133: -9.171937627 | T133: 2 | U133: 227.9097748 | V133: 227.1812329 | W133: 119.8363584 | X133: 20.67401957 | Y133: 4.568822143 | Z133: 4.43802166 | AA133: 273.2941895 | AB133: 349.9867554 | AC133: 350.0769653 | AD133: 351.4084167 | AE133: 358.7025757 | AF133: 48.49392319 | AG133: 0.0002162127494
P134: 7.009194385 | Q134: 12.73471376 | R134: 218.936138 | S134: -9.44367669 | T134: 0 | U134: 226.1306763 | V134: 225.4856383 | W134: 122.3580409 | X134: 22.25778335 | Y134: 4.697716529 | Z134: 4.280943871 | AA134: 254.0182495 | AB134: 349.9710999 | AC134: 350.8876953 | AD134: 354.9772034 | AE134: 358.5726929 | AF134: 51.32723236 | AG134: 0.0002189361257
P135: 7.209624507 | Q135: 13.08222686 | R135: 221.5755945 | S135: -9.615969421 | T135: 2 | U135: 224.4154053 | V135: 223.8475146 | W135: 124.7078945 | X135: 23.85273691 | Y135: 4.844478879 | Z135: 4.188307762 | AA135: 233.5154877 | AB135: 349.9404602 | AC135: 350.0461731 | AD135: 350.8582153 | AE135: 354.8782654 | AF135: 47.25270462 | AG135: 0.0002215755521
P136: 7.400118501 | Q136: 12.77084054 | R136: 224.0540052 | S136: -9.820974874 | T136: 0 | U136: 222.8087616 | V136: 222.3102803 | W136: 126.8374301 | X136: 25.40423446 | Y136: 5.003889858 | Z136: 4.135008335 | AA136: 213.0291443 | AB136: 349.8868408 | AC136: 354.0345764 | AD136: 345.57547 | AE136: 361.1734924 | AF136: 48.07972717 | AG136: 0.0002240539325
P137: 7.602643004 | Q137: 12.85725177 | R137: 226.6691677 | S137: -9.95116523 | T137: 3 | U137: 221.1253204 | V137: 220.6966968 | W137: 128.9931698 | X137: 27.08813651 | Y137: 5.196430054 | Z137: 4.10220623 | AA137: 190.7220764 | AB137: 349.7845154 | AC137: 350.0278931 | AD137: 350.5293884 | AE137: 352.4927673 | AF137: 46.45901489 | AG137: 0.0002266691008
P138: 7.804135259 | Q138: 12.7774533 | R138: 229.2512572 | S138: -10.08538865 | T138: 0 | U138: 219.4746246 | V138: 219.1117857 | W138: 131.0324616 | X138: 28.79420521 | Y138: 5.412769231 | Z138: 4.085086346 | AA138: 168.5746613 | AB138: 349.6076965 | AC138: 350.0244751 | AD138: 350.413147 | AE138: 351.6212463 | AF138: 46.16614914 | AG138: 0.0002292511926
P139: 8.001308211 | Q139: 12.63504118 | R139: 231.7632826 | S139: -10.19016828 | T139: 1 | U139: 217.8818817 | V139: 217.5800555 | W139: 132.9302687 | X139: 30.48951389 | Y139: 5.649656517 | Z139: 4.07834053 | AA139: 147.475708 | AB139: 349.3211365 | AC139: 350.0370789 | AD139: 350.7431946 | AE139: 350.8835144 | AF139: 46.26675034 | AG139: 0.000231763217
P140: 8.207348224 | Q140: 11.21541883 | R140: 234.3670106 | S140: -10.33874489 | T140: 1 | U140: 216.2406158 | V140: 215.9992607 | W140: 134.813984 | X140: 32.28446208 | Y140: 5.925138289 | Z140: 4.078971863 | AA140: 126.5296326 | AB140: 348.8399048 | AC140: 349.1621399 | AD140: 371.5883484 | AE140: 350.1304016 | AF140: 54.97154236 | AG140: 0.0002343669767
P141: 8.402926822 | Q141: 12.61531926 | R141: 236.8478795 | S141: -10.26890885 | T141: 3 | U141: 214.7038727 | V141: 214.5169738 | W141: 136.5115657 | X141: 34.00688962 | Y141: 6.214178994 | Z141: 4.085509777 | AA141: 108.0639343 | AB141: 348.1332703 | AC141: 350.0065308 | AD141: 350.1945496 | AE141: 349.9471436 | AF141: 45.58827209 | AG141: 0.0002368478745
P142: 8.600754173 | Q142: 12.583207 | R142: 239.3400811 | S142: -10.39771483 | T142: 0 | U142: 213.1697083 | V142: 213.0351916 | W142: 138.1433651 | X142: 35.76408709 | Y142: 6.534545559 | Z142: 4.097548485 | AA142: 91.03987885 | AB142: 347.0760803 | AC142: 350.0003357 | AD142: 350.15448 | AE142: 349.5987244 | AF142: 45.4631958 | AG142: 0.00023934005
P143: 8.804812505 | Q143: 12.37705178 | R143: 241.9035734 | S143: -10.45112194 | T143: 1 | U143: 211.6079254 | V143: 211.5247685 | W143: 139.7398997 | X143: 37.58916449 | Y143: 6.895467681 | Z143: 4.115876675 | AA143: 75.39183044 | AB143: 345.4993896 | AC143: 350.3366699 | AD143: 349.4156189 | AE143: 349.4359741 | AF143: 46.29906845 | AG143: 0.00024190353
P144: 9.000591876 | Q144: 12.64195193 | R144: 244.3604766 | S144: -10.4713762 | T144: 2 | U144: 210.1287384 | V144: 210.0924453 | W144: 141.1920949 | X144: 39.3492008 | Y144: 7.271621485 | Z144: 4.139672756 | AA144: 62.26886368 | AB144: 343.3815002 | AC144: 349.8993225 | AD144: 350.3413696 | AE144: 349.1297607 | AF144: 45.01623535 | AG144: 0.0002443604462
P145: 9.201866178 | Q145: 12.51549642 | R145: 246.8808771 | S145: -10.51356194 | T145: 2 | U145: 208.6271515 | V145: 208.6367016 | W145: 142.6071327 | X145: 41.16490212 | Y145: 7.689426955 | Z145: 4.171321392 | AA145: 50.67951965 | AB145: 340.4269714 | AC145: 349.9500427 | AD145: 350.0644226 | AE145: 348.928009 | AF145: 45.22904205 | AG145: 0.0002468807797
P146: 9.407195203 | Q146: 12.49239318 | R146: 249.4490733 | S146: -10.5364275 | T146: 0 | U146: 207.114502 | V146: 207.1685773 | W146: 143.9732478 | X146: 43.02085984 | Y146: 8.148344414 | Z146: 4.212121964 | AA146: 40.72647858 | AB146: 336.4349976 | AC146: 349.9275208 | AD146: 350.1738281 | AE146: 348.9176025 | AF146: 45.23973465 | AG146: 0.0002494489891
P147: 9.60910126 | Q147: 12.90595997 | R147: 251.9748934 | S147: -10.53297345 | T147: 1 | U147: 205.6456451 | V147: 205.7413956 | W147: 145.2428107 | X147: 44.84690323 | Y147: 8.632443311 | Z147: 4.261917114 | AA147: 32.64436722 | AB147: 331.3663635 | AC147: 347.6339722 | AD147: 341.900116 | AE147: 340.0099792 | AF147: 42.4330368 | AG147: 0.0002519747941
P148: 9.802459831 | Q148: 12.481769 | R148: 254.3862883 | S148: -10.59559632 | T148: 3 | U148: 204.2557678 | V148: 204.3895693 | W148: 146.3927162 | X148: 46.59431063 | Y148: 9.12684682 | Z148: 4.319844246 | AA148: 26.3215332 | AB148: 325.3011169 | AC148: 349.7120056 | AD148: 350.0027466 | AE148: 348.591095 | AF148: 45.10839462 | AG148: 0.0002543861629
P149: 10.00499896 | Q149: 12.47452318 | R149: 256.913594 | S149: -10.58414279 | T149: 0 | U149: 202.8169861 | V149: 202.9888203 | W149: 147.5312979 | X149: 48.42107951 | Y149: 9.676976453 | Z149: 4.392556667 | AA149: 20.98669052 | AB149: 317.558075 | AC149: 349.5190125 | AD149: 349.9728088 | AE149: 348.5223999 | AF149: 45.08609772 | AG149: 0.0002569134813
P200: 0.2042682833 | Q200: 384.1938614 | R200: 78.48017207 | S200: 0 | T200: 4 | U200: 2275.006836 | V200: 2239.656633 | W200: 511.717606 | X200: 450.0035411 | Y200: 449.9999925 | Z200: 450 | AA200: 450 | AB200: 450 | AC200: 476.1248505 | AD200: 10800.59568 | AE200: 10802.00017 | AF200: 10797.8647 | AG200: 7.848017412e-05
P201: 0.4030320303 | Q201: 384.1938373 | R201: 154.8439791 | S201: -4.050180734e-06 | T201: 4 | U201: 2257.700684 | V201: 2263.057369 | W201: 891.4843744 | X201: 449.4901715 | Y201: 450.0089349 | Z201: 450 | AA201: 450 | AB201: 450 | AC201: 450.0510991 | AD201: 1163.27137 | AE201: 10781.81516 | AF201: 10797.86402 | AG201: 0.000154844005
P202: 0.6038539709 | Q202: 382.4512943 | R202: 231.9652096 | S202: -0.0001781904367 | T202: 3 | U202: 2241.123291 | V202: 2235.51121 | W202: 1370.538733 | X202: 516.8239419 | Y202: 450.2396974 | Z202: 450 | AA202: 450 | AB202: 450 | AC202: 450.0194371 | AD202: 450.0688162 | AE202: 2034.298286 | AF202: 10733.98056 | AG202: 0.0002319651685
P203: 0.8003123133 | Q203: 110.5937987 | R203: 288.2199508 | S203: -0.2062377576 | T203: 4 | U203: 2225.294434 | V203: 2222.853229 | W203: 1670.069041 | X203: 685.5000227 | Y203: 455.9064567 | Z203: 450 | AA203: 450 | AB203: 450 | AC203: 450.0076539 | AD203: 450.0222345 | AE203: 450.5831222 | AF203: 2999.280683 | AG203: 0.0002882199187
P204: 1.001144248 | Q204: 16.15415311 | R204: 295.5240116 | S204: -7.124562964 | T204: 2 | U204: 2209.363281 | V204: 2211.250162 | W204: 1870.335322 | X204: 927.7966722 | Y204: 486.8520966 | Z204: 450 | AA204: 450 | AB204: 450 | AC204: 450.0030763 | AD204: 450.0084168 | AE204: 450.0235485 | AF204: 453.3774302 | AG204: 0.0002955239906
P205: 1.202333421 | Q205: 16.00602453 | R205: 298.7473491 | S205: -17.44440495 | T205: 3 | U205: 2193.60376 | V205: 2181.014907 | W205: 1897.363108 | X205: 1223.093838 | Y205: 587.545944 | Z205: 450 | AA205: 450 | AB205: 450 | AC205: 450.0012961 | AD205: 450.0034577 | AE205: 450.0088831 | AF205: 449.8527772 | AG205: 0.0002987472981
P206: 1.402558166 | Q206: 16.00545899 | R206: 301.9520834 | S206: -17.46274352 | T206: 3 | U206: 2178.055664 | V206: 2178.850005 | W206: 2062.447021 | X206: 1426.074337 | Y206: 711.7587659 | Z206: 450 | AA206: 450 | AB206: 450 | AC206: 450.0009146 | AD206: 450.0018047 | AE206: 450.0036273 | AF206: 449.8371793 | AG206: 0.0003019520373
P207: 1.601510958 | Q207: 16.00525087 | R207: 305.1363897 | S207: -17.46315561 | T207: 4 | U207: 2162.748047 | V207: 2163.751752 | W207: 2100.959211 | X207: 1614.703058 | Y207: 891.4833098 | Z207: 450 | AA207: 450 | AB207: 450 | AC207: 450.0007027 | AD207: 450.0012113 | AE207: 450.002059 | AF207: 449.831542 | AG207: 0.0003051363747
P208: 1.802461431 | Q208: 16.0052011 | R208: 308.3526451 | S208: -17.46329988 | T208: 2 | U208: 2147.410156 | V208: 2148.628377 | W208: 2126.363462 | X208: 1771.527638 | Y208: 1094.859331 | Z208: 450 | AA208: 450 | AB208: 450 | AC208: 450.0006603 | AD208: 450.0007874 | AE208: 450.0015504 | AF208: 449.8301433 | AG208: 0.0003083525808
P209: 2.000018495 | Q209: 16.00517848 | R209: 311.5145831 | S209: -17.46333181 | T209: 4 | U209: 2132.447021 | V209: 2133.788743 | W209: 2135.606171 | X209: 1881.66813 | Y209: 1291.360949 | Z209: 450.0010986 | AA209: 450 | AB209: 450 | AC209: 450.0006603 | AD209: 450.0006603 | AE209: 450.0009994 | AF209: 449.8295499 | AG209: 0.0003115145664
P210: 2.202767565 | Q210: 16.00515435 | R210: 314.7596156 | S210: -17.46335859 | T210: 2 | U210: 2117.203857 | V210: 2119.336186 | W210: 2135.641089 | X210: 1964.442447 | Y210: 1474.438026 | Z210: 450.0095215 | AA210: 450 | AB210: 450 | AC210: 450.0006603 | AD210: 450.0006603 | AE210: 450.0007027 | AF210: 449.8288718 | AG210: 0.0003147595562
P211: 2.402541452 | Q211: 16.00514078 | R211: 317.9570259 | S211: -17.46338313 | T211: 4 | U211: 2102.296143 | V211: 2103.849012 | W211: 2132.924599 | X211: 2021.252266 | Y211: 1631.489004 | Z211: 450.0520325 | AA211: 450 | AB211: 450 | AC211: 450.0005331 | AD211: 450.0006603 | AE211: 450.0006603 | AF211: 449.8284903 | AG211: 0.0003179569612
P212: 2.601824868 | Q212: 16.00513626 | R212: 321.1465845 | S212: -17.46339279 | T212: 2 | U212: 2087.531006 | V212: 2088.880069 | W212: 2126.826761 | X212: 2059.617829 | Y212: 1758.968306 | Z212: 450.2182617 | AA212: 450 | AB212: 450 | AC212: 450.0005331 | AD212: 450.0006603 | AE212: 450.0006603 | AF212: 449.8283631 | AG212: 0.0003211464791
P213: 2.802382171 | Q213: 16.00513626 | R213: 324.3565315 | S213: -17.46339541 | T213: 4 | U213: 2072.779053 | V213: 2073.756977 | W213: 2120.567677 | X213: 2087.777604 | Y213: 1859.427062 | Z213: 450.7520447 | AA213: 450 | AB213: 450 | AC213: 450.0005331 | AD213: 450.0005331 | AE213: 450.0006603 | AF213: 449.8283631 | AG213: 0.000324356457
P214: 3.001249952 | Q214: 16.00513626 | R214: 327.5394374 | S214: -17.46339541 | T214: 2 | U214: 2058.25415 | V214: 2059.750261 | W214: 2104.846582 | X214: 2096.099109 | Y214: 1937.078541 | Z214: 452.1736755 | AA214: 450 | AB214: 450 | AC214: 450.0005331 | AD214: 450.0005331 | AE214: 450.0005331 | AF214: 449.8283631 | AG214: 0.0003275393974
P215: 3.200818168 | Q215: 16.00513173 | R215: 330.7335538 | S215: -17.46339617 | T215: 3 | U215: 2043.773438 | V215: 2057.694228 | W215: 1960.720722 | X215: 1816.663135 | Y215: 2113.71939 | Z215: 455.4735718 | AA215: 450 | AB215: 450 | AC215: 450.0005331 | AD215: 450.0005331 | AE215: 450.0005331 | AF215: 449.828236 | AG215: 0.0003307335428
P216: 3.403910292 | Q216: 16.00513173 | R216: 333.98407 | S216: -17.46340124 | T216: 3 | U216: 2029.157959 | V216: 2030.647421 | W216: 2079.265187 | X216: 2101.540464 | Y216: 2033.897189 | Z216: 462.3885803 | AA216: 450 | AB216: 450 | AC216: 450.0005331 | AD216: 450.0005331 | AE216: 450.0005331 | AF216: 449.828236 | AG216: 0.0003339840914
P217: 3.601079404 | Q217: 16.00513173 | R217: 337.1397876 | S217: -17.46340124 | T217: 2 | U217: 2015.061279 | V217: 2017.075616 | W217: 2060.808014 | X217: 2081.459614 | Y217: 2071.964105 | Z217: 474.7013245 | AA217: 450 | AB217: 450 | AC217: 450.0005331 | AD217: 450.0005331 | AE217: 450.0005331 | AF217: 449.828236 | AG217: 0.000337139878
P218: 3.804664558 | Q218: 16.00513173 | R218: 340.3981948 | S218: -17.46340124 | T218: 4 | U218: 2000.609619 | V218: 2002.092621 | W218: 2051.921296 | X218: 2089.895808 | Y218: 2076.528825 | Z218: 495.9703064 | AA218: 450 | AB218: 450 | AC218: 450.0005331 | AD218: 450.0005331 | AE218: 450.0005331 | AF218: 449.828236 | AG218: 0.0003403983137
P219: 4.001647697 | Q219: 16.00513173 | R219: 343.5509359 | S219: -17.46340124 | T219: 3 | U219: 1986.725952 | V219: 1986.448743 | W219: 2010.028752 | X219: 2179.482357 | Y219: 2125.805203 | Z219: 527.5302734 | AA219: 450 | AB219: 450 | AC219: 450.0005331 | AD219: 450.0005331 | AE219: 450.0005331 | AF219: 449.828236 | AG219: 0.0003435510152
P220: 4.202046292 | Q220: 16.00513173 | R220: 346.7583418 | S220: -17.46340124 | T220: 3 | U220: 1972.698853 | V220: 1974.190045 | W220: 2023.735261 | X220: 2072.938964 | Y220: 2087.725228 | Z220: 573.3266602 | AA220: 450 | AB220: 450 | AC220: 450.0005331 | AD220: 450.0005331 | AE220: 450.0005331 | AF220: 449.828236 | AG220: 0.0003467583447
P221: 4.404261603 | Q221: 16.00513173 | R221: 349.9948245 | S221: -17.46340124 | T221: 3 | U221: 1958.644531 | V221: 1963.104783 | W221: 1976.165455 | X221: 2258.743178 | Y221: 2048.951581 | Z221: 635.1633301 | AA221: 450.0003662 | AB221: 450 | AC221: 450.0005331 | AD221: 450.0005331 | AE221: 450.0005331 | AF221: 449.828236 | AG221: 0.0003499948943
P222: 4.604911388 | Q222: 16.00513173 | R222: 353.2062507 | S222: -17.46340124 | T222: 3 | U222: 1944.80127 | V222: 1946.2561 | W222: 1996.033107 | X222: 2046.007841 | Y222: 2078.553205 | Z222: 712.5618896 | AA222: 450.0018616 | AB222: 450 | AC222: 450.0005331 | AD222: 450.0005331 | AE222: 450.0005331 | AF222: 449.828236 | AG222: 0.0003532064147
P223: 4.800672822 | Q223: 16.00513173 | R223: 356.3394383 | S223: -17.46340124 | T223: 4 | U223: 1931.387939 | V223: 1932.742774 | W223: 1983.228216 | X223: 2029.529343 | Y223: 2077.830293 | Z223: 802.6242065 | AA223: 450.006073 | AB223: 450 | AC223: 450.0005331 | AD223: 450.0005331 | AE223: 450.0005331 | AF223: 449.828236 | AG223: 0.0003563396749
P224: 5.005291883 | Q224: 16.00513173 | R224: 359.6143933 | S224: -17.46340124 | T224: 2 | U224: 1917.466431 | V224: 1918.894323 | W224: 1968.278293 | X224: 2019.387997 | Y224: 2061.173374 | Z224: 909.8879395 | AA224: 450.0184937 | AB224: 450 | AC224: 450.0005331 | AD224: 450.0005331 | AE224: 450.0005331 | AF224: 449.828236 | AG224: 0.0003596144961
P225: 5.201522182 | Q225: 16.00513173 | R225: 362.7550851 | S225: -17.46340124 | T225: 4 | U225: 1904.209839 | V225: 1905.605976 | W225: 1954.931892 | X225: 2004.479805 | Y225: 2057.219005 | Z225: 1022.127869 | AA225: 450.0489197 | AB225: 450 | AC225: 450.0005331 | AD225: 450.0005331 | AE225: 450.0005331 | AF225: 449.828236 | AG225: 0.0003627552651
P226: 5.402651992 | Q226: 16.00513173 | R226: 365.9741942 | S226: -17.46340124 | T226: 2 | U226: 1890.717896 | V226: 1891.659585 | W226: 1941.628783 | X226: 1993.515478 | Y226: 2039.88715 | Z226: 1142.76062 | AA226: 450.1227112 | AB226: 450 | AC226: 450.0005331 | AD226: 450.0005331 | AE226: 450.0005331 | AF226: 449.828236 | AG226: 0.0003659743816
P227: 5.604767217 | Q227: 16.00513173 | R227: 369.209075 | S227: -17.46340124 | T227: 2 | U227: 1877.248901 | V227: 1889.810362 | W227: 1897.985241 | X227: 1926.333373 | Y227: 1998.500347 | Z227: 1265.390747 | AA227: 450.288269 | AB227: 450 | AC227: 450.0005331 | AD227: 450.0005331 | AE227: 450.0005331 | AF227: 449.828236 | AG227: 0.0003692092432
P228: 5.800949337 | Q228: 16.00513173 | R228: 372.3489957 | S228: -17.46340124 | T228: 4 | U228: 1864.280273 | V228: 1865.669397 | W228: 1913.85651 | X228: 1965.285725 | Y228: 2013.065748 | Z228: 1381.812988 | AA228: 450.6196594 | AB228: 450 | AC228: 450.0005331 | AD228: 450.0005331 | AE228: 450.0005331 | AF228: 449.828236 | AG228: 0.0003723490809
P229: 6.000984895 | Q229: 16.00513173 | R229: 375.5505911 | S229: -17.46340124 | T229: 3 | U229: 1851.150513 | V229: 1839.212077 | W229: 1917.052623 | X229: 1930.150341 | Y229: 1964.726331 | Z229: 1494.450073 | AA229: 451.2708435 | AB229: 450 | AC229: 450.0005331 | AD229: 450.0005331 | AE229: 450.0005331 | AF229: 449.828236 | AG229: 0.0003755507059
P230: 6.201757924 | Q230: 16.00513173 | R230: 378.7639899 | S230: -17.46340124 | T230: 3 | U230: 1838.050171 | V230: 1838.905339 | W230: 1888.350912 | X230: 1934.603921 | Y230: 1982.076497 | Z230: 1598.490112 | AA230: 452.4761047 | AB230: 450 | AC230: 450.0005331 | AD230: 450.0005331 | AE230: 450.0005331 | AF230: 449.828236 | AG230: 0.0003787641763
P231: 6.402357555 | Q231: 16.00513173 | R231: 381.9746134 | S231: -17.46340124 | T231: 3 | U231: 1825.05542 | V231: 1835.759048 | W231: 1831.829804 | X231: 1996.227852 | Y231: 2045.638649 | Z231: 1691.524414 | AA231: 454.575531 | AB231: 450 | AC231: 450.0005331 | AD231: 450.0005331 | AE231: 450.0005331 | AF231: 449.828236 | AG231: 0.000381974678
P232: 6.604764378 | Q232: 16.00513173 | R232: 385.2141613 | S232: -17.46340124 | T232: 3 | U232: 1812.049438 | V232: 1810.915043 | W232: 1875.851054 | X232: 1895.43241 | Y232: 1953.027311 | Z232: 1773.213257 | AA232: 458.0962219 | AB232: 450 | AC232: 450.0005331 | AD232: 450.0005331 | AE232: 450.0005331 | AF232: 449.828236 | AG232: 0.0003852141672
P233: 6.802073779 | Q233: 16.00513173 | R233: 388.3721242 | S233: -17.46340124 | T233: 4 | U233: 1799.452026 | V233: 1800.775968 | W233: 1847.48816 | X233: 1897.471126 | Y233: 1945.854119 | Z233: 1840.73938 | AA233: 463.513916 | AB233: 450 | AC233: 450.0005331 | AD233: 450.0005331 | AE233: 450.0005331 | AF233: 449.828236 | AG233: 0.0003883720492
P234: 7.003669391 | Q234: 16.00513173 | R234: 391.5986886 | S234: -17.46340124 | T234: 2 | U234: 1786.673096 | V234: 1788.004859 | W234: 1834.239131 | X234: 1884.057302 | Y234: 1932.149456 | Z234: 1897.675415 | AA234: 471.8729858 | AB234: 450 | AC234: 450.0005331 | AD234: 450.0005331 | AE234: 450.0005331 | AF234: 449.828236 | AG234: 0.0003915986163
P235: 7.20442592 | Q235: 16.00513173 | R235: 394.8118233 | S235: -17.46340124 | T235: 3 | U235: 1774.051514 | V235: 1751.385043 | W235: 1891.59855 | X235: 1838.022601 | Y235: 1945.706641 | Z235: 1943.001343 | AA235: 483.9740906 | AB235: 450.0002441 | AC235: 450.0005331 | AD235: 450.0005331 | AE235: 450.0005331 | AF235: 449.828236 | AG235: 0.0003948116791
P236: 7.401608635 | Q236: 16.00513173 | R236: 397.9677586 | S236: -17.46340124 | T236: 3 | U236: 1761.677734 | V236: 1821.888454 | W236: 1519.377785 | X236: 2011.821483 | Y236: 1770.74724 | Z236: 1977.414917 | AA236: 500.5729675 | AB236: 450.0013428 | AC236: 450.0005331 | AD236: 450.0005331 | AE236: 450.0005331 | AF236: 449.828236 | AG236: 0.0003979677567
P237: 7.603017665 | Q237: 16.00513173 | R237: 401.1913366 | S237: -17.46340124 | T237: 4 | U237: 1749.213501 | V237: 1750.517208 | W237: 1795.784712 | X237: 1844.61752 | Y237: 1891.93396 | Z237: 2003.457642 | AA237: 523.4147949 | AB237: 450.0032349 | AC237: 450.0005331 | AD237: 450.0005331 | AE237: 450.0005331 | AF237: 449.828236 | AG237: 0.0004011913552
P238: 7.80011091 | Q238: 16.00513173 | R238: 404.34584 | S238: -17.46340124 | T238: 3 | U238: 1737.066406 | V238: 1740.163091 | W238: 1778.855831 | X238: 1913.060356 | Y238: 1846.613796 | Z238: 2021.289795 | AA238: 552.4721069 | AB238: 450.0071106 | AC238: 450.0005331 | AD238: 450.0005331 | AE238: 450.0005331 | AF238: 449.828236 | AG238: 0.0004043458321
P239: 8.002492915 | Q239: 16.00513173 | R239: 407.5849906 | S239: -17.46340124 | T239: 3 | U239: 1724.683838 | V239: 1725.9375 | W239: 1770.72751 | X239: 1817.967442 | Y239: 1865.67692 | Z239: 2032.872803 | AA239: 590.175354 | AB239: 450.0161133 | AC239: 450.0005331 | AD239: 450.0005331 | AE239: 450.0005331 | AF239: 449.828236 | AG239: 0.000407584972
P240: 8.201965513 | Q240: 16.00513173 | R240: 410.7775759 | S240: -17.46340124 | T240: 4 | U240: 1712.564453 | V240: 1713.840758 | W240: 1758.161081 | X240: 1805.989932 | Y240: 1852.401206 | Z240: 2038.798706 | AA240: 635.7139282 | AB240: 450.034729 | AC240: 450.0005331 | AD240: 450.0005331 | AE240: 450.0005331 | AF240: 449.828236 | AG240: 0.0004107775749
P241: 8.403677465 | Q241: 16.00513173 | R241: 414.0060022 | S241: -17.46340124 | T241: 2 | U241: 1700.394653 | V241: 1703.15776 | W241: 1749.796426 | X241: 1793.612144 | Y241: 1839.236065 | Z241: 2040.289307 | AA241: 690.5016479 | AB241: 450.0720825 | AC241: 450.0005331 | AD241: 450.0005331 | AE241: 450.0005331 | AF241: 449.828236 | AG241: 0.0004140060919
P242: 8.604964609 | Q242: 16.00513173 | R242: 417.2276295 | S242: -17.46340124 | T242: 3 | U242: 1688.347046 | V242: 1675.25632 | W242: 1682.200985 | X242: 1673.921637 | Y242: 1837.727645 | Z242: 2038.135254 | AA242: 753.9050293 | AB242: 450.1437073 | AC242: 450.0005331 | AD242: 450.0005331 | AE242: 450.0005331 | AF242: 449.828236 | AG242: 0.0004172277404
P243: 8.802656218 | Q243: 16.00513173 | R243: 420.3917097 | S243: -17.46340124 | T243: 3 | U243: 1676.580078 | V243: 1676.607042 | W243: 1717.644809 | X243: 1742.00252 | Y243: 1818.076596 | Z243: 2033.234619 | AA243: 824.135376 | AB243: 450.2723694 | AC243: 450.0009146 | AD243: 450.0005331 | AE243: 450.0005331 | AF243: 449.828236 | AG243: 0.0004203917633
P244: 9.003337004 | Q244: 16.00513173 | R244: 423.6036321 | S244: -17.46340124 | T244: 4 | U244: 1664.726318 | V244: 1665.947607 | W244: 1709.011458 | X244: 1754.76412 | Y244: 1801.031464 | Z244: 2026.0625 | AA244: 902.5754395 | AB244: 450.5027771 | AC244: 450.0023981 | AD244: 450.0007451 | AE244: 450.0005331 | AF244: 449.828236 | AG244: 0.0004236036912
P245: 9.203474621 | Q245: 16.00513173 | R245: 426.806861 | S245: -17.46340124 | T245: 2 | U245: 1652.988647 | V245: 1654.398336 | W245: 1697.284049 | X245: 1754.083932 | Y245: 1780.19392 | Z245: 2017.213989 | AA245: 986.7018433 | AB245: 450.8948975 | AC245: 450.0047293 | AD245: 450.0023557 | AE245: 450.0007874 | AF245: 449.828236 | AG245: 0.0004268069169
P246: 9.402024643 | Q246: 16.00513927 | R246: 429.9846805 | S246: -17.46339984 | T246: 4 | U246: 1641.414307 | V246: 1662.830698 | W246: 1669.806164 | X246: 1686.951933 | Y246: 1804.953186 | Z246: 2007.169312 | AA246: 1074.432617 | AB246: 451.533783 | AC246: 450.0099427 | AD246: 450.0044326 | AE246: 450.0023133 | AF246: 449.8284479 | AG246: 0.0004299847351
P247: 9.603118362 | Q247: 16.00520261 | R247: 433.2032195 | S247: -17.46333775 | T247: 2 | U247: 1629.795654 | V247: 1635.925692 | W247: 1656.299368 | X247: 1696.526929 | Y247: 1785.494469 | Z247: 1996.027588 | AA247: 1165.886475 | AB247: 452.5688782 | AC247: 450.0204543 | AD247: 450.0092222 | AE247: 450.0043054 | AF247: 449.8302705 | AG247: 0.0004332032695
P248: 9.801544711 | Q248: 16.00526746 | R248: 436.37908 | S248: -17.46322654 | T248: 4 | U248: 1618.405396 | V248: 1619.608582 | W248: 1661.514751 | X248: 1706.729169 | Y248: 1750.586618 | Z248: 1984.33606 | AA248: 1256.851685 | AB248: 454.1492615 | AC248: 450.0405451 | AD248: 450.0188861 | AE248: 450.0088831 | AF248: 449.8320931 | AG248: 0.0004363791959
P249: 10.00475783 | Q249: 16.00541224 | R249: 439.6315728 | S249: -17.46306641 | T249: 2 | U249: 1606.819824 | V249: 1608.481731 | W249: 1645.699265 | X249: 1688.306488 | Y249: 1743.641953 | Z249: 1971.846436 | AA249: 1348.895874 | AB249: 456.5848083 | AC249: 450.078904 | AD249: 450.038341 | AE249: 450.0184622 | AF249: 449.8363316 | AG249: 0.0004396316945
P300: 0.2076580759 | Q300: 63.33682524 | R300: 13.40273464 | S300: 0 | T300: 2 | U300: 4767.498047 | V300: 5194.096253 | W300: 15191.25497 | X300: 15193.00029 | Y300: 15174.08678 | Z300: 300 | AA300: 300 | AB300: 300 | AC300: 1760.999166 | AD300: 1761.000004 | AE300: 1761.000004 | AF300: 1669.614576 | AG300: 1.340273411e-05
P301: 0.4029368492 | Q301: 62.76519141 | R301: 25.69678482 | S301: -0.00523104866 | T301: 0 | U301: 4749.848633 | V301: 4961.208811 | W301: 14945.51211 | X301: 15192.96623 | Y301: 15174.23212 | Z301: 300 | AA301: 300 | AB301: 300 | AC301: 1760.320479 | AD301: 1761.000004 | AE301: 1761.000004 | AF301: 1655.92463 | AG301: 2.569678509e-05
P302: 0.6090644432 | Q302: 62.65818012 | R302: 38.61979193 | S302: -0.006938064615 | T302: 0 | U302: 4723.900879 | V302: 4873.275605 | W302: 13936.47324 | X302: 15222.76955 | Y302: 15141.39578 | Z302: 300 | AA302: 300 | AB302: 300 | AC302: 1741.707389 | AD302: 1761.000004 | AE302: 1761.000004 | AF302: 1653.347151 | AG302: 3.861979349e-05
P303: 0.8027863176 | Q303: 62.63890945 | R303: 50.75561439 | S303: -0.007416105155 | T303: 1 | U303: 4696.683105 | V303: 4781.110249 | W303: 12659.97095 | X303: 15180.4685 | Y303: 15182.89174 | Z303: 300.0031433 | AA303: 300 | AB303: 300 | AC303: 1649.422471 | AD303: 1761.000004 | AE303: 1761.000004 | AF303: 1652.881967 | AG303: 5.075561057e-05
P304: 1.006334159 | Q304: 62.63458724 | R304: 63.50505937 | S304: -0.007538820567 | T304: 0 | U304: 4666.571289 | V304: 4704.586927 | W304: 11350.67659 | X304: 15015.28636 | Y304: 15207.1207 | Z304: 300.0830994 | AA304: 300 | AB304: 300 | AC304: 1428.476876 | AD304: 1761.000004 | AE304: 1761.000004 | AF304: 1652.775814 | AG304: 6.35050601e-05
P305: 1.208130322 | Q305: 62.63365294 | R305: 76.14435525 | S305: -0.007573374265 | T305: 1 | U305: 4635.831543 | V305: 4679.418867 | W305: 10038.98512 | X305: 14899.65001 | Y305: 15187.52359 | Z305: 300.9547729 | AA305: 300 | AB305: 300 | AC305: 1126.046235 | AD305: 1761.000004 | AE305: 1761.000004 | AF305: 1652.753195 | AG305: 7.61443589e-05
P306: 1.410142019 | Q306: 62.63345335 | R306: 88.79705957 | S306: -0.007582146542 | T306: 0 | U306: 4604.648438 | V306: 4627.051556 | W306: 9063.902238 | X306: 14471.51366 | Y306: 15214.20873 | Z306: 306.2629395 | AA306: 300 | AB306: 300 | AC306: 830.7293019 | AD306: 1760.999526 | AE306: 1761.000004 | AF306: 1652.748288 | AG306: 8.879706729e-05
P307: 1.601080958 | Q307: 62.63343065 | R307: 100.7562208 | S307: -0.007584186425 | T307: 1 | U307: 4574.936035 | V307: 4601.396919 | W307: 8176.277912 | X307: 14018.01848 | Y307: 15170.54617 | Z307: 326.0597839 | AA307: 300 | AB307: 300 | AC307: 614.6589207 | AD307: 1760.992465 | AE307: 1761.000004 | AF307: 1652.74781 | AG307: 0.000100756246
P308: 1.808006259 | Q308: 62.63342608 | R308: 113.7166616 | S308: -0.007584345351 | T308: 0 | U308: 4542.649902 | V308: 4571.115249 | W308: 7389.14811 | X308: 13350.25982 | Y308: 15080.37311 | Z308: 390.2226257 | AA308: 300 | AB308: 300 | AC308: 461.823416 | AD308: 1760.908571 | AE308: 1761.000004 | AF308: 1652.74769 | AG308: 0.0001137167128
P309: 2.004720463 | Q309: 62.63342605 | R309: 126.0375461 | S309: -0.007584372351 | T309: 1 | U309: 4511.973145 | V309: 4529.821134 | W309: 6895.272641 | X309: 12611.96041 | Y309: 15033.28236 | Z309: 536.3266602 | AA309: 300 | AB309: 300 | AC309: 379.6600114 | AD309: 1760.377087 | AE309: 1761.000004 | AF309: 1652.74769 | AG309: 0.0001260376157
P310: 2.201656458 | Q310: 62.63342602 | R310: 138.3723222 | S310: -0.00758437327 | T310: 0 | U310: 4481.276367 | V310: 4526.031561 | W310: 6126.548204 | X310: 11701.63157 | Y310: 14597.92286 | Z310: 820.796875 | AA310: 300 | AB310: 300 | AC310: 336.7224663 | AD310: 1758.03956 | AE310: 1761.000004 | AF310: 1652.74769 | AG310: 0.000138372372
P311: 2.406678983 | Q311: 62.63342599 | R311: 151.2135853 | S311: -0.007584374309 | T311: 1 | U311: 4449.495605 | V311: 4462.357416 | W311: 6064.203206 | X311: 11054.77929 | Y311: 14630.2607 | Z311: 1324.6073 | AA311: 300 | AB311: 300 | AC311: 315.5556831 | AD311: 1749.809507 | AE311: 1761.000004 | AF311: 1652.74769 | AG311: 0.0001512136805
P312: 2.601909661 | Q312: 62.63342596 | R312: 163.4415515 | S312: -0.007584375431 | T312: 1 | U312: 4419.322754 | V312: 4433.053444 | W312: 5738.600808 | X312: 10286.84576 | Y312: 14286.17118 | Z312: 2038.517578 | AA312: 300 | AB312: 300 | AC312: 306.5606866 | AD312: 1729.671017 | AE312: 1761.000004 | AF312: 1652.74769 | AG312: 0.0001634417567
P313: 2.804169444 | Q313: 62.63342594 | R313: 176.1097747 | S313: -0.007584376642 | T313: 0 | U313: 4388.220215 | V313: 4398.999234 | W313: 5509.110896 | X313: 9599.031227 | Y313: 13885.9702 | Z313: 3027.447998 | AA313: 300.0003662 | AB313: 300 | AC313: 302.5902599 | AD313: 1686.182749 | AE313: 1760.999885 | AF313: 1652.74769 | AG313: 0.0001761099847
P314: 3.003351875 | Q314: 62.63342591 | R314: 188.5852527 | S314: -0.007584377954 | T314: 1 | U314: 4357.753906 | V314: 4367.820774 | W314: 5302.175034 | X314: 8944.013296 | Y314: 13401.91997 | Z314: 4217.369629 | AA314: 300.0023804 | AB314: 300 | AC314: 301.0044528 | AD314: 1611.522869 | AE314: 1760.99773 | AF314: 1652.74769 | AG314: 0.0001885855163
P315: 3.20828624 | Q315: 62.63342588 | R315: 201.4209941 | S315: -0.007584379374 | T315: 0 | U315: 4326.589355 | V315: 4335.664899 | W315: 5131.807464 | X315: 8346.023776 | Y315: 12845.1113 | Z315: 5599.84082 | AA315: 300.0122986 | AB315: 300 | AC315: 300.3700163 | AD315: 1496.551781 | AE315: 1760.990789 | AF315: 1652.74769 | AG315: 0.0002014212951
P316: 3.404660653 | Q316: 62.63342585 | R316: 213.7205963 | S316: -0.007584380874 | T316: 1 | U316: 4296.912598 | V316: 4301.301539 | W316: 5055.523739 | X316: 7996.815819 | Y316: 12235.55235 | Z316: 6993.823242 | AA316: 300.0500183 | AB316: 300 | AC316: 300.1390999 | AD316: 1353.177204 | AE316: 1760.955724 | AF316: 1652.74769 | AG316: 0.0002137209813
P317: 3.602149565 | Q317: 62.63342582 | R317: 226.0900035 | S317: -0.007584382444 | T317: 0 | U317: 4267.242188 | V317: 4275.103547 | W317: 4876.632254 | X317: 7370.664962 | Y317: 11666.98518 | Z317: 8382.089844 | AA317: 300.179718 | AB317: 300 | AC317: 300.0515863 | AD317: 1186.63057 | AE317: 1760.811753 | AF317: 1652.74769 | AG317: 0.0002260904148
P318: 3.802467765 | Q318: 62.63342579 | R318: 238.6366186 | S318: -0.007584384112 | T318: 1 | U318: 4237.342773 | V318: 4244.808534 | W318: 4774.084109 | X318: 6956.473017 | Y318: 11048.376 | Z318: 9704.069336 | AA318: 300.5782471 | AB318: 300 | AC318: 300.0189145 | AD318: 1010.270201 | AE318: 1760.313778 | AF318: 1652.74769 | AG318: 0.0002386370907
P319: 4.006965709 | Q319: 62.63342576 | R319: 251.4450254 | S319: -0.007584385911 | T319: 0 | U319: 4207.021973 | V319: 4214.733817 | W319: 4674.205897 | X319: 6549.496848 | Y319: 10446.46376 | Z319: 10907.75977 | AA319: 301.7020264 | AB319: 300 | AC319: 300.0072161 | AD319: 838.8841375 | AE319: 1758.812313 | AF319: 1652.74769 | AG319: 0.0002514454827
P320: 4.203127511 | Q320: 62.63340306 | R320: 263.7313086 | S320: -0.007585193788 | T320: 1 | U320: 4178.130859 | V320: 4185.190814 | W320: 4605.386631 | X320: 6263.050064 | Y320: 9851.033176 | Z320: 11892.37305 | AA320: 304.352478 | AB320: 300 | AC320: 300.0035361 | AD320: 694.6988703 | AE320: 1755.192688 | AF320: 1652.747092 | AG320: 0.0002637317521
P321: 4.407062224 | Q321: 62.63332592 | R321: 276.5044261 | S321: -0.007588348427 | T321: 0 | U321: 4148.297363 | V321: 4154.164516 | W321: 4553.403983 | X321: 6056.385028 | Y321: 9211.329675 | Z321: 12728.34277 | AA321: 310.5203552 | AB321: 300 | AC321: 300.0023692 | AD321: 572.4102053 | AE321: 1746.92039 | AF321: 1652.744937 | AG321: 0.000276504783
P322: 4.610130103 | Q322: 62.63325787 | R322: 289.2232357 | S322: -0.007593636044 | T322: 1 | U322: 4118.793457 | V322: 4125.491335 | W322: 4473.855587 | X322: 5732.066924 | Y322: 8740.140548 | Z322: 13373.00879 | AA322: 323.3619995 | AB322: 300 | AC322: 300.0021897 | AD322: 480.026643 | AE322: 1730.616823 | AF322: 1652.743142 | AG322: 0.0002892235934
P323: 4.802818578 | Q323: 62.63316713 | R323: 301.2919343 | S323: -0.007599329102 | T323: 0 | U323: 4090.985107 | V323: 4098.445948 | W323: 4404.281188 | X323: 5445.610488 | Y323: 8351.107578 | Z323: 13825.03418 | AA323: 346.3737793 | AB323: 300 | AC323: 300.0021897 | AD323: 416.7336037 | AE323: 1703.751061 | AF323: 1652.740629 | AG323: 0.0003012924863
P324: 5.003848833 | Q324: 62.63284056 | R324: 313.8830683 | S324: -0.007613425918 | T324: 1 | U324: 4062.173096 | V324: 4068.609693 | W324: 4370.538683 | X324: 5342.571223 | Y324: 7808.480634 | Z324: 14146.80371 | AA324: 388.9158325 | AB324: 300 | AC324: 300.0021897 | AD324: 371.5076591 | AE324: 1659.397052 | AF324: 1652.731414 | AG324: 0.0003138836182
P325: 5.205201334 | Q325: 62.63167948 | R325: 326.4942474 | S325: -0.00766834933 | T325: 0 | U325: 4033.511475 | V325: 4040.285975 | W325: 4315.725707 | X325: 5134.133613 | Y325: 7446.240678 | Z325: 14334.97168 | AA325: 460.2808838 | AB325: 300.0003052 | AC325: 300.0021897 | AD325: 342.1318268 | AE325: 1594.722164 | AF325: 1652.698742 | AG325: 0.0003264947154
P326: 5.404427086 | Q326: 62.62806479 | R326: 338.9717739 | S326: -0.00785610416 | T326: 1 | U326: 4005.351562 | V326: 4011.594342 | W326: 4281.111393 | X326: 5038.781938 | Y326: 7016.582709 | Z326: 14404.74219 | AA326: 571.8889771 | AB326: 300.000824 | AC326: 300.0021897 | AD326: 324.1416842 | AE326: 1508.89321 | AF326: 1652.598333 | AG326: 0.0003389723424
P327: 5.602185501 | Q327: 62.61835007 | R327: 351.35614 | S327: -0.008407156021 | T327: 0 | U327: 3977.5896 | V327: 3983.472181 | W327: 4246.508151 | X327: 4947.839557 | Y327: 6637.402801 | Z327: 14374.29883 | AA327: 736.5828247 | AB327: 300.0017395 | AC327: 300.0021897 | AD327: 313.4373742 | AE327: 1403.355763 | AF327: 1652.327266 | AG327: 0.0003513567208
P328: 5.809162982 | Q328: 62.59248048 | R328: 364.314285 | S328: -0.009945603556 | T328: 1 | U328: 3948.738525 | V328: 3954.828809 | W328: 4201.611258 | X328: 4801.90081 | Y328: 6366.891586 | Z328: 14247.70215 | AA328: 982.8840942 | AB328: 300.0048828 | AC328: 300.0021897 | AD328: 307.0606663 | AE328: 1275.151774 | AF328: 1651.612077 | AG328: 0.0003643148812
P329: 6.005456344 | Q329: 62.53697247 | R329: 376.5957029 | S329: -0.0136562208 | T329: 0 | U329: 3921.566162 | V329: 3928.951606 | W329: 4139.071232 | X329: 4533.042655 | Y329: 6355.886522 | Z329: 14048.7998 | AA329: 1299.825562 | AB329: 300.0134888 | AC329: 300.0021897 | AD329: 303.7247359 | AE329: 1143.131532 | AF329: 1650.084762 | AG329: 0.0003765963484
P330: 6.209700423 | Q330: 62.41674067 | R330: 389.3569088 | S330: -0.0219867145 | T330: 1 | U330: 3893.494873 | V330: 3899.441534 | W330: 4130.683866 | X330: 4620.692828 | Y330: 5849.993089 | Z330: 13769.22363 | AA330: 1728.310913 | AB330: 300.0375061 | AC330: 300.0021897 | AD330: 301.8672027 | AE330: 1002.767724 | AF330: 1646.794488 | AG330: 0.000389357534
P331: 6.404024138 | Q331: 62.20025543 | R331: 401.4658083 | S331: -0.03870235432 | T331: 0 | U331: 3866.973633 | V331: 3870.440751 | W331: 4148.038289 | X331: 4889.721598 | Y331: 5099.691617 | Z331: 13443.41602 | AA331: 2235.375977 | AB331: 300.0936584 | AC331: 300.0021897 | AD331: 300.9439562 | AE331: 873.6087738 | AF331: 1640.892987 | AG331: 0.0004014664737
P332: 6.606002137 | Q332: 61.80383072 | R332: 413.9899944 | S332: -0.07042937885 | T332: 1 | U332: 3839.592529 | V332: 3845.449268 | W332: 4064.84936 | X332: 4472.599683 | Y332: 5451.547647 | Z332: 13051.43945 | AA332: 2867.01709 | AB332: 300.2297363 | AC332: 300.0021897 | AD332: 300.4553758 | AE332: 750.2980092 | AF332: 1630.136797 | AG332: 0.000413990696
P333: 6.809063404 | Q333: 61.14698699 | R333: 426.4749397 | S333: -0.1273339499 | T333: 0 | U333: 3812.265137 | V333: 3815.532674 | W333: 4081.374557 | X333: 4764.133392 | Y333: 4688.643692 | Z333: 12612.43457 | AA333: 3602.964355 | AB333: 300.5334473 | AC333: 300.0021897 | AD333: 300.2141373 | AE333: 641.9655116 | AF333: 1612.37413 | AG333: 0.0004264756863
P334: 7.009014715 | Q334: 60.14984337 | R334: 438.6021658 | S334: -0.2225712607 | T334: 1 | U334: 3785.540527 | V334: 3791.289227 | W334: 4002.084781 | X334: 4351.894289 | Y334: 5127.358427 | Z334: 12145.54199 | AA334: 4414.728027 | AB334: 301.1630249 | AC334: 300.0021897 | AD334: 300.1007735 | AE334: 552.9782268 | AF334: 1585.520576 | AG334: 0.0004386028741
P335: 7.210038425 | Q335: 58.70844995 | R335: 450.5492897 | S335: -0.370956856 | T335: 0 | U335: 3758.864258 | V335: 3763.721776 | W335: 3990.156808 | X335: 4440.21812 | Y335: 4747.186342 | Z335: 11651.56543 | AA335: 5298.850098 | AB335: 302.4186096 | AC335: 300.0021897 | AD335: 300.0470386 | AE335: 481.2841468 | AF335: 1546.8116 | AG335: 0.0004505500256
P336: 7.410920384 | Q336: 56.75531638 | R336: 462.1434764 | S336: -0.5962205126 | T336: 1 | U336: 3732.392822 | V336: 3738.044144 | W336: 3942.188002 | X336: 4250.43484 | Y336: 4872.152558 | Z336: 11142.79199 | AA336: 6227.795898 | AB336: 304.8054504 | AC336: 300.0021897 | AD336: 300.0225946 | AE336: 426.242223 | AF336: 1494.396881 | AG336: 0.0004621442058
P337: 7.608879579 | Q337: 54.2874312 | R337: 473.1298057 | S337: -0.9162968667 | T337: 0 | U337: 3706.487549 | V337: 3712.753731 | W337: 3898.128285 | X337: 4082.69973 | Y337: 4988.871079 | Z337: 10635.59961 | AA337: 7162.299805 | AB337: 309.0403137 | AC337: 300.0021897 | AD337: 300.0118835 | AE337: 385.9226374 | AF337: 1428.480467 | AG337: 0.0004731305235
P338: 7.803969583 | Q338: 51.33284547 | R338: 483.4219933 | S338: -1.35936884 | T338: 1 | U338: 3681.135986 | V338: 3686.705062 | W338: 3885.440354 | X338: 4163.054073 | Y338: 4675.418936 | Z338: 10137.9375 | AA338: 8076.933105 | AB338: 316.2256775 | AC338: 300.0021897 | AD338: 300.0073957 | AE338: 357.3334705 | AF338: 1349.830563 | AG338: 0.0004834226856
P339: 8.0002146 | Q339: 47.8063901 | R339: 493.1468174 | S339: -1.951390199 | T339: 1 | U339: 3655.807617 | V339: 3661.271003 | W339: 3859.416099 | X339: 4137.273675 | Y339: 4565.673184 | Z339: 9646.373047 | AA339: 8966.96582 | AB339: 328.1287231 | AC339: 300.0030574 | AD339: 300.0057202 | AE339: 337.2040157 | AF339: 1258.691549 | AG339: 0.0004931474105
P340: 8.203525243 | Q340: 43.96684686 | R340: 502.4672928 | S340: -2.756961669 | T340: 0 | U340: 3629.751221 | V340: 3635.221199 | W340: 3829.896659 | X340: 4088.409214 | Y340: 4505.715371 | Z340: 9152.966797 | AA340: 9834.251953 | AB340: 347.9552307 | AC340: 300.0059894 | AD340: 300.0053312 | AE340: 323.1823851 | AF340: 1154.470189 | AG340: 0.0005024678539
P341: 8.401853207 | Q341: 39.82499624 | R341: 510.7631557 | S341: -3.808885736 | T341: 1 | U341: 3604.512451 | V341: 3609.95378 | W341: 3802.308201 | X341: 4049.635993 | Y341: 4441.321295 | Z341: 8692.103516 | AA341: 10607.8291 | AB341: 377.938446 | AC341: 300.0133795 | AD341: 300.0053312 | AE341: 314.2656572 | AF341: 1047.116886 | AG341: 0.0005107637844
P342: 8.609525365 | Q342: 35.59162253 | R342: 518.5773751 | S342: -5.172284017 | T342: 0 | U342: 3578.272705 | V342: 3583.655861 | W342: 3774.417406 | X342: 4016.470341 | Y342: 4369.321671 | Z342: 8235.223633 | AA342: 11325.35547 | AB342: 425.1936035 | AC342: 300.03172 | AD342: 300.0053312 | AE342: 308.37373 | AF342: 933.3779304 | AG342: 0.0005185779301
P343: 8.805863266 | Q343: 31.54622491 | R343: 525.1499009 | S343: -6.881687056 | T343: 1 | U343: 3553.641357 | V343: 3559.002201 | W343: 3747.669814 | X343: 3980.635324 | Y343: 4317.779895 | Z343: 7830.090332 | AA343: 11906.40723 | AB343: 490.0429382 | AC343: 300.070196 | AD343: 300.0053312 | AE343: 304.9514828 | AF343: 828.9007005 | AG343: 0.0005251505645
P344: 9.000888682 | Q344: 27.91838892 | R344: 530.9300434 | S344: -8.913004165 | T344: 0 | U344: 3529.342773 | V344: 3534.667626 | W344: 3721.602693 | X344: 3948.239283 | Y344: 4266.897299 | Z344: 7454.958984 | AA344: 12384.25488 | AB344: 579.7141724 | AC344: 300.1493921 | AD344: 300.0053312 | AE344: 302.8796982 | AF344: 731.6470414 | AG344: 0.0005309308181
P345: 9.201584138 | Q345: 24.46724282 | R345: 536.1618129 | S345: -11.36607248 | T345: 0 | U345: 3504.510742 | V345: 3509.273311 | W345: 3711.583559 | X345: 4068.23894 | Y345: 3915.093503 | Z345: 7097.944824 | AA345: 12770.62988 | AB345: 704.9124756 | AC345: 300.3126911 | AD345: 300.0053312 | AE345: 301.6152831 | AF345: 641.1458453 | AG345: 0.000536162639
P346: 9.402971786 | Q346: 21.44877916 | R346: 540.7589878 | S346: -14.28596397 | T346: 1 | U346: 3479.768066 | V346: 3485.015101 | W346: 3668.842769 | X346: 3886.437072 | Y346: 4169.020756 | Z346: 6769.368164 | AA346: 13051.35059 | AB346: 871.5872192 | AC346: 300.6327966 | AD346: 300.0053312 | AE346: 300.8881569 | AF346: 561.9804338 | AG346: 0.0005407598801
P347: 9.600607731 | Q347: 18.93391585 | R347: 544.7282463 | S347: -17.52231254 | T347: 0 | U347: 3455.655029 | V347: 3461.45326 | W347: 3630.718508 | X347: 3728.807112 | Y347: 4384.363288 | Z347: 6474.918945 | AA347: 13226.9043 | AB347: 1081.859619 | AC347: 301.2177168 | AD347: 300.0053312 | AE347: 300.4847564 | AF347: 496.285272 | AG347: 0.0005447292351
P348: 9.806138599 | Q348: 16.79336066 | R348: 548.3783684 | S348: -21.0719196 | T348: 1 | U348: 3430.758545 | V348: 3435.922965 | W348: 3616.962036 | X348: 3828.593346 | Y348: 4080.521769 | Z348: 6197.171387 | AA348: 13309.36133 | AB348: 1356.942261 | AC348: 302.3246373 | AD348: 300.0053312 | AE348: 300.2547676 | AF348: 440.4896239 | AG348: 0.0005483793793
P349: 10.00347689 | Q349: 15.12754974 | R349: 551.5154994 | S349: -24.68908978 | T349: 1 | U349: 3407.021729 | V349: 3412.151049 | W349: 3591.779214 | X349: 3800.102703 | Y349: 4042.709212 | Z349: 5956.145996 | AA349: 13299.99219 | AB349: 1680.293457 | AC349: 304.1822902 | AD349: 300.0055107 | AE349: 300.1358388 | AF349: 397.9834238 | AG349: 0.0005515164812
P400: 0.2003260914 | Q400: 19.52760563 | R400: 3.912344604 | S400: 0 | T400: 0 | U400: 764.9981689 | V400: 863.0975952 | W400: 2000 | X400: 2000 | Y400: 1999.999023 | Z400: 500 | AA400: 500 | AB400: 500 | AC400: 549 | AD400: 549 | AE400: 549 | AF400: 548.8247681 | AG400: 3.912344255e-06
P401: 0.4006521827 | Q401: 19.52646768 | R401: 7.82408086 | S401: -3.115442111e-05 | T401: 0 | U401: 759.6097412 | V401: 773.2000732 | W401: 2000 | X401: 2000 | Y401: 1999.998535 | Z401: 500 | AA401: 500 | AB401: 500 | AC401: 548.9815063 | AD401: 549 | AE401: 549 | AF401: 548.7957153 | AG401: 7.824080967e-06
P402: 0.6009782741 | Q402: 19.52627657 | R402: 11.73571632 | S402: -4.147893252e-05 | T402: 0 | U402: 754.2234497 | V402: 758.1419678 | W402: 1999.984985 | X402: 2000 | Y402: 1999.998657 | Z402: 500 | AA402: 500 | AB402: 500 | AC402: 548.4197998 | AD402: 549 | AE402: 549 | AF402: 548.7907715 | AG402: 1.173571673e-05
P403: 0.8013043654 | Q403: 19.52625051 | R403: 15.64733503 | S403: -4.405418674e-05 | T403: 0 | U403: 748.8708496 | V403: 751.3609009 | W403: 1998.88623 | X403: 2000 | Y403: 1999.999146 | Z403: 500.0002441 | AA403: 500 | AB403: 500 | AC403: 545.1898804 | AD403: 549 | AE403: 549 | AF403: 548.7901611 | AG403: 1.564734157e-05
P404: 1.001630457 | Q404: 19.52625051 | R404: 19.55895247 | S404: -4.431217973e-05 | T404: 0 | U404: 743.555481 | V404: 745.7930908 | W404: 1984.639038 | X404: 2000 | Y404: 1999.99939 | Z404: 500.0072937 | AA404: 500 | AB404: 500 | AC404: 537.5153809 | AD404: 549 | AE404: 549 | AF404: 548.7901611 | AG404: 1.955896732e-05
P405: 1.201956548 | Q405: 19.52625051 | R405: 23.47056992 | S405: -4.431218246e-05 | T405: 0 | U405: 738.277771 | V405: 740.4568481 | W405: 1918.092041 | X405: 2000 | Y405: 1999.999512 | Z405: 500.0855408 | AA405: 500 | AB405: 500 | AC405: 526.9033203 | AD405: 549 | AE405: 549 | AF405: 548.7901611 | AG405: 2.347059308e-05
P406: 1.402282639 | Q406: 19.52625051 | R406: 27.38218736 | S406: -4.431218574e-05 | T406: 0 | U406: 733.0374756 | V406: 735.1928101 | W406: 1759.179565 | X406: 2000 | Y406: 1999.999512 | Z406: 500.5727539 | AA406: 500 | AB406: 500 | AC406: 516.6864624 | AD406: 549 | AE406: 549 | AF406: 548.7901611 | AG406: 2.738221883e-05
P407: 1.602608731 | Q407: 19.52625051 | R407: 31.29380481 | S407: -4.431218957e-05 | T407: 0 | U407: 727.8343506 | V407: 729.9728394 | W407: 1521.360352 | X407: 1999.995728 | Y407: 1999.999512 | Z407: 502.5856934 | AA407: 500 | AB407: 500 | AC407: 509.0859375 | AD407: 548.9993896 | AE407: 549 | AF407: 548.7901611 | AG407: 3.129383913e-05
P408: 1.802934822 | Q408: 19.52625051 | R408: 35.20542225 | S408: -4.431219394e-05 | T408: 0 | U408: 722.6680298 | V408: 724.7910156 | W408: 1267.669922 | X408: 1999.926147 | Y408: 1999.999512 | Z408: 508.7046509 | AA408: 500 | AB408: 500 | AC408: 504.4216309 | AD408: 548.9968872 | AE408: 549 | AF408: 548.7901611 | AG408: 3.520543032e-05
P409: 2.003260914 | Q409: 19.52625051 | R409: 39.11703969 | S409: -4.431219886e-05 | T409: 0 | U409: 717.5384521 | V409: 719.6463013 | W409: 1057.316162 | X409: 1999.302124 | Y409: 1999.999512 | Z409: 523.3647461 | AA409: 500 | AB409: 500 | AC409: 501.9553223 | AD409: 548.9789429 | AE409: 549 | AF409: 548.7901611 | AG409: 3.911702152e-05
P410: 2.203587005 | Q410: 19.52625051 | R410: 43.02865714 | S410: -4.431220433e-05 | T410: 0 | U410: 712.4453735 | V410: 714.538208 | W410: 913.0338745 | X410: 1995.877563 | Y410: 1999.999512 | Z410: 552.4192505 | AA410: 500 | AB410: 500 | AC410: 500.7969666 | AD410: 548.8934937 | AE410: 549 | AF410: 548.7901611 | AG410: 4.302861271e-05
P411: 2.403913096 | Q411: 19.52625051 | R411: 46.94027458 | S411: -4.431221035e-05 | T411: 0 | U411: 707.3884277 | V411: 709.4664307 | W411: 827.0148315 | X411: 1983.222656 | Y411: 1999.999512 | Z411: 601.7536621 | AA411: 500 | AB411: 500 | AC411: 500.3030396 | AD411: 548.6002197 | AE411: 549 | AF411: 548.7901611 | AG411: 4.69402039e-05
P412: 2.604239188 | Q412: 19.52625051 | R412: 50.85189203 | S412: -4.43122169e-05 | T412: 0 | U412: 702.3674316 | V412: 704.4306641 | W412: 780.2733154 | X412: 1949.353027 | Y412: 1999.999146 | Z412: 675.4370117 | AA412: 500 | AB412: 500 | AC412: 500.1086731 | AD412: 547.8280029 | AE412: 549 | AF412: 548.7901611 | AG412: 5.085179509e-05
P413: 2.804565279 | Q413: 19.52625051 | R413: 54.76350947 | S413: -4.431222402e-05 | T413: 0 | U413: 697.381958 | V413: 699.430603 | W413: 755.7322998 | X413: 1879.970337 | Y413: 1999.996704 | Z413: 774.2077026 | AA413: 500 | AB413: 500 | AC413: 500.0372314 | AD413: 546.2000732 | AE413: 548.9997559 | AF413: 548.7901611 | AG413: 5.476338629e-05
P414: 3.00489137 | Q414: 19.52625051 | R414: 58.67512692 | S414: -4.431223166e-05 | T414: 0 | U414: 692.4320068 | V414: 694.4660034 | W414: 742.2283325 | X414: 1766.401489 | Y414: 1999.980713 | Z414: 894.9320068 | AA414: 500.0004883 | AB414: 500 | AC414: 500.0126343 | AD414: 543.3612671 | AE414: 548.9985962 | AF414: 548.7901611 | AG414: 5.867497748e-05
P415: 3.205217462 | Q415: 19.52625051 | R415: 62.58674436 | S415: -4.431223987e-05 | T415: 0 | U415: 687.5170898 | V415: 689.5366821 | W415: 733.7025146 | X415: 1612.706421 | Y415: 1999.876343 | Z415: 1031.184692 | AA415: 500.0014038 | AB415: 500 | AC415: 500.0046692 | AD415: 539.1573486 | AE415: 548.9974365 | AF415: 548.7901611 | AG415: 6.258657231e-05
P416: 3.405543553 | Q416: 19.52625051 | R416: 66.4983618 | S416: -4.431224861e-05 | T416: 0 | U416: 682.637085 | V416: 684.642395 | W416: 727.2631836 | X416: 1435.921997 | Y416: 1999.382202 | Z416: 1174.640869 | AA416: 500.0050049 | AB416: 500 | AC416: 500.0023804 | AD416: 533.7583618 | AE416: 548.9962158 | AF416: 548.7901611 | AG416: 6.649816351e-05
P417: 3.605869644 | Q417: 19.52625051 | R417: 70.40997925 | S417: -4.431225789e-05 | T417: 0 | U417: 677.791748 | V417: 679.7827759 | W417: 721.6572266 | X417: 1259.117188 | Y417: 1997.559814 | Z417: 1316.729858 | AA417: 500.0180054 | AB417: 500 | AC417: 500.0019531 | AD417: 527.6402588 | AE417: 548.991272 | AF417: 548.7901611 | AG417: 7.04097547e-05
P418: 3.806195736 | Q418: 19.52625051 | R418: 74.32159669 | S418: -4.431226777e-05 | T418: 0 | U418: 672.9807739 | V418: 674.9577026 | W418: 716.3814087 | X418: 1102.384155 | Y418: 1992.155273 | Z418: 1450.05127 | AA418: 500.0576782 | AB418: 500 | AC418: 500.0019531 | AD418: 521.4342651 | AE418: 548.9724731 | AF418: 548.7901611 | AG418: 7.432134589e-05
P419: 4.006521827 | Q419: 19.526244 | R419: 78.233214 | S419: -4.444595848e-05 | T419: 0 | U419: 668.2040405 | V419: 670.1669312 | W419: 711.2451172 | X419: 977.1364136 | Y419: 1978.920166 | Z419: 1569.252686 | AA419: 500.1662598 | AB419: 500 | AC419: 500.0019531 | AD419: 515.7307739 | AE419: 548.9154663 | AF419: 548.789917 | AG419: 7.823293708e-05
... 80 more rows

Sheet probability vert
A2: Target sheet | C2: Vertical 3Layers
A3: Number of variables | C3: 4
K5: 0.5 | L5: 0.1 | M5: 0.9 | N5: Average | O5: Stdevp
A6: Variables | F6: Rate | G6: start | K6: =PERCENTILE(P6:CR6,0.5) -> 0 | L6: =PERCENTILE(P6:CR6,0.1) -> 0 | M6: =PERCENTILE(P6:CR6,0.9) -> 0 | N6: =AVERAGE(P6:CR6) -> 0 | O6: =STDEVP(P6:CR6) -> 0 | P6: 0 | Q6: 0 | R6: 0 | S6: 0 | T6: 0 | U6: 0 | V6: 0 | W6: 0 | X6: 0 | Y6: 0 | Z6: 0 | AA6: 0 | AB6: 0 | AC6: 0 | AD6: 0 | AE6: 0 | AF6: 0 | AG6: 0 | AH6: 0 | AI6: 0 | AJ6: 0 | AK6: 0 | AL6: 0 | AM6: 0 | AN6: 0 | AO6: 0 | AP6: 0 | AQ6: 0 | AR6: 0 | AS6: 0 | AT6: 0 | AU6: 0 | AV6: 0 | AW6: 0 | AX6: 0 | AY6: 0 | AZ6: 0 | BA6: 0 | BB6: 0 | BC6: 0 | BD6: 0 | BE6: 0 | BF6: 0 | BG6: 0 | BH6: 0 | BI6: 0 | BJ6: 0 | BK6: 0 | BL6: 0 | BM6: 0 | BN6: 0 | BO6: 0 | BP6: 0 | BQ6: 0 | BR6: 0 | BS6: 0 | BT6: 0 | BU6: 0 | BV6: 0 | BW6: 0 | BX6: 0 | BY6: 0 | BZ6: 0 | CA6: 0 | CB6: 0 | CC6: 0 | CD6: 0 | CE6: 0 | CF6: 0 | CG6: 0 | CH6: 0 | CI6: 0 | CJ6: 0 | CK6: 0 | CL6: 0 | CM6: 0 | CN6: 0 | CO6: 0 | CP6: 0 | CQ6: 0 | CR6: 0
D7: 1=lin | F7: Rate | G7: half time | K7: =PERCENTILE(P7:CR7,0.5) -> 5.43355709e-22 | L7: =PERCENTILE(P7:CR7,0.1) -> 1.008522555e-44 | M7: =PERCENTILE(P7:CR7,0.9) -> 3.044733094e-07 | N7: =AVERAGE(P7:CR7) -> 1.538377648e-05 | O7: =STDEVP(P7:CR7) -> 7.967321594e-05 | P7: 0.0005514558145 | Q7: 4.218905286e-06 | R7: 4.702772392e-08 | S7: 0.0003670399091 | T7: 7.589706728e-07 | U7: 1.637906594e-09 | V7: 0.0003072670755 | W7: 3.044733094e-07 | X7: 2.307138245e-10 | Y7: 1.532151854e-12 | Z7: 8.167186624e-16 | AA7: 1.780553487e-18 | AB7: 2.209232767e-13 | AC7: 4.524347741e-18 | AD7: 5.43355709e-22 | AE7: 7.261967413e-14 | AF7: 1.308677863e-19 | AG7: 1.721629799e-24 | AH7: 8.469088995e-26 | AI7: 6.151832496e-30 | AJ7: 3.769182499e-33 | AK7: 3.460176921e-28 | AL7: 1.067912918e-34 | AM7: 1.238245095e-39 | AN7: 3.771026762e-30 | AO7: 6.862168035e-39 | AP7: 2.682350114e-45 | AQ7: 8.191208277e-06 | AR7: 8.706729868e-09 | AS7: 1.927894953e-11 | AT7: 3.882968787e-06 | AU7: 4.681311353e-10 | AV7: 8.921617923e-14 | AW7: 2.740640829e-06 | AX7: 8.928623673e-11 | AY7: 3.334569673e-15 | AZ7: 7.79077606e-16 | BA7: 4.077453647e-20 | BB7: 1.497675959e-23 | BC7: 3.384367341e-17 | BD7: 1.609749439e-23 | BE7: 1.175406582e-28 | BF7: 4.700935433e-18 | BG7: 5.390823761e-26 | BH7: 1.931338092e-32 | BI7: 5.546213265e-30 | BJ7: 3.298779256e-35 | BK7: 3.234897714e-39 | BL7: 1.954496632e-33 | BM7: 8.558154802e-42 | BN7: 0 | BO7: 1.644864366e-36 | BP7: 0 | BQ7: 0 | BR7: 1.153169246e-07 | BS7: 1.61021525e-11 | BT7: 6.948597129e-15 | BU7: 3.387021149e-08 | BV7: 1.973860239e-13 | BW7: 3.186443051e-18 | BX7: 1.854316846e-08 | BY7: 1.37650181e-14 | BZ7: 2.443771021e-20 | CA7: 7.391602488e-19 | CB7: 3.902736322e-24 | CC7: 2.478185723e-28 | CD7: 7.665470172e-21 | CE7: 8.173854289e-29 | CF7: 3.655880203e-35 | CG7: 3.425699539e-22 | CH7: 2.129386389e-32 | CI7: 2.331521497e-40 | CJ7: 1.402856262e-33 | CK7: 7.027322982e-40 | CL7: 1.008522555e-44 | CM7: 3.41673703e-38 | CN7: 0 | CO7: 0 | CP7: 1.432127235e-42 | CQ7: 0 | CR7: 0
A8: Row-inr | B8: Column | C8: V% | D8: 2=log | F8: Rate | G8: end | K8: 2.778495169e-05 | L8: 2.478102745e-19 | M8: 8.598785934 | N8: =AVERAGE(P8:CR8) -> 1.639915882 | O8: =STDEVP(P8:CR8) -> 3.311827554 | P8: 12.02984496 | Q8: 9.655429105 | R8: 5.438631779 | S8: 12.03301089 | T8: 9.650973463 | U8: 4.999534491 | V8: 12.033026 | W8: 9.647536721 | X8: 4.815048848 | Y8: 0.09559148572 | Z8: 0.006262828829 | AA8: 0.0004343195304 | AB8: 0.07764063848 | AC8: 0.002276299796 | AD8: 4.838955832e-05 | AE8: 0.07097425229 | AF8: 0.001290496426 | AG8: 1.144237789e-05 | AH8: 1.975412412e-09 | AI8: 1.167821808e-11 | AJ8: 1.785800849e-13 | AK8: 3.317621153e-10 | AL8: 1.194268454e-13 | AM8: 1.425023868e-16 | AN8: 1.022789002e-10 | AO8: 2.663423398e-15 | AP8: 2.478102745e-19 | AQ8: 8.635233167 | AR8: 3.641309875 | AS8: 0.8304980655 | AT8: 8.61113138 | AU8: 3.324377646 | AV8: 0.5034218002 | AW8: 8.598785934 | AX8: 3.198081456 | AY8: 0.3870092487 | AZ8: 0.00294212969 | BA8: 4.237042231e-05 | BB8: 8.59817009e-07 | BC8: 0.001786067285 | BD8: 5.204194665e-06 | BE8: 1.447099306e-08 | BF8: 0.001408908645 | BG8: 1.372760738e-06 | BH8: 7.560644159e-10 | BI8: 2.981571773e-12 | BJ8: 3.409418806e-15 | BK8: 1.490712987e-17 | BL8: 1.593896719e-13 | BM8: 3.105509234e-18 | BN8: 4.006112006e-22 | BO8: 1.762423246e-14 | BP8: 5.317879436e-21 | BQ8: 1.826944736e-26 | BR8: 4.384985172 | BS8: 0.6765232306 | BT8: 0.05250602443 | BU8: 4.283997245 | BV8: 0.4747580993 | BW8: 0.01473392369 | BX8: 4.244575858 | BY8: 0.4003476857 | BZ8: 0.007041184023 | CA8: 7.107810046e-05 | CB8: 2.199566378e-07 | CC8: 1.318935322e-09 | CD8: 2.778495169e-05 | CE8: 6.63959161e-09 | CF8: 2.295557914e-12 | CG8: 1.697910438e-05 | CH8: 5.720468445e-10 | CI8: 1.707143264e-14 | CJ8: 8.764353312e-15 | CK8: 2.03420496e-18 | CL8: 2.584386382e-21 | CM8: 1.207509802e-16 | CN8: 1.281242337e-22 | CO8: 1.827552075e-27 | CP8: 3.409525704e-18 | CQ8: 1.062186796e-26 | CR8: 1.457568027e-33
A9: 1 | B9: 5 | C9: 50 | D9: 1 | E9: alpha for mortar | F9: Intercept | G9: half time | K9: 79.79466464 | L9: 0 | M9: 79.94856606 | N9: 68.92959461 | O9: 27.32522088 | P9: 79.07444932 | Q9: 79.39375276 | R9: 79.5462085 | S9: 79.15441731 | T9: 79.52482289 | U9: 79.68057961 | V9: 79.19011013 | W9: 79.58724909 | X9: 79.73724101 | Y9: 79.63002561 | Z9: 79.73882298 | AA9: 79.79466464 | AB9: 79.69497661 | AC9: 79.81834215 | AD9: 79.86953692 | AE9: 79.73193072 | AF9: 79.86081581 | AG9: 79.91418872 | AH9: 79.84562513 | AI9: 79.89632142 | AJ9: 79.90948441 | AK9: 79.86619414 | AL9: 79.92574232 | AM9: 79.94856606 | AN9: 79.90934192 | AO9: 79.95931491 | AP9: 0 | AQ9: 79.31427401 | AR9: 79.57548034 | AS9: 79.69394865 | AT9: 79.3993028 | AU9: 79.68886294 | AV9: 79.80391913 | AW9: 79.4391739 | AX9: 79.75028161 | AY9: 79.85293773 | AZ9: 79.70508507 | BA9: 79.80228114 | BB9: 79.84988898 | BC9: 79.77341267 | BD9: 79.87491865 | BE9: 79.91330909 | BF9: 79.81314386 | BG9: 79.91157432 | BH9: 79.94551445 | BI9: 79.87161449 | BJ9: 79.9290372 | BK9: 79.95851988 | BL9: 79.92328374 | BM9: 0 | BN9: 0 | BO9: 79.95525752 | BP9: 0 | BQ9: 0 | BR9: 79.45283693 | BS9: 79.67619668 | BT9: 79.77019056 | BU9: 79.54279383 | BV9: 79.7842504 | BW9: 79.86592209 | BX9: 79.58612697 | BY9: 79.84018749 | BZ9: 79.90126855 | CA9: 79.77440303 | CB9: 79.86401822 | CC9: 79.90593265 | CD9: 79.84495683 | CE9: 79.93054391 | CF9: 79.95580965 | CG9: 79.88585805 | CH9: 79.96314362 | CI9: 79.97372909 | CJ9: 79.90768574 | CK9: 79.95920581 | CL9: 0 | CM9: 79.96435638 | CN9: 0 | CO9: 0 | CP9: 0 | CQ9: 0 | CR9: 0
A10: 1 | B10: 7 | C10: 4 | D10: 2 | E10: D for mortar | F10: Intercept | G10: end | K10: 154.3777039 | L10: 142.1183996 | M10: 155.8656835 | N10: 151.8572428 | O10: 5.827838859 | P10: 130.6625764 | Q10: 140.8289245 | R10: 146.2461061 | S10: 130.9547691 | T10: 141.7602018 | U10: 147.7114996 | V10: 131.0689344 | W10: 142.1183996 | X10: 148.3241478 | Y10: 151.7169898 | Z10: 153.0562973 | AA10: 153.7357525 | AB10: 152.0313783 | AC10: 153.6587936 | AD10: 154.4279599 | AE10: 152.17271 | AF10: 153.9744204 | AG10: 154.8008858 | AH10: 154.7006817 | AI10: 155.0655253 | AJ10: 155.283761 | AK10: 154.9554504 | AL10: 155.4387969 | AM10: 155.6713017 | AN10: 155.1576679 | AO10: 155.6908651 | AP10: 155.9316054 | AQ10: 140.5908589 | AR10: 147.6769239 | AS10: 150.6574007 | AT10: 140.953497 | AU10: 148.6593019 | AV10: 151.8775676 | AW10: 141.0937866 | AX10: 149.0658173 | AY10: 152.4093806 | AZ10: 153.0844777 | BA10: 154.0700712 | BB10: 154.5661946 | BC10: 153.4220287 | BD10: 154.6272612 | BE10: 155.1649633 | BF10: 153.5766086 | BG10: 154.9243925 | BH10: 155.477048 | BI10: 155.0061152 | BJ10: 155.3476739 | BK10: 155.5503196 | BL10: 155.2973954 | BM10: 155.7327567 | BN10: 155.9292778 | BO10: 155.5406841 | BP10: 155.9789445 | BQ10: 156.1762479 | BR10: 146.0990947 | BS10: 150.8099214 | BT10: 152.6428039 | BU10: 146.514861 | BV10: 151.7223549 | BW10: 153.6459491 | BX10: 146.6744656 | BY10: 152.1168094 | BZ10: 154.1009082 | CA10: 153.8234423 | CB10: 154.6296835 | CC10: 155.0342393 | CD10: 154.1847072 | CE10: 155.1569208 | CF10: 155.5624971 | CG10: 154.3777039 | CH10: 155.4546803 | CI10: 155.8656835 | CJ10: 155.2416563 | CK10: 155.5591136 | CL10: 155.7561783 | CM10: 155.5351898 | CN10: 155.9250198 | CO10: 156.0948655 | CP10: 155.774561 | CQ10: 156.1886808 | CR10: 156.3412792
A11: 1 | B11: 8 | C11: 3.165 | D11: 2 | E11: k for mortar
A12: 1 | B12: 4 | C12: 15 | D12: 1 | E12: Thickness | F12: Rate | G12: start | K12: 0 | L12: 0 | M12: 0 | N12: 0 | O12: 0 | P12: 0 | Q12: 0 | R12: 0 | S12: 0 | T12: 0 | U12: 0 | V12: 0 | W12: 0 | X12: 0 | Y12: 0 | Z12: 0 | AA12: 0 | AB12: 0 | AC12: 0 | AD12: 0 | AE12: 0 | AF12: 0 | AG12: 0 | AH12: 0 | AI12: 0 | AJ12: 0 | AK12: 0 | AL12: 0 | AM12: 0 | AN12: 0 | AO12: 0 | AP12: 0 | AQ12: 0 | AR12: 0 | AS12: 0 | AT12: 0 | AU12: 0 | AV12: 0 | AW12: 0 | AX12: 0 | AY12: 0 | AZ12: 0 | BA12: 0 | BB12: 0 | BC12: 0 | BD12: 0 | BE12: 0 | BF12: 0 | BG12: 0 | BH12: 0 | BI12: 0 | BJ12: 0 | BK12: 0 | BL12: 0 | BM12: 0 | BN12: 0 | BO12: 0 | BP12: 0 | BQ12: 0 | BR12: 0 | BS12: 0 | BT12: 0 | BU12: 0 | BV12: 0 | BW12: 0 | BX12: 0 | BY12: 0 | BZ12: 0 | CA12: 0 | CB12: 0 | CC12: 0 | CD12: 0 | CE12: 0 | CF12: 0 | CG12: 0 | CH12: 0 | CI12: 0 | CJ12: 0 | CK12: 0 | CL12: 0 | CM12: 0 | CN12: 0 | CO12: 0 | CP12: 0 | CQ12: 0 | CR12: 0
F13: Rate | G13: half time | K13: 7.282295459e-08 | L13: 4.13035464e-22 | M13: 0.05901077625 | N13: 0.1608517502 | O13: 0.6677359565 | P13: 4.948204425 | Q13: 0.4388150673 | R13: 0.03296597273 | S13: 2.76508129 | T13: 0.01267687844 | U13: 4.109893067e-05 | V13: 1.271332266 | W13: 4.66033327e-05 | X13: 1.71638287e-09 | Y13: 0.5170609483 | Z13: 0.01248537845 | AA13: 0.0004048372196 | AB13: 0.0419380213 | AC13: 1.456970758e-05 | AD13: 1.124909719e-08 | AE13: 0.0008019703953 | AF13: 2.674779639e-10 | AG13: 1.13964446e-15 | AH13: 0.002464429767 | AI13: 1.523198509e-05 | AJ13: 2.092636051e-07 | AK13: 1.362988521e-05 | AL13: 5.596822257e-10 | AM13: 1.268682349e-13 | AN13: 2.47349143e-09 | AO13: 2.548000329e-17 | AP13: 2.124418829e-23 | AQ13: 1.887451452 | AR13: 0.04020693846 | AS13: 0.0008440356441 | AT13: 0.4029788667 | AU13: 7.778556812e-05 | AV13: 1.895727947e-08 | AW13: 0.03849435355 | AX13: 4.70503575e-09 | AY13: 3.533893116e-15 | AZ13: 0.05901077625 | BA13: 0.0002508120637 | BB13: 1.917392436e-06 | BC13: 0.0007193404916 | BD13: 7.733631584e-09 | BE13: 3.923317939e-13 | BF13: 5.891850011e-07 | BG13: 5.217200894e-16 | BH13: 4.436186006e-23 | BI13: 7.064057484e-05 | BJ13: 7.282295459e-08 | BK13: 2.261796956e-10 | BL13: 3.905535489e-08 | BM13: 4.645370897e-14 | BN13: 6.573925278e-19 | BO13: 1.103967128e-13 | BP13: 2.835288424e-24 | BQ13: 4.854352463e-32 | BR13: 0.5189108303 | BS13: 0.002217465892 | BT13: 1.149160462e-05 | BU13: 0.02832029826 | BV13: 1.831289056e-07 | BW13: 3.10349023e-12 | BX13: 0.0002951551835 | BY13: 1.164051399e-13 | BZ13: 2.114780251e-21 | CA13: 0.00475346813 | CB13: 3.307662008e-06 | CC13: 5.602586502e-09 | CD13: 7.010333141e-06 | CE13: 2.136820051e-12 | CF13: 6.963654493e-18 | CG13: 1.582849941e-10 | CH13: 4.13035464e-22 | CI13: 8.773140541e-31 | CJ13: 2.05330903e-06 | CK13: 3.280192929e-10 | CL13: 2.207057656e-13 | CM13: 9.752405567e-11 | CN13: 2.976261817e-18 | CO13: 2.610146791e-24 | CP13: 3.158364604e-18 | CQ13: 2.211897139e-31 | CR13: 9.545889445e-41
A14: Output | F14: Rate | G14: end | K14: 0.04871947289 | L14: 3.082835924e-08 | M14: 5.679439741 | N14: 1.487665923 | O14: 2.805139524 | P14: 10.4570489 | Q14: 6.025142642 | R14: 2.481146692 | S14: 10.68282648 | T14: 4.095330179 | U14: 0.5697373598 | V14: 10.86850836 | W14: 2.486671289 | X14: 0.05085923947 | Y14: 4.926328071 | Z14: 1.548831958 | AA14: 0.4211790719 | AB14: 4.027506557 | AC14: 0.2969641888 | AD14: 0.01381890441 | AE14: 3.344006548 | AF14: 0.01570876254 | AG14: 2.661565373e-05 | AH14: 0.921116161 | AI14: 0.1209830083 | AJ14: 0.01842747119 | AK14: 0.2120982622 | AL14: 0.002404118608 | AM14: 3.718744582e-05 | AN14: 0.01817669135 | AO14: 1.65262606e-06 | AP14: 3.738176816e-10 | AQ14: 8.555910501 | AR14: 2.895609826 | AS14: 0.6745464212 | AT14: 8.645031711 | AU14: 0.9390011015 | AV14: 0.03209298057 | AW14: 9.0733031 | AX14: 0.1518263449 | AY14: 0.0001765110571 | AZ14: 2.803743483 | BA14: 0.4051615763 | BB14: 0.05429431941 | BC14: 1.420620726 | BD14: 0.01594521599 | BE14: 0.0001442806603 | BF14: 0.5071523934 | BG14: 4.164949384e-05 | BH14: 3.103072712e-09 | BI14: 0.2342098028 | BJ14: 0.01147074671 | BK14: 0.0007637522509 | BL14: 0.01737498898 | BM14: 2.488388737e-05 | BN14: 6.84003322e-08 | BO14: 0.0001786012356 | BP14: 2.621190047e-10 | BQ14: 2.578349021e-15 | BR14: 6.385375986 | BS14: 1.100679044 | BT14: 0.132506059 | BU14: 5.679439741 | BV14: 0.1152730175 | BW14: 0.0008091805977 | BX14: 5.250350425 | BY14: 0.002382187464 | BZ14: 1.344560977e-07 | CA14: 1.319963493 | CB14: 0.07769073223 | CC14: 0.00469082906 | CD14: 0.3108352486 | CE14: 0.0004345168084 | CF14: 6.790323542e-07 | CG14: 0.02637407411 | CH14: 3.082835924e-08 | CI14: 9.95668105e-14 | CJ14: 0.04871947289 | CK14: 0.0008566019762 | CL14: 2.401296843e-05 | CM14: 0.001021854085 | CN14: 1.714114103e-07 | CO14: 7.820206793e-11 | CP14: 9.297003955e-07 | CQ14: 2.008558345e-14 | CR14: 8.836705944e-21
F15: Intercept | G15: half time | K15: 78.79700622 | L15: 75.7666353 | M15: 79.71088311 | N15: 77.14343963 | O15: 8.874232655 | P15: 67.35333439 | Q15: 73.64883373 | R15: 75.7666353 | S15: 72.73766564 | T15: 77.15542976 | U15: 78.26758094 | V15: 75.86001874 | W15: 78.69745403 | X15: 79.22017447 | Y15: 73.82577367 | Z15: 76.47732234 | AA15: 77.51572254 | AB15: 76.67046512 | AC15: 78.39041589 | AD15: 78.95127384 | AE15: 78.31597321 | AF15: 79.29531232 | AG15: 79.53846531 | AH15: 77.01700453 | AI15: 78.06676295 | AJ15: 78.5437095 | AK15: 78.26344984 | AL15: 79.05076205 | AM15: 79.34919907 | AN15: 79.13422437 | AO15: 79.57727535 | AP15: 79.71088311 | AQ15: 71.54672399 | AR15: 75.89707645 | AS15: 77.3350384 | AT15: 75.71043331 | AU15: 78.32663093 | AV15: 78.99830222 | AW15: 77.86475359 | AX15: 79.29361785 | AY15: 79.57349899 | AZ15: 75.87816065 | BA15: 77.70210946 | BB15: 78.41854609 | BC15: 77.90891434 | BD15: 79.02742449 | BE15: 79.38762193 | BF15: 79.03973688 | BG15: 79.60214896 | BH15: 79.73659521 | BI15: 77.76760675 | BJ15: 78.63121749 | BK15: 79.01945644 | BL15: 78.79700622 | BM15: 79.40168809 | BN15: 79.60450972 | BO15: 79.46580684 | BP15: 79.76606853 | BQ15: 79.84797687 | BR15: 74.06037505 | BS15: 77.18460956 | BT15: 78.21331326 | BU15: 77.22891278 | BV15: 78.93866277 | BW15: 79.3811274 | BX15: 78.74780778 | BY15: 79.58731487 | BZ15: 79.75244382 | CA15: 77.01117547 | CB15: 78.38637599 | CC15: 78.92482939 | CD15: 78.57017731 | CE15: 79.37399744 | CF15: 79.62256065 | CG15: 79.40261436 | CH15: 79.77248458 | CI15: 79.85656867 | CJ15: 78.26238265 | CK15: 78.97091687 | CL15: 79.32595584 | CM15: 79.15068228 | CN15: 79.59877209 | CO15: 79.77198884 | CP15: 79.68839732 | CQ15: 79.88437026 | CR15: 0
A16: Row | B16: Column | F16: Intercept | G16: end | K16: 146.9350355 | L16: 124.4501577 | M16: 153.8690391 | N16: 141.8267035 | O16: 13.93504168 | P16: 88.93128188 | Q16: 119.1653497 | R16: 130.546026 | S16: 98.35821172 | T16: 133.9328148 | U16: 143.0852309 | V16: 102.4023782 | W16: 142.9808045 | X16: 149.5864719 | Y16: 113.4922124 | Z16: 131.4061342 | AA16: 138.3517568 | AB16: 127.7413134 | AC16: 143.2954184 | AD16: 147.7916857 | AE16: 137.5980341 | AF16: 149.8784737 | AG16: 152.3867958 | AH16: 134.9651165 | AI16: 142.4353493 | AJ16: 145.7083808 | AK16: 143.19546 | AL16: 148.8699423 | AM16: 151.0141434 | AN16: 148.9191916 | AO16: 152.680269 | AP16: 153.8690391 | AQ16: 104.5615688 | AR16: 129.7484699 | AS16: 138.2855652 | AT16: 117.0608418 | AU16: 142.3405424 | AV16: 148.0006282 | AW16: 124.4501577 | AX16: 149.1349004 | AY16: 152.4682946 | AZ16: 125.7380593 | BA16: 139.1137255 | BB16: 144.1266213 | BC16: 138.3259382 | BD16: 148.0298626 | BE16: 150.9162698 | BF16: 146.2494384 | BG16: 152.5366784 | BH16: 154.0016861 | BI16: 141.0154014 | BJ16: 146.4459786 | BK16: 148.8441032 | BL16: 147.2420334 | BM16: 151.2308379 | BN16: 152.7616662 | BO16: 151.4905084 | BP16: 154.0142985 | BQ16: 154.8004136 | BR16: 116.5109835 | BS16: 136.646842 | BT16: 143.1664689 | BU16: 130.0088068 | BV16: 146.9350355 | BW16: 150.7189441 | BX16: 138.6002396 | BY16: 151.9486527 | BZ16: 153.9080805 | CA16: 133.7292151 | CB16: 143.8184142 | CC16: 147.5608241 | CD16: 144.0446456 | CE16: 150.6191666 | CF16: 152.6379361 | CG16: 150.067979 | CH16: 153.890435 | CI16: 154.8468404 | CJ16: 144.4526472 | CK16: 148.7477377 | CL16: 150.6534211 | CM16: 149.4879239 | CN16: 152.6036319 | CO16: 153.7805272 | CP16: 152.9045894 | CQ16: 154.7820652 | CR16: 155.3691566
A17: 9900 | B17: 17 | C17: Rate | D17: start
A18: 9925 | B18: 17 | C18: Rate | D18: half time | F18: Rate | G18: start | K18: 0 | L18: 0 | M18: 0 | N18: 0 | O18: 0 | P18: 0 | Q18: 0 | R18: 0 | S18: 0 | T18: 0 | U18: 0 | V18: 0 | W18: 0 | X18: 0 | Y18: 0 | Z18: 0 | AA18: 0 | AB18: 0 | AC18: 0 | AD18: 0 | AE18: 0 | AF18: 0 | AG18: 0 | AH18: 0 | AI18: 0 | AJ18: 0 | AK18: 0 | AL18: 0 | AM18: 0 | AN18: 0 | AO18: 0 | AP18: 0 | AQ18: 0 | AR18: 0 | AS18: 0 | AT18: 0 | AU18: 0 | AV18: 0 | AW18: 0 | AX18: 0 | AY18: 0 | AZ18: 0 | BA18: 0 | BB18: 0 | BC18: 0 | BD18: 0 | BE18: 0 | BF18: 0 | BG18: 0 | BH18: 0 | BI18: 0 | BJ18: 0 | BK18: 0 | BL18: 0 | BM18: 0 | BN18: 0 | BO18: 0 | BP18: 0 | BQ18: 0 | BR18: 0 | BS18: 0 | BT18: 0 | BU18: 0 | BV18: 0 | BW18: 0 | BX18: 0 | BY18: 0 | BZ18: 0 | CA18: 0 | CB18: 0 | CC18: 0 | CD18: 0 | CE18: 0 | CF18: 0 | CG18: 0 | CH18: 0 | CI18: 0 | CJ18: 0 | CK18: 0 | CL18: 0 | CM18: 0 | CN18: 0 | CO18: 0 | CP18: 0 | CQ18: 0 | CR18: 0
A19: 9949 | B19: 17 | C19: Rate | D19: end | F19: Rate | G19: half time | K19: 2.710894107 | L19: 5.795659167e-07 | M19: 10.74814017 | N19: 4.221196456 | O19: 4.23629674 | P19: 11.04943514 | Q19: 11.04850225 | R19: 10.74814017 | S19: 11.04938923 | T19: 11.04891242 | U19: 10.97872372 | V19: 11.04938571 | W19: 11.04890539 | X19: 11.03169558 | Y19: 6.837919756 | Z19: 5.988392226 | AA19: 2.632833998 | AB19: 6.838001838 | AC19: 6.299865694 | AD19: 1.717424188 | AE19: 6.837999634 | AF19: 6.515592476 | AG19: 1.15995819 | AH19: 2.763823728 | AI19: 0.3347948494 | AJ19: 0.0221979251 | AK19: 2.710894107 | AL19: 0.04456815059 | AM19: 0.000158847949 | AN19: 2.736193404 | AO19: 0.004430519117 | AP19: 5.795659167e-07 | AQ19: 10.03880302 | AR19: 9.991212669 | AS19: 7.714859743 | AT19: 10.03875487 | AU19: 10.0363097 | AV19: 8.023392671 | AW19: 10.0387516 | AX19: 10.03828491 | AY19: 8.271524498 | AZ19: 5.989175273 | BA19: 2.860533095 | BB19: 0.3565563183 | BC19: 6.010216054 | BD19: 2.226619041 | BE19: 0.04059071197 | BF19: 6.010792075 | BG19: 1.788900416 | BH19: 0.004559329174 | BI19: 0.9256338636 | BJ19: 0.01463202636 | BK19: 0.0001794432811 | BL19: 0.4654114842 | BM19: 9.826717189e-05 | BN19: 1.274946129e-08 | BO19: 0.2390261026 | BP19: 2.691473099e-07 | BQ19: 2.94795031e-13 | BR19: 9.197552446 | BS19: 8.621238296 | BT19: 3.30444672 | BU19: 9.197502267 | BV19: 8.976378597 | BW19: 2.290784542 | BX19: 9.197500236 | BY19: 9.109093787 | BZ19: 1.702064676 | CA19: 5.068248866 | CB19: 0.6646568374 | CC19: 0.01747921761 | CD19: 5.257767444 | CE19: 0.1546641205 | CF19: 0.0001113411684 | CG19: 5.326550535 | CH19: 0.03471471716 | CI19: 7.707781905e-07 | CJ19: 0.1526413019 | CK19: 0.0002645072659 | CL19: 5.430745189e-07 | CM19: 0.01851933003 | CN19: 4.104211529e-08 | CO19: 1.985811561e-13 | CP19: 0.001774588569 | CQ19: 1.31586759e-12 | CR19: 1.753358654e-20
A20: 9925 | B20: 19 | C20: Intercept | D20: half time | F20: Rate | G20: end | K20: 6.010483684 | L20: 0.6642933454 | M20: 11.0480253 | N20: 5.905265408 | O20: 3.546736065 | P20: 11.04943603 | Q20: 11.04896388 | R20: 11.04806398 | S20: 11.04938894 | T20: 11.04891213 | U20: 11.04808534 | V20: 11.04938542 | W20: 11.0489051 | X20: 11.0480253 | Y20: 6.838032349 | Z20: 6.83776448 | AA20: 6.783562809 | AB20: 6.838001657 | AC20: 6.837709352 | AD20: 6.834390018 | AE20: 6.837999008 | AF20: 6.837701385 | AG20: 6.837156377 | AH20: 3.711563192 | AI20: 3.305541403 | AJ20: 1.984280108 | AK20: 3.712448819 | AL20: 3.457681125 | AM20: 1.507157102 | AN20: 3.71243563 | AO20: 3.591543081 | AP20: 1.144575329 | AQ20: 10.03880233 | AR20: 10.03830161 | AS20: 10.03739883 | AT20: 10.03875527 | AU20: 10.03825131 | AV20: 10.03732231 | AW20: 10.038752 | AX20: 10.03828422 | AY20: 10.03731032 | AZ20: 6.010850279 | BA20: 5.997700056 | BB20: 5.417261264 | BC20: 6.010794925 | BD20: 6.010483684 | BE20: 5.711658759 | BF20: 6.01079208 | BG20: 6.010488672 | BH20: 5.88007285 | BI20: 3.155335688 | BJ20: 1.840812311 | BK20: 0.5282711919 | BL20: 3.184051812 | BM20: 1.51029671 | BN20: 0.1090631203 | BO20: 3.186501202 | BP20: 1.263559911 | BQ20: 0.0138629663 | BR20: 9.197552366 | BS20: 9.19703833 | BT20: 9.183884609 | BU20: 9.197503211 | BV20: 9.196983083 | BW20: 9.196075493 | BX20: 9.19750118 | BY20: 9.197016954 | BZ20: 9.196012007 | CA20: 5.3621797 | CB20: 5.190287813 | CC20: 3.312768109 | CD20: 5.362124787 | CE20: 5.329212837 | CF20: 3.088610196 | CG20: 5.362122143 | CH20: 5.358218872 | CI20: 2.954056341 | CJ20: 2.568459324 | CK20: 0.6642933454 | CL20: 0.07627195008 | CM20: 2.680148534 | CN20: 0.2139094763 | CO20: 0.001691060791 | CP20: 2.74873904 | CQ20: 0.05008231025 | CR20: 9.982908454e-06
A21: 9949 | B21: 19 | C21: Intercept | D21: end | F21: Intercept | G21: half time | K21: 72.58845812 | L21: 37.91547434 | M21: 79.23387128 | N21: 64.97971193 | O21: 16.02740952 | P21: 25.94014331 | Q21: 41.81323409 | R21: 56.60233101 | S21: 26.18697861 | T21: 42.36569319 | U21: 58.28674252 | V21: 26.28757088 | W21: 42.58944141 | X21: 58.82059571 | Y21: 41.52734058 | Z21: 62.52613077 | AA21: 70.90003603 | AB21: 42.13490289 | AC21: 65.91585874 | AD21: 74.72933108 | AE21: 42.3731462 | AF21: 67.4024106 | AG21: 76.41143213 | AH21: 67.21813197 | AI21: 74.53280828 | AJ21: 76.54226434 | AK21: 70.7850063 | AL21: 77.33901196 | AM21: 78.52809151 | AN21: 72.58845812 | AO21: 78.51933081 | AP21: 79.23387128 | AQ21: 31.49039871 | AR21: 52.36022254 | AS21: 66.9064497 | AT21: 31.78670034 | AU21: 53.22769511 | AV21: 70.10469713 | AW21: 31.90705998 | AX21: 53.50767918 | AY21: 71.5447429 | AZ21: 51.91763158 | BA21: 70.6736526 | BB21: 75.13576606 | BC21: 52.83942394 | BD21: 74.38539604 | BE21: 77.73188045 | BF21: 53.16943255 | BG21: 76.11494828 | BH21: 78.66332321 | BI21: 73.08951959 | BJ21: 76.9338449 | BK21: 78.06152774 | BL21: 75.99750987 | BM21: 78.69447241 | BN21: 79.27690205 | BO21: 77.42303005 | BP21: 79.36815332 | BQ21: 79.63779623 | BR21: 37.42342862 | BS21: 62.1567184 | BT21: 72.61547025 | BU21: 37.77366157 | BV21: 64.25625899 | BW21: 75.60067467 | BX21: 37.91547434 | BY21: 65.00298211 | BZ21: 76.8288234 | CA21: 61.65612618 | CB21: 74.63841781 | CC21: 77.13961591 | CD21: 63.85535214 | CE21: 77.40107151 | CF21: 78.83866232 | CG21: 64.62197668 | CH21: 78.47823972 | CI21: 79.38040872 | CJ21: 75.77636666 | CK21: 78.10559455 | CL21: 78.8085021 | CM21: 77.8451498 | CN21: 79.2849739 | CO21: 79.59686826 | CP21: 78.82300426 | CQ21: 79.67518361 | CR21: 79.80750876
F22: Intercept | G22: end | K22: 88.46287838 | L22: 37.91547178 | M22: 144.8555755 | N22: 88.3649332 | O22: 38.82415045 | P22: 25.94014757 | Q22: 41.81666883 | R22: 57.68972254 | S22: 26.18697437 | T22: 42.36568874 | U22: 58.54236904 | V22: 26.28757674 | W22: 42.58943973 | X22: 58.88958428 | Y22: 41.52871963 | Z22: 66.77154541 | AA22: 91.29922756 | AB22: 42.13490121 | AC22: 68.11981712 | AD22: 94.06358329 | AE22: 42.37314374 | AF22: 68.64970596 | AG22: 94.92322569 | AH22: 74.95190831 | AI22: 111.4002484 | AJ22: 128.3846539 | AK22: 76.94384701 | AL22: 120.2080421 | AM22: 139.4322056 | AN22: 77.66761367 | AO22: 124.1653373 | AP22: 145.1403459 | AQ22: 31.49039604 | AR22: 52.58078683 | AS22: 73.66673392 | AT22: 31.78671022 | AU22: 53.23998687 | AV22: 74.69016408 | AW22: 31.90706535 | AX22: 53.50785909 | AY22: 75.10603412 | AZ22: 52.08971807 | BA22: 86.55231137 | BB22: 114.5807676 | BC22: 52.84602527 | BD22: 88.46287838 | BE22: 121.3233246 | BF22: 53.16945312 | BG22: 89.1576055 | BH22: 124.0347951 | BI22: 95.26945615 | BJ22: 128.8762292 | BK22: 139.4729115 | BL22: 98.70531575 | BM22: 139.3216164 | BN22: 148.0249453 | BO22: 99.73446147 | BP22: 144.8555755 | BQ22: 151.7475322 | BR22: 37.42342629 | BS22: 64.22684244 | BT22: 90.90370715 | BU22: 37.77366213 | BV22: 65.00618271 | BW22: 92.23484083 | BX22: 37.91547178 | BY22: 65.32186412 | BZ22: 92.72474249 | CA22: 63.51113798 | CB22: 106.3710984 | CC22: 130.288272 | CD22: 64.48066097 | CE22: 110.5063773 | CF22: 139.1756271 | CG22: 64.8550738 | CH22: 111.7028752 | CI22: 143.5537279 | CJ22: 113.6212327 | CK22: 138.5883607 | CL22: 145.2909236 | CM22: 120.4337974 | CN22: 147.1796947 | CO22: 151.5129389 | CP22: 123.1169718 | CQ22: 151.2199646 | CR22: 153.9532111
F24: Rate | G24: start | K24: 0 | L24: 0 | M24: 0 | N24: 0 | O24: 0 | P24: 0 | Q24: 0 | R24: 0 | S24: 0 | T24: 0 | U24: 0 | V24: 0 | W24: 0 | X24: 0 | Y24: 0 | Z24: 0 | AA24: 0 | AB24: 0 | AC24: 0 | AD24: 0 | AE24: 0 | AF24: 0 | AG24: 0 | AH24: 0 | AI24: 0 | AJ24: 0 | AK24: 0 | AL24: 0 | AM24: 0 | AN24: 0 | AO24: 0 | AP24: 0 | AQ24: 0 | AR24: 0 | AS24: 0 | AT24: 0 | AU24: 0 | AV24: 0 | AW24: 0 | AX24: 0 | AY24: 0 | AZ24: 0 | BA24: 0 | BB24: 0 | BC24: 0 | BD24: 0 | BE24: 0 | BF24: 0 | BG24: 0 | BH24: 0 | BI24: 0 | BJ24: 0 | BK24: 0 | BL24: 0 | BM24: 0 | BN24: 0 | BO24: 0 | BP24: 0 | BQ24: 0 | BR24: 0 | BS24: 0 | BT24: 0 | BU24: 0 | BV24: 0 | BW24: 0 | BX24: 0 | BY24: 0 | BZ24: 0 | CA24: 0 | CB24: 0 | CC24: 0 | CD24: 0 | CE24: 0 | CF24: 0 | CG24: 0 | CH24: 0 | CI24: 0 | CJ24: 0 | CK24: 0 | CL24: 0 | CM24: 0 | CN24: 0 | CO24: 0 | CP24: 0 | CQ24: 0 | CR24: 0
F25: Rate | G25: half time | K25: 8.921713258e-17 | L25: 3.797270104e-32 | M25: 1.799367278e-07 | N25: 6.00367115e-05 | O25: 0.0003823638011 | P25: 0.003319890537 | Q25: 1.251861513e-05 | R25: 9.289296041e-08 | S25: 0.0009542223206 | T25: 1.729031138e-07 | U25: 6.401175598e-11 | V25: 0.0004322071584 | W25: 5.256360693e-09 | X25: 1.337840395e-13 | Y25: 1.799367278e-07 | Z25: 1.552980747e-10 | AA25: 4.846678603e-13 | AB25: 5.826055961e-09 | AC25: 4.620292546e-14 | AD25: 3.007456384e-18 | AE25: 2.896059766e-10 | AF25: 1.446027966e-17 | AG25: 2.210175769e-23 | AH25: 1.620638701e-12 | AI25: 4.89095074e-16 | AJ25: 7.769760156e-19 | AK25: 2.084075094e-15 | AL25: 1.43338211e-21 | AM25: 2.397640778e-26 | AN25: 8.955281454e-19 | AO25: 3.692491437e-28 | AP25: 5.848690848e-35 | AQ25: 0.0001221766105 | AR25: 6.164589573e-08 | AS25: 8.828153473e-11 | AT25: 1.408247029e-05 | AU25: 7.74411305e-11 | AV25: 1.836640043e-15 | AW25: 3.060204857e-06 | AX25: 2.491782057e-13 | AY25: 1.629747323e-19 | AZ25: 1.623854202e-09 | BA25: 1.608787521e-13 | BB25: 8.921713258e-17 | BC25: 8.2189802e-12 | BD25: 1.259945942e-18 | BE25: 4.397848462e-24 | BF25: 5.136586716e-14 | BG25: 6.659522134e-24 | BH25: 2.125715418e-31 | BI25: 8.203648023e-15 | BJ25: 2.517230775e-19 | BK25: 6.578182562e-23 | BL25: 6.836752355e-19 | BM25: 7.045780914e-27 | BN25: 5.486778558e-33 | BO25: 5.774594795e-24 | BP25: 3.933664319e-36 | BQ25: 1.170523059e-44 | BR25: 4.131654278e-06 | BS25: 2.635481878e-10 | BT25: 7.181959849e-14 | BU25: 1.514914387e-07 | BV25: 2.190195903e-14 | BW25: 3.323647735e-20 | BX25: 1.151697151e-08 | BY25: 5.02650092e-18 | BZ25: 9.530535532e-26 | CA25: 1.84038624e-11 | CB25: 2.033921368e-16 | CC25: 1.934746917e-20 | CD25: 1.149534254e-14 | CE25: 3.162065565e-23 | CF25: 6.152458516e-30 | CG25: 5.557942027e-18 | CH25: 1.942970902e-30 | CI25: 1.529460531e-39 | CJ25: 6.221373518e-17 | CK25: 1.805416705e-22 | CL25: 7.36610014e-27 | CM25: 2.696038023e-22 | CN25: 3.797270104e-32 | CO25: 1.370486881e-39 | CP25: 2.819027108e-29 | CQ25: 3.855840106e-44 | CR25: 0
F26: Rate | G26: end | K26: 2.02279505e-05 | L26: 1.669074795e-14 | M26: 2.040258192 | N26: 0.7958981456 | O26: 2.317648063 | P26: 11.29640271 | Q26: 3.527770848 | R26: 0.706413791 | S26: 11.13483559 | T26: 2.417119344 | U26: 0.1874628644 | V26: 11.07992664 | W26: 1.917233868 | X26: 0.06431513792 | Y26: 0.2506423076 | Z26: 0.01375477591 | AA26: 0.0009298930988 | AB26: 0.1446417534 | AC26: 0.001401473649 | AD26: 1.265605774e-05 | AE26: 0.1039380855 | AF26: 0.0001751665895 | AG26: 1.549513777e-07 | AH26: 0.0001814019531 | AI26: 3.222708997e-06 | AJ26: 1.119023529e-07 | AK26: 2.02279505e-05 | AL26: 1.55014286e-08 | AM26: 3.216562144e-11 | AN26: 2.331071462e-06 | AO26: 2.30162548e-11 | AP26: 1.03621829e-15 | AQ26: 5.532546123 | AR26: 0.6061778536 | AS26: 0.04532151596 | AT26: 5.07596234 | AU26: 0.2096020047 | AV26: 0.002726125525 | AW26: 4.898707509 | AX26: 0.09576717691 | AY26: 0.000225371548 | AZ26: 0.02769059362 | BA26: 0.0004275169841 | BB26: 1.02243041e-05 | BC26: 0.00898261694 | BD26: 7.888992437e-06 | BE26: 9.628407663e-09 | BF26: 0.003978822134 | BG26: 1.364936607e-07 | BH26: 4.814692181e-12 | BI26: 8.920926437e-06 | BJ26: 4.401643102e-08 | BK26: 5.350496731e-10 | BL26: 2.853285329e-07 | BM26: 1.646046554e-11 | BN26: 4.306222965e-15 | BO26: 5.931897037e-09 | BP26: 5.347893335e-16 | BQ26: 8.095301099e-22 | BR26: 2.040258192 | BS26: 0.06823990406 | BT26: 0.001814052219 | BU26: 1.587814964 | BV26: 0.008580515684 | BW26: 1.641302157e-05 | BX26: 1.400828389 | BY26: 0.001530145053 | BZ26: 1.978558628e-07 | CA26: 0.002820642779 | CB26: 1.193931175e-05 | CC26: 9.88658168e-08 | CD26: 0.0004211381073 | CE26: 2.934155479e-08 | CF26: 4.596414078e-12 | CG26: 8.517875426e-05 | CH26: 3.974256997e-11 | CI26: 5.479740068e-17 | CJ26: 5.378753042e-07 | CK26: 7.145748891e-10 | CL26: 2.988182889e-12 | CM26: 4.139856085e-09 | CN26: 1.669074795e-14 | CO26: 5.209100271e-19 | CP26: 9.917961818e-12 | CQ26: 7.328579402e-21 | CR26: 3.935859841e-28
F27: Intercept | G27: half time | K27: 79.61565331 | L27: 78.92185564 | M27: 79.88802108 | N27: 76.60697781 | O27: 15.0275365 | P27: 78.28407347 | Q27: 78.90822637 | R27: 79.18896347 | S27: 78.66123218 | T27: 79.31626639 | U27: 79.53763515 | V27: 78.87835353 | W27: 79.52219979 | X27: 79.70400939 | Y27: 78.92185564 | Z27: 79.27107093 | AA27: 79.44315948 | AB27: 79.24233358 | AC27: 79.58791516 | AD27: 79.7082553 | AE27: 79.45802054 | AF27: 79.74230345 | AG27: 79.83555123 | AH27: 79.2603052 | AI27: 79.50178745 | AJ27: 79.60096277 | AK27: 79.51683895 | AL27: 79.73005468 | AM27: 79.82675148 | AN27: 79.71444121 | AO27: 79.86508601 | AP27: 79.917618 | AQ27: 78.67622714 | AR27: 79.20504179 | AS27: 79.43160198 | AT27: 79.05078254 | AU27: 79.55341904 | AV27: 79.71455637 | AW27: 79.26727616 | AX27: 79.71663746 | AY27: 79.81961112 | AZ27: 79.14894049 | BA27: 79.46698041 | BB27: 79.61565331 | BC27: 79.46451193 | BD27: 79.73207365 | BE27: 79.82597366 | BF27: 79.64825588 | BG27: 79.84788927 | BH27: 79.89554037 | BI27: 79.39827775 | BJ27: 79.63613868 | BK27: 79.7190493 | BL27: 79.64902225 | BM27: 79.85344729 | BN27: 79.87849075 | BO27: 79.84248068 | BP27: 79.94892584 | BQ27: 0 | BR27: 78.92952105 | BS27: 79.3901453 | BT27: 79.58579814 | BU27: 79.29250425 | BV27: 79.69014866 | BW27: 79.81048719 | BX27: 79.50112856 | BY27: 79.8167375 | BZ27: 79.8914171 | CA27: 79.30408981 | CB27: 79.59475201 | CC27: 79.70809665 | CD27: 79.60567989 | CE27: 79.81899816 | CF27: 79.87641856 | CG27: 79.78449211 | CH27: 79.90719909 | CI27: 79.95384927 | CJ27: 79.5223151 | CK27: 79.72016935 | CL27: 79.82851261 | CM27: 79.74868523 | CN27: 79.91276001 | CO27: 79.93119994 | CP27: 79.88802108 | CQ27: 0 | CR27: 0
F28: Intercept | G28: end | K28: 152.7799046 | L28: 147.4769347 | M28: 155.1035762 | N28: 151.5729563 | O28: 4.067225055 | P28: 135.9645663 | Q28: 144.7657792 | R28: 148.1432086 | S28: 137.3835424 | T28: 147.4838448 | U28: 150.8718482 | V28: 137.9659795 | W28: 148.8731613 | X28: 152.2739287 | Y28: 147.8067956 | Z28: 150.379153 | AA28: 151.6036493 | AB28: 149.2324599 | AC28: 152.2202584 | AD28: 153.3874463 | AE28: 150.08422 | AF28: 153.3677048 | AG28: 154.4217045 | AH28: 150.9175772 | AI28: 152.2305943 | AJ28: 152.947884 | AK28: 152.2003951 | AL28: 153.6712694 | AM28: 154.3457824 | AN28: 153.2625119 | AO28: 154.701879 | AP28: 155.2187631 | AQ28: 142.1925139 | AR28: 148.3893568 | AS28: 150.6738206 | AT28: 143.8103838 | AU28: 150.7581504 | AV28: 152.872722 | AW28: 144.5348324 | AX28: 152.0187138 | AY28: 153.9754773 | AZ28: 149.6507733 | BA28: 151.7719882 | BB28: 152.7799046 | BC28: 151.1304952 | BD28: 153.432166 | BE28: 154.3203183 | BF28: 152.0784092 | BG28: 154.4767301 | BH28: 155.1841644 | BI28: 151.7467006 | BJ28: 152.990418 | BK28: 153.6533958 | BL28: 153.0733492 | BM28: 154.3559718 | BN28: 154.9251722 | BO28: 154.178275 | BP28: 155.286588 | BQ28: 155.6897444 | BR28: 145.779236 | BS28: 150.4077632 | BT28: 152.1211909 | BU28: 147.4769347 | BV28: 152.4812043 | BW28: 153.9584044 | BX28: 148.3115926 | BY28: 153.5968619 | BZ28: 154.8562393 | CA28: 150.793067 | CB28: 152.6488815 | CC28: 153.5286444 | CD28: 152.2923721 | CE28: 154.1926426 | CF28: 154.9014957 | CG28: 153.3030372 | CH28: 155.1035762 | CI28: 155.6151709 | CJ28: 152.3448541 | CK28: 153.5515342 | CL28: 154.1702518 | CM28: 153.7056709 | CN28: 154.8462061 | CO28: 155.3327324 | CP28: 154.7727001 | CQ28: 155.6747426 | CR28: 155.9660133
F30: Rate | G30: start | K30: 0 | L30: 0 | M30: 0 | N30: 0 | O30: 0 | P30: 0 | Q30: 0 | R30: 0 | S30: 0 | T30: 0 | U30: 0 | V30: 0 | W30: 0 | X30: 0 | Y30: 0 | Z30: 0 | AA30: 0 | AB30: 0 | AC30: 0 | AD30: 0 | AE30: 0 | AF30: 0 | AG30: 0 | AH30: 0 | AI30: 0 | AJ30: 0 | AK30: 0 | AL30: 0 | AM30: 0 | AN30: 0 | AO30: 0 | AP30: 0 | AQ30: 0 | AR30: 0 | AS30: 0 | AT30: 0 | AU30: 0 | AV30: 0 | AW30: 0 | AX30: 0 | AY30: 0 | AZ30: 0 | BA30: 0 | BB30: 0 | BC30: 0 | BD30: 0 | BE30: 0 | BF30: 0 | BG30: 0 | BH30: 0 | BI30: 0 | BJ30: 0 | BK30: 0 | BL30: 0 | BM30: 0 | BN30: 0 | BO30: 0 | BP30: 0 | BQ30: 0 | BR30: 0 | BS30: 0 | BT30: 0 | BU30: 0 | BV30: 0 | BW30: 0 | BX30: 0 | BY30: 0 | BZ30: 0 | CA30: 0 | CB30: 0 | CC30: 0 | CD30: 0 | CE30: 0 | CF30: 0 | CG30: 0 | CH30: 0 | CI30: 0 | CJ30: 0 | CK30: 0 | CL30: 0 | CM30: 0 | CN30: 0 | CO30: 0 | CP30: 0 | CQ30: 0 | CR30: 0
F31: Rate | G31: half time | K31: 2.915318344 | L31: 1.347625515 | M31: 5.359067747 | N31: 3.096469516 | O31: 1.452575457 | P31: 5.359165195 | Q31: 5.359075919 | R31: 5.359068934 | S31: 5.359132399 | T31: 5.35907473 | U31: 5.359067747 | V31: 5.3591324 | W31: 5.359074731 | X31: 5.35906775 | Y31: 3.316560839 | Z31: 3.316523011 | AA31: 3.316512356 | AB31: 3.316539413 | AC31: 3.316504239 | AD31: 3.316499552 | AE31: 3.316539413 | AF31: 3.316503578 | AG31: 3.316499113 | AH31: 1.800601832 | AI31: 1.800564373 | AJ31: 1.795467131 | AK31: 1.800590221 | AL31: 1.800570598 | AM31: 1.799787673 | AN31: 1.800589896 | AO31: 1.800569948 | AP31: 1.800235419 | AQ31: 4.869017607 | AR31: 4.868921596 | AS31: 4.868914607 | AT31: 4.868982774 | AU31: 4.868920494 | AV31: 4.868913507 | AW31: 4.868982775 | AX31: 4.868920495 | AY31: 4.868912957 | AZ31: 2.915369001 | BA31: 2.915328275 | BB31: 2.915318344 | BC31: 2.915345504 | BD31: 2.915310049 | BE31: 2.915305388 | BF31: 2.915345504 | BG31: 2.915309645 | BH31: 2.915304783 | BI31: 1.545423119 | BJ31: 1.53309115 | BK31: 1.381374044 | BL31: 1.54544499 | BM31: 1.539401475 | BN31: 1.422768836 | BO31: 1.545439262 | BP31: 1.540744728 | BQ31: 1.443931646 | BR31: 4.461015233 | BS31: 4.460948354 | BT31: 4.460909349 | BU31: 4.460978586 | BV31: 4.460915323 | BW31: 4.460908839 | BX31: 4.460978587 | BY31: 4.460914808 | BZ31: 4.460907809 | CA31: 2.600764003 | CB31: 2.60072386 | CC31: 2.600713006 | CD31: 2.600740537 | CE31: 2.600704341 | CF31: 2.600700061 | CG31: 2.600740539 | CH31: 2.600703968 | CI31: 2.600699878 | CJ31: 1.346248295 | CK31: 1.176489694 | CL31: 0.6689384428 | CM31: 1.347407037 | CN31: 1.199407457 | CO31: 0.5843357444 | CP31: 1.347625515 | CQ31: 1.210179979 | CR31: 0.5428705832
F32: Rate | G32: end | K32: 2.915318361 | L32: 1.353767573 | M32: 5.359067756 | N32: 3.135710529 | O32: 1.396739434 | P32: 5.359166396 | Q32: 5.359075331 | R32: 5.35906954 | S32: 5.359132408 | T32: 5.359074739 | U32: 5.359067756 | V32: 5.359132409 | W32: 5.35907474 | X32: 5.359067759 | Y32: 3.316561058 | Z32: 3.316523009 | AA32: 3.316512133 | AB32: 3.31653941 | AC32: 3.316503795 | AD32: 3.316500212 | AE32: 3.316539411 | AF32: 3.316503355 | AG32: 3.316499994 | AH32: 1.800602158 | AI32: 1.800590873 | AJ32: 1.800581715 | AK32: 1.800590221 | AL32: 1.800570271 | AM32: 1.800568152 | AN32: 1.800589895 | AO32: 1.800570111 | AP32: 1.800567667 | AQ32: 4.86901843 | AR32: 4.868922418 | AS32: 4.86891543 | AT32: 4.868982491 | AU32: 4.868921316 | AV32: 4.86891433 | AW32: 4.868982492 | AX32: 4.868921318 | AY32: 4.868913779 | AZ32: 2.915369222 | BA32: 2.915329306 | BB32: 2.915318361 | BC32: 2.915345521 | BD32: 2.915309864 | BE32: 2.915305608 | BF32: 2.915345522 | BG32: 2.915309257 | BH32: 2.915305003 | BI32: 1.545536076 | BJ32: 1.545524961 | BK32: 1.545515354 | BL32: 1.545535026 | BM32: 1.545514417 | BN32: 1.545502553 | BO32: 1.545523568 | BP32: 1.545504317 | BQ32: 1.545502559 | BR32: 4.461015187 | BS32: 4.460947792 | BT32: 4.460909304 | BU32: 4.460978024 | BV32: 4.460915793 | BW32: 4.460908794 | BX32: 4.460978025 | BY32: 4.460915795 | BZ32: 4.460908281 | CA32: 2.600764009 | CB32: 2.600723491 | CC32: 2.600713013 | CD32: 2.600741107 | CE32: 2.60070416 | CF32: 2.600700068 | CG32: 2.600741108 | CH32: 2.600704162 | CI32: 2.600699884 | CJ32: 1.353767573 | CK32: 1.353756404 | CL32: 1.353718945 | CM32: 1.353766734 | CN32: 1.353746011 | CO32: 1.353740613 | CP32: 1.353755208 | CQ32: 1.353736315 | CR32: 1.353734012
F33: Intercept | G33: half time | K33: 30.77849867 | L33: 16.63503002 | M33: 66.83334016 | N33: 36.68438981 | O33: 17.86434016 | P33: 14.10597136 | Q33: 16.56173867 | R33: 19.01749914 | S33: 14.12948671 | T33: 16.6140743 | U33: 19.09863778 | V33: 14.13891204 | W33: 16.63503002 | X33: 19.13112334 | Y33: 22.72216263 | Z33: 26.65337464 | AA33: 30.58453509 | AB33: 22.77840422 | AC33: 26.7784603 | AD33: 30.77849867 | AE33: 22.80093908 | AF33: 26.82856793 | AG33: 30.85617977 | AH33: 41.58705897 | AI33: 48.68485816 | AJ33: 55.65770962 | AK33: 41.76301749 | AL33: 49.07724094 | AM33: 56.36828139 | AN33: 41.83059139 | AO33: 49.22753854 | AP33: 56.61364312 | AQ33: 15.96275247 | AR33: 19.22124138 | AS33: 22.47974908 | AT33: 15.99090216 | AU33: 19.28387909 | AV33: 22.57685797 | AW33: 16.00220138 | AX33: 19.30900311 | AY33: 22.61580865 | AZ33: 26.56385729 | BA33: 31.95606529 | BB33: 37.34821018 | BC33: 26.65633615 | BD33: 32.13630985 | BE33: 37.61624565 | BF33: 26.66416191 | BG33: 32.17914723 | BH33: 37.69411869 | BI33: 49.73817348 | BJ33: 59.40703467 | BK33: 66.83334016 | BL33: 50.01468035 | BM33: 60.12333757 | BN33: 68.61754169 | BO33: 50.10439807 | BP33: 60.35616358 | BQ33: 69.29836328 | BR33: 17.85945008 | BS33: 21.99756047 | BT33: 26.135563 | BU33: 17.8926152 | BV33: 22.07132981 | BW33: 26.25004054 | BX33: 17.90594573 | BY33: 22.10097706 | BZ33: 26.29600582 | CA33: 30.51012147 | CB33: 37.54344732 | CC33: 44.57669926 | CD33: 30.59909163 | CE33: 37.74134561 | CF33: 44.88358304 | CG33: 30.6344669 | CH33: 37.82001436 | CI33: 45.00555354 | CJ33: 57.9058802 | CK33: 68.08270558 | CL33: 72.99325395 | CM33: 58.24629459 | CN33: 69.42219543 | CO33: 74.99352435 | CP33: 58.36805965 | CQ33: 69.92992886 | CR33: 75.89650523
F34: Intercept | G34: end | K34: 30.77850885 | L34: 16.6350204 | M34: 69.69317234 | N34: 37.28435893 | O34: 19.14021592 | P34: 14.10599813 | Q34: 16.56173858 | R34: 19.01750218 | S34: 14.12948726 | T34: 16.61406477 | U34: 19.09863535 | V34: 14.13891254 | W34: 16.6350204 | X34: 19.13112785 | Y34: 22.72217019 | Z34: 26.65337397 | AA34: 30.58452926 | AB34: 22.77840702 | AC34: 26.77845329 | AD34: 30.77850885 | AE34: 22.80094186 | AF34: 26.82855732 | AG34: 30.8562083 | AH34: 41.58706944 | AI34: 48.68628235 | AJ34: 55.78517094 | AK34: 41.76301649 | AL34: 49.07732155 | AM34: 56.39162696 | AN34: 41.83057892 | AO34: 49.22757523 | AP34: 56.62454389 | AQ34: 15.96276913 | AR34: 19.22126118 | AS34: 22.479764 | AT34: 15.99089899 | AU34: 19.28389659 | AV34: 22.57686435 | AW34: 16.00219816 | AX34: 19.30902047 | AY34: 22.61582137 | AZ34: 26.56386647 | BA34: 31.95609891 | BB34: 37.34820755 | BC34: 26.65634277 | BD34: 32.13630497 | BE34: 37.61625711 | BF34: 26.6641685 | BG34: 32.17913621 | BH34: 37.69412629 | BI34: 49.74325063 | BJ34: 59.71845613 | BK34: 69.69317234 | BL34: 50.01867518 | BM34: 60.28261629 | BN34: 70.54632306 | BO34: 50.1081787 | BP34: 60.4816667 | BQ34: 70.85517152 | BR34: 17.85944957 | BS34: 21.99754814 | BT34: 26.13555854 | BU34: 17.89260437 | BV34: 22.0713341 | BW34: 26.25004484 | BX34: 17.90593497 | BY34: 22.1009912 | BZ34: 26.29600623 | CA34: 30.51012184 | CB34: 37.54343842 | CC34: 44.57670231 | CD34: 30.59910427 | CE34: 37.74133932 | CF34: 44.88358457 | CG34: 30.6344794 | CH34: 37.82001796 | CI34: 45.00555236 | CJ34: 58.13487207 | CK34: 71.38742043 | CL34: 84.63697335 | CM34: 58.44016017 | CN34: 72.06586291 | CO34: 85.69147959 | CP34: 58.55456895 | CQ34: 72.32039278 | CR34: 86.08619387
F36: Rate | G36: start | K36: 0 | L36: 0 | M36: 0 | N36: 0 | O36: 0 | P36: 0 | Q36: 0 | R36: 0 | S36: 0 | T36: 0 | U36: 0 | V36: 0 | W36: 0 | X36: 0 | Y36: 0 | Z36: 0 | AA36: 0 | AB36: 0 | AC36: 0 | AD36: 0 | AE36: 0 | AF36: 0 | AG36: 0 | AH36: 0 | AI36: 0 | AJ36: 0 | AK36: 0 | AL36: 0 | AM36: 0 | AN36: 0 | AO36: 0 | AP36: 0 | AQ36: 0 | AR36: 0 | AS36: 0 | AT36: 0 | AU36: 0 | AV36: 0 | AW36: 0 | AX36: 0 | AY36: 0 | AZ36: 0 | BA36: 0 | BB36: 0 | BC36: 0 | BD36: 0 | BE36: 0 | BF36: 0 | BG36: 0 | BH36: 0 | BI36: 0 | BJ36: 0 | BK36: 0 | BL36: 0 | BM36: 0 | BN36: 0 | BO36: 0 | BP36: 0 | BQ36: 0 | BR36: 0 | BS36: 0 | BT36: 0 | BU36: 0 | BV36: 0 | BW36: 0 | BX36: 0 | BY36: 0 | BZ36: 0 | CA36: 0 | CB36: 0 | CC36: 0 | CD36: 0 | CE36: 0 | CF36: 0 | CG36: 0 | CH36: 0 | CI36: 0 | CJ36: 0 | CK36: 0 | CL36: 0 | CM36: 0 | CN36: 0 | CO36: 0 | CP36: 0 | CQ36: 0 | CR36: 0
F37: Rate | G37: half time | K37: 0.196364719 | L37: 4.138334669e-11 | M37: 9.837636567 | N37: 3.177566931 | O37: 4.09825191 | P37: 10.82800214 | Q37: 10.81098896 | R37: 9.530589524 | S37: 10.82795512 | T37: 10.82704852 | U37: 9.951465719 | V37: 10.82795152 | W37: 10.8274985 | X37: 10.17316115 | Y37: 6.568218419 | Z37: 2.940292479 | AA37: 0.4477749896 | AB37: 6.619710386 | AC37: 2.381098053 | AD37: 0.1020366753 | AE37: 6.633707877 | AF37: 2.083992745 | AG37: 0.03111633389 | AH37: 0.196364719 | AI37: 0.002878047696 | AJ37: 4.955229924e-05 | AK37: 0.08805523404 | AL37: 6.021675718e-05 | AM37: 3.92606564e-08 | AN37: 0.05107275351 | AO37: 1.593535022e-06 | AP37: 4.138334669e-11 | AQ37: 9.837636567 | AR37: 9.339590751 | AS37: 4.333748321 | AT37: 9.837586344 | AU37: 9.609579315 | AV37: 3.568027616 | AW37: 9.837583651 | AX37: 9.704794347 | AY37: 3.13931136 | AZ37: 4.512328389 | BA37: 0.3787083648 | BB37: 0.01037770942 | BC37: 4.544841187 | BD37: 0.1007565913 | BE37: 0.0001887668812 | BF37: 4.576368373 | BG37: 0.03623557357 | BH37: 6.865151e-06 | BI37: 0.01044803552 | BJ37: 1.728461269e-05 | BK37: 5.212401736e-08 | BL37: 0.001383095663 | BM37: 1.380994186e-08 | BN37: 3.732347812e-13 | BO37: 0.0002564473745 | BP37: 1.079505068e-11 | BQ37: 3.229561127e-18 | BR37: 9.012519667 | BS37: 6.113768764 | BT37: 0.7805582387 | BU37: 9.013201948 | BV37: 6.117834774 | BW37: 0.2431170066 | BX37: 9.013200055 | BY37: 6.146901121 | BZ37: 0.1034146504 | CA37: 1.825743643 | CB37: 0.01792594009 | CC37: 8.082945915e-05 | CD37: 1.503635188 | CE37: 0.0007164645255 | CF37: 5.517616229e-08 | CG37: 1.358987736 | CH37: 4.872755453e-05 | CI37: 1.227535188e-10 | CJ37: 0.0003904836076 | CK37: 6.952567098e-08 | CL37: 3.517285211e-11 | CM37: 9.488735014e-06 | CN37: 1.216916521e-12 | CO37: 1.312875458e-18 | CP37: 2.749765507e-07 | CQ37: 1.310983981e-17 | CR37: 6.020959447e-26
F38: Rate | G38: end | K38: 5.878302496 | L38: 0.07162729685 | M38: 10.82655021 | N38: 5.419087874 | O38: 3.810838591 | P38: 10.82800316 | Q38: 10.82755581 | R38: 10.82663899 | S38: 10.82795468 | T38: 10.82750452 | U38: 10.82671168 | V38: 10.82795109 | W38: 10.82749951 | X38: 10.82655021 | Y38: 6.701022197 | Z38: 6.699775457 | AA38: 6.526512587 | AB38: 6.700965821 | AC38: 6.700685864 | AD38: 6.661348247 | AE38: 6.700962918 | AF38: 6.70068066 | AG38: 6.691729054 | AH38: 3.556165775 | AI38: 2.152955783 | AJ38: 0.7303372192 | AK38: 3.586201436 | AL38: 1.902738102 | AM38: 0.2726716942 | AN38: 3.595034797 | AO38: 1.773947495 | AP38: 0.1041424501 | AQ38: 9.837636209 | AR38: 9.837157115 | AS38: 9.836034332 | AT38: 9.837586665 | AU38: 9.837106299 | AV38: 9.836256849 | AW38: 9.837583972 | AX38: 9.837148505 | AY38: 9.836195095 | AZ38: 5.890399798 | BA38: 5.812196669 | BB38: 4.452443734 | BC38: 5.890346064 | BD38: 5.878302496 | BE38: 4.56345139 | BF38: 5.890342258 | BG38: 5.887799935 | BH38: 4.691607581 | BI38: 2.467808185 | BJ38: 0.5373525499 | BK38: 0.06445363074 | BL38: 2.473952153 | BM38: 0.2066457756 | BN38: 0.003358999692 | BO38: 2.492889881 | BP38: 0.08563948169 | BQ38: 0.0001347004577 | BR38: 9.013252075 | BS38: 9.012757565 | BT38: 8.9737338 | BU38: 9.013202139 | BV38: 9.012705798 | BW38: 9.010494967 | BX38: 9.013198963 | BY38: 9.012743697 | BZ38: 9.011760742 | CA38: 5.254640956 | CB38: 4.54791015 | CC38: 1.783513846 | CD38: 5.254678313 | CE38: 4.766048583 | CF38: 1.126799488 | CG38: 5.254676291 | CH38: 4.903342078 | CI38: 0.7608602036 | CJ38: 1.195598972 | CK38: 0.07162729685 | CL38: 0.002875102066 | CM38: 1.002293313 | CN38: 0.006338841168 | CO38: 1.053927104e-05 | CP38: 0.9144911551 | CQ38: 0.0004853874438 | CR38: 1.772902606e-08
F39: Intercept | G39: half time | K39: 77.14307514 | L39: 53.08713807 | M39: 79.56422349 | N39: 71.71758816 | O39: 11.0396857 | P39: 38.8403535 | Q39: 54.20849458 | R39: 66.3920744 | S39: 39.06185958 | T39: 54.7714491 | U39: 68.50356103 | V39: 39.15214702 | W39: 54.97620917 | X39: 69.36463018 | Y39: 61.6035039 | Z39: 72.98110132 | AA39: 76.0214876 | AB39: 62.40631034 | AC39: 75.14154729 | AD39: 77.74889463 | AE39: 62.69135069 | AF39: 76.10808494 | AG39: 78.44648111 | AH39: 76.01214376 | AI39: 77.76276729 | AJ39: 78.42018925 | AK39: 77.14307514 | AL39: 78.77632325 | AM39: 79.22492723 | AN39: 77.75450753 | AO39: 79.23611039 | AP39: 79.56422349 | AQ39: 45.57841877 | AR39: 64.57573668 | AS39: 73.27043881 | AT39: 45.8566107 | AU39: 66.00747901 | AV39: 75.504926 | AW39: 45.95222153 | AX39: 66.50328698 | AY39: 76.42163606 | AZ39: 69.99695425 | BA39: 76.3057186 | BB39: 77.81789387 | BC39: 71.41530412 | BD39: 77.86113391 | BE39: 78.92758335 | BF39: 71.97825225 | BG39: 78.4984479 | BH39: 79.31925326 | BI39: 77.35147153 | BJ39: 78.53509432 | BK39: 78.99950725 | BL39: 78.3223542 | BM39: 79.29588069 | BN39: 79.59201085 | BO39: 78.86193082 | BP39: 79.64059408 | BQ39: 79.77029321 | BR39: 52.63993477 | BS39: 71.54471224 | BT39: 76.32520976 | BU39: 52.95948928 | BV39: 73.61316809 | BW39: 77.92937962 | BX39: 53.08713807 | BY39: 74.50031924 | BZ39: 78.51766872 | CA39: 74.20505558 | CB39: 77.75660631 | CC39: 78.65942243 | CD39: 75.64449505 | CE39: 78.84362439 | CF39: 79.40697435 | CG39: 76.29449225 | CH39: 79.28502756 | CI39: 79.65762424 | CJ39: 78.09055179 | CK39: 79.00100515 | CL39: 79.35581264 | CM39: 78.90945729 | CN39: 79.59485023 | CO39: 79.75302211 | CP39: 79.3754661 | CQ39: 79.78856247 | CR39: 79.91133029
F40: Intercept | G40: end | K40: 109.6491941 | L40: 53.08725418 | M40: 150.1288947 | N40: 104.6867161 | O40: 36.83722601 | P40: 38.84036524 | Q40: 54.28262163 | R40: 69.72138508 | S40: 39.06185213 | T40: 54.7755162 | U40: 70.48714265 | V40: 39.15214229 | W40: 54.97648877 | X40: 70.79875026 | Y40: 62.2884596 | Z40: 86.86057525 | AA40: 109.6491941 | AB40: 62.82960025 | AC40: 88.07960803 | AD40: 112.9490203 | AE40: 63.04342992 | AF40: 88.55559804 | AG40: 113.9791804 | AH40: 111.3950681 | AI40: 133.8588199 | AJ40: 141.7369037 | AK40: 113.7391091 | AL40: 140.2350968 | AM40: 147.7035625 | AN40: 114.5531082 | AO40: 143.4243088 | AP40: 150.5525531 | AQ40: 45.57841087 | AR40: 66.08730922 | AS40: 86.58901053 | AT40: 45.85661656 | AU40: 66.69120688 | AV40: 87.52298249 | AW40: 45.95222964 | AX40: 66.91944893 | AY40: 87.88396452 | AZ40: 75.48307745 | BA40: 108.3110225 | BB40: 129.96952 | BC40: 76.19721047 | BD40: 110.6650784 | BE40: 136.4326104 | BF40: 76.44794068 | BG40: 111.3587418 | BH40: 139.4137599 | BI40: 128.8413716 | BJ40: 142.9886573 | BK40: 147.3723663 | BL40: 132.7750008 | BM40: 148.1495392 | BN40: 151.6244051 | BO40: 134.4465708 | BP40: 150.7424001 | BQ40: 153.524494 | BR40: 52.64595044 | BS40: 78.70653592 | BT40: 104.4455632 | BU40: 52.95991756 | BV40: 79.40539637 | BW40: 105.833809 | BX40: 53.08725418 | BY40: 79.68905757 | BZ40: 106.2873086 | CA40: 89.47222439 | CB40: 126.3917478 | CC40: 140.9289255 | CD40: 90.33891022 | CE40: 131.4581299 | CF40: 146.9377253 | CG40: 90.67473012 | CH40: 133.5609732 | CI40: 149.6196429 | CJ40: 138.3454082 | CK40: 147.2639136 | CL40: 150.1288947 | CM40: 142.6170829 | CN40: 151.3004795 | CO40: 153.3610936 | CP40: 144.7645417 | CQ40: 153.2943262 | CR40: 154.7500583
F42: Rate | G42: start | K42: 0 | L42: 0 | M42: 0 | N42: 0 | O42: 0 | P42: 0 | Q42: 0 | R42: 0 | S42: 0 | T42: 0 | U42: 0 | V42: 0 | W42: 0 | X42: 0 | Y42: 0 | Z42: 0 | AA42: 0 | AB42: 0 | AC42: 0 | AD42: 0 | AE42: 0 | AF42: 0 | AG42: 0 | AH42: 0 | AI42: 0 | AJ42: 0 | AK42: 0 | AL42: 0 | AM42: 0 | AN42: 0 | AO42: 0 | AP42: 0 | AQ42: 0 | AR42: 0 | AS42: 0 | AT42: 0 | AU42: 0 | AV42: 0 | AW42: 0 | AX42: 0 | AY42: 0 | AZ42: 0 | BA42: 0 | BB42: 0 | BC42: 0 | BD42: 0 | BE42: 0 | BF42: 0 | BG42: 0 | BH42: 0 | BI42: 0 | BJ42: 0 | BK42: 0 | BL42: 0 | BM42: 0 | BN42: 0 | BO42: 0 | BP42: 0 | BQ42: 0 | BR42: 0 | BS42: 0 | BT42: 0 | BU42: 0 | BV42: 0 | BW42: 0 | BX42: 0 | BY42: 0 | BZ42: 0 | CA42: 0 | CB42: 0 | CC42: 0 | CD42: 0 | CE42: 0 | CF42: 0 | CG42: 0 | CH42: 0 | CI42: 0 | CJ42: 0 | CK42: 0 | CL42: 0 | CM42: 0 | CN42: 0 | CO42: 0 | CP42: 0 | CQ42: 0 | CR42: 0
F43: Rate | G43: half time | K43: 0.0001378766286 | L43: 3.609902564e-18 | M43: 9.106419365 | N43: 1.719086728 | O43: 3.396988222 | P43: 11.04562306 | Q43: 9.106419365 | R43: 3.082669931 | S43: 11.04726541 | T43: 9.372287779 | U43: 2.004983905 | V43: 11.04741901 | W43: 9.528002657 | X43: 1.499506805 | Y43: 2.596589509 | Z43: 0.1223377085 | AA43: 0.003584789642 | AB43: 2.294834232 | AC43: 0.02213553614 | AD43: 5.984698394e-05 | AE43: 2.169237283 | AF43: 0.006158629642 | AG43: 2.214836139e-06 | AH43: 0.0005252537693 | AI43: 1.034552956e-06 | AJ43: 4.921474968e-09 | AK43: 4.728088786e-05 | AL43: 1.047516171e-09 | AM43: 9.850209776e-14 | AN43: 6.585280218e-06 | AO43: 1.383980008e-12 | AP43: 3.224964862e-18 | AQ43: 9.887187432 | AR43: 3.537016384 | AS43: 0.2572339656 | AT43: 9.94542118 | AU43: 2.736368465 | AV43: 0.04246395323 | AW43: 9.960572881 | AX43: 2.337270522 | AY43: 0.01160651257 | AZ43: 0.377484942 | BA43: 0.001739671593 | BB43: 7.868359552e-06 | BC43: 0.202306727 | BD43: 3.459616263e-05 | BE43: 3.792130863e-09 | BF43: 0.1394788517 | BG43: 1.420634387e-06 | BH43: 6.780933924e-12 | BI43: 4.883458645e-06 | BJ43: 8.882006516e-10 | BK43: 6.495104542e-13 | BL43: 6.257637703e-08 | BM43: 1.599161214e-14 | BN43: 5.728025871e-20 | BO43: 1.06400424e-09 | BP43: 2.481047147e-19 | BQ43: 7.740333349e-27 | BR43: 7.882716832 | BS43: 0.5574578158 | BT43: 0.006783261139 | BU43: 8.026787572 | BV43: 0.1802890114 | BW43: 0.0001378766286 | BX43: 8.087250155 | BY43: 0.08287306964 | BZ43: 8.030506015e-06 | CA43: 0.02770715165 | CB43: 1.162628852e-05 | CC43: 7.948597102e-09 | CD43: 0.006009410797 | CE43: 1.390897644e-08 | CF43: 6.266632015e-14 | CG43: 0.002094970003 | CH43: 4.621293102e-11 | CI43: 3.609902564e-18 | CJ43: 4.466428098e-08 | CK43: 7.116686073e-13 | CL43: 7.471277663e-17 | CM43: 5.336002003e-11 | CN43: 1.454315258e-19 | CO43: 2.096759771e-26 | CP43: 5.544907745e-14 | CQ43: 1.574449188e-26 | CR43: 9.103817394e-36
F44: Rate | G44: end | K44: 4.760817057 | L44: 0.0001308143953 | M44: 11.04382987 | N44: 4.747299793 | O44: 4.292231936 | P44: 11.04786529 | Q44: 11.04691216 | R44: 11.04382987 | S44: 11.04778498 | T44: 11.0468166 | U44: 11.04686446 | V44: 11.04771366 | W44: 11.04686997 | X44: 11.04684923 | Y44: 6.837062646 | Z44: 6.629876307 | AA44: 4.81469063 | AB44: 6.837008491 | AC44: 6.763636533 | AD44: 4.748132845 | AE44: 6.836963666 | AF44: 6.802581826 | AG44: 4.760817057 | AH44: 2.030657432 | AI44: 0.3546300649 | AJ44: 0.04595048061 | AK44: 1.87486496 | AL44: 0.1127797411 | AM44: 0.002562659496 | AN44: 1.816502015 | AO44: 0.04132000832 | AP44: 0.0001308143953 | AQ44: 10.03735442 | AR44: 10.03634119 | AS44: 9.869293283 | AT44: 10.03727245 | AU44: 10.03631771 | AV44: 10.00755615 | AW44: 10.03719381 | AX44: 10.03630172 | AY44: 10.03098764 | AZ44: 5.997946899 | BA44: 4.361978875 | BB44: 1.38372013 | BC44: 6.005932038 | BD44: 4.36509702 | BE44: 0.670958465 | BF44: 6.007107392 | BG44: 4.410040318 | BH44: 0.3603810643 | BI44: 0.5207911234 | BJ44: 0.02164617281 | BK44: 0.0008733904352 | BL44: 0.3288935533 | BM44: 0.001256626663 | BN44: 2.798259551e-06 | BO44: 0.2461314213 | BP44: 6.948795042e-05 | BQ44: 5.094171067e-09 | BR44: 9.196208968 | BS44: 9.177592902 | BT44: 7.816899224 | BU44: 9.196125403 | BV44: 9.194910243 | BW44: 8.219166403 | BX44: 9.196048154 | BY44: 9.195127053 | BZ44: 8.464884307 | CA44: 5.133084593 | CB44: 1.641335925 | CC44: 0.1667839265 | CD44: 5.207735355 | CE44: 1.05357318 | CF44: 0.01714345762 | CG44: 5.232278554 | CH44: 0.7532196962 | CI44: 0.002062799221 | CJ44: 0.08572622201 | CK44: 0.0008218830784 | CL44: 1.021497495e-05 | CM44: 0.02673186737 | CN44: 5.371277729e-06 | CO44: 1.135870416e-09 | CP44: 0.0106879103 | CQ44: 2.012776706e-08 | CR44: 3.629588975e-14
F45: Intercept | G45: half time | K45: 78.91318196 | L45: 70.88757817 | M45: 79.77591414 | N45: 76.6062129 | O45: 5.558738986 | P45: 54.78276502 | Q45: 69.56938579 | R45: 74.8100437 | S45: 55.10077447 | T45: 71.28245707 | U45: 76.61115557 | V45: 55.22786443 | W45: 71.99529769 | X45: 77.35801103 | Y45: 74.32400734 | Z45: 77.30750174 | AA45: 78.23341639 | AB45: 75.31485443 | AC45: 78.33909897 | AD45: 79.04554339 | AE45: 75.75773085 | AF45: 78.80362344 | AG45: 79.37811543 | AH45: 78.24770699 | AI45: 78.91709584 | AJ45: 79.19578141 | AK45: 78.81824944 | AL45: 79.41745572 | AM45: 79.61716594 | AN45: 79.15064682 | AO45: 79.65828609 | AP45: 79.77591414 | AQ45: 63.27449047 | AR45: 74.74951132 | AS45: 77.30235387 | AT45: 63.83087918 | AU45: 76.35147084 | AV45: 78.4751853 | AW45: 64.03080243 | AX45: 77.02795366 | AY45: 78.91318196 | AZ45: 76.70370727 | BA45: 78.39457063 | BB45: 78.94941908 | BC45: 77.56814638 | BD45: 79.12176987 | BE45: 79.51032898 | BF45: 77.99000993 | BG45: 79.4373827 | BH45: 79.69065606 | BI45: 78.74103605 | BJ45: 79.25899796 | BK45: 79.48147108 | BL45: 79.25098153 | BM45: 79.65825964 | BN45: 79.78773374 | BO45: 79.55094089 | BP45: 79.83930419 | BQ45: 79.89042294 | BR45: 69.91322599 | BS45: 77.00440184 | BT45: 78.40254504 | BU45: 70.88757817 | BV45: 78.18637709 | BW45: 79.18697593 | BX45: 71.26090666 | BY45: 78.66299608 | BZ45: 79.45722445 | CA45: 77.82012296 | CB45: 78.95287718 | CC45: 79.33536063 | CD45: 78.55855893 | CE45: 79.49332768 | CF45: 79.71322243 | CG45: 78.92582407 | CH45: 79.70338381 | CI45: 79.83185246 | CJ45: 79.06275269 | CK45: 79.4774888 | CL45: 79.67408184 | CM45: 79.50083832 | CN45: 79.79408693 | CO45: 79.90092675 | CP45: 79.72373895 | CQ45: 79.91147853 | CR45: 79.94017388
F46: Intercept | G46: end | K46: 136.2938686 | L46: 73.71111149 | M46: 153.5449831 | N46: 122.6633885 | O46: 31.07688763 | P46: 54.79582618 | Q46: 73.71111149 | R46: 92.6019234 | S46: 55.10498054 | T46: 74.40004752 | U46: 93.69596463 | V46: 55.23075765 | W46: 74.68067378 | X46: 94.13084453 | Y46: 87.87862216 | Z46: 116.0608964 | AA46: 132.8560062 | AB46: 88.63999594 | AC46: 119.0075606 | AD46: 138.8899133 | AE46: 88.93794297 | AF46: 119.9982338 | AG46: 141.7358153 | AH46: 137.6375612 | AI46: 145.6952579 | AJ46: 148.6408216 | AK46: 140.6201106 | AL46: 149.4112336 | AM46: 151.9219669 | AN46: 142.0215017 | AO46: 151.3899635 | AP46: 153.5449831 | AQ46: 63.77562942 | AR46: 88.90638586 | AS46: 112.9639789 | AT46: 64.14701349 | AU46: 89.73432263 | AV46: 115.1392235 | AW46: 64.29750177 | AX46: 90.07015115 | AY46: 115.8053791 | AZ46: 105.4656581 | BA46: 133.9244854 | BB46: 143.6304184 | BC46: 106.5413952 | BD46: 138.9795778 | BE46: 148.6095791 | BF46: 106.9561597 | BG46: 141.2987991 | BH46: 150.8449837 | BI46: 144.447245 | BJ46: 149.3422657 | BK46: 151.2184131 | BL46: 147.2954765 | BM46: 152.2028481 | BN46: 153.6688294 | BO46: 148.8229793 | BP46: 153.7230091 | BQ46: 154.8361658 | BR46: 73.13513658 | BS46: 104.9328416 | BT46: 129.7812405 | BU46: 73.5744022 | BV46: 106.0528377 | BW46: 134.3682882 | BX46: 73.75172886 | BY46: 106.4516423 | BZ46: 136.2938686 | CA46: 121.9747486 | CB46: 143.0662402 | CC46: 148.4664879 | CD46: 124.0345639 | CE46: 147.6427346 | CF46: 152.0836011 | CG46: 124.7578225 | CH46: 149.7826136 | CI46: 153.6012538 | CJ46: 147.7233932 | CK46: 151.2178345 | CL46: 152.6088977 | CM46: 150.2990597 | CN46: 153.579247 | CO46: 154.5715635 | CP46: 151.8326065 | CQ46: 154.7967218 | CR46: 155.4647026
F48: Rate | G48: start | K48: 0 | L48: 0 | M48: 0 | N48: 0 | O48: 0 | P48: 0 | Q48: 0 | R48: 0 | S48: 0 | T48: 0 | U48: 0 | V48: 0 | W48: 0 | X48: 0 | Y48: 0 | Z48: 0 | AA48: 0 | AB48: 0 | AC48: 0 | AD48: 0 | AE48: 0 | AF48: 0 | AG48: 0 | AH48: 0 | AI48: 0 | AJ48: 0 | AK48: 0 | AL48: 0 | AM48: 0 | AN48: 0 | AO48: 0 | AP48: 0 | AQ48: 0 | AR48: 0 | AS48: 0 | AT48: 0 | AU48: 0 | AV48: 0 | AW48: 0 | AX48: 0 | AY48: 0 | AZ48: 0 | BA48: 0 | BB48: 0 | BC48: 0 | BD48: 0 | BE48: 0 | BF48: 0 | BG48: 0 | BH48: 0 | BI48: 0 | BJ48: 0 | BK48: 0 | BL48: 0 | BM48: 0 | BN48: 0 | BO48: 0 | BP48: 0 | BQ48: 0 | BR48: 0 | BS48: 0 | BT48: 0 | BU48: 0 | BV48: 0 | BW48: 0 | BX48: 0 | BY48: 0 | BZ48: 0 | CA48: 0 | CB48: 0 | CC48: 0 | CD48: 0 | CE48: 0 | CF48: 0 | CG48: 0 | CH48: 0 | CI48: 0 | CJ48: 0 | CK48: 0 | CL48: 0 | CM48: 0 | CN48: 0 | CO48: 0 | CP48: 0 | CQ48: 0 | CR48: 0
F49: Rate | G49: half time | K49: 2.169818406e-07 | L49: 3.781172611e-26 | M49: 4.968043886 | N49: 1.146964464 | O49: 2.919636429 | P49: 11.42981621 | Q49: 3.0412165 | R49: 0.0787392387 | S49: 11.46065365 | T49: 1.874743053 | U49: 0.005125038155 | V49: 11.46197308 | W49: 1.341448628 | X49: 0.0008408383589 | Y49: 2.750501204 | Z49: 0.0086445646 | AA49: 1.249816817e-05 | AB49: 2.031004151 | AC49: 9.779015678e-05 | AD49: 2.163440835e-09 | AE49: 1.640969697 | AF49: 3.177982979e-06 | AG49: 4.805269145e-12 | AH49: 0.001122828576 | AI49: 2.902802352e-08 | AJ49: 3.427417828e-12 | AK49: 7.773050747e-06 | AL49: 8.595373484e-14 | AM49: 5.019799521e-20 | AN49: 8.334261792e-08 | AO49: 1.673472398e-18 | AP49: 3.781172611e-26 | AQ49: 9.584454244 | AR49: 0.1951354468 | AS49: 0.0002919730907 | AT49: 9.966034158 | AU49: 0.02270589267 | AV49: 7.633048837e-07 | AW49: 10.12804181 | AX49: 0.005089950608 | AY49: 1.753711793e-08 | AZ49: 0.2516089065 | BA49: 1.135293347e-05 | BB49: 6.749370285e-10 | BC49: 0.0420450783 | BD49: 1.588103689e-09 | BE49: 3.926236619e-16 | BF49: 0.01031283945 | BG49: 2.153897483e-12 | BH49: 2.200027309e-20 | BI49: 2.057613191e-06 | BJ49: 6.578112991e-13 | BK49: 3.096970673e-18 | BL49: 2.470169833e-10 | BM49: 2.48305128e-21 | BN49: 2.09242742e-29 | BO49: 4.733428599e-14 | BP49: 1.95307771e-28 | BQ49: 4.311550963e-38 | BR49: 5.451525101 | BS49: 0.002964245735 | BT49: 2.169818406e-07 | BU49: 5.142208951 | BV49: 2.639862272e-05 | BW49: 1.259204733e-11 | BX49: 4.968043886 | BY49: 1.094429236e-06 | BZ49: 3.19591292e-14 | CA49: 0.0065966104 | CB49: 3.656222746e-09 | CC49: 9.158402464e-15 | CD49: 9.735650738e-05 | CE49: 3.559258901e-15 | CF49: 1.438843274e-23 | CG49: 3.214801429e-06 | CH49: 1.433215735e-19 | CI49: 1.772718441e-29 | CJ49: 2.068776894e-09 | CK49: 7.950657992e-18 | CL49: 1.53352632e-24 | CM49: 2.358978486e-15 | CN49: 2.945645989e-29 | CO49: 4.768456946e-39 | CP49: 4.595524162e-21 | CQ49: 8.254348314e-39 | CR49: 0
F50: Rate | G50: end | K50: 0.8509107625 | L50: 8.348098275e-10 | M50: 10.41348626 | N50: 3.666102323 | O50: 4.29428745 | P50: 11.4620726 | Q50: 11.4446099 | R50: 9.704474311 | S50: 11.46204613 | T50: 11.46029122 | U50: 10.17606274 | V50: 11.46197309 | W50: 11.46020761 | X50: 10.45594083 | Y50: 7.091249929 | Z50: 4.632178066 | AA50: 0.8509107625 | AB50: 7.093380787 | AC50: 4.473222997 | AD50: 0.2268750116 | AE50: 7.093331251 | AF50: 4.403758996 | AG50: 0.07198846527 | AH50: 2.115222058 | AI50: 0.07273884335 | AJ50: 0.001369901021 | AK50: 1.765540433 | AL50: 0.002430272816 | AM50: 9.959971735e-07 | AN50: 1.549083282 | AO50: 7.057583031e-05 | AP50: 8.348098275e-10 | AQ50: 10.41350843 | AR50: 9.93829195 | AS50: 4.033045066 | AT50: 10.41348626 | AU50: 10.24854392 | AV50: 3.056640607 | AW50: 10.41347517 | AX50: 10.34637484 | AY50: 2.508827485 | AZ50: 6.100700715 | BA50: 1.09882621 | BB50: 0.0309838408 | BC50: 6.2107345 | BD50: 0.4021469069 | BE50: 0.0005120827273 | BF50: 6.230921121 | BG50: 0.164259555 | BH50: 1.531593353e-05 | BI50: 0.4219483812 | BJ50: 0.0009896830099 | BK50: 2.123406194e-06 | BL50: 0.1106098094 | BM50: 6.631971053e-07 | BN50: 5.880461454e-12 | BO50: 0.02907394005 | BP50: 3.345909176e-10 | BQ50: 2.893713022e-17 | BR50: 9.540702886 | BS50: 6.725397445 | BT50: 0.6424761493 | BU50: 9.540684435 | BV50: 6.859260486 | BW50: 0.1496332238 | BX50: 9.540675197 | BY50: 6.975330027 | BZ50: 0.0501939628 | CA50: 4.496447134 | CB50: 0.09208568423 | CC50: 0.0003131771998 | CD50: 4.711602629 | CE50: 0.004124443941 | CF50: 1.140907655e-07 | CG50: 4.881215903 | CH50: 0.0002469806043 | CI50: 1.607737785e-10 | CJ50: 0.03756656414 | CK50: 5.250658547e-06 | CL50: 1.214971857e-09 | CM50: 0.001339273593 | CN50: 3.406978051e-11 | CO50: 7.667789539e-18 | CP50: 3.758250012e-05 | CQ50: 1.620198097e-16 | CR50: 1.703212153e-25
F51: Intercept | G51: half time | K51: 79.29500311 | L51: 73.53458613 | M51: 79.84488858 | N51: 76.51967094 | O51: 9.896167082 | P51: 55.37740701 | Q51: 74.14335399 | R51: 77.2263324 | S51: 56.00355246 | T51: 76.32297151 | U51: 78.47696468 | V51: 56.21848983 | W51: 77.14882678 | X51: 78.87249655 | Y51: 73.53458613 | Z51: 77.83816308 | AA51: 78.74040711 | AB51: 75.79965773 | AC51: 78.94115829 | AD51: 79.39608002 | AE51: 76.76902152 | AF51: 79.29500311 | AG51: 79.58202268 | AH51: 78.21476729 | AI51: 79.13151399 | AJ51: 79.44199298 | AK51: 79.084352 | AL51: 79.61197473 | AM51: 79.74892401 | AN51: 79.44105351 | AO51: 79.77323656 | AP51: 79.83052976 | AQ51: 66.11691931 | AR51: 77.11034664 | AS51: 78.55969104 | AT51: 67.81292061 | AU51: 78.45014497 | AV51: 79.27240795 | AW51: 68.45534236 | AX51: 78.88395357 | AY51: 79.47269702 | AZ51: 76.80836379 | BA51: 78.87280279 | BB51: 79.34324728 | BC51: 78.27857013 | BD51: 79.50653296 | BE51: 79.70177177 | BF51: 78.84091073 | BG51: 79.6877118 | BH51: 79.79483529 | BI51: 78.92359978 | BJ51: 79.51339325 | BK51: 79.72308027 | BL51: 79.53091632 | BM51: 79.81520883 | BN51: 79.88317591 | BO51: 79.73748793 | BP51: 79.89517294 | BQ51: 79.90686932 | BR51: 72.74956821 | BS51: 78.38280927 | BT51: 79.1769248 | BU51: 74.87516419 | BV51: 79.2201125 | BW51: 79.61010612 | BX51: 75.76394451 | BY51: 79.46634864 | BZ51: 79.72170136 | CA51: 78.17637394 | CB51: 79.34407545 | CC51: 79.63362556 | CD51: 79.12763454 | CE51: 79.73975155 | CF51: 79.83336837 | CG51: 79.4595979 | CH51: 79.84488858 | CI51: 79.90143894 | CJ51: 79.30720978 | CK51: 79.70069492 | CL51: 79.82357389 | CM51: 79.71840521 | CN51: 79.90755079 | CO51: 79.94186368 | CP51: 79.86892451 | CQ51: 79.93477502 | CR51: 0
F52: Intercept | G52: end | K52: 145.6989708 | L52: 83.1118892 | M52: 154.7133756 | N52: 132.5456625 | O52: 28.46316356 | P52: 55.5049768 | Q52: 94.51927346 | R52: 125.2561588 | S52: 56.01247708 | T52: 95.76886771 | U52: 130.479323 | V52: 56.21902243 | W52: 96.22933481 | X52: 132.6446366 | Y52: 88.87655982 | Z52: 131.9437356 | AA52: 143.8020057 | AB52: 90.13824847 | AC52: 139.08319 | AD52: 149.3572869 | AE52: 90.62797775 | AF52: 142.3795876 | AG52: 151.4696459 | AH52: 135.3911142 | AI52: 147.4475618 | AJ52: 150.6093706 | AK52: 142.2839623 | AL52: 151.9118993 | AM52: 153.6636714 | AN52: 145.6647543 | AO52: 153.6468112 | AP52: 154.7133756 | AQ52: 68.32956862 | AR52: 117.5468615 | AS52: 140.2441121 | AT52: 68.93822065 | AU52: 120.7806504 | AV52: 145.6989708 | AW52: 69.18573605 | AX52: 121.8492922 | AY52: 147.9240319 | AZ52: 111.622351 | BA52: 143.4906817 | BB52: 149.382697 | BC52: 114.4074245 | BD52: 149.144329 | BE52: 152.9243553 | BF52: 115.2124754 | BG52: 151.3908367 | BH52: 154.1068353 | BI52: 144.6197184 | BJ52: 151.0506208 | BK52: 152.9018767 | BL52: 149.7262266 | BM52: 153.9493246 | BN52: 154.8671384 | BO52: 152.0597421 | BP52: 154.9939264 | BQ52: 155.512505 | BR52: 82.10104679 | BS52: 134.1591694 | BT52: 147.1259893 | BU52: 82.81999211 | BV52: 139.5929243 | BW52: 151.0958269 | BX52: 83.1118892 | BY52: 141.9588141 | BZ52: 152.5107372 | CA52: 129.7261462 | CB52: 148.6881019 | CC52: 152.0356602 | CD52: 135.4449532 | CE52: 152.5823629 | CF52: 154.4045473 | CG52: 137.9759651 | CH52: 153.9701697 | CI52: 155.1475457 | CJ52: 148.7744285 | CK52: 152.8422081 | CL52: 154.1142572 | CM52: 152.4841645 | CN52: 154.8789141 | CO52: 155.4776505 | CP52: 154.1347029 | CQ52: 155.6079807 | CR52: 155.9271773
F54: Rate | G54: start | K54: 0 | L54: 0 | M54: 0 | N54: 0 | O54: 0 | P54: 0 | Q54: 0 | R54: 0 | S54: 0 | T54: 0 | U54: 0 | V54: 0 | W54: 0 | X54: 0 | Y54: 0 | Z54: 0 | AA54: 0 | AB54: 0 | AC54: 0 | AD54: 0 | AE54: 0 | AF54: 0 | AG54: 0 | AH54: 0 | AI54: 0 | AJ54: 0 | AK54: 0 | AL54: 0 | AM54: 0 | AN54: 0 | AO54: 0 | AP54: 0 | AQ54: 0 | AR54: 0 | AS54: 0 | AT54: 0 | AU54: 0 | AV54: 0 | AW54: 0 | AX54: 0 | AY54: 0 | AZ54: 0 | BA54: 0 | BB54: 0 | BC54: 0 | BD54: 0 | BE54: 0 | BF54: 0 | BG54: 0 | BH54: 0 | BI54: 0 | BJ54: 0 | BK54: 0 | BL54: 0 | BM54: 0 | BN54: 0 | BO54: 0 | BP54: 0 | BQ54: 0 | BR54: 0 | BS54: 0 | BT54: 0 | BU54: 0 | BV54: 0 | BW54: 0 | BX54: 0 | BY54: 0 | BZ54: 0 | CA54: 0 | CB54: 0 | CC54: 0 | CD54: 0 | CE54: 0 | CF54: 0 | CG54: 0 | CH54: 0 | CI54: 0 | CJ54: 0 | CK54: 0 | CL54: 0 | CM54: 0 | CN54: 0 | CO54: 0 | CP54: 0 | CQ54: 0 | CR54: 0
F55: Rate | G55: half time | K55: 5.701817774 | L55: 0.003349197253 | M55: 11.79441199 | N55: 5.351677547 | O55: 4.524092535 | P55: 11.79521121 | Q55: 11.79497003 | R55: 11.79456038 | S55: 11.79510114 | T55: 11.79486532 | U55: 11.79441989 | V55: 11.7950985 | W55: 11.79486004 | X55: 11.79441199 | Y55: 7.299142125 | Z55: 7.232340008 | AA55: 6.629124878 | AB55: 7.299212296 | AC55: 7.271732106 | AD55: 6.814143171 | AE55: 7.299210737 | AF55: 7.280659764 | AG55: 6.929142096 | AH55: 1.430317322 | AI55: 0.4579164889 | AJ55: 0.1367630783 | AK55: 1.284659628 | AL55: 0.2396263594 | AM55: 0.03013223581 | AN55: 1.228296602 | AO55: 0.149517859 | AP55: 0.00703500215 | AQ55: 10.71642898 | AR55: 10.71617146 | AS55: 10.71206919 | AT55: 10.71631112 | AU55: 10.71606109 | AV55: 10.71559264 | AW55: 10.71630865 | AX55: 10.71605865 | AY55: 10.71558277 | AZ55: 6.378736203 | BA55: 5.60237499 | BB55: 3.590867901 | BC55: 6.38527288 | BD55: 5.701817774 | BE55: 3.159376543 | BF55: 6.387013941 | BG55: 5.767918916 | BH55: 2.944625532 | BI55: 0.323936386 | BJ55: 0.04430577878 | BK55: 0.006683416095 | BL55: 0.228960066 | BM55: 0.009432722706 | BN55: 0.0003105435042 | BO55: 0.1894143366 | BP55: 0.002264051627 | BQ55: 1.014639179e-05 | BR55: 9.818446065 | BS55: 9.818020768 | BT55: 9.723419682 | BU55: 9.818322326 | BV55: 9.818066404 | BW55: 9.803627127 | BX55: 9.818320007 | BY55: 9.818060602 | BZ55: 9.81427229 | CA55: 5.358513058 | CB55: 3.143379771 | CC55: 1.110548511 | CD55: 5.383451373 | CE55: 2.847731729 | CF55: 0.5381831911 | CG55: 5.392677755 | CH55: 2.723811113 | CI55: 0.2952086005 | CJ55: 0.05767159489 | CK55: 0.003349197253 | CL55: 0.000256813495 | CM55: 0.02734015267 | CN55: 0.000217664919 | CO55: 1.799288491e-06 | CP55: 0.01659482127 | CQ55: 1.192064872e-05 | CR55: 4.308853777e-09
F56: Rate | G56: end | K56: 6.416372707 | L56: =PERCENTILE(P56:CR56,0.1) -> 2.222464422 | M56: =PERCENTILE(P56:CR56,0.9) -> 11.79441177 | N56: 6.678062594 | O56: 3.381178617 | P56: 11.79521232 | Q56: 11.79496982 | R56: 11.79456017 | S56: 11.7950996 | T56: 11.7948651 | U56: 11.79442233 | V56: 11.79509696 | W56: 11.79485983 | X56: 11.79441177 | Y56: 7.299627528 | Z56: 7.299441419 | AA56: 7.299202065 | AB56: 7.299524799 | AC56: 7.299375658 | AD56: 7.299114236 | AE56: 7.299488449 | AF56: 7.299341971 | AG56: 7.299067925 | AH56: 3.961837613 | AI56: 3.917907748 | AJ56: 3.667509056 | AK56: 3.962018804 | AL56: 3.940417334 | AM56: 3.736615315 | AN56: 3.962043555 | AO56: 3.947467888 | AP56: 3.800422908 | AQ56: 10.71643 | AR56: 10.71617124 | AS56: 10.71573873 | AT56: 10.7163109 | AU56: 10.71606087 | AV56: 10.71559366 | AW56: 10.71630967 | AX56: 10.71605719 | AY56: 10.71558131 | AZ56: 6.41660413 | BA56: 6.416438262 | BB56: 6.415453599 | BC56: 6.416524278 | BD56: 6.416372707 | BE56: 6.416100521 | BF56: 6.416488021 | BG56: 6.416335988 | BH56: 6.416055007 | BI56: 3.359103047 | BJ56: 2.98877209 | BK56: 2.222464422 | BL56: 3.362998856 | BM56: 3.006613608 | BN56: 1.983151867 | BO56: 3.364422876 | BP56: 3.041073064 | BQ56: 1.879695659 | BR56: 9.818445702 | BS56: 9.818178051 | BT56: 9.817736411 | BU56: 9.818321964 | BV56: 9.818067209 | BW56: 9.817582415 | BX56: 9.818320813 | BY56: 9.818061408 | BZ56: 9.81757313 | CA56: 5.724199546 | CB56: 5.723944523 | CC56: 5.696011811 | CD56: 5.724097526 | CE56: 5.723945138 | CF56: 5.722069161 | CG56: 5.724062142 | CH56: 5.723909786 | CI56: 5.723564285 | CJ56: 2.713552674 | CK56: 1.816002206 | CL56: 0.9451290888 | CM56: 2.71357146 | CN56: 1.622298833 | CO56: 0.5359394588 | CP56: 2.716936992 | CQ56: 1.546606009 | CR56: 0.3220985961
F57: Intercept | G57: half time | K57: 66.90045752 | L57: =PERCENTILE(P57:CR57,0.1) -> 37.00797542 | M57: =PERCENTILE(P57:CR57,0.9) -> 78.09649086 | N57: 61.88642659 | O57: 15.70515811 | P57: 30.89346823 | Q57: 36.58592955 | R57: 42.27750483 | S57: 31.02897338 | T57: 36.88746863 | U57: 42.74532533 | V57: 31.08313595 | W57: 37.00797542 | X57: 42.93235047 | Y57: 49.57186188 | Z57: 58.17362831 | AA57: 64.7364471 | AB57: 49.91397284 | AC57: 59.13832132 | AD57: 66.90045752 | AE57: 50.04373512 | AF57: 59.47483639 | AG57: 67.80900599 | AH57: 73.04789709 | AI57: 75.18212246 | AJ57: 76.19331659 | AK57: 73.84461373 | AL57: 76.43199802 | AM57: 77.51253669 | AN57: 74.22747045 | AO57: 77.20668126 | AP57: 78.32291212 | AQ57: 35.03081169 | AR57: 42.60420709 | AS57: 50.15639542 | AT57: 35.1939757 | AU57: 42.96734427 | AV57: 50.73983349 | AW57: 35.27125071 | AX57: 43.12404254 | AY57: 50.97620623 | AZ57: 57.79747426 | BA57: 66.93701773 | BB57: 71.50250241 | BC57: 58.27830101 | BD57: 68.64560199 | BE57: 73.90084026 | BF57: 58.45513225 | BG57: 69.35762438 | BH57: 75.10202099 | BI57: 75.27893895 | BJ57: 76.73006319 | BK57: 77.41833446 | BL57: 76.0672298 | BM57: 77.7756454 | BN57: 78.45982469 | BO57: 76.52021049 | BP57: 78.46188337 | BQ57: 79.0905222 | BR57: 39.24864656 | BS57: 48.88119088 | BT57: 58.13675901 | BU57: 39.44202893 | BV57: 49.31354917 | BW57: 59.11822381 | BX57: 39.51844435 | BY57: 49.48359753 | BZ57: 59.4290269 | CA57: 64.84436928 | CB57: 72.02589457 | CC57: 74.77785471 | CD57: 65.57363229 | CE57: 73.88649768 | CF57: 76.72723653 | CG57: 65.84253739 | CH57: 74.79498789 | CI57: 77.72133752 | CJ57: 76.39816454 | CK57: 77.55517003 | CL57: 78.09649086 | CM57: 77.2184728 | CN57: 78.47910813 | CO57: 78.968429 | CP57: 77.72031645 | CQ57: 79.09126685 | CR57: 79.49013853
F58: Intercept | G58: end | K58: 68.67415336 | L58: =PERCENTILE(P58:CR58,0.1) -> 37.00797443 | M58: =PERCENTILE(P58:CR58,0.9) -> 131.2690281 | N58: 78.62255169 | O58: 35.21911527 | P58: 30.89347473 | Q58: 36.58591893 | R58: 42.27750354 | S58: 31.02896876 | T58: 36.88747363 | U58: 42.74534033 | V58: 31.0831273 | W58: 37.00797443 | X58: 42.93235182 | Y58: 49.57669363 | Z58: 58.538107 | AA58: 67.49795872 | AB58: 49.91733778 | AC58: 59.29634327 | AD58: 68.67415336 | AE58: 50.04678101 | AF58: 59.58436929 | AG58: 69.12113846 | AH58: 89.95414001 | AI58: 104.6911935 | AJ58: 116.1808766 | AK58: 91.08825989 | AL58: 107.6476321 | AM58: 121.8411819 | AN58: 91.49471246 | AO58: 108.6785787 | AP58: 124.2897031 | AQ58: 35.03081357 | AR58: 42.60420843 | AS58: 50.17639726 | AT58: 35.1939688 | AU58: 42.96733859 | AV58: 50.73983729 | AW58: 35.27124486 | AX58: 43.12403638 | AY58: 50.97620256 | AZ58: 58.04150183 | BA58: 70.36827825 | BB58: 82.68022758 | BC58: 58.4802591 | BD58: 71.34463461 | BE58: 84.20724592 | BF58: 58.64526743 | BG58: 71.71179879 | BH58: 84.77718095 | BI58: 106.7767368 | BJ58: 122.5012763 | BK58: 131.2690281 | BL58: 108.3715635 | BM58: 127.1383317 | BN58: 137.7611737 | BO58: 108.951 | BP58: 129.2021673 | BQ58: 141.3700313 | BR58: 39.24865211 | BS58: 48.88307832 | BT58: 58.51596057 | BU58: 39.44203368 | BV58: 49.31355365 | BW58: 59.18389761 | BX58: 39.51845211 | BY58: 49.48360114 | BZ58: 59.44793007 | CA58: 66.720153 | CB58: 82.82486059 | CC58: 98.53444166 | CD58: 67.26918532 | CE58: 84.04860593 | CF58: 100.8015885 | CG58: 67.47401484 | CH58: 84.50442681 | CI58: 101.5318162 | CJ58: 120.4846203 | CK58: 133.3754988 | CL58: 139.2747105 | CM58: 122.759238 | CN58: 138.4632156 | CO58: 144.9408451 | CP58: 123.6234256 | CQ58: 141.2094018 | CR58: 148.306434
